Workbook

Sheet DAX 30 Werte
A1: Datum | B1: DAX | C1: BASF SE | D1: Linde AG | E1: BMW AG | F1: Fresenius Medical Care AG & Co Kgaa | G1: Adidas AG | H1: Infineon Technologies AG | I1: Heidelbergcement AG | J1: K S AG | K1: Deutsche Bank AG | L1: Volkswagen AG | M1: Siemens AG | N1: SAP AG | O1: Deutsche Telekom AG | P1: Daimler AG | Q1: EON AG | R1: Allianz Se | S1: Bayer AG | T1: Muenchener Rueckversicherungs Gesellschaft AG in Muenchen | U1: RWE AG | V1: Deutsche Post AG | W1: Fresenius SE & Co KGaA | X1: METRO AG | Y1: Beiersdorf AG | Z1: ThyssenKrupp AG | AA1: COMMERZBANK AG | AB1: MAN SE | AC1: Deutsche Lufthansa AG | AD1: Merck KGaA | AE1: Henkel AG & Co KGaA
A2: 2009-10-01 | B2: 5554.55 | C2: 34.73 | D2: 72.519997 | E2: 32.41 | F2: 33.69 | G2: 35.5 | H2: 3.76 | I2: 42.75 | J2: 34.574581 | K2: 46.5363 | L2: 75.5555 | M2: 61.58 | N2: 33.355 | O2: 9.165 | P2: 33.4 | Q2: 28.25 | R2: 84.400002 | S2: 46.05 | T2: 109.9 | U2: 62.65 | V2: 12.41 | W2: 33.49 | X2: 37.63 | Y2: 39.799999 | Z2: 22.7 | AA2: 6.7235 | AB2: 54.34 | AC2: 11.74 | AD2: 67.32 | AE2: 28.74
A3: 2009-10-02 | B3: 5467.9 | C3: 34.150002 | D3: 71.800003 | E3: 31.83 | F3: 33.39 | G3: 34.91 | H3: 3.63 | I3: 42.45 | J3: 34.403934 | K3: 45.4596 | L3: 74.154 | M3: 60.2 | N3: 33.07 | O3: 9.105 | P3: 32.785 | Q3: 27.87 | R3: 81.900002 | S3: 45.5 | T3: 110.42 | U3: 62.2 | V3: 12.115 | W3: 33.62 | X3: 36.5 | Y3: 39.389999 | Z3: 22.53 | AA3: 6.1185 | AB3: 53.68 | AC3: 11.53 | AD3: 66.6 | AE3: 28.25
A4: 2009-10-05 | B4: 5508.85 | C4: 34.689999 | D4: 72.089996 | E4: 31.775 | F4: 33.81 | G4: 35.04 | H4: 3.725 | I4: 42.34 | J4: 34.536659 | K4: 46.2306 | L4: 75.5058 | M4: 60.55 | N4: 33.085 | O4: 9.255 | P4: 32.65 | Q4: 27.8 | R4: 82.68 | S4: 46.32 | T4: 110.32 | U4: 62.47 | V4: 12.155 | W4: 33.24 | X4: 37.25 | Y4: 39.439999 | Z4: 22.48 | AA4: 6.2387 | AB4: 54.84 | AC4: 11.58 | AD4: 66.83 | AE4: 28.700001
A5: 2009-10-06 | B5: 5657.64 | C5: 36.119999 | D5: 74.779999 | E5: 32.395 | F5: 33.66 | G5: 36 | H5: 3.82 | I5: 43.5 | J5: 35.655334 | K5: 48.2244 | L5: 78.7762 | M5: 63.1 | N5: 33.115 | O5: 9.42 | P5: 33.75 | Q5: 28.4 | R5: 85.860001 | S5: 47.52 | T5: 111.45 | U5: 63.31 | V5: 12.58 | W5: 33.48 | X5: 38.39 | Y5: 40.400002 | Z5: 23.21 | AA5: 6.6113 | AB5: 55.63 | AC5: 11.76 | AD5: 67.76 | AE5: 29.26
A6: 2009-10-07 | B6: 5640.75 | C6: 36.240002 | D6: 74.349998 | E6: 32.15 | F6: 33.83 | G6: 35.13 | H6: 3.79 | I6: 43.58 | J6: 36.233631 | K6: 47.9415 | L6: 80.1479 | M6: 62.9 | N6: 33.395 | O6: 9.375 | P6: 33.525 | Q6: 28.03 | R6: 86.099998 | S6: 47.43 | T6: 110.95 | U6: 63.23 | V6: 12.58 | W6: 33.35 | X6: 37.15 | Y6: 40.560001 | Z6: 23.03 | AA6: 6.7235 | AB6: 56.23 | AC6: 11.65 | AD6: 67.71 | AE6: 29.35
A7: 2009-10-08 | B7: 5716.54 | C7: 37.470001 | D7: 74.18 | E7: 33.055 | F7: 33.93 | G7: 34.5 | H7: 3.785 | I7: 44.04 | J7: 36.887768 | K7: 48.8905 | L7: 81.2314 | M7: 64.5 | N7: 34.325 | O7: 9.44 | P7: 34.515 | Q7: 28 | R7: 86.57 | S7: 47.23 | T7: 112.45 | U7: 63.34 | V7: 12.79 | W7: 33.73 | X7: 37.65 | Y7: 41 | Z7: 23.96 | AA7: 6.6955 | AB7: 56.93 | AC7: 11.81 | AD7: 67.9 | AE7: 30.73
A8: 2009-10-09 | B8: 5711.88 | C8: 37.490002 | D8: 74 | E8: 32.84 | F8: 33.51 | G8: 34.85 | H8: 3.78 | I8: 45 | J8: 36.356873 | K8: 48.6077 | L8: 79.2135 | M8: 64.74 | N8: 34.48 | O8: 9.32 | P8: 34.725 | Q8: 27.89 | R8: 86.970001 | S8: 46.98 | T8: 113.31 | U8: 63.08 | V8: 12.76 | W8: 33.74 | X8: 37.97 | Y8: 41.130001 | Z8: 23.89 | AA8: 6.6474 | AB8: 57.27 | AC8: 11.805 | AD8: 67.94 | AE8: 30.85
A9: 2009-10-12 | B9: 5783.23 | C9: 38.349998 | D9: 75.279999 | E9: 33.53 | F9: 33.61 | G9: 34.75 | H9: 3.97 | I9: 45.35 | J9: 36.480118 | K9: 49.6296 | L9: 76.7881 | M9: 66.45 | N9: 34.76 | O9: 9.42 | P9: 34.8 | Q9: 27.74 | R9: 87.910004 | S9: 48.18 | T9: 113.79 | U9: 63.11 | V9: 12.69 | W9: 34.36 | X9: 38.1 | Y9: 41.540001 | Z9: 24.17 | AA9: 6.7476 | AB9: 58.28 | AC9: 11.935 | AD9: 68.92 | AE9: 31.200001
A10: 2009-10-13 | B10: 5714.31 | C10: 37.82 | D10: 74.629997 | E10: 33.195 | F10: 33.24 | G10: 34.31 | H10: 3.865 | I10: 45.77 | J10: 35.949223 | K10: 49.0456 | L10: 77.3945 | M10: 65.62 | N10: 34.585 | O10: 9.305 | P10: 34.475 | Q10: 27.37 | R10: 86.650002 | S10: 47.35 | T10: 112.71 | U10: 62.37 | V10: 12.535 | W10: 34.41 | X10: 38.65 | Y10: 41.189999 | Z10: 24.45 | AA10: 6.7396 | AB10: 56.92 | AC10: 11.785 | AD10: 68.58 | AE10: 30.379999
A11: 2009-10-14 | B11: 5854.14 | C11: 40.610001 | D11: 75.75 | E11: 34.035 | F11: 33.36 | G11: 35.76 | H11: 4.02 | I11: 47.25 | J11: 37.172176 | K11: 51.0987 | L11: 76.1122 | M11: 69 | N11: 35.075 | O11: 9.48 | P11: 35.1 | Q11: 26.94 | R11: 88.120003 | S11: 48.79 | T11: 114.2 | U11: 62.22 | V11: 12.765 | W11: 34.03 | X11: 39.1 | Y11: 41.490002 | Z11: 25.36 | AA11: 6.9639 | AB11: 58.31 | AC11: 11.99 | AD11: 69.25 | AE11: 31
A12: 2009-10-15 | B12: 5830.77 | C12: 40.110001 | D12: 75.75 | E12: 33.58 | F12: 33.5 | G12: 36.3 | H12: 3.87 | I12: 47.4 | J12: 36.802448 | K12: 51.4455 | L12: 77.4044 | M12: 68.45 | N12: 34.795 | O12: 9.55 | P12: 35.095 | Q12: 26.58 | R12: 87.309998 | S12: 48.8 | T12: 112.96 | U12: 61 | V12: 12.93 | W12: 33.73 | X12: 39.81 | Y12: 42 | Z12: 25.7 | AA12: 6.9199 | AB12: 58.6 | AC12: 11.96 | AD12: 69.8 | AE12: 31.709999
A13: 2009-10-16 | B13: 5743.39 | C13: 39.400002 | D13: 74.970001 | E13: 33.25 | F13: 33.45 | G13: 36.15 | H13: 3.765 | I13: 46.09 | J13: 36.944653 | K13: 50.0266 | L13: 72.5635 | M13: 66.56 | N13: 34.54 | O13: 9.4 | P13: 35.16 | Q13: 26.14 | R13: 86.169998 | S13: 47.53 | T13: 110.83 | U13: 60.84 | V13: 12.775 | W13: 34 | X13: 39.16 | Y13: 41.939999 | Z13: 25.12 | AA13: 6.7115 | AB13: 58.82 | AC13: 11.73 | AD13: 69.29 | AE13: 31.719999
A14: 2009-10-19 | B14: 5852.56 | C14: 40.82 | D14: 76.400002 | E14: 34.665 | F14: 33.48 | G14: 36.6 | H14: 3.835 | I14: 48.32 | J14: 38.158127 | K14: 51.0987 | L14: 73.5576 | M14: 67.73 | N14: 35.045 | O14: 9.46 | P14: 37.62 | Q14: 26.24 | R14: 86.089996 | S14: 48.65 | T14: 113.2 | U14: 61.13 | V14: 12.85 | W14: 33.78 | X14: 39.42 | Y14: 42.5 | Z14: 25.34 | AA14: 6.7476 | AB14: 60.13 | AC14: 11.69 | AD14: 70.15 | AE14: 31.6
A15: 2009-10-20 | B15: 5811.77 | C15: 40.02 | D15: 75.699997 | E15: 35.1 | F15: 33.24 | G15: 35.81 | H15: 3.88 | I15: 47.63 | J15: 38.774345 | K15: 50.4965 | L15: 70.8836 | M15: 67.26 | N15: 34.75 | O15: 9.45 | P15: 36.985 | Q15: 26.64 | R15: 84.699997 | S15: 47.66 | T15: 113.55 | U15: 61.85 | V15: 12.745 | W15: 33.7 | X15: 38.97 | Y15: 42.349998 | Z15: 25.07 | AA15: 6.6835 | AB15: 59.47 | AC15: 11.56 | AD15: 70.06 | AE15: 31.51
A16: 2009-10-21 | B16: 5833.49 | C16: 40.400002 | D16: 76.190002 | E16: 35.59 | F16: 33.1 | G16: 35.27 | H16: 3.72 | I16: 46.99 | J16: 38.698502 | K16: 49.2738 | L16: 72.2952 | M16: 67.41 | N16: 34.97 | O16: 9.635 | P16: 37.175 | Q16: 27.22 | R16: 84.120003 | S16: 48.29 | T16: 113.87 | U16: 62.26 | V16: 12.77 | W16: 33.78 | X16: 39.41 | Y16: 42.459999 | Z16: 24.96 | AA16: 6.6674 | AB16: 58.93 | AC16: 11.585 | AD16: 70.99 | AE16: 31.459999
A17: 2009-10-22 | B17: 5762.93 | C17: 39.5 | D17: 75.169998 | E17: 35.56 | F17: 32.94 | G17: 34.97 | H17: 3.56 | I17: 45.31 | J17: 38.110725 | K17: 48.1514 | L17: 72.6132 | M17: 66.08 | N17: 34.39 | O17: 9.685 | P17: 36.73 | Q17: 27.05 | R17: 84.040001 | S17: 48.01 | T17: 112.01 | U17: 61.95 | V17: 12.43 | W17: 33.5 | X17: 39.04 | Y17: 42.380001 | Z17: 24.28 | AA17: 6.4911 | AB17: 58.23 | AC17: 11.41 | AD17: 70.11 | AE17: 31.07
A18: 2009-10-23 | B18: 5740.25 | C18: 39.16 | D18: 74.910004 | E18: 35.94 | F18: 32.28 | G18: 34.7 | H18: 3.475 | I18: 45.25 | J18: 38.869148 | K18: 48.2746 | L18: 72.9015 | M18: 65.55 | N18: 34.44 | O18: 9.565 | P18: 36.875 | Q18: 26.95 | R18: 83.699997 | S18: 47.68 | T18: 110.54 | U18: 61.32 | V18: 12.385 | W18: 33.68 | X18: 39.28 | Y18: 42.369999 | Z18: 24.4 | AA18: 6.5232 | AB18: 58.85 | AC18: 11.6 | AD18: 69.5 | AE18: 31.25
A19: 2009-10-26 | B19: 5642.16 | C19: 38.290001 | D19: 74.550003 | E19: 35.605 | F19: 31.86 | G19: 33.73 | H19: 3.375 | I19: 44.2 | J19: 37.503986 | K19: 46.258 | L19: 71.3409 | M19: 64.67 | N19: 34.1 | O19: 9.495 | P19: 35.83 | Q19: 26.8 | R19: 80.050003 | S19: 47.82 | T19: 109.92 | U19: 61.23 | V19: 12.06 | W19: 33.44 | X19: 38.97 | Y19: 42.07 | Z19: 23.99 | AA19: 6.2748 | AB19: 57.61 | AC19: 11.17 | AD19: 66.73 | AE19: 31.09
A20: 2009-10-27 | B20: 5635.02 | C20: 38.240002 | D20: 75.150002 | E20: 34.465 | F20: 32.6 | G20: 33.4 | H20: 3.12 | I20: 42.26 | J20: 37.020493 | K20: 46.0436 | L20: 68.329 | M20: 65.05 | N20: 34.41 | O20: 9.49 | P20: 35.065 | Q20: 27.04 | R20: 80 | S20: 48.38 | T20: 111.5 | U20: 60.98 | V20: 11.83 | W20: 33.46 | X20: 38.76 | Y20: 41.98 | Z20: 23.43 | AA20: 5.9222 | AB20: 56.21 | AC20: 10.97 | AD20: 66.49 | AE20: 31.34
A21: 2009-10-28 | B21: 5496.27 | C21: 37 | D21: 73.519997 | E21: 33.125 | F21: 32.82 | G21: 32.15 | H21: 3.045 | I21: 39.73 | J21: 35.882858 | K21: 44.6201 | L21: 64.9493 | M21: 63.09 | N21: 31.75 | O21: 9.595 | P21: 33.215 | Q21: 26.9 | R21: 78.800003 | S21: 47.93 | T21: 111.1 | U21: 61.34 | V21: 11.45 | W21: 33.33 | X21: 37.74 | Y21: 41.650002 | Z21: 22 | AA21: 5.5575 | AB21: 54.63 | AC21: 10.37 | AD21: 65.84 | AE21: 30.57
A22: 2009-10-29 | B22: 5587.45 | C22: 37.419998 | D22: 73.970001 | E22: 33.93 | F22: 33.29 | G22: 32.76 | H22: 3.235 | I22: 41.09 | J22: 36.451675 | K22: 47.1203 | L22: 69.5815 | M22: 64.52 | N22: 31.575 | O22: 9.575 | P22: 34.585 | Q22: 26.68 | R22: 81.650002 | S22: 48.28 | T22: 111 | U22: 60.87 | V22: 11.78 | W22: 34 | X22: 38.22 | Y22: 41.939999 | Z22: 22.62 | AA22: 5.9021 | AB22: 57.56 | AC22: 10.64 | AD22: 65.63 | AE22: 31.59
A23: 2009-10-30 | B23: 5414.96 | C23: 36.5 | D23: 71.389999 | E23: 33.295 | F23: 32.95 | G23: 31.5 | H23: 3.065 | I23: 40.73 | J23: 35.247681 | K23: 45.2178 | L23: 67.2654 | M23: 61.47 | N23: 30.8 | O23: 9.29 | P23: 33.08 | Q23: 26.09 | R23: 78.040001 | S23: 47.23 | T23: 107.64 | U23: 59.7 | V23: 11.495 | W23: 33.86 | X23: 37.76 | Y23: 41.900002 | Z23: 21.9 | AA23: 5.6898 | AB23: 55.98 | AC23: 10.5 | AD23: 63.91 | AE23: 30.959999
A24: 2009-11-02 | B24: 5430.82 | C24: 36.439999 | D24: 73.190002 | E24: 33.605 | F24: 32.75 | G24: 32.7 | H24: 3.19 | I24: 42 | J24: 35.25716 | K24: 45.1311 | L24: 66.5994 | M24: 61.74 | N24: 31.295 | O24: 9.325 | P24: 33.04 | Q24: 25.9 | R24: 78.709999 | S24: 47.13 | T24: 107.98 | U24: 59.83 | V24: 11.48 | W24: 33.55 | X24: 37.5 | Y24: 41.389999 | Z24: 22.1 | AA24: 5.7619 | AB24: 55.66 | AC24: 10.46 | AD24: 63.51 | AE24: 31.049999
A25: 2009-11-03 | B25: 5353.35 | C25: 36.240002 | D25: 73.290001 | E25: 31.5 | F25: 34.24 | G25: 32.64 | H25: 3.055 | I25: 40.47 | J25: 35.626892 | K25: 43.2514 | L25: 65.9036 | M25: 60.6 | N25: 31.565 | O25: 9.185 | P25: 31.575 | Q25: 25.52 | R25: 77.720001 | S25: 46.83 | T25: 105.95 | U25: 59.03 | V25: 11.365 | W25: 35.12 | X25: 39.09 | Y25: 42.77 | Z25: 21.74 | AA25: 5.5295 | AB25: 53.84 | AC25: 10.465 | AD25: 63.38 | AE25: 31.280001
A26: 2009-11-04 | B26: 5444.23 | C26: 36.959999 | D26: 75.190002 | E26: 32.285 | F26: 34.81 | G26: 33.87 | H26: 3.27 | I26: 43 | J26: 36.527519 | K26: 44.2551 | L26: 66.9076 | M26: 61.38 | N26: 31.745 | O26: 9.285 | P26: 32.565 | Q26: 26.07 | R26: 79.349998 | S26: 46.87 | T26: 107.38 | U26: 59.3 | V26: 11.775 | W26: 35.76 | X26: 39.63 | Y26: 41.450001 | Z26: 22.43 | AA26: 5.7739 | AB26: 54.75 | AC26: 10.785 | AD26: 64.29 | AE26: 31.530001
A27: 2009-11-05 | B27: 5480.92 | C27: 37.869999 | D27: 76.660004 | E27: 32.78 | F27: 35.14 | G27: 34.21 | H27: 3.205 | I27: 44.97 | J27: 36.698166 | K27: 43.8171 | L27: 67.6928 | M27: 62.15 | N27: 31.745 | O27: 9.5 | P27: 32.66 | Q27: 26.28 | R27: 78.769997 | S27: 48 | T27: 106.2 | U27: 59.12 | V27: 11.8 | W27: 35.9 | X27: 40.93 | Y27: 41.650002 | Z27: 22.63 | AA27: 5.5054 | AB27: 55.41 | AC27: 10.74 | AD27: 65.01 | AE27: 31.370001
A28: 2009-11-06 | B28: 5488.25 | C28: 37.549999 | D28: 76.790001 | E28: 33.07 | F28: 34.93 | G28: 34.24 | H28: 3.23 | I28: 44.43 | J28: 36.764526 | K28: 43.9723 | L28: 69.2534 | M28: 61.96 | N28: 31.445 | O28: 9.445 | P28: 33.21 | Q28: 26.22 | R28: 79.309998 | S28: 48.36 | T28: 105.31 | U28: 59.3 | V28: 11.93 | W28: 36.08 | X28: 40.93 | Y28: 41.490002 | Z28: 22.87 | AA28: 5.5696 | AB28: 56.17 | AC28: 11.06 | AD28: 64.97 | AE28: 31.25
A29: 2009-11-09 | B29: 5619.72 | C29: 38.5 | D29: 77.949997 | E29: 33.45 | F29: 34.9 | G29: 34.8 | H29: 3.22 | I29: 45.8 | J29: 37.020493 | K29: 45.455 | L29: 71.0725 | M29: 63.7 | N29: 31.5 | O29: 9.59 | P29: 33.945 | Q29: 27.05 | R29: 82.699997 | S29: 49.65 | T29: 106.49 | U29: 60.49 | V29: 12.42 | W29: 36.57 | X29: 42.59 | Y29: 41.740002 | Z29: 23.46 | AA29: 5.8901 | AB29: 57.94 | AC29: 11.22 | AD29: 65.88 | AE29: 31.790001
A30: 2009-11-10 | B30: 5613.2 | C30: 38.720001 | D30: 77.660004 | E30: 32.7 | F30: 35.67 | G30: 35.06 | H30: 3.165 | I30: 45.44 | J30: 36.59388 | K30: 45.5326 | L30: 59.8599 | M30: 63.58 | N30: 31.415 | O30: 9.59 | P30: 33.835 | Q30: 26.93 | R30: 82.980003 | S30: 49.72 | T30: 106.45 | U30: 60.77 | V30: 12.415 | W30: 37.66 | X30: 42.39 | Y30: 42.259998 | Z30: 23.23 | AA30: 5.7459 | AB30: 58.71 | AC30: 11.13 | AD30: 66.06 | AE30: 32.400002
A31: 2009-11-11 | B31: 5668.35 | C31: 39.360001 | D31: 77.75 | E31: 33.01 | F31: 35.36 | G31: 35.88 | H31: 3.385 | I31: 46.45 | J31: 35.882858 | K31: 46.217 | L31: 60.3073 | M31: 63.71 | N31: 32.01 | O31: 9.595 | P31: 34.42 | Q31: 27.25 | R31: 82.849998 | S31: 50.33 | T31: 107.55 | U31: 61.4 | V31: 12.5 | W31: 38.4 | X31: 42.98 | Y31: 42.23 | Z31: 23.7 | AA31: 5.846 | AB31: 59.24 | AC31: 11.02 | AD31: 66.37 | AE31: 32.25
A32: 2009-11-12 | B32: 5663.96 | C32: 39.470001 | D32: 79.489998 | E32: 33.185 | F32: 35.22 | G32: 35.56 | H32: 3.34 | I32: 46.79 | J32: 36.499077 | K32: 45.8611 | L32: 59.6711 | M32: 63.75 | N32: 32.05 | O32: 9.66 | P32: 34.08 | Q32: 26.79 | R32: 83.459999 | S32: 51.21 | T32: 106.59 | U32: 61.53 | V32: 12.435 | W32: 37.82 | X32: 42.74 | Y32: 42.450001 | Z32: 23.55 | AA32: 5.7499 | AB32: 59.65 | AC32: 11.2 | AD32: 66.08 | AE32: 32.139999
A33: 2009-11-13 | B33: 5686.83 | C33: 39.759998 | D33: 79.720001 | E33: 33.465 | F33: 35.96 | G33: 35.77 | H33: 3.385 | I33: 46.83 | J33: 36.783485 | K33: 46.0253 | L33: 59.8898 | M33: 63.85 | N33: 32.295 | O33: 9.68 | P33: 34.3 | Q33: 26.68 | R33: 84.099998 | S33: 51.52 | T33: 107.09 | U33: 61.78 | V33: 12.555 | W33: 38.18 | X33: 43.03 | Y33: 42.91 | Z33: 23.84 | AA33: 5.6016 | AB33: 59.18 | AC33: 11.21 | AD33: 66.14 | AE33: 32.209999
A34: 2009-11-16 | B34: 5804.82 | C34: 41.02 | D34: 81.730003 | E34: 34.59 | F34: 35.89 | G34: 36.57 | H34: 3.495 | I34: 47.57 | J34: 36.413754 | K34: 47.4488 | L34: 62.0766 | M34: 65.79 | N34: 32.845 | O34: 9.77 | P34: 35.81 | Q34: 26.88 | R34: 85.839996 | S34: 52.2 | T34: 107.87 | U34: 62.56 | V34: 12.84 | W34: 38.56 | X34: 43.5 | Y34: 43.599998 | Z34: 24.9 | AA34: 5.6898 | AB34: 60.68 | AC34: 11.31 | AD34: 66.78 | AE34: 32.919998
A35: 2009-11-17 | B35: 5778.43 | C35: 40.549999 | D35: 81.209999 | E35: 33.88 | F35: 35.82 | G35: 36.09 | H35: 3.435 | I35: 46.43 | J35: 38.053844 | K35: 47.1386 | L35: 61.4802 | M35: 64.95 | N35: 32.91 | O35: 9.74 | P35: 35.405 | Q35: 26.9 | R35: 84.809998 | S35: 53.29 | T35: 106.91 | U35: 62.34 | V35: 12.71 | W35: 38.2 | X35: 43.25 | Y35: 43.82 | Z35: 24.78 | AA35: 5.6377 | AB35: 60.29 | AC35: 11.075 | AD35: 65.56 | AE35: 32.900002
A36: 2009-11-18 | B36: 5787.61 | C36: 40.290001 | D36: 80.720001 | E36: 33.89 | F36: 35.78 | G36: 36.23 | H36: 3.465 | I36: 46.12 | J36: 38.480457 | K36: 47.1887 | L36: 61.2516 | M36: 66.5 | N36: 32.8 | O36: 9.68 | P36: 35.98 | Q36: 27.31 | R36: 84.339996 | S36: 51.82 | T36: 106.17 | U36: 63.03 | V36: 12.765 | W36: 38.85 | X36: 43 | Y36: 43.740002 | Z36: 24.89 | AA36: 5.6176 | AB36: 60.96 | AC36: 11.115 | AD36: 65.59 | AE36: 32.889999
A37: 2009-11-19 | B37: 5702.18 | C37: 39.889999 | D37: 79.220001 | E37: 33.2 | F37: 35.71 | G37: 35.51 | H37: 3.215 | I37: 44.4 | J37: 37.399704 | K37: 46.0117 | L37: 60.8341 | M37: 65.3 | N37: 32.22 | O37: 9.55 | P37: 35.31 | Q37: 27 | R37: 83.839996 | S37: 51.5 | T37: 104.96 | U37: 62.43 | V37: 12.59 | W37: 38.27 | X37: 42.01 | Y37: 43.419998 | Z37: 24.5 | AA37: 5.4574 | AB37: 59.55 | AC37: 10.79 | AD37: 64.04 | AE37: 32.360001
A38: 2009-11-20 | B38: 5663.15 | C38: 39.869999 | D38: 79.739998 | E38: 32.76 | F38: 35.77 | G38: 35.32 | H38: 3.105 | I38: 43.71 | J38: 38.300331 | K38: 44.7661 | L38: 57.1661 | M38: 64.1 | N38: 32.07 | O38: 9.5 | P38: 34.975 | Q38: 26.82 | R38: 83.160004 | S38: 51.71 | T38: 104.03 | U38: 62.12 | V38: 12.61 | W38: 37.93 | X38: 42.28 | Y38: 44.07 | Z38: 24.31 | AA38: 5.253 | AB38: 59.52 | AC38: 10.705 | AD38: 64.23 | AE38: 33.060001
A39: 2009-11-23 | B39: 5801.48 | C39: 41.48 | D39: 82.510002 | E39: 32.795 | F39: 35.78 | G39: 36.47 | H39: 3.18 | I39: 44.5 | J39: 39.352642 | K39: 46.4907 | L39: 58.8659 | M39: 66.5 | N39: 32.46 | O39: 9.695 | P39: 35.67 | Q39: 27.15 | R39: 85.199997 | S39: 53.27 | T39: 105.81 | U39: 63.17 | V39: 12.995 | W39: 38.78 | X39: 43.22 | Y39: 44.84 | Z39: 24.94 | AA39: 5.3412 | AB39: 59.7 | AC39: 10.96 | AD39: 66.18 | AE39: 33.939999
A40: 2009-11-24 | B40: 5769.31 | C40: 41.259998 | D40: 82.32 | E40: 32.325 | F40: 35.88 | G40: 36.27 | H40: 3.25 | I40: 44.77 | J40: 39.447445 | K40: 45.6056 | L40: 57.2655 | M40: 66.05 | N40: 32.23 | O40: 9.67 | P40: 35.44 | Q40: 27 | R40: 84.82 | S40: 53.5 | T40: 105.21 | U40: 63.02 | V40: 12.98 | W40: 38.12 | X40: 42.6 | Y40: 44.57 | Z40: 24.9 | AA40: 5.1609 | AB40: 58.94 | AC40: 10.88 | AD40: 66 | AE40: 34.099998
A41: 2009-11-25 | B41: 5803.02 | C41: 41.900002 | D41: 83.370003 | E41: 32.16 | F41: 36.02 | G41: 37.69 | H41: 3.21 | I41: 45.51 | J41: 41.040131 | K41: 45.4733 | L41: 56.858 | M41: 67.09 | N41: 32.25 | O41: 9.875 | P41: 35.73 | Q41: 27.27 | R41: 84.959999 | S41: 53.03 | T41: 105.25 | U41: 63.05 | V41: 13.01 | W41: 38.58 | X41: 43.46 | Y41: 45.299999 | Z41: 24.99 | AA41: 5.0807 | AB41: 58.2 | AC41: 10.83 | AD41: 66.42 | AE41: 34.5
A42: 2009-11-26 | B42: 5614.17 | C42: 40.25 | D42: 80.769997 | E42: 31.3 | F42: 35.65 | G42: 37.39 | H42: 3.075 | I42: 43.2 | J42: 39.551727 | K42: 42.5716 | L42: 53.2199 | M42: 64.88 | N42: 31.64 | O42: 9.76 | P42: 34.105 | Q42: 26.44 | R42: 81.790001 | S42: 51.25 | T42: 103.91 | U42: 61.5 | V42: 12.485 | W42: 37.77 | X42: 42.28 | Y42: 44.099998 | Z42: 23.98 | AA42: 4.8844 | AB42: 56.84 | AC42: 10.55 | AD42: 65.18 | AE42: 33.509998
A43: 2009-11-27 | B43: 5685.61 | C43: 40.59 | D43: 82.230003 | E43: 32.28 | F43: 35.82 | G43: 37.84 | H43: 3.22 | I43: 44.43 | J43: 40.779999 | K43: 43.7441 | L43: 54.1741 | M43: 65.72 | N43: 32.09 | O43: 9.85 | P43: 34.625 | Q43: 26.79 | R43: 82.589996 | S43: 51.16 | T43: 105.06 | U43: 62.09 | V43: 12.62 | W43: 38.72 | X43: 42.66 | Y43: 43.790001 | Z43: 24.47 | AA43: 4.9966 | AB43: 56.71 | AC43: 10.605 | AD43: 65.46 | AE43: 33.779999
A44: 2009-11-30 | B44: 5625.95 | C44: 40.16 | D44: 81.879997 | E44: 31.425 | F44: 35.41 | G44: 38.13 | H44: 3.19 | I44: 44.2 | J44: 40.119999 | K44: 43.8491 | L44: 56.1622 | M44: 65.26 | N44: 31.82 | O44: 9.82 | P44: 33.72 | Q44: 26.34 | R44: 81.82 | S44: 50.99 | T44: 104.43 | U44: 61.13 | V44: 12.47 | W44: 38.61 | X44: 41.85 | Y44: 43.310001 | Z44: 24.27 | AA44: 4.9846 | AB44: 54.5 | AC44: 10.63 | AD44: 62.81 | AE44: 33.549999
A45: 2009-12-01 | B45: 5776.61 | C45: 40.970001 | D45: 83.639999 | E45: 32.125 | F45: 35.9 | G45: 38.5 | H45: 3.31 | I45: 46.95 | J45: 42.779999 | K45: 45.3045 | L45: 59.1442 | M45: 67.69 | N45: 32.06 | O45: 10.2 | P45: 35.105 | Q45: 26.95 | R45: 84.629997 | S45: 52.28 | T45: 106.83 | U45: 62.58 | V45: 12.94 | W45: 39.77 | X45: 42.18 | Y45: 44.240002 | Z45: 25.11 | AA45: 5.0767 | AB45: 52.1 | AC45: 10.92 | AD45: 64.28 | AE45: 35.259998
A46: 2009-12-02 | B46: 5781.68 | C46: 41.599998 | D46: 83.540001 | E46: 31.655 | F46: 36.21 | G46: 37.9 | H46: 3.285 | I46: 46.86 | J46: 43.029999 | K46: 44.6566 | L46: 61.2615 | M46: 67.57 | N46: 31.02 | O46: 10.345 | P46: 35.18 | Q46: 27.24 | R46: 84.300003 | S46: 53.22 | T46: 105.62 | U46: 63.01 | V46: 13 | W46: 39.92 | X46: 42.4 | Y46: 44.970001 | Z46: 25.16 | AA46: 4.9285 | AB46: 52.99 | AC46: 11.04 | AD46: 64.94 | AE46: 34.799999
A47: 2009-12-03 | B47: 5770.35 | C47: 41.400002 | D47: 83.230003 | E47: 32.195 | F47: 36.53 | G47: 37.19 | H47: 3.29 | I47: 47.19 | J47: 43.560001 | K47: 44.7114 | L47: 62.3251 | M47: 64.08 | N47: 31.04 | O47: 10.355 | P47: 35.465 | Q47: 27.41 | R47: 84.400002 | S47: 53.4 | T47: 106.55 | U47: 63.3 | V47: 13.285 | W47: 39.78 | X47: 42.75 | Y47: 45.459999 | Z47: 25.22 | AA47: 5.0006 | AB47: 52.82 | AC47: 11.43 | AD47: 64.61 | AE47: 34.779999
A48: 2009-12-04 | B48: 5817.65 | C48: 41.889999 | D48: 84.480003 | E48: 32.75 | F48: 37.02 | G48: 37.72 | H48: 3.305 | I48: 47.62 | J48: 43.389999 | K48: 45.3136 | L48: 63.1203 | M48: 63.5 | N48: 31.105 | O48: 10.57 | P48: 35.91 | Q48: 27.77 | R48: 84.599998 | S48: 53.73 | T48: 106.2 | U48: 64 | V48: 13.52 | W48: 39.55 | X48: 43.33 | Y48: 46.240002 | Z48: 25.32 | AA48: 5.0166 | AB48: 53.61 | AC48: 11.655 | AD48: 65.2 | AE48: 35.389999
A49: 2009-12-07 | B49: 5784.75 | C49: 42.529999 | D49: 83.879997 | E49: 32.61 | F49: 36.9 | G49: 38.21 | H49: 3.34 | I49: 48.39 | J49: 42.549999 | K49: 44.9897 | L49: 64.1442 | M49: 62.46 | N49: 30.735 | O49: 10.45 | P49: 36.385 | Q49: 27.58 | R49: 83.730003 | S49: 53 | T49: 105.82 | U49: 63.55 | V49: 13.41 | W49: 39.83 | X49: 43.19 | Y49: 46.25 | Z49: 24.92 | AA49: 4.9685 | AB49: 52.56 | AC49: 11.665 | AD49: 64.97 | AE49: 35.59
A50: 2009-12-08 | B50: 5688.58 | C50: 41.220001 | D50: 82.150002 | E50: 32.22 | F50: 36.3 | G50: 37.75 | H50: 3.375 | I50: 47.24 | J50: 41.099998 | K50: 44.1091 | L50: 63.7167 | M50: 62.03 | N50: 30.415 | O50: 10.12 | P50: 35.355 | Q50: 27.22 | R50: 82.839996 | S50: 52.09 | T50: 104.52 | U50: 63.12 | V50: 13.28 | W50: 40.44 | X50: 42.86 | Y50: 45.18 | Z50: 24.55 | AA50: 4.8804 | AB50: 52.54 | AC50: 11.56 | AD50: 64.36 | AE50: 34.759998
A51: 2009-12-09 | B51: 5647.84 | C51: 41.630001 | D51: 81.940002 | E51: 31.695 | F51: 36.31 | G51: 37.74 | H51: 3.37 | I51: 46.99 | J51: 40.91 | K51: 43.3427 | L51: 63.2098 | M51: 60.61 | N51: 30.09 | O51: 10.11 | P51: 34.86 | Q51: 27.08 | R51: 81.699997 | S51: 52.45 | T51: 102.68 | U51: 63.24 | V51: 13.14 | W51: 40.18 | X51: 42.37 | Y51: 44.41 | Z51: 24.28 | AA51: 4.7682 | AB51: 52.52 | AC51: 11.46 | AD51: 63.08 | AE51: 34.759998
A52: 2009-12-10 | B52: 5709.02 | C52: 42.25 | D52: 82.379997 | E52: 31.655 | F52: 36.26 | G52: 37.36 | H52: 3.365 | I52: 45.96 | J52: 41.599998 | K52: 43.9951 | L52: 64.6114 | M52: 61.5 | N52: 30.255 | O52: 10.18 | P52: 35.025 | Q52: 27.4 | R52: 83.160004 | S52: 53.41 | T52: 104.66 | U52: 63.58 | V52: 13.195 | W52: 40.95 | X52: 42.33 | Y52: 45.09 | Z52: 24.61 | AA52: 4.8163 | AB52: 52.32 | AC52: 11.51 | AD52: 63.65 | AE52: 35.299999
A53: 2009-12-11 | B53: 5756.29 | C53: 43.040001 | D53: 85.599998 | E53: 31.72 | F53: 36.43 | G53: 37.72 | H53: 3.32 | I53: 47 | J53: 42.25 | K53: 43.5799 | L53: 66.2316 | M53: 61.8 | N53: 30.68 | O53: 10.165 | P53: 35.185 | Q53: 27.57 | R53: 84.599998 | S53: 54.43 | T53: 104.65 | U53: 64.39 | V53: 13.19 | W53: 40.9 | X53: 42.86 | Y53: 44.830002 | Z53: 24.46 | AA53: 4.7562 | AB53: 52.18 | AC53: 11.72 | AD53: 63.53 | AE53: 36.369999
A54: 2009-12-14 | B54: 5802.26 | C54: 42.970001 | D54: 87.949997 | E54: 31.595 | F54: 36.81 | G54: 37.65 | H54: 3.38 | I54: 47.82 | J54: 42.439999 | K54: 45.0764 | L54: 67.4741 | M54: 61.32 | N54: 31.09 | O54: 10.265 | P54: 35.975 | Q54: 27.79 | R54: 85.230003 | S54: 54.06 | T54: 106 | U54: 64.88 | V54: 13.38 | W54: 41.45 | X54: 42.83 | Y54: 45.130001 | Z54: 25.03 | AA54: 4.7842 | AB54: 52.8 | AC54: 11.82 | AD54: 64.25 | AE54: 36.529999
A55: 2009-12-15 | B55: 5811.34 | C55: 43.07 | D55: 86.120003 | E55: 31.59 | F55: 36.95 | G55: 38.01 | H55: 3.425 | I55: 47.9 | J55: 41.950001 | K55: 45.1676 | L55: 67.7922 | M55: 61.35 | N55: 30.88 | O55: 10.28 | P55: 36.36 | Q55: 27.93 | R55: 84.769997 | S55: 54.28 | T55: 106 | U55: 65.3 | V55: 13.445 | W55: 41.42 | X55: 42.97 | Y55: 45.900002 | Z55: 24.88 | AA55: 4.7642 | AB55: 53.98 | AC55: 11.8 | AD55: 64.33 | AE55: 36.470001
A56: 2009-12-16 | B56: 5903.43 | C56: 43.75 | D56: 85.889999 | E56: 32.195 | F56: 37.21 | G56: 38.2 | H56: 3.565 | I56: 48.7 | J56: 41.709999 | K56: 47.6313 | L56: 68.0706 | M56: 61.91 | N56: 31.645 | O56: 10.29 | P56: 37.12 | Q56: 28.28 | R56: 86.370003 | S56: 55.05 | T56: 107.25 | U56: 66 | V56: 13.665 | W56: 42.17 | X56: 42.53 | Y56: 45.82 | Z56: 25.42 | AA56: 5.0847 | AB56: 54.68 | AC56: 12.005 | AD56: 64.38 | AE56: 36.830002
A57: 2009-12-17 | B57: 5844.44 | C57: 43.18 | D57: 85.459999 | E57: 32.34 | F57: 37.26 | G57: 38.63 | H57: 3.44 | I57: 47.75 | J57: 40.91 | K57: 46.5363 | L57: 65.834 | M57: 61.79 | N57: 31.555 | O57: 10.095 | P57: 36.75 | Q57: 27.9 | R57: 85.480003 | S57: 54.37 | T57: 106.57 | U57: 65.37 | V57: 13.415 | W57: 42.1 | X57: 42.13 | Y57: 45.82 | Z57: 25.39 | AA57: 4.8684 | AB57: 53.86 | AC57: 11.935 | AD57: 64.04 | AE57: 36.779999
A58: 2009-12-18 | B58: 5831.21 | C58: 42.990002 | D58: 83.93 | E58: 31.945 | F58: 37.71 | G58: 38.57 | H58: 3.58 | I58: 48.25 | J58: 40.93 | K58: 45.5326 | L58: 65.5557 | M58: 61.72 | N58: 32.205 | O58: 10.02 | P58: 36.745 | Q58: 28.15 | R58: 84 | S58: 54.21 | T58: 106.5 | U58: 65.46 | V58: 13.425 | W58: 42.23 | X58: 42.27 | Y58: 45.889999 | Z58: 25.4 | AA58: 4.7321 | AB58: 53.94 | AC58: 11.735 | AD58: 64.82 | AE58: 36.82
A59: 2009-12-21 | B59: 5930.53 | C59: 43.5 | D59: 84.440002 | E59: 31.815 | F59: 37.48 | G59: 38.75 | H59: 3.72 | I59: 48.89 | J59: 41.560001 | K59: 46.3447 | L59: 66.0229 | M59: 63.44 | N59: 32.9 | O59: 10.285 | P59: 36.995 | Q59: 28.49 | R59: 86.279999 | S59: 55.72 | T59: 108 | U59: 66.75 | V59: 13.59 | W59: 42.41 | X59: 43.18 | Y59: 45.990002 | Z59: 25.91 | AA59: 4.7842 | AB59: 54.42 | AC59: 11.96 | AD59: 65.21 | AE59: 36.919998
A60: 2009-12-22 | B60: 5945.69 | C60: 43.5 | D60: 83.769997 | E60: 32.16 | F60: 37.41 | G60: 38.55 | H60: 3.855 | I60: 48.6 | J60: 40.830002 | K60: 45.7151 | L60: 65.1084 | M60: 63.79 | N60: 32.75 | O60: 10.415 | P60: 37.3 | Q60: 28.63 | R60: 87.290001 | S60: 55.43 | T60: 109.01 | U60: 67.47 | V60: 13.67 | W60: 42.34 | X60: 42.94 | Y60: 45.880001 | Z60: 25.92 | AA60: 4.7281 | AB60: 55.06 | AC60: 11.875 | AD60: 65 | AE60: 36.490002
A61: 2009-12-23 | B61: 5957.44 | C61: 43.869999 | D61: 84.040001 | E61: 32.12 | F61: 37.69 | G61: 38.41 | H61: 3.79 | I61: 48.1 | J61: 40.040001 | K61: 45.852 | L61: 63.2595 | M61: 63.92 | N61: 32.72 | O61: 10.42 | P61: 37.42 | Q61: 28.55 | R61: 87.580002 | S61: 55.82 | T61: 108.8 | U61: 67.85 | V61: 13.63 | W61: 43.59 | X61: 42.92 | Y61: 46.09 | Z61: 26.29 | AA61: 4.7762 | AB61: 54.48 | AC61: 11.955 | AD61: 64.91 | AE61: 36.869999
A62: 2009-12-28 | B62: 6002.92 | C62: 43.950001 | D62: 83.989998 | E62: 31.8 | F62: 37.31 | G62: 38.76 | H62: 3.84 | I62: 47.93 | J62: 40.549999 | K62: 46.4131 | L62: 64.1243 | M62: 65.06 | N62: 32.93 | O62: 10.445 | P62: 37.65 | Q62: 29.06 | R62: 88.360001 | S62: 56.35 | T62: 109.21 | U62: 68.24 | V62: 13.735 | W62: 43.4 | X62: 43.12 | Y62: 45.810001 | Z62: 26.51 | AA62: 4.7602 | AB62: 53.81 | AC62: 11.935 | AD62: 64.59 | AE62: 36.669998
A63: 2009-12-29 | B63: 6011.55 | C63: 43.82 | D63: 83.669998 | E63: 32.05 | F63: 37.32 | G63: 38.39 | H63: 3.885 | I63: 48.55 | J63: 40.41 | K63: 46.217 | L63: 65.2376 | M63: 64.83 | N63: 32.88 | O63: 10.415 | P63: 37.65 | Q63: 29.61 | R63: 87.870003 | S63: 56.45 | T63: 109.72 | U63: 68.58 | V63: 13.785 | W63: 43.76 | X63: 43.02 | Y63: 45.959999 | Z63: 26.82 | AA63: 4.7481 | AB63: 54.21 | AC63: 11.87 | AD63: 65.09 | AE63: 36.369999
A64: 2009-12-30 | B64: 5957.43 | C64: 43.459999 | D64: 84.160004 | E64: 31.8 | F64: 36.94 | G64: 37.77 | H64: 3.88 | I64: 48.23 | J64: 39.990002 | K64: 45.0946 | L64: 65.3469 | M64: 64.21 | N64: 33 | O64: 10.29 | P64: 37.23 | Q64: 29.23 | R64: 87.150002 | S64: 55.96 | T64: 108.67 | U64: 67.96 | V64: 13.485 | W64: 43.45 | X64: 42.57 | Y64: 45.93 | Z64: 26.4 | AA64: 4.7161 | AB64: 54.44 | AC64: 11.75 | AD64: 65.16 | AE64: 36.43
A65: 2010-01-04 | B65: 6048.3 | C65: 44.849998 | D65: 85 | E65: 32.05 | F65: 37.85 | G65: 38.505 | H65: 4.104 | I65: 49.1 | J65: 41.740002 | K65: 46.3721 | L65: 64.1144 | M65: 65.47 | N65: 32.94 | O65: 10.6 | P65: 37.55 | Q65: 29.27 | R65: 88.540001 | S65: 56.4 | T65: 108.3 | U65: 68.96 | V65: 13.98 | W65: 44.2 | X65: 43.42 | Y65: 46.445 | Z65: 27.395 | AA65: 4.8427 | AB65: 55.05 | AC65: 11.855 | AD65: 65.21 | AE65: 37
A66: 2010-01-05 | B66: 6031.86 | C66: 44.169998 | D66: 83.019997 | E66: 32.31 | F66: 36.68 | G66: 39.72 | H66: 4.238 | I66: 49.45 | J66: 44.525002 | K66: 47.1203 | L66: 62.8718 | M66: 65.51 | N66: 32.645 | O66: 10.51 | P66: 37.24 | Q66: 29.29 | R66: 88.809998 | S66: 55.37 | T66: 108.5 | U66: 68.52 | V66: 14 | W66: 43.185 | X66: 43.24 | Y66: 46.200001 | Z66: 27.765 | AA66: 5.007 | AB66: 55 | AC66: 12 | AD66: 64.73 | AE66: 36.355
A67: 2010-01-06 | B67: 6034.33 | C67: 44.450001 | D67: 84.440002 | E67: 32.81 | F67: 36.605 | G67: 39.4 | H67: 4.181 | I67: 50 | J67: 45.02 | K67: 46.6276 | L67: 64.6114 | M67: 65.75 | N67: 33.225 | O67: 10.25 | P67: 37.25 | Q67: 29.17 | R67: 89.5 | S67: 55.02 | T67: 107.8 | U67: 68.39 | V67: 14.155 | W67: 42.96 | X67: 43.135 | Y67: 46.165001 | Z67: 27.63 | AA67: 5.1745 | AB67: 54.98 | AC67: 12.15 | AD67: 64.69 | AE67: 36.669998
A68: 2010-01-07 | B68: 6019.36 | C68: 44.154999 | D68: 83.919998 | E68: 33.1 | F68: 36.375 | G68: 39.745 | H68: 4.112 | I68: 50.57 | J68: 46.200001 | K68: 46.8374 | L68: 65.3569 | M68: 66.53 | N68: 34.105 | O68: 10.055 | P68: 36.72 | Q68: 28.93 | R68: 88.470001 | S68: 54.3 | T68: 108.05 | U68: 68.1 | V68: 14.125 | W68: 42.9 | X68: 41.42 | Y68: 45.700001 | Z68: 27.55 | AA68: 5.3876 | AB68: 55.1 | AC68: 12.315 | AD68: 66.05 | AE68: 36.110001
A69: 2010-01-08 | B69: 6037.61 | C69: 44.02 | D69: 83.099998 | E69: 32.655 | F69: 36.125 | G69: 39.6 | H69: 4.18 | I69: 51.15 | J69: 46.040001 | K69: 48.5438 | L69: 66.0626 | M69: 66.95 | N69: 34.345 | O69: 10.11 | P69: 36.935 | Q69: 29.23 | R69: 87.989998 | S69: 53.82 | T69: 107.85 | U69: 68 | V69: 14.46 | W69: 42 | X69: 40.455 | Y69: 44.380001 | Z69: 28.07 | AA69: 5.4574 | AB69: 54.98 | AC69: 12.675 | AD69: 65.38 | AE69: 35.73
A70: 2010-01-11 | B70: 6040.5 | C70: 43.529999 | D70: 83.580002 | E70: 32.17 | F70: 36.655 | G70: 39.85 | H70: 4.06 | I70: 51.5 | J70: 45.68 | K70: 47.9598 | L70: 66.5497 | M70: 67.12 | N70: 34.675 | O70: 10.18 | P70: 37.2 | Q70: 29.36 | R70: 87 | S70: 53.81 | T70: 108.25 | U70: 68.8 | V70: 14.38 | W70: 42.05 | X70: 41.26 | Y70: 45.209999 | Z70: 27.4 | AA70: 5.5215 | AB70: 54.92 | AC70: 12.81 | AD70: 65.61 | AE70: 35.575001
A71: 2010-01-12 | B71: 5943 | C71: 41.98 | D71: 82.860001 | E71: 31.235 | F71: 36.5 | G71: 38.595 | H71: 3.985 | I71: 50.09 | J71: 44.305 | K71: 46.7188 | L71: 64.8102 | M71: 66.3 | N71: 34.34 | O71: 10.1 | P71: 36.28 | Q71: 28.87 | R71: 86.629997 | S71: 53.3 | T71: 108.55 | U71: 68.1 | V71: 14.05 | W71: 41.8 | X71: 40.88 | Y71: 43.755001 | Z71: 26.74 | AA71: 5.2851 | AB71: 53.18 | AC71: 12.44 | AD71: 64.97 | AE71: 36
A72: 2010-01-13 | B72: 5963.14 | C72: 42.375 | D72: 84.110001 | E72: 31.425 | F72: 36.9 | G72: 38.105 | H72: 4.111 | I72: 50.91 | J72: 44.73 | K72: 45.9341 | L72: 63.1203 | M72: 66.9 | N72: 34.695 | O72: 10.16 | P72: 36.185 | Q72: 28.67 | R72: 86.779999 | S72: 54.28 | T72: 108.65 | U72: 67.95 | V72: 14.24 | W72: 43.18 | X72: 40.58 | Y72: 43.654999 | Z72: 27.13 | AA72: 5.2522 | AB72: 53.18 | AC72: 12.445 | AD72: 65 | AE72: 36.560001
A73: 2010-01-14 | B73: 5988.88 | C73: 42.459999 | D73: 84.639999 | E73: 31.89 | F73: 37.295 | G73: 38.875 | H73: 4.162 | I73: 51.4 | J73: 44.334999 | K73: 45.9523 | L73: 63.1203 | M73: 67.2 | N73: 35.35 | O73: 10.17 | P73: 37.1 | Q73: 28.6 | R73: 85.870003 | S73: 54.79 | T73: 107.95 | U73: 68.67 | V73: 14.055 | W73: 44 | X73: 40.275 | Y73: 43.775002 | Z73: 27.225 | AA73: 5.3933 | AB73: 52.62 | AC73: 12.57 | AD73: 65.27 | AE73: 37.299999
A74: 2010-01-15 | B74: 5875.97 | C74: 41.564999 | D74: 83.220001 | E74: 31.63 | F74: 36.93 | G74: 38.915 | H74: 4.046 | I74: 50 | J74: 43.66 | K74: 44.2551 | L74: 61.0925 | M74: 66.43 | N74: 34.1 | O74: 10.035 | P74: 36.49 | Q74: 27.855 | R74: 84.769997 | S74: 53.14 | T74: 106.15 | U74: 68.12 | V74: 13.72 | W74: 44.685 | X74: 40.365 | Y74: 42.674999 | Z74: 26.655 | AA74: 5.2586 | AB74: 51.63 | AC74: 12.72 | AD74: 66.29 | AE74: 37.235001
A75: 2010-01-18 | B75: 5918.55 | C75: 42.32 | D75: 83.029999 | E75: 32.1 | F75: 37 | G75: 39.17 | H75: 4.049 | I75: 50 | J75: 44.259998 | K75: 44.5015 | L75: 61.2615 | M75: 66.78 | N75: 33.935 | O75: 9.929 | P75: 37.115 | Q75: 28.26 | R75: 84.790001 | S75: 54.2 | T75: 108.4 | U75: 67.77 | V75: 13.865 | W75: 44.26 | X75: 40.77 | Y75: 43.845001 | Z75: 26.735 | AA75: 5.2362 | AB75: 52 | AC75: 12.76 | AD75: 65.55 | AE75: 37.389999
A76: 2010-01-19 | B76: 5976.48 | C76: 42.860001 | D76: 83.849998 | E76: 32.43 | F76: 37.765 | G76: 38.85 | H76: 4.017 | I76: 49.285 | J76: 45.110001 | K76: 44.903 | L76: 60.3371 | M76: 67.53 | N76: 34.375 | O76: 10.095 | P76: 36.71 | Q76: 28.705 | R76: 85.18 | S76: 54.83 | T76: 110.75 | U76: 68.38 | V76: 13.94 | W76: 45 | X76: 40.94 | Y76: 44.494999 | Z76: 27.04 | AA76: 5.2714 | AB76: 52.06 | AC76: 12.79 | AD76: 66.26 | AE76: 37.415001
A77: 2010-01-20 | B77: 5851.53 | C77: 41.455002 | D77: 82 | E77: 31.8 | F77: 37.515 | G77: 38.195 | H77: 4.003 | I77: 47.46 | J77: 42.970001 | K77: 43.9814 | L77: 59.1442 | M77: 65.85 | N77: 34 | O77: 9.971 | P77: 35.595 | Q77: 28.03 | R77: 83.059998 | S77: 53.69 | T77: 109.45 | U77: 67.22 | V77: 13.52 | W77: 45.795 | X77: 40.675 | Y77: 43.435001 | Z77: 26.22 | AA77: 5.1048 | AB77: 52.05 | AC77: 12.52 | AD77: 67.67 | AE77: 37.099998
A78: 2010-01-21 | B78: 5746.97 | C78: 40.904999 | D78: 80.620003 | E78: 31.155 | F78: 37.25 | G78: 37.08 | H78: 3.9 | I78: 45.82 | J78: 42.110001 | K78: 42.8864 | L78: 57.7029 | M78: 64.75 | N78: 33.39 | O78: 9.876 | P78: 34.76 | Q78: 27.69 | R78: 81.900002 | S78: 51.08 | T78: 109.15 | U78: 67.35 | V78: 13.22 | W78: 46.02 | X78: 40.83 | Y78: 42.955002 | Z78: 25.185 | AA78: 4.91 | AB78: 51.86 | AC78: 12.45 | AD78: 66.32 | AE78: 37.349998
A79: 2010-01-22 | B79: 5695.32 | C79: 40.465 | D79: 79.540001 | E79: 30.7 | F79: 37.37 | G79: 36.9 | H79: 3.766 | I79: 44.99 | J79: 42.380001 | K79: 41.0888 | L79: 56.5697 | M79: 64.78 | N79: 33.095 | O79: 9.809 | P79: 34.18 | Q79: 27.535 | R79: 81.389999 | S79: 51.43 | T79: 109.5 | U79: 67.07 | V79: 13.065 | W79: 45.75 | X79: 40.46 | Y79: 42.685001 | Z79: 24.55 | AA79: 4.9204 | AB79: 51.45 | AC79: 11.695 | AD79: 65.57 | AE79: 36.68
A80: 2010-01-25 | B80: 5631.37 | C80: 40.02 | D80: 78.050003 | E80: 30.14 | F80: 36.64 | G80: 37.105 | H80: 3.82 | I80: 45.43 | J80: 42.145 | K80: 41.0615 | L80: 56.8083 | M80: 64.6 | N80: 32.645 | O80: 9.72 | P80: 33.5 | Q80: 26.99 | R80: 80.959999 | S80: 50.38 | T80: 108.5 | U80: 66.02 | V80: 12.975 | W80: 45.02 | X80: 40.27 | Y80: 42.535 | Z80: 24.095 | AA80: 4.8395 | AB80: 50.74 | AC80: 11.39 | AD80: 65.56 | AE80: 35.98
A81: 2010-01-26 | B81: 5668.93 | C81: 39.915001 | D81: 78.410004 | E81: 30.255 | F81: 36.81 | G81: 37.1 | H81: 3.898 | I81: 45.95 | J81: 41.764999 | K81: 40.6098 | L81: 57.4544 | M81: 67.92 | N81: 32.72 | O81: 9.72 | P81: 33.86 | Q81: 27.045 | R81: 81.209999 | S81: 51.04 | T81: 109.8 | U81: 65.98 | V81: 12.75 | W81: 44.4 | X81: 40.12 | Y81: 43 | Z81: 23.85 | AA81: 4.805 | AB81: 50.22 | AC81: 11.56 | AD81: 66.31 | AE81: 36.150002
A82: 2010-01-27 | B82: 5643.2 | C82: 40.345001 | D82: 77.57 | E82: 29.59 | F82: 36.545 | G82: 36.915 | H82: 3.816 | I82: 43.19 | J82: 41.310001 | K82: 40.0988 | L82: 55.854 | M82: 66.98 | N82: 32.75 | O82: 9.66 | P82: 32.925 | Q82: 27.12 | R82: 81 | S82: 50.81 | T82: 109.85 | U82: 65.65 | V82: 12.68 | W82: 44.3 | X82: 39.895 | Y82: 42.619999 | Z82: 23.38 | AA82: 4.6319 | AB82: 48.89 | AC82: 11.45 | AD82: 65.15 | AE82: 36.349998
A83: 2010-01-28 | B83: 5540.33 | C83: 40.025002 | D83: 76.699997 | E83: 29.55 | F83: 36.1 | G83: 36.29 | H83: 3.904 | I83: 42.43 | J83: 39.860001 | K83: 39.9209 | L83: 56.1622 | M83: 64.9 | N83: 32.18 | O83: 9.407 | P83: 32.32 | Q83: 26.52 | R83: 79.57 | S83: 49.28 | T83: 109.1 | U83: 63.87 | V83: 12.495 | W83: 44.3 | X83: 39.37 | Y83: 42.23 | Z83: 22.755 | AA83: 4.5791 | AB83: 47.985 | AC83: 11.44 | AD83: 63.68 | AE83: 36.41
A84: 2010-01-29 | B84: 5608.79 | C84: 41.224998 | D84: 79.400002 | E84: 30.96 | F84: 36.635 | G84: 36.91 | H84: 4.019 | I84: 43.77 | J84: 40.82 | K84: 40.4912 | L84: 58.2496 | M84: 65.03 | N84: 33.08 | O84: 9.357 | P84: 33.425 | Q84: 26.66 | R84: 80.419998 | S84: 49.475 | T84: 108.5 | U84: 64.24 | V84: 12.64 | W84: 44.32 | X84: 39.62 | Y84: 42.275002 | Z84: 22.99 | AA84: 4.5174 | AB84: 48.56 | AC84: 11.625 | AD84: 64.51 | AE84: 36.884998
A85: 2010-02-01 | B85: 5654.48 | C85: 41.73 | D85: 80.18 | E85: 31.065 | F85: 36.685 | G85: 37.065 | H85: 4.208 | I85: 43.375 | J85: 41.169998 | K85: 41.6591 | L85: 60.2576 | M85: 65.05 | N85: 33.585 | O85: 9.41 | P85: 33.57 | Q85: 26.83 | R85: 80.489998 | S85: 49.61 | T85: 109.35 | U85: 64.98 | V85: 12.81 | W85: 44.12 | X85: 39.62 | Y85: 42.275002 | Z85: 23.365 | AA85: 4.6672 | AB85: 48.475 | AC85: 11.77 | AD85: 64.13 | AE85: 36.255001
A86: 2010-02-02 | B86: 5709.66 | C86: 42 | D86: 80.650002 | E86: 31.175 | F86: 37.13 | G86: 36.975 | H86: 4.343 | I86: 44.53 | J86: 41.970001 | K86: 42.5671 | L86: 60.675 | M86: 66.1 | N86: 33.795 | O86: 9.44 | P86: 33.765 | Q86: 27.115 | R86: 81.190002 | S86: 50 | T86: 108.75 | U86: 65.75 | V86: 13.145 | W86: 44.01 | X86: 40.18 | Y86: 41.965 | Z86: 23.785 | AA86: 4.7449 | AB86: 49.185 | AC86: 11.98 | AD86: 64.32 | AE86: 36.115002
A87: 2010-02-03 | B87: 5672.09 | C87: 42.130001 | D87: 80.889999 | E87: 31.225 | F87: 36.99 | G87: 36.28 | H87: 4.22 | I87: 44.17 | J87: 42.634998 | K87: 41.8051 | L87: 61.1323 | M87: 65.47 | N87: 34.05 | O87: 9.342 | P87: 34.34 | Q87: 26.795 | R87: 80.410004 | S87: 49.195 | T87: 107.95 | U87: 64.79 | V87: 12.925 | W87: 44.03 | X87: 40.035 | Y87: 42.220001 | Z87: 23.55 | AA87: 4.6752 | AB87: 50.85 | AC87: 11.745 | AD87: 64.12 | AE87: 35.834999
A88: 2010-02-04 | B88: 5533.24 | C88: 40.255001 | D88: 79.559998 | E88: 30.335 | F88: 36.225 | G88: 35.56 | H88: 4.11 | I88: 42.6 | J88: 41.349998 | K88: 40.0395 | L88: 60.2377 | M88: 63.05 | N88: 33.795 | O88: 9.24 | P88: 33.1 | Q88: 26.25 | R88: 79.290001 | S88: 48.35 | T88: 106.9 | U88: 63.43 | V88: 12.415 | W88: 43.715 | X88: 39.765 | Y88: 41.794998 | Z88: 22.35 | AA88: 4.434 | AB88: 50.59 | AC88: 11.33 | AD88: 63.51 | AE88: 35.209999
A89: 2010-02-05 | B89: 5434.34 | C89: 39.43 | D89: 79.260002 | E89: 29.92 | F89: 36.115 | G89: 35.175 | H89: 3.959 | I89: 41.42 | J89: 40.794998 | K89: 39.4053 | L89: 58.8858 | M89: 61.67 | N89: 33.385 | O89: 9.211 | P89: 32.32 | Q89: 25.6 | R89: 77.610001 | S89: 46.82 | T89: 106.25 | U89: 62.65 | V89: 12.14 | W89: 43.15 | X89: 39.3 | Y89: 41.275002 | Z89: 22.035 | AA89: 4.4036 | AB89: 50.18 | AC89: 11.045 | AD89: 62.55 | AE89: 35.294998
A90: 2010-02-08 | B90: 5484.85 | C90: 40.02 | D90: 79.739998 | E90: 29.61 | F90: 36.38 | G90: 35.005 | H90: 3.958 | I90: 41.935 | J90: 41.349998 | K90: 39.3278 | L90: 58.2993 | M90: 62.56 | N90: 32.56 | O90: 9.372 | P90: 33.31 | Q90: 25.95 | R90: 78.110001 | S90: 47.555 | T90: 107.55 | U90: 63.58 | V90: 12.21 | W90: 44.115 | X90: 39.61 | Y90: 41.91 | Z90: 22.28 | AA90: 4.4228 | AB90: 49.73 | AC90: 11.08 | AD90: 63.14 | AE90: 35.805
A91: 2010-02-09 | B91: 5498.26 | C91: 40.014999 | D91: 80.800003 | E91: 29.625 | F91: 36.29 | G91: 35.525 | H91: 3.98 | I91: 42.5 | J91: 42.029999 | K91: 40.4455 | L91: 57.0767 | M91: 62.98 | N91: 31.755 | O91: 9.342 | P91: 33.325 | Q91: 25.89 | R91: 78.519997 | S91: 47.84 | T91: 106.8 | U91: 63.4 | V91: 12.185 | W91: 43.555 | X91: 40.13 | Y91: 41.869999 | Z91: 22.8 | AA91: 4.4645 | AB91: 50.99 | AC91: 11.015 | AD91: 63 | AE91: 36.25
A92: 2010-02-10 | B92: 5536.37 | C92: 40.43 | D92: 80.870003 | E92: 29.665 | F92: 36.465 | G92: 35.815 | H92: 4.001 | I92: 41.12 | J92: 41.955002 | K92: 41.6819 | L92: 58.5478 | M92: 63 | N92: 31.735 | O92: 9.448 | P92: 33.63 | Q92: 25.92 | R92: 79.190002 | S92: 48.345 | T92: 108 | U92: 64.08 | V92: 12.245 | W92: 44.075 | X92: 39.47 | Y92: 42.115002 | Z92: 22.415 | AA92: 4.5502 | AB92: 50.76 | AC92: 11.32 | AD92: 62.61 | AE92: 36.220001
A93: 2010-02-11 | B93: 5503.93 | C93: 40.264999 | D93: 81.599998 | E93: 29.49 | F93: 36.86 | G93: 36.095 | H93: 4.06 | I93: 40.2 | J93: 42.240002 | K93: 40.7832 | L93: 56.8083 | M93: 63.07 | N93: 31.115 | O93: 9.348 | P93: 32.77 | Q93: 25.88 | R93: 78.599998 | S93: 48.565 | T93: 108 | U93: 63.5 | V93: 12 | W93: 43.84 | X93: 39.65 | Y93: 42.285 | Z93: 22.345 | AA93: 4.5294 | AB93: 51.06 | AC93: 10.955 | AD93: 63.04 | AE93: 36.450001
A94: 2010-02-12 | B94: 5500.39 | C94: 40.200001 | D94: 81.440002 | E94: 29 | F94: 36.945 | G94: 36.225 | H94: 3.942 | I94: 39.5 | J94: 42.985001 | K94: 40.1809 | L94: 55.7248 | M94: 62.14 | N94: 31.31 | O94: 9.42 | P94: 32.46 | Q94: 25.89 | R94: 78.940002 | S94: 49.355 | T94: 108.3 | U94: 64.06 | V94: 11.695 | W94: 44.12 | X94: 38.945 | Y94: 42.830002 | Z94: 22.96 | AA94: 4.5061 | AB94: 50.07 | AC94: 10.93 | AD94: 63.66 | AE94: 36.59
A95: 2010-02-15 | B95: 5511.1 | C95: 40.205002 | D95: 81.690002 | E95: 28.65 | F95: 36.605 | G95: 36.33 | H95: 3.848 | I95: 39.21 | J95: 43.650002 | K95: 40.2722 | L95: 55.4962 | M95: 62.75 | N95: 31.4 | O95: 9.43 | P95: 32.01 | Q95: 26.13 | R95: 79.580002 | S95: 49.35 | T95: 109.05 | U95: 63.93 | V95: 11.85 | W95: 44.45 | X95: 38.325 | Y95: 42.384998 | Z95: 23.02 | AA95: 4.4797 | AB95: 50.36 | AC95: 10.92 | AD95: 63.76 | AE95: 36.455002
A96: 2010-02-16 | B96: 5592.12 | C96: 40.84 | D96: 83.209999 | E96: 29.405 | F96: 36.73 | G96: 36.48 | H96: 3.973 | I96: 39.215 | J96: 44.5 | K96: 41.7641 | L96: 56.2914 | M96: 63.25 | N96: 32.155 | O96: 9.507 | P96: 32.615 | Q96: 26.55 | R96: 80.860001 | S96: 50.21 | T96: 109.3 | U96: 64.47 | V96: 11.895 | W96: 45.1 | X96: 38.15 | Y96: 42.57 | Z96: 23.61 | AA96: 4.5318 | AB96: 52.37 | AC96: 10.96 | AD96: 64.08 | AE96: 36.235001
A97: 2010-02-17 | B97: 5648.34 | C97: 41.549999 | D97: 83.599998 | E97: 29.615 | F97: 36.725 | G97: 36.455 | H97: 4.089 | I97: 40.485 | J97: 44.290001 | K97: 42.6446 | L97: 58.7466 | M97: 64.3 | N97: 32.37 | O97: 9.55 | P97: 33.04 | Q97: 26.69 | R97: 81.980003 | S97: 50.42 | T97: 109.75 | U97: 64.56 | V97: 12.17 | W97: 45.01 | X97: 38.345 | Y97: 42.950001 | Z97: 23.635 | AA97: 4.5895 | AB97: 52.3 | AC97: 11.1 | AD97: 63.78 | AE97: 35.994999
A98: 2010-02-18 | B98: 5680.41 | C98: 42.005001 | D98: 83.889999 | E98: 29.415 | F98: 37.28 | G98: 37.03 | H98: 4.116 | I98: 40.69 | J98: 45.775002 | K98: 43.1693 | L98: 59.0647 | M98: 65.17 | N98: 32.395 | O98: 9.657 | P98: 31.495 | Q98: 26.78 | R98: 82.57 | S98: 50.77 | T98: 110.25 | U98: 65.05 | V98: 12.25 | W98: 46.595 | X98: 38.38 | Y98: 43.805 | Z98: 23.86 | AA98: 4.6231 | AB98: 52.89 | AC98: 11.13 | AD98: 64.5 | AE98: 36.555
A99: 2010-02-19 | B99: 5722.05 | C99: 42.060001 | D99: 84.839996 | E99: 30.435 | F99: 37.275 | G99: 37.46 | H99: 4.157 | I99: 40.4 | J99: 45.720001 | K99: 43.7168 | L99: 59.7804 | M99: 65.34 | N99: 32.905 | O99: 9.752 | P99: 32.3 | Q99: 26.93 | R99: 82.239998 | S99: 51.01 | T99: 111.1 | U99: 64.75 | V99: 12.32 | W99: 46.9 | X99: 39.25 | Y99: 44.330002 | Z99: 24.09 | AA99: 4.6792 | AB99: 54.13 | AC99: 11.185 | AD99: 65.26 | AE99: 36.814999
A100: 2010-02-22 | B100: 5688.44 | C100: 41.799999 | D100: 83.669998 | E100: 30.26 | F100: 37.52 | G100: 37.16 | H100: 4.19 | I100: 40.55 | J100: 45.27 | K100: 43.589 | L100: 60.8937 | M100: 65 | N100: 32.52 | O100: 9.675 | P100: 31.4 | Q100: 26.7 | R100: 82.300003 | S100: 50.47 | T100: 111.9 | U100: 64.63 | V100: 12.33 | W100: 46.28 | X100: 38.925 | Y100: 44 | Z100: 23.96 | AA100: 4.8323 | AB100: 53.95 | AC100: 10.995 | AD100: 64.48 | AE100: 36.5
A101: 2010-02-23 | B101: 5604.07 | C101: 41.264999 | D101: 82.900002 | E101: 29.69 | F101: 37.1 | G101: 36.3 | H101: 4.091 | I101: 39.46 | J101: 44.529999 | K101: 42.1473 | L101: 60.3271 | M101: 63.81 | N101: 32.315 | O101: 9.502 | P101: 31.25 | Q101: 26.36 | R101: 81.529999 | S101: 49.84 | T101: 112 | U101: 63.5 | V101: 12.145 | W101: 46 | X101: 38.535 | Y101: 44.205002 | Z101: 23.18 | AA101: 4.5198 | AB101: 53.03 | AC101: 10.95 | AD101: 58 | AE101: 36.395
A102: 2010-02-24 | B102: 5615.51 | C102: 40.654999 | D102: 82.209999 | E102: 29.485 | F102: 38.68 | G102: 36.3 | H102: 4.037 | I102: 38.5 | J102: 44.555 | K102: 42.4667 | L102: 61.2913 | M102: 64.17 | N102: 32.7 | O102: 9.52 | P102: 30.945 | Q102: 26.475 | R102: 82.080002 | S102: 50 | T102: 113.1 | U102: 63.31 | V102: 12.065 | W102: 46.99 | X102: 38.36 | Y102: 44.435001 | Z102: 23.04 | AA102: 4.3915 | AB102: 52.97 | AC102: 10.92 | AD102: 58.75 | AE102: 36.349998
A103: 2010-02-25 | B103: 5532.33 | C103: 41.115002 | D103: 80.760002 | E103: 29.375 | F103: 38.035 | G103: 35.725 | H103: 3.907 | I103: 36.86 | J103: 44 | K103: 41.609 | L103: 60.2178 | M103: 62.32 | N103: 32.305 | O103: 9.4 | P103: 30.35 | Q103: 25.84 | R103: 82.18 | S103: 49.38 | T103: 111.6 | U103: 61.69 | V103: 11.63 | W103: 46.6 | X103: 37.28 | Y103: 44.064999 | Z103: 22.785 | AA103: 4.3675 | AB103: 52.14 | AC103: 10.79 | AD103: 57.62 | AE103: 36.110001
A104: 2010-02-26 | B104: 5598.46 | C104: 41.240002 | D104: 82.690002 | E104: 29.785 | F104: 38.35 | G104: 36.39 | H104: 4.007 | I104: 37.425 | J104: 44.619999 | K104: 42.5534 | L104: 59.4425 | M104: 62.99 | N104: 32.76 | O104: 9.45 | P104: 30.66 | Q104: 26.155 | R104: 84.800003 | S104: 48.67 | T104: 113.65 | U104: 62.28 | V104: 11.945 | W104: 47.95 | X104: 37.655 | Y104: 45.025002 | Z104: 23.25 | AA104: 4.3891 | AB104: 52.51 | AC104: 10.96 | AD104: 57.8 | AE104: 37.834999
A105: 2010-03-01 | B105: 5713.51 | C105: 42.105 | D105: 84.480003 | E105: 30.445 | F105: 39.795 | G105: 38.1 | H105: 4.08 | I105: 37.835 | J105: 45.400002 | K105: 43.4339 | L105: 59.9395 | M105: 64.77 | N105: 33.445 | O105: 9.573 | P105: 31.345 | Q105: 26.59 | R105: 86.199997 | S105: 50.51 | T105: 114.55 | U105: 62.93 | V105: 12.08 | W105: 48.36 | X105: 38.185 | Y105: 46.055 | Z105: 23.535 | AA105: 4.3907 | AB105: 53.73 | AC105: 11.1 | AD105: 59.5 | AE105: 38.610001
A106: 2010-03-02 | B106: 5776.56 | C106: 42.139999 | D106: 86.120003 | E106: 31.34 | F106: 40.19 | G106: 38.045 | H106: 4.197 | I106: 39.25 | J106: 46.25 | K106: 43.9175 | L106: 60.3371 | M106: 65.91 | N106: 33.87 | O106: 9.54 | P106: 31.755 | Q106: 26.71 | R106: 87.150002 | S106: 51.12 | T106: 115.9 | U106: 63.12 | V106: 12.47 | W106: 49.31 | X106: 39.22 | Y106: 46.235001 | Z106: 24.14 | AA106: 4.4428 | AB106: 54.85 | AC106: 11.5 | AD106: 59.65 | AE106: 38.689999
A107: 2010-03-03 | B107: 5817.88 | C107: 42.275002 | D107: 86.089996 | E107: 31.65 | F107: 39.96 | G107: 36.47 | H107: 4.227 | I107: 39.4 | J107: 46.625 | K107: 44.7114 | L107: 61.7386 | M107: 67.2 | N107: 33.62 | O107: 9.56 | P107: 31.95 | Q107: 26.79 | R107: 87.849998 | S107: 52.19 | T107: 116.55 | U107: 63.3 | V107: 12.765 | W107: 49.975 | X107: 39.365 | Y107: 45.259998 | Z107: 24.65 | AA107: 4.4717 | AB107: 55.04 | AC107: 11.59 | AD107: 60.63 | AE107: 38.07
A108: 2010-03-04 | B108: 5795.32 | C108: 41.75 | D108: 85.5 | E108: 31.56 | F108: 39.97 | G108: 36.675 | H108: 4.236 | I108: 40.32 | J108: 46.044998 | K108: 45.3501 | L108: 61.0329 | M108: 66.45 | N108: 33.84 | O108: 9.571 | P108: 31.91 | Q108: 26.59 | R108: 86.970001 | S108: 51.67 | T108: 115.6 | U108: 62.92 | V108: 12.79 | W108: 50.07 | X108: 39.83 | Y108: 45.450001 | Z108: 24.675 | AA108: 4.539 | AB108: 55.07 | AC108: 11.5 | AD108: 60.91 | AE108: 38.544998
A109: 2010-03-05 | B109: 5877.36 | C109: 43.099998 | D109: 85.349998 | E109: 32.365 | F109: 39.7 | G109: 36.91 | H109: 4.28 | I109: 41 | J109: 47.330002 | K109: 46.4907 | L109: 63.0209 | M109: 67.46 | N109: 34.08 | O109: 9.68 | P109: 32.985 | Q109: 26.87 | R109: 88.010002 | S109: 52.3 | T109: 116 | U109: 63 | V109: 13.01 | W109: 50.1 | X109: 40.08 | Y109: 45.029999 | Z109: 25.04 | AA109: 4.6937 | AB109: 55.73 | AC109: 11.705 | AD109: 61 | AE109: 38.299999
A110: 2010-03-08 | B110: 5875.91 | C110: 43.23 | D110: 85.330002 | E110: 31.99 | F110: 39.6 | G110: 36.765 | H110: 4.289 | I110: 41.075 | J110: 46.505001 | K110: 46.582 | L110: 64.2436 | M110: 67.07 | N110: 33.965 | O110: 9.747 | P110: 33.01 | Q110: 26.86 | R110: 88.18 | S110: 51.84 | T110: 117.8 | U110: 63.61 | V110: 12.805 | W110: 48.585 | X110: 40.81 | Y110: 44.955002 | Z110: 24.94 | AA110: 4.6704 | AB110: 56 | AC110: 11.735 | AD110: 60.96 | AE110: 38.384998
A111: 2010-03-09 | B111: 5885.89 | C111: 43.279999 | D111: 85.839996 | E111: 32.13 | F111: 39.875 | G111: 36.765 | H111: 4.29 | I111: 40.56 | J111: 46.470001 | K111: 46.7827 | L111: 63.2396 | M111: 67.05 | N111: 33.995 | O111: 9.778 | P111: 32.765 | Q111: 26.88 | R111: 87.889999 | S111: 52.37 | T111: 116.3 | U111: 64.48 | V111: 13.09 | W111: 48.91 | X111: 40.72 | Y111: 44.884998 | Z111: 24.945 | AA111: 4.6792 | AB111: 56.5 | AC111: 11.865 | AD111: 60.87 | AE111: 38.220001
A112: 2010-03-10 | B112: 5936.72 | C112: 44.035 | D112: 86.32 | E112: 32.265 | F112: 39.695 | G112: 37.14 | H112: 4.364 | I112: 41.72 | J112: 46.935001 | K112: 47.4944 | L112: 63.3688 | M112: 67.78 | N112: 34.015 | O112: 9.811 | P112: 33.115 | Q112: 27.25 | R112: 88.470001 | S112: 52.6 | T112: 117.9 | U112: 64.5 | V112: 13 | W112: 49.4 | X112: 41.31 | Y112: 44.889999 | Z112: 25.39 | AA112: 4.7409 | AB112: 57.1 | AC112: 11.945 | AD112: 61.32 | AE112: 38.404999
A113: 2010-03-11 | B113: 5928.63 | C113: 44.240002 | D113: 85.980003 | E113: 32.69 | F113: 39.72 | G113: 37.725 | H113: 4.37 | I113: 41.67 | J113: 45.66 | K113: 47.6495 | L113: 68.2694 | M113: 67.22 | N113: 33.7 | O113: 9.905 | P113: 33.19 | Q113: 27.285 | R113: 88.089996 | S113: 51.88 | T113: 116.95 | U113: 64.51 | V113: 12.87 | W113: 50 | X113: 41.63 | Y113: 44.779999 | Z113: 25.175 | AA113: 4.7473 | AB113: 57.2 | AC113: 11.78 | AD113: 60.74 | AE113: 38.5
A114: 2010-03-12 | B114: 5945.11 | C114: 44.255001 | D114: 86.040001 | E114: 32.54 | F114: 39.71 | G114: 38.33 | H114: 4.44 | I114: 41.7 | J114: 46.369999 | K114: 48.2518 | L114: 69.5715 | M114: 68.38 | N114: 33.5 | O114: 9.885 | P114: 33.535 | Q114: 27.085 | R114: 88.089996 | S114: 51.73 | T114: 116.6 | U114: 63.99 | V114: 13.125 | W114: 49.785 | X114: 41.635 | Y114: 44.255001 | Z114: 25.345 | AA114: 4.8828 | AB114: 58 | AC114: 11.855 | AD114: 60.77 | AE114: 37.919998
A115: 2010-03-15 | B115: 5903.56 | C115: 43.720001 | D115: 85.07 | E115: 32.64 | F115: 40.175 | G115: 37.74 | H115: 4.31 | I115: 41.125 | J115: 45.334999 | K115: 47.9507 | L115: 68.4284 | M115: 67.7 | N115: 33.44 | O115: 9.808 | P115: 33.33 | Q115: 26.905 | R115: 87.800003 | S115: 51.36 | T115: 116.25 | U115: 64.04 | V115: 12.91 | W115: 50.13 | X115: 41.97 | Y115: 44 | Z115: 24.995 | AA115: 4.8643 | AB115: 56.63 | AC115: 11.74 | AD115: 60.82 | AE115: 37.775002
A116: 2010-03-16 | B116: 5970.99 | C116: 44.150002 | D116: 85.720001 | E116: 32.755 | F116: 40.11 | G116: 37.74 | H116: 4.459 | I116: 41.885 | J116: 45.599998 | K116: 49.1825 | L116: 69.9791 | M116: 69.67 | N116: 33.635 | O116: 9.838 | P116: 34.11 | Q116: 26.85 | R116: 88.879997 | S116: 52.1 | T116: 116.15 | U116: 64.27 | V116: 12.99 | W116: 50.81 | X116: 43.07 | Y116: 44.084999 | Z116: 25.19 | AA116: 4.9685 | AB116: 57.24 | AC116: 12.005 | AD116: 60.8 | AE116: 37.825001
A117: 2010-03-17 | B117: 6024.28 | C117: 44.549999 | D117: 86.940002 | E117: 32.47 | F117: 40.045 | G117: 37.42 | H117: 4.508 | I117: 42.9 | J117: 46.064999 | K117: 50.0494 | L117: 71.0228 | M117: 71.9 | N117: 34.5 | O117: 9.86 | P117: 34.35 | Q117: 26.72 | R117: 89.910004 | S117: 51.84 | T117: 116.75 | U117: 64.52 | V117: 13.105 | W117: 50 | X117: 42.16 | Y117: 44.025002 | Z117: 25.72 | AA117: 5.0967 | AB117: 59.08 | AC117: 12.1 | AD117: 60.13 | AE117: 37.674999
A118: 2010-03-18 | B118: 6012.31 | C118: 44.755001 | D118: 87.839996 | E118: 32.105 | F118: 40.15 | G118: 38.66 | H118: 4.456 | I118: 43.37 | J118: 45.555 | K118: 49.3833 | L118: 71.0526 | M118: 71.75 | N118: 34.6 | O118: 9.864 | P118: 34.64 | Q118: 26.5 | R118: 89.68 | S118: 51.15 | T118: 116.5 | U118: 64.42 | V118: 13.09 | W118: 49.645 | X118: 42.5 | Y118: 44.134998 | Z118: 25.52 | AA118: 5.0471 | AB118: 59.53 | AC118: 12.14 | AD118: 60.09 | AE118: 37.799999
A119: 2010-03-19 | B119: 5982.43 | C119: 44.299999 | D119: 88.169998 | E119: 32.06 | F119: 40.075 | G119: 39.1 | H119: 4.444 | I119: 43.41 | J119: 44.825001 | K119: 49.2829 | L119: 71.7286 | M119: 71.28 | N119: 34.4 | O119: 9.89 | P119: 34.375 | Q119: 26.29 | R119: 88.93 | S119: 50.58 | T119: 116.6 | U119: 64.01 | V119: 13.005 | W119: 49.295 | X119: 41.99 | Y119: 44.115002 | Z119: 25.095 | AA119: 5.0735 | AB119: 59.26 | AC119: 12.285 | AD119: 60.24 | AE119: 38.099998
A120: 2010-03-22 | B120: 5987.5 | C120: 44.709999 | D120: 88.410004 | E120: 32.5 | F120: 41.37 | G120: 38.935 | H120: 4.489 | I120: 42.36 | J120: 44.599998 | K120: 49.1825 | L120: 72.5138 | M120: 71.24 | N120: 34.9 | O120: 9.85 | P120: 34.4 | Q120: 26.19 | R120: 88.199997 | S120: 50.41 | T120: 116.75 | U120: 63.96 | V120: 12.95 | W120: 48.405 | X120: 42.2 | Y120: 44.174999 | Z120: 24.79 | AA120: 5.0495 | AB120: 59.75 | AC120: 12.31 | AD120: 60.29 | AE120: 38.674999
A121: 2010-03-23 | B121: 6017.27 | C121: 44.935001 | D121: 88.68 | E121: 33.15 | F121: 40.64 | G121: 39.275 | H121: 4.678 | I121: 42.69 | J121: 44.93 | K121: 49.8212 | L121: 68.0904 | M121: 71.81 | N121: 35.22 | O121: 9.871 | P121: 34.45 | Q121: 26.35 | R121: 88.629997 | S121: 50.1 | T121: 117.1 | U121: 64.19 | V121: 13.025 | W121: 48.28 | X121: 43.1 | Y121: 44.73 | Z121: 24.8 | AA121: 5.1272 | AB121: 60.47 | AC121: 12.37 | AD121: 59.73 | AE121: 40.209999
A122: 2010-03-24 | B122: 6039 | C122: 44.865002 | D122: 87.639999 | E122: 33.375 | F122: 41.16 | G122: 39.295 | H122: 4.949 | I122: 42.285 | J122: 45.599998 | K122: 50.606 | L122: 68.5974 | M122: 71.95 | N122: 35.34 | O122: 9.823 | P122: 34.49 | Q122: 26.495 | R122: 88.989998 | S122: 49.79 | T122: 117.4 | U122: 64.18 | V122: 13.105 | W122: 48.95 | X122: 43.3 | Y122: 44.509998 | Z122: 25.015 | AA122: 5.2714 | AB122: 61.39 | AC122: 12.215 | AD122: 59.36 | AE122: 39.330002
A123: 2010-03-25 | B123: 6132.95 | C123: 45.34 | D123: 88.190002 | E123: 34.04 | F123: 41.45 | G123: 40.025 | H123: 5.016 | I123: 41.935 | J123: 46.209999 | K123: 52.3032 | L123: 66.172 | M123: 73.75 | N123: 35.755 | O123: 9.877 | P123: 35.015 | Q123: 27 | R123: 91 | S123: 50.61 | T123: 119 | U123: 64.8 | V123: 13.12 | W123: 49.83 | X123: 43.94 | Y123: 44.68 | Z123: 25.725 | AA123: 5.3836 | AB123: 62.53 | AC123: 12.57 | AD123: 59.59 | AE123: 39.334999
A124: 2010-03-26 | B124: 6120.05 | C124: 45.25 | D124: 87.709999 | E124: 34.2 | F124: 41.29 | G124: 40.055 | H124: 5.05 | I124: 40.71 | J124: 45.610001 | K124: 52.805 | L124: 68.7863 | M124: 73.3 | N124: 35.29 | O124: 9.871 | P124: 34.98 | Q124: 26.695 | R124: 92.25 | S124: 49.97 | T124: 119.8 | U124: 64.5 | V124: 12.99 | W124: 49.08 | X124: 43.595 | Y124: 44.689999 | Z124: 25.67 | AA124: 5.3564 | AB124: 63.45 | AC124: 12.425 | AD124: 59.42 | AE124: 39.34
A125: 2010-03-29 | B125: 6156.85 | C125: 45.52 | D125: 87.919998 | E125: 34.115 | F125: 41.45 | G125: 40.53 | H125: 5.173 | I125: 41.205 | J125: 45.200001 | K125: 52.7868 | L125: 68.9254 | M125: 74.42 | N125: 35.68 | O125: 9.95 | P125: 34.95 | Q125: 26.955 | R125: 92.940002 | S125: 50.31 | T125: 120.2 | U125: 65 | V125: 13.07 | W125: 50.57 | X125: 44.07 | Y125: 44.235001 | Z125: 26.04 | AA125: 5.2602 | AB125: 62.39 | AC125: 12.555 | AD125: 59.61 | AE125: 39.384998
A126: 2010-03-30 | B126: 6142.45 | C126: 45.724998 | D126: 87.800003 | E126: 33.785 | F126: 41.185 | G126: 40.265 | H126: 5.039 | I126: 41.595 | J126: 44.645 | K126: 52.9602 | L126: 67.504 | M126: 73.09 | N126: 35.61 | O126: 9.986 | P126: 34.56 | Q126: 27.32 | R126: 93.089996 | S126: 50.2 | T126: 119.7 | U126: 65.83 | V126: 12.97 | W126: 51.65 | X126: 44.715 | Y126: 44.150002 | Z126: 25.19 | AA126: 5.1096 | AB126: 61.15 | AC126: 12.465 | AD126: 59.84 | AE126: 39.43
A127: 2010-03-31 | B127: 6153.55 | C127: 45.919998 | D127: 88.339996 | E127: 34.18 | F127: 41.775 | G127: 39.6 | H127: 5.139 | I127: 41.3 | J127: 44.93 | K127: 52.0386 | L127: 67.9 | M127: 74.15 | N127: 35.86 | O127: 10.035 | P127: 34.855 | Q127: 27.335 | R127: 92.830002 | S127: 50.08 | T127: 120.15 | U127: 65.6 | V127: 12.845 | W127: 55.11 | X127: 43.92 | Y127: 44.285 | Z127: 25.455 | AA127: 5.0815 | AB127: 61.98 | AC127: 12.28 | AD127: 60 | AE127: 39.860001
A128: 2010-04-01 | B128: 6235.56 | C128: 47 | D128: 88.440002 | E128: 35.155 | F128: 41.605 | G128: 40.14 | H128: 5.16 | I128: 42.1 | J128: 44.325001 | K128: 53.0149 | L128: 69.52 | M128: 75.74 | N128: 36.365 | O128: 10.02 | P128: 35.405 | Q128: 27.6 | R128: 94 | S128: 50.64 | T128: 121.7 | U128: 66.28 | V128: 13.025 | W128: 55.31 | X128: 44.71 | Y128: 44.455002 | Z128: 25.87 | AA128: 5.112 | AB128: 62.35 | AC128: 12.65 | AD128: 60 | AE128: 40.650002
A129: 2010-04-05 | B129: 6235.56 | C129: 47.055 | D129: 88.18 | E129: 35.41 | F129: 41.23 | G129: 40.4 | H129: 5.291 | I129: 41.93 | J129: 44.435001 | K129: 53.0514 | L129: 71.12 | M129: 76.26 | N129: 36.04 | O129: 10.08 | P129: 35.505 | Q129: 27.59 | R129: 95.260002 | S129: 49.62 | T129: 122.55 | U129: 66.34 | V129: 13.1 | W129: 54.72 | X129: 45.31 | Y129: 43.990002 | Z129: 26.32 | AA129: 5.1769 | AB129: 64.69 | AC129: 12.87 | AD129: 59.8 | AE129: 40.794998
A130: 2010-04-06 | B130: 6252.21 | C130: 46.625 | D130: 87.699997 | E130: 34.8 | F130: 41.265 | G130: 40.455 | H130: 5.253 | I130: 42.91 | J130: 44.185001 | K130: 52.2393 | L130: 70.65 | M130: 75.06 | N130: 35.985 | O130: 10.065 | P130: 35.42 | Q130: 27.54 | R130: 95.43 | S130: 49.5 | T130: 121.55 | U130: 66.4 | V130: 12.995 | W130: 55.47 | X130: 45.9 | Y130: 43.994999 | Z130: 26.705 | AA130: 5.1464 | AB130: 64.88 | AC130: 12.805 | AD130: 60.5 | AE130: 39.75
A131: 2010-04-07 | B131: 6222.41 | C131: 46.25 | D131: 87.110001 | E131: 34.53 | F131: 41.395 | G131: 40.175 | H131: 5.135 | I131: 42.15 | J131: 43.099998 | K131: 51.3542 | L131: 68.9 | M131: 74.1 | N131: 35.935 | O131: 9.972 | P131: 35.18 | Q131: 27.5 | R131: 93.699997 | S131: 49.73 | T131: 120.9 | U131: 66.12 | V131: 12.85 | W131: 54.9 | X131: 45.215 | Y131: 43.93 | Z131: 26.3 | AA131: 5.0342 | AB131: 64.08 | AC131: 12.785 | AD131: 60.85 | AE131: 39.744999
A132: 2010-04-08 | B132: 6171.83 | C132: 46.970001 | D132: 88 | E132: 34.86 | F132: 41.41 | G132: 41.12 | H132: 5.206 | I132: 44.185 | J132: 43.23 | K132: 52.9967 | L132: 68.7 | M132: 74.84 | N132: 36 | O132: 10.04 | P132: 35.36 | Q132: 28.34 | R132: 93.57 | S132: 50.17 | T132: 121.85 | U132: 67.84 | V132: 12.945 | W132: 55.75 | X132: 45.51 | Y132: 44.119999 | Z132: 26.56 | AA132: 5.0823 | AB132: 64.38 | AC132: 13.055 | AD132: 61.57 | AE132: 41.055
A133: 2010-04-09 | B133: 6249.7 | C133: 46.919998 | D133: 87.699997 | E133: 35.12 | F133: 41.045 | G133: 41.18 | H133: 5.028 | I133: 43.5 | J133: 42.720001 | K133: 53.2065 | L133: 68.2 | M133: 74.78 | N133: 36.04 | O133: 10.07 | P133: 35.41 | Q133: 28.52 | R133: 94.330002 | S133: 49.915 | T133: 122.15 | U133: 68.02 | V133: 12.78 | W133: 55.31 | X133: 45.465 | Y133: 43.915001 | Z133: 26.375 | AA133: 5.108 | AB133: 64.78 | AC133: 12.95 | AD133: 60.81 | AE133: 40.73
A134: 2010-04-12 | B134: 6250.69 | C134: 46.639999 | D134: 87.910004 | E134: 35.35 | F134: 41.57 | G134: 41.445 | H134: 5.07 | I134: 43.26 | J134: 42.310001 | K134: 52.732 | L134: 67.5 | M134: 73.6 | N134: 35.86 | O134: 10.065 | P134: 36 | Q134: 28.275 | R134: 93.379997 | S134: 50.34 | T134: 121.9 | U134: 67.36 | V134: 12.62 | W134: 55.5 | X134: 45.68 | Y134: 44.669998 | Z134: 26.255 | AA134: 5.0951 | AB134: 66.37 | AC134: 12.875 | AD134: 60.77 | AE134: 40.75
A135: 2010-04-13 | B135: 6230.83 | C135: 46.685001 | D135: 88.309998 | E135: 35.515 | F135: 41.46 | G135: 41.8 | H135: 5.211 | I135: 44.5 | J135: 43.115002 | K135: 54.3836 | L135: 69.69 | M135: 73.43 | N135: 36.295 | O135: 10.125 | P135: 36.67 | Q135: 28.4 | R135: 94.190002 | S135: 50.18 | T135: 122.5 | U135: 67.59 | V135: 12.85 | W135: 55.8 | X135: 44.905 | Y135: 44.619999 | Z135: 26.58 | AA135: 5.2057 | AB135: 66.83 | AC135: 13.045 | AD135: 60.36 | AE135: 40.965
A136: 2010-04-14 | B136: 6278.4 | C136: 46.529999 | D136: 88 | E136: 35.33 | F136: 41.355 | G136: 41.82 | H136: 5.26 | I136: 44.9 | J136: 43.990002 | K136: 55.0954 | L136: 70.4 | M136: 73.11 | N136: 36.58 | O136: 10.11 | P136: 36.715 | Q136: 28.7 | R136: 93.809998 | S136: 49.665 | T136: 123.2 | U136: 67.67 | V136: 13.35 | W136: 55.64 | X136: 44.81 | Y136: 44.639999 | Z136: 26.55 | AA136: 5.2514 | AB136: 67.08 | AC136: 13.28 | AD136: 60.51 | AE136: 40.994999
A137: 2010-04-15 | B137: 6291.45 | C137: 45.950001 | D137: 87.510002 | E137: 35.56 | F137: 41.53 | G137: 41.14 | H137: 5.12 | I137: 45.455 | J137: 43.18 | K137: 51.0896 | L137: 70.92 | M137: 71.13 | N137: 36 | O137: 10 | P137: 36.54 | Q137: 28.37 | R137: 92.339996 | S137: 49.395 | T137: 120.7 | U137: 66.87 | V137: 13.105 | W137: 55.3 | X137: 44.95 | Y137: 44.105 | Z137: 25.99 | AA137: 5.1008 | AB137: 66.43 | AC137: 12.735 | AD137: 60.53 | AE137: 40.294998
A138: 2010-04-16 | B138: 6180.9 | C138: 45.650002 | D138: 87.089996 | E138: 35.31 | F138: 41.625 | G138: 41.305 | H138: 5.096 | I138: 45.64 | J138: 42.84 | K138: 49.7847 | L138: 70 | M138: 72.02 | N138: 35.855 | O138: 9.986 | P138: 36.305 | Q138: 28.51 | R138: 91.970001 | S138: 49.665 | T138: 120.35 | U138: 66.64 | V138: 13.085 | W138: 55 | X138: 45.07 | Y138: 43.775002 | Z138: 25.625 | AA138: 5.0318 | AB138: 66.9 | AC138: 12.4 | AD138: 60.25 | AE138: 39.439999
A139: 2010-04-19 | B139: 6162.44 | C139: 46.099998 | D139: 87.300003 | E139: 36.795 | F139: 42.01 | G139: 42 | H139: 5.202 | I139: 46.815 | J139: 43.110001 | K139: 50.8615 | L139: 72.5 | M139: 73.88 | N139: 36.19 | O139: 10.03 | P139: 39 | Q139: 28.6 | R139: 92.660004 | S139: 50.22 | T139: 121.5 | U139: 67.17 | V139: 13.405 | W139: 55.46 | X139: 45.87 | Y139: 44.02 | Z139: 25.82 | AA139: 5.0967 | AB139: 68.83 | AC139: 12.62 | AD139: 61.35 | AE139: 39.794998
A140: 2010-04-20 | B140: 6264.23 | C140: 46.415001 | D140: 87.529999 | E140: 36.58 | F140: 41.95 | G140: 42.54 | H140: 5.4 | I140: 46.615 | J140: 42.779999 | K140: 50.4782 | L140: 75.26 | M140: 73.08 | N140: 36.315 | O140: 9.965 | P140: 38.45 | Q140: 28.205 | R140: 90.900002 | S140: 50.09 | T140: 120.5 | U140: 66.49 | V140: 13.335 | W140: 54.5 | X140: 46.74 | Y140: 43.650002 | Z140: 25.425 | AA140: 5.0278 | AB140: 67.75 | AC140: 12.64 | AD140: 61.85 | AE140: 40.150002
A141: 2010-04-21 | B141: 6230.38 | C141: 46.165001 | D141: 87.010002 | E141: 36.25 | F141: 41.855 | G141: 42.815 | H141: 5.29 | I141: 45.5 | J141: 42.994999 | K141: 49.2373 | L141: 76.18 | M141: 71.39 | N141: 36.4 | O141: 9.893 | P141: 37.85 | Q141: 28.18 | R141: 89.07 | S141: 49.7 | T141: 119.05 | U141: 66.14 | V141: 13.165 | W141: 53.57 | X141: 46.37 | Y141: 43.654999 | Z141: 24.895 | AA141: 4.8812 | AB141: 67.03 | AC141: 12.4 | AD141: 63.13 | AE141: 39.889999
A142: 2010-04-22 | B142: 6168.72 | C142: 47.75 | D142: 88.470001 | E142: 37.28 | F142: 42.04 | G142: 44.495 | H142: 5.389 | I142: 48 | J142: 43.875 | K142: 49.0639 | L142: 73.47 | M142: 72.83 | N142: 37 | O142: 9.914 | P142: 38.87 | Q142: 28.24 | R142: 89.379997 | S142: 51.51 | T142: 118.5 | U142: 62.64 | V142: 13.34 | W142: 54 | X142: 47.33 | Y142: 44.349998 | Z142: 24.94 | AA142: 4.9084 | AB142: 70.14 | AC142: 12.655 | AD142: 63.81 | AE142: 40.610001
A143: 2010-04-23 | B143: 6259.53 | C143: 48.544998 | D143: 90.040001 | E143: 37.82 | F143: 41.975 | G143: 44.855 | H143: 5.544 | I143: 48.78 | J143: 43.855 | K143: 50.5056 | L143: 73.5 | M143: 75.72 | N143: 37.34 | O143: 9.9 | P143: 39.47 | Q143: 28.375 | R143: 88.709999 | S143: 52.06 | T143: 119.05 | U143: 62.24 | V143: 13.53 | W143: 53.92 | X143: 47.205 | Y143: 44.509998 | Z143: 25.325 | AA143: 5.031 | AB143: 72.4 | AC143: 12.76 | AD143: 63.22 | AE143: 40.775002
A144: 2010-04-26 | B144: 6332.1 | C144: 47.105 | D144: 88.830002 | E144: 37.06 | F144: 41.61 | G144: 43.96 | H144: 5.26 | I144: 46 | J144: 43.775002 | K144: 47.9872 | L144: 71.04 | M144: 73.03 | N144: 36.85 | O144: 9.711 | P144: 37.93 | Q144: 27.75 | R144: 86.559998 | S144: 50.61 | T144: 113.75 | U144: 61.04 | V144: 13.165 | W144: 53.49 | X144: 45.97 | Y144: 43.59 | Z144: 24.795 | AA144: 4.8892 | AB144: 69.28 | AC144: 12.42 | AD144: 64.32 | AE144: 40.369999
A145: 2010-04-27 | B145: 6159.51 | C145: 46.400002 | D145: 87.360001 | E145: 36.79 | F145: 41.2 | G145: 43.085 | H145: 5.25 | I145: 46.89 | J145: 43.150002 | K145: 47.6678 | L145: 68.6 | M145: 71.98 | N145: 35.765 | O145: 9.644 | P145: 37.765 | Q145: 27.73 | R145: 84.82 | S145: 50.15 | T145: 112.75 | U145: 60.91 | V145: 13.065 | W145: 53.08 | X145: 44.84 | Y145: 43.014999 | Z145: 24.515 | AA145: 4.7698 | AB145: 66.8 | AC145: 12.205 | AD145: 62.88 | AE145: 39.834999
A146: 2010-04-28 | B146: 6084.34 | C146: 45.924999 | D146: 89.410004 | E146: 36.775 | F146: 41 | G146: 44.175 | H146: 5.352 | I146: 48.495 | J146: 43.59 | K146: 48.7628 | L146: 72.41 | M146: 72.91 | N146: 35.985 | O146: 9.776 | P146: 38.795 | Q146: 27.95 | R146: 86.480003 | S146: 48.975 | T146: 107.6 | U146: 61.01 | V146: 12.485 | W146: 53.51 | X146: 45.67 | Y146: 42.830002 | Z146: 24.795 | AA146: 4.8259 | AB146: 70.25 | AC146: 12.645 | AD146: 62.85 | AE146: 40.189999
A147: 2010-04-29 | B147: 6144.91 | C147: 43.98 | D147: 90.150002 | E147: 37.13 | F147: 40.72 | G147: 44.16 | H147: 5.343 | I147: 46.765 | J147: 43.330002 | K147: 47.686 | L147: 72.54 | M147: 74.34 | N147: 36.225 | O147: 9.779 | P147: 38.815 | Q147: 27.76 | R147: 86.519997 | S147: 48.075 | T147: 106.2 | U147: 61.86 | V147: 12.235 | W147: 53.51 | X147: 45.155 | Y147: 42.605 | Z147: 24.62 | AA147: 4.7554 | AB147: 71.19 | AC147: 12.55 | AD147: 61.86 | AE147: 40.224998
A148: 2010-04-30 | B148: 6135.7 | C148: 44.595001 | D148: 91.699997 | E148: 37.38 | F148: 41.09 | G148: 45.25 | H148: 5.287 | I148: 47.22 | J148: 43.185001 | K148: 47.8229 | L148: 73.36 | M148: 73.09 | N148: 36.1 | O148: 9.878 | P148: 38.615 | Q148: 28.19 | R148: 87.040001 | S148: 47.17 | T148: 107.2 | U148: 62.6 | V148: 12.46 | W148: 53.6 | X148: 46.755 | Y148: 42.915001 | Z148: 24.76 | AA148: 4.7978 | AB148: 71.39 | AC148: 12.64 | AD148: 62.02 | AE148: 40.07
A149: 2010-05-03 | B149: 6166.92 | C149: 43.064999 | D149: 87.650002 | E149: 35.84 | F149: 40.935 | G149: 43.23 | H149: 4.881 | I149: 45.005 | J149: 41.889999 | K149: 46.0618 | L149: 70.16 | M149: 70.88 | N149: 35.75 | O149: 8.91 | P149: 37.37 | Q149: 28.18 | R149: 84.470001 | S149: 45.69 | T149: 105.95 | U149: 61.89 | V149: 11.975 | W149: 51.51 | X149: 45.24 | Y149: 42.965 | Z149: 23.655 | AA149: 4.6528 | AB149: 68.16 | AC149: 12.045 | AD149: 61.94 | AE149: 39.639999
A150: 2010-05-04 | B150: 6006.86 | C150: 42.494999 | D150: 84.629997 | E150: 35.98 | F150: 39.75 | G150: 41.96 | H150: 4.862 | I150: 43.86 | J150: 40.93 | K150: 45.4185 | L150: 68.68 | M150: 70.79 | N150: 35.675 | O150: 8.892 | P150: 37.02 | Q150: 27.9 | R150: 84.309998 | S150: 46.065 | T150: 104 | U150: 61.29 | V150: 11.775 | W150: 50.78 | X150: 44.67 | Y150: 42.93 | Z150: 23.275 | AA150: 4.5831 | AB150: 67.96 | AC150: 11.81 | AD150: 61.29 | AE150: 38.759998
A151: 2010-05-05 | B151: 5958.45 | C151: 42.549999 | D151: 84.580002 | E151: 36.42 | F151: 40.06 | G151: 42.155 | H151: 4.79 | I151: 43.31 | J151: 41.52 | K151: 43.4978 | L151: 69.21 | M151: 70.76 | N151: 35.62 | O151: 8.83 | P151: 36.93 | Q151: 27.15 | R151: 78.800003 | S151: 46.395 | T151: 104.1 | U151: 60.24 | V151: 11.605 | W151: 50.73 | X151: 42.415 | Y151: 42.66 | Z151: 23.055 | AA151: 4.5294 | AB151: 67.66 | AC151: 11.68 | AD151: 61.68 | AE151: 37.924999
A152: 2010-05-06 | B152: 5908.26 | C152: 41 | D152: 82.309998 | E152: 35.48 | F152: 38.86 | G152: 40.22 | H152: 4.531 | I152: 42.375 | J152: 40.639999 | K152: 41.7914 | L152: 67.31 | M152: 68.25 | N152: 34.6 | O152: 8.55 | P152: 35.85 | Q152: 24.66 | R152: 76.669998 | S152: 45.245 | T152: 101 | U152: 58.17 | V152: 11.175 | W152: 49.62 | X152: 40.725 | Y152: 41.325001 | Z152: 22.59 | AA152: 4.5726 | AB152: 63.65 | AC152: 11.285 | AD152: 59.53 | AE152: 36.875
A153: 2010-05-07 | B153: 5715.09 | C153: 43.740002 | D153: 84.349998 | E153: 37.68 | F153: 38.95 | G153: 41.58 | H153: 4.937 | I153: 46.16 | J153: 42.279999 | K153: 47.1659 | L153: 70.77 | M153: 73.5 | N153: 35.455 | O153: 8.8 | P153: 38.01 | Q153: 25.32 | R153: 83.029999 | S153: 46.96 | T153: 106 | U153: 59.58 | V153: 11.93 | W153: 49.75 | X153: 43.5 | Y153: 42.485001 | Z153: 23.8 | AA153: 4.983 | AB153: 67.93 | AC153: 11.665 | AD153: 60.12 | AE153: 37.080002
A154: 2010-05-10 | B154: 6017.91 | C154: 43.564999 | D154: 84.639999 | E154: 38.18 | F154: 38.53 | G154: 42.795 | H154: 4.914 | I154: 45.93 | J154: 42.43 | K154: 46.6002 | L154: 70.9 | M154: 74.99 | N154: 35.65 | O154: 8.818 | P154: 38.655 | Q154: 25.24 | R154: 82.230003 | S154: 47.44 | T154: 106.3 | U154: 59.75 | V154: 12.1 | W154: 50.3 | X154: 43.035 | Y154: 42.549999 | Z154: 23.79 | AA154: 4.8643 | AB154: 68.47 | AC154: 11.61 | AD154: 60.2 | AE154: 37.865002
A155: 2010-05-11 | B155: 6037.71 | C155: 45 | D155: 86.400002 | E155: 39 | F155: 38.86 | G155: 44.19 | H155: 5.142 | I155: 47.52 | J155: 41.915001 | K155: 47.1203 | L155: 72.4 | M155: 76.25 | N155: 36.05 | O155: 9.071 | P155: 39.79 | Q155: 26.035 | R155: 85.059998 | S155: 48.235 | T155: 108.55 | U155: 61.25 | V155: 12.52 | W155: 51.4 | X155: 45.175 | Y155: 43.459999 | Z155: 24.08 | AA155: 4.9701 | AB155: 72.45 | AC155: 11.865 | AD155: 61.2 | AE155: 38.785
A156: 2010-05-12 | B156: 6183.49 | C156: 45.674999 | D156: 87.18 | E156: 39.52 | F156: 40.04 | G156: 43.915 | H156: 5.22 | I156: 48.75 | J156: 41.75 | K156: 46.4086 | L156: 72.86 | M156: 77.9 | N156: 35.67 | O156: 9.21 | P156: 41.37 | Q156: 26.235 | R156: 86.849998 | S156: 48.86 | T156: 109.1 | U156: 61.21 | V156: 12.605 | W156: 52.27 | X156: 45.605 | Y156: 44.455002 | Z156: 23.7 | AA156: 5.0991 | AB156: 72.81 | AC156: 11.985 | AD156: 61.56 | AE156: 39.290001
A157: 2010-05-13 | B157: 6251.97 | C157: 44.380001 | D157: 85.589996 | E157: 38.62 | F157: 39.72 | G157: 41.82 | H157: 5.038 | I157: 46.565 | J157: 40.610001 | K157: 44.4833 | L157: 71.12 | M157: 73.96 | N157: 35.15 | O157: 8.94 | P157: 40.575 | Q157: 25.5 | R157: 83.290001 | S157: 47.31 | T157: 105 | U157: 59.58 | V157: 12.355 | W157: 52.22 | X157: 44.225 | Y157: 43.615002 | Z157: 22.66 | AA157: 4.8884 | AB157: 70.18 | AC157: 11.555 | AD157: 60.86 | AE157: 38.279999
A158: 2010-05-14 | B158: 6056.71 | C158: 44.68 | D158: 86.260002 | E158: 38.715 | F158: 39.63 | G158: 41.705 | H158: 5.082 | I158: 45 | J158: 40.625 | K158: 44.8254 | L158: 69.54 | M158: 74.12 | N158: 35.08 | O158: 9.015 | P158: 41.085 | Q158: 25.355 | R158: 83.650002 | S158: 47.745 | T158: 104.95 | U158: 59.37 | V158: 12.21 | W158: 51.86 | X158: 43.855 | Y158: 43.075001 | Z158: 22.24 | AA158: 4.8243 | AB158: 71.49 | AC158: 11.365 | AD158: 60.74 | AE158: 38.494999
A159: 2010-05-17 | B159: 6066.92 | C159: 45.5 | D159: 86.699997 | E159: 39.65 | F159: 39.925 | G159: 42.055 | H159: 5.053 | I159: 46.015 | J159: 40.810001 | K159: 45.4779 | L159: 71.12 | M159: 76.45 | N159: 35.405 | O159: 9.096 | P159: 41.915 | Q159: 25.81 | R159: 84.800003 | S159: 47.85 | T159: 106.5 | U159: 60.25 | V159: 12.345 | W159: 52.28 | X159: 43.84 | Y159: 43.830002 | Z159: 22.725 | AA159: 4.8323 | AB159: 72.69 | AC159: 11.42 | AD159: 61.55 | AE159: 38.755001
A160: 2010-05-18 | B160: 6155.93 | C160: 43.790001 | D160: 84.699997 | E160: 37 | F160: 39.625 | G160: 40.835 | H160: 4.732 | I160: 44 | J160: 39.470001 | K160: 44.1639 | L160: 69.07 | M160: 74.35 | N160: 35.14 | O160: 8.915 | P160: 40.2 | Q160: 25.21 | R160: 82.040001 | S160: 47.045 | T160: 103.05 | U160: 59.2 | V160: 11.85 | W160: 51.9 | X160: 42.985 | Y160: 43.244999 | Z160: 22.04 | AA160: 4.7522 | AB160: 69.72 | AC160: 11.155 | AD160: 61.4 | AE160: 38.299999
A161: 2010-05-19 | B161: 5988.67 | C161: 42.369999 | D161: 83.18 | E161: 36.18 | F161: 39.51 | G161: 39.25 | H161: 4.635 | I161: 42.75 | J161: 38.5 | K161: 43.7852 | L161: 66.5 | M161: 71.82 | N161: 34.86 | O161: 8.928 | P161: 38.4 | Q161: 24.86 | R161: 81.459999 | S161: 46.195 | T161: 102.2 | U161: 58.52 | V161: 11.655 | W161: 51.34 | X161: 42 | Y161: 42.535 | Z161: 21.155 | AA161: 4.7874 | AB161: 65.98 | AC161: 10.925 | AD161: 61.09 | AE161: 37.290001
A162: 2010-05-20 | B162: 5867.88 | C162: 42 | D162: 83.349998 | E162: 36.025 | F162: 38.205 | G162: 40.01 | H162: 4.706 | I162: 41.89 | J162: 37.404999 | K162: 43.7898 | L162: 66.05 | M162: 71.1 | N162: 34.39 | O162: 8.818 | P162: 38.83 | Q162: 24.6 | R162: 81.080002 | S162: 45.51 | T162: 101.9 | U162: 57.6 | V162: 11.83 | W162: 49.8 | X162: 41.835 | Y162: 41.715 | Z162: 21.435 | AA162: 4.8002 | AB162: 65.39 | AC162: 10.8 | AD162: 58.9 | AE162: 36.450001
A163: 2010-05-21 | B163: 5829.25 | C163: 41.875 | D163: 83.199997 | E163: 36.14 | F163: 38.8 | G163: 39.89 | H163: 4.643 | I163: 42.745 | J163: 36.935001 | K163: 43.37 | L163: 68.16 | M163: 70.71 | N163: 34.49 | O163: 8.797 | P163: 38.485 | Q163: 24.245 | R163: 80.279999 | S163: 45.35 | T163: 101.7 | U163: 57.31 | V163: 11.785 | W163: 51 | X163: 42.16 | Y163: 42.09 | Z163: 21.265 | AA163: 4.6993 | AB163: 66.12 | AC163: 10.8 | AD163: 59.13 | AE163: 36.990002
A164: 2010-05-24 | B164: 5805.68 | C164: 40.705002 | D164: 81.550003 | E164: 35.29 | F164: 38.89 | G164: 38.595 | H164: 4.209 | I164: 39.785 | J164: 35.939999 | K164: 42.5123 | L164: 66.05 | M164: 68.67 | N164: 33.965 | O164: 8.787 | P164: 37.19 | Q164: 23.685 | R164: 79 | S164: 44.165 | T164: 99.74 | U164: 56.54 | V164: 11.33 | W164: 49.935 | X164: 40.875 | Y164: 41.919998 | Z164: 20.365 | AA164: 4.5574 | AB164: 63.96 | AC164: 10.335 | AD164: 57.65 | AE164: 35.830002
A165: 2010-05-25 | B165: 5670.04 | C165: 41.560001 | D165: 82.470001 | E165: 35.76 | F165: 39.33 | G165: 39.61 | H165: 4.415 | I165: 41.535 | J165: 36.68 | K165: 43.0735 | L165: 69.68 | M165: 70.84 | N165: 34.48 | O165: 8.928 | P165: 38.24 | Q165: 23.75 | R165: 78.110001 | S165: 44.575 | T165: 100.3 | U165: 56.8 | V165: 11.605 | W165: 49.895 | X165: 41.4 | Y165: 42.705002 | Z165: 21.185 | AA165: 4.5879 | AB165: 66 | AC165: 10.575 | AD165: 57.94 | AE165: 36.950001
A166: 2010-05-26 | B166: 5758.02 | C166: 43.305 | D166: 83.959999 | E166: 37.205 | F166: 40.13 | G166: 40.275 | H166: 4.595 | I166: 43.475 | J166: 37.450001 | K166: 45.049 | L166: 70.52 | M166: 73.45 | N166: 34.7 | O166: 9.113 | P166: 39.935 | Q166: 24.545 | R166: 81.279999 | S166: 45.69 | T166: 104.2 | U166: 58.35 | V166: 11.975 | W166: 50.76 | X166: 41.9 | Y166: 43.799999 | Z166: 21.995 | AA166: 4.68 | AB166: 68.85 | AC166: 10.895 | AD166: 58.4 | AE166: 37.904999
A167: 2010-05-27 | B167: 5937.14 | C167: 42.849998 | D167: 83.529999 | E167: 37.675 | F167: 40.655 | G167: 40.44 | H167: 4.574 | I167: 43.17 | J167: 37.084999 | K167: 44.2323 | L167: 70.18 | M167: 73.45 | N167: 34.69 | O167: 9.154 | P167: 40.3 | Q167: 24.835 | R167: 81.529999 | S167: 45.595 | T167: 103.35 | U167: 58.76 | V167: 12.09 | W167: 51.44 | X167: 42.735 | Y167: 44.09 | Z167: 22.025 | AA167: 4.652 | AB167: 69.31 | AC167: 10.83 | AD167: 59.2 | AE167: 37.904999
A168: 2010-05-28 | B168: 5946.18 | C168: 43.060001 | D168: 83.879997 | E168: 37.965 | F168: 41.115 | G168: 40.92 | H168: 4.661 | I168: 44.135 | J168: 36.605 | K168: 44.1593 | L168: 71.73 | M168: 74.02 | N168: 35.225 | O168: 9.115 | P168: 41 | Q168: 24.73 | R168: 81.379997 | S168: 45.5 | T168: 103.5 | U168: 58.34 | V168: 12.12 | W168: 51.4 | X168: 42.835 | Y168: 44.380001 | Z168: 21.945 | AA168: 4.6568 | AB168: 69.78 | AC168: 10.79 | AD168: 58.74 | AE168: 38.330002
A169: 2010-05-31 | B169: 5964.33 | C169: 43.035 | D169: 84.540001 | E169: 38.065 | F169: 41.5 | G169: 40.99 | H169: 4.465 | I169: 43.505 | J169: 36.955002 | K169: 43.9221 | L169: 72.36 | M169: 74.01 | N169: 35.84 | O169: 9.187 | P169: 40.99 | Q169: 24.915 | R169: 81.68 | S169: 45.825 | T169: 103.3 | U169: 58.62 | V169: 12.08 | W169: 51.61 | X169: 43.15 | Y169: 44.669998 | Z169: 21.87 | AA169: 4.5895 | AB169: 69 | AC169: 10.76 | AD169: 58.78 | AE169: 38.419998
A170: 2010-06-01 | B170: 5981.27 | C170: 42.810001 | D170: 84.360001 | E170: 38.455 | F170: 41.755 | G170: 41.05 | H170: 4.496 | I170: 43.6 | J170: 37.455002 | K170: 43.6712 | L170: 72.04 | M170: 73.88 | N170: 35.97 | O170: 9.278 | P170: 40.775 | Q170: 24.725 | R170: 81.139999 | S170: 46.37 | T170: 103.65 | U170: 58.57 | V170: 11.99 | W170: 52.2 | X170: 43.4 | Y170: 44.904999 | Z170: 21.75 | AA170: 4.5863 | AB170: 69.03 | AC170: 10.675 | AD170: 59.87 | AE170: 38.919998
A171: 2010-06-02 | B171: 5981.2 | C171: 43.540001 | D171: 85.690002 | E171: 39.22 | F171: 42.94 | G171: 41.915 | H171: 4.678 | I171: 44.495 | J171: 37.685001 | K171: 44.1867 | L171: 72.29 | M171: 74.86 | N171: 36.55 | O171: 9.302 | P171: 41.26 | Q171: 25.12 | R171: 81.5 | S171: 47.015 | T171: 103.55 | U171: 59.06 | V171: 12.14 | W171: 53.61 | X171: 43.765 | Y171: 44.939999 | Z171: 21.86 | AA171: 4.5662 | AB171: 71.01 | AC171: 11.06 | AD171: 60.5 | AE171: 39.150002
A172: 2010-06-03 | B172: 6054.63 | C172: 42.740002 | D172: 85.110001 | E172: 38.105 | F172: 42.96 | G172: 40.885 | H172: 4.561 | I172: 43.705 | J172: 37.040001 | K172: 42.9138 | L172: 70.03 | M172: 72.7 | N172: 36.245 | O172: 9.203 | P172: 40.38 | Q172: 24.53 | R172: 79.589996 | S172: 46.48 | T172: 101.5 | U172: 58.27 | V172: 11.895 | W172: 54.27 | X172: 42.5 | Y172: 44.700001 | Z172: 21.395 | AA172: 4.45 | AB172: 69.84 | AC172: 10.8 | AD172: 59.82 | AE172: 38.830002
A173: 2010-06-04 | B173: 5938.88 | C173: 42.805 | D173: 84.760002 | E173: 38.235 | F173: 43.025 | G173: 41.705 | H173: 4.502 | I173: 43.22 | J173: 36.900002 | K173: 42.3389 | L173: 69.95 | M173: 71.98 | N173: 36.15 | O173: 9.159 | P173: 40.08 | Q173: 24.32 | R173: 79.129997 | S173: 46.56 | T173: 100.85 | U173: 57.96 | V173: 11.755 | W173: 53.58 | X173: 42.215 | Y173: 44.935001 | Z173: 20.68 | AA173: 4.3899 | AB173: 68.01 | AC173: 10.75 | AD173: 59.33 | AE173: 38.544998
A174: 2010-06-07 | B174: 5904.95 | C174: 43.099998 | D174: 85.120003 | E174: 37.68 | F174: 43.12 | G174: 41.705 | H174: 4.423 | I174: 41.94 | J174: 36.799999 | K174: 42.1473 | L174: 69.18 | M174: 72.55 | N174: 35.925 | O174: 9.09 | P174: 40.24 | Q174: 23.445 | R174: 78.68 | S174: 46.515 | T174: 100.65 | U174: 56.26 | V174: 11.645 | W174: 53.31 | X174: 41.835 | Y174: 44.52 | Z174: 20.465 | AA174: 4.3819 | AB174: 67 | AC174: 10.515 | AD174: 59.3 | AE174: 38.900002
A175: 2010-06-08 | B175: 5868.55 | C175: 44.200001 | D175: 86.529999 | E175: 38.91 | F175: 44.2 | G175: 42.595 | H175: 4.57 | I175: 43.14 | J175: 37.555 | K175: 43.0507 | L175: 70.31 | M175: 74.7 | N175: 36.235 | O175: 9.228 | P175: 41.94 | Q175: 23.485 | R175: 80.220001 | S175: 47.23 | T175: 101.4 | U175: 56.45 | V175: 11.93 | W175: 53.53 | X175: 42.695 | Y175: 45.459999 | Z175: 20.94 | AA175: 4.4476 | AB175: 67.72 | AC175: 10.7 | AD175: 59.71 | AE175: 40.02
A176: 2010-06-09 | B176: 5984.75 | C176: 44.790001 | D176: 87.279999 | E176: 40.655 | F176: 44.56 | G176: 43.685 | H176: 4.68 | I176: 45.255 | J176: 38.035 | K176: 43.3198 | L176: 72.21 | M176: 76.15 | N176: 36.215 | O176: 9.385 | P176: 43.255 | Q176: 23.505 | R176: 80.970001 | S176: 47.505 | T176: 102.05 | U176: 56.6 | V176: 11.995 | W176: 54.85 | X176: 43.1 | Y176: 45.619999 | Z176: 21.29 | AA176: 4.5029 | AB176: 67.87 | AC176: 10.84 | AD176: 60.72 | AE176: 40.445
A177: 2010-06-10 | B177: 6056.59 | C177: 44.889999 | D177: 87.269997 | E177: 40.085 | F177: 44.065 | G177: 42.895 | H177: 4.813 | I177: 45.01 | J177: 39.330002 | K177: 43.8126 | L177: 72.18 | M177: 74.35 | N177: 36.3 | O177: 9.404 | P177: 42.735 | Q177: 23.4 | R177: 81.349998 | S177: 47.815 | T177: 102.75 | U177: 56.19 | V177: 12.135 | W177: 54.4 | X177: 43.245 | Y177: 45.66 | Z177: 21.055 | AA177: 4.6344 | AB177: 66.98 | AC177: 11.065 | AD177: 59.95 | AE177: 40.474998
A178: 2010-06-11 | B178: 6047.83 | C178: 45.75 | D178: 87.669998 | E178: 39.755 | F178: 43.63 | G178: 43.23 | H178: 4.94 | I178: 45.4 | J178: 39.43 | K178: 44.3008 | L178: 72.11 | M178: 77.35 | N178: 36.57 | O178: 9.48 | P178: 42.52 | Q178: 23.87 | R178: 82.760002 | S178: 47.975 | T178: 103.4 | U178: 56.89 | V178: 12.31 | W178: 54.44 | X178: 44 | Y178: 45.965 | Z178: 21.555 | AA178: 4.6993 | AB178: 67.57 | AC178: 11.245 | AD178: 60.19 | AE178: 40.490002
A179: 2010-06-14 | B179: 6125 | C179: 45.900002 | D179: 87.050003 | E179: 39.845 | F179: 44.32 | G179: 43.105 | H179: 5.107 | I179: 45.31 | J179: 39.305 | K179: 45.2041 | L179: 72.27 | M179: 78.13 | N179: 36.695 | O179: 9.611 | P179: 42.33 | Q179: 24.13 | R179: 84.349998 | S179: 48.08 | T179: 104.6 | U179: 57.29 | V179: 12.56 | W179: 55.27 | X179: 44.53 | Y179: 45.849998 | Z179: 21.655 | AA179: 4.7818 | AB179: 67.41 | AC179: 11.48 | AD179: 61.95 | AE179: 40.57
A180: 2010-06-15 | B180: 6175.05 | C180: 46.455002 | D180: 87.699997 | E180: 39.03 | F180: 44.39 | G180: 42.655 | H180: 5.095 | I180: 45 | J180: 39.290001 | K180: 45.5554 | L180: 72.44 | M180: 78.22 | N180: 36.93 | O180: 9.61 | P180: 41.14 | Q180: 24.425 | R180: 85 | S180: 48.28 | T180: 105.75 | U180: 57.22 | V180: 12.56 | W180: 55.21 | X180: 44.185 | Y180: 46.02 | Z180: 21.87 | AA180: 4.8026 | AB180: 68.36 | AC180: 11.6 | AD180: 62 | AE180: 40.75
A181: 2010-06-16 | B181: 6190.91 | C181: 46.560001 | D181: 87.230003 | E181: 39.7 | F181: 44.6 | G181: 42.68 | H181: 5.217 | I181: 45.5 | J181: 40.09 | K181: 45.9341 | L181: 75.2 | M181: 77.47 | N181: 37.44 | O181: 9.704 | P181: 42.315 | Q181: 24.31 | R181: 85.120003 | S181: 48.665 | T181: 106 | U181: 56.9 | V181: 12.525 | W181: 55.96 | X181: 44.67 | Y181: 46.415001 | Z181: 22 | AA181: 4.8155 | AB181: 69.74 | AC181: 11.57 | AD181: 61.85 | AE181: 41.435001
A182: 2010-06-17 | B182: 6223.54 | C182: 46.215 | D182: 87.57 | E182: 40.705 | F182: 44.165 | G182: 42.485 | H182: 5.244 | I182: 45.1 | J182: 39.849998 | K182: 46.0162 | L182: 75.75 | M182: 77.26 | N182: 37.58 | O182: 9.653 | P182: 43.12 | Q182: 24.09 | R182: 84.370003 | S182: 48.33 | T182: 104.5 | U182: 57.1 | V182: 12.535 | W182: 56 | X182: 44.5 | Y182: 46.02 | Z182: 21.995 | AA182: 4.91 | AB182: 70.41 | AC182: 11.73 | AD182: 61.99 | AE182: 41.529999
A183: 2010-06-18 | B183: 6216.98 | C183: 46.895 | D183: 88.75 | E183: 41.8 | F183: 43.965 | G183: 42.465 | H183: 5.312 | I183: 46.2 | J183: 40.549999 | K183: 45.9341 | L183: 77.73 | M183: 79.23 | N183: 37.575 | O183: 9.656 | P183: 44.5 | Q183: 24.39 | R183: 85.150002 | S183: 48.65 | T183: 106.15 | U183: 57.8 | V183: 12.73 | W183: 55.27 | X183: 44.6 | Y183: 46.02 | Z183: 22.6 | AA183: 4.9413 | AB183: 71.33 | AC183: 11.73 | AD183: 61.47 | AE183: 42.119999
A184: 2010-06-21 | B184: 6292.97 | C184: 46.740002 | D184: 89.629997 | E184: 41.515 | F184: 44.15 | G184: 42.775 | H184: 5.258 | I184: 44.75 | J184: 40.744999 | K184: 45.3455 | L184: 76.65 | M184: 78.51 | N184: 37.68 | O184: 9.709 | P184: 44.47 | Q184: 24.2 | R184: 84.949997 | S184: 48.535 | T184: 105.9 | U184: 57.15 | V184: 12.555 | W184: 55.94 | X184: 44.17 | Y184: 46.34 | Z184: 22.395 | AA184: 4.9301 | AB184: 71.36 | AC184: 11.76 | AD184: 61.58 | AE184: 42.25
A185: 2010-06-22 | B185: 6269.04 | C185: 46.830002 | D185: 88.529999 | E185: 41.485 | F185: 43.58 | G185: 42.67 | H185: 5.198 | I185: 42.9 | J185: 40.945 | K185: 44.5106 | L185: 76.81 | M185: 77.31 | N185: 37.475 | O185: 9.689 | P185: 43.95 | Q185: 23.77 | R185: 83.550003 | S185: 47.925 | T185: 105 | U185: 56.36 | V185: 12.53 | W185: 55.31 | X185: 43.845 | Y185: 45.895 | Z185: 22 | AA185: 4.805 | AB185: 70.92 | AC185: 12.03 | AD185: 61.91 | AE185: 41.924999
A186: 2010-06-23 | B186: 6204.52 | C186: 46.259998 | D186: 88.290001 | E186: 41.36 | F186: 43.885 | G186: 40.985 | H186: 4.962 | I186: 41.99 | J186: 40.365002 | K186: 43.5069 | L186: 77.23 | M186: 75.2 | N186: 37.17 | O186: 9.58 | P186: 43.425 | Q186: 23.265 | R186: 82.440002 | S186: 47.665 | T186: 104.45 | U186: 55.44 | V186: 12.55 | W186: 55.44 | X186: 43.45 | Y186: 44.970001 | Z186: 21.655 | AA186: 4.6752 | AB186: 69.45 | AC186: 11.785 | AD186: 61.87 | AE186: 40.619999
A187: 2010-06-24 | B187: 6115.48 | C187: 46.16 | D187: 88.25 | E187: 40.36 | F187: 44.1 | G187: 41.375 | H187: 4.952 | I187: 41.02 | J187: 39.66 | K187: 42.9777 | L187: 75.07 | M187: 75.12 | N187: 37.13 | O187: 9.74 | P187: 42.015 | Q187: 22.91 | R187: 82.010002 | S187: 47.185 | T187: 104.45 | U187: 55.15 | V187: 12.42 | W187: 54.69 | X187: 42.75 | Y187: 45.605 | Z187: 21.3 | AA187: 4.7666 | AB187: 67.56 | AC187: 11.78 | AD187: 61.78 | AE187: 40.255001
A188: 2010-06-25 | B188: 6070.6 | C188: 47.544998 | D188: 90.160004 | E188: 41.26 | F188: 44.71 | G188: 41.125 | H188: 5.092 | I188: 41.535 | J188: 39.805 | K188: 43.8035 | L188: 75.94 | M188: 76.5 | N188: 37.35 | O188: 9.897 | P188: 43.24 | Q188: 22.975 | R188: 83.300003 | S188: 47.84 | T188: 104.9 | U188: 55.08 | V188: 12.47 | W188: 55.24 | X188: 43.34 | Y188: 46.009998 | Z188: 21.48 | AA188: 4.7962 | AB188: 69.5 | AC188: 11.965 | AD188: 61.63 | AE188: 41.014999
A189: 2010-06-28 | B189: 6157.22 | C189: 45.290001 | D189: 87.309998 | E189: 39.9 | F189: 44.285 | G189: 39.85 | H189: 4.831 | I189: 39.49 | J189: 38.459999 | K189: 41.9739 | L189: 73.43 | M189: 73.55 | N189: 36.8 | O189: 9.695 | P189: 41.28 | Q189: 22.24 | R189: 81.379997 | S189: 45.75 | T189: 103.6 | U189: 53.32 | V189: 12.06 | W189: 54.13 | X189: 42.205 | Y189: 45.035 | Z189: 20.63 | AA189: 4.656 | AB189: 66.59 | AC189: 11.37 | AD189: 60.36 | AE189: 39.715
A190: 2010-06-29 | B190: 5952.03 | C190: 45.110001 | D190: 86.510002 | E190: 40.065 | F190: 44.325 | G190: 39.875 | H190: 4.818 | I190: 39.17 | J190: 37.880001 | K190: 42.6127 | L190: 72.38 | M190: 74.02 | N190: 36.68 | O190: 9.703 | P190: 41.92 | Q190: 22.18 | R190: 81.849998 | S190: 46 | T190: 103.35 | U190: 53.72 | V190: 12.01 | W190: 54.43 | X190: 41.92 | Y190: 45.165001 | Z190: 20.35 | AA190: 4.6279 | AB190: 67.95 | AC190: 11.39 | AD190: 59.99 | AE190: 40.099998
A191: 2010-06-30 | B191: 5965.52 | C191: 43.900002 | D191: 84.190002 | E191: 38.2 | F191: 43.85 | G191: 38.675 | H191: 4.749 | I191: 37.23 | J191: 37.134998 | K191: 41.0615 | L191: 69.97 | M191: 72.7 | N191: 36.44 | O191: 9.72 | P191: 40.42 | Q191: 22.04 | R191: 80.07 | S191: 45.575 | T191: 102.95 | U191: 53.25 | V191: 11.95 | W191: 53.09 | X191: 41.3 | Y191: 44.705002 | Z191: 19.815 | AA191: 4.6616 | AB191: 67.13 | AC191: 11.255 | AD191: 58.7 | AE191: 39.16
A192: 2010-07-01 | B192: 5857.43 | C192: 43.84 | D192: 84.940002 | E192: 37.885 | F192: 42.95 | G192: 38.775 | H192: 4.73 | I192: 37.83 | J192: 36.98 | K192: 41.1117 | L192: 70.07 | M192: 71.72 | N192: 35.86 | O192: 9.534 | P192: 40.28 | Q192: 22.14 | R192: 80.440002 | S192: 44.375 | T192: 102.9 | U192: 53.35 | V192: 12.16 | W192: 52.66 | X192: 41.345 | Y192: 44.195 | Z192: 20.19 | AA192: 4.7433 | AB192: 67.34 | AC192: 11.37 | AD192: 58.37 | AE192: 38.75
A193: 2010-07-02 | B193: 5834.15 | C193: 43.345001 | D193: 84.089996 | E193: 38.11 | F193: 42.425 | G193: 39.065 | H193: 4.757 | I193: 37.48 | J193: 36.945 | K193: 40.9474 | L193: 70 | M193: 71.65 | N193: 35.7 | O193: 9.645 | P193: 39.95 | Q193: 22.09 | R193: 79.639999 | S193: 44.32 | T193: 102.7 | U193: 53.35 | V193: 12.16 | W193: 52.23 | X193: 41.92 | Y193: 44.040001 | Z193: 20.22 | AA193: 4.7033 | AB193: 66.84 | AC193: 11.29 | AD193: 58.11 | AE193: 38.945
A194: 2010-07-05 | B194: 5816.2 | C194: 44.580002 | D194: 85.529999 | E194: 39 | F194: 42.84 | G194: 39.655 | H194: 5 | I194: 38.94 | J194: 37.814999 | K194: 41.7458 | L194: 71.38 | M194: 72.13 | N194: 36.65 | O194: 9.772 | P194: 41.21 | Q194: 22.53 | R194: 81.529999 | S194: 45.115 | T194: 104.35 | U194: 54.38 | V194: 12.58 | W194: 53 | X194: 43.05 | Y194: 44.625 | Z194: 21.16 | AA194: 4.8018 | AB194: 69.89 | AC194: 11.585 | AD194: 59.39 | AE194: 39.290001
A195: 2010-07-06 | B195: 5940.98 | C195: 44.5 | D195: 85.110001 | E195: 39.75 | F195: 42.53 | G195: 40.025 | H195: 4.94 | I195: 37.725 | J195: 38.130001 | K195: 43.3107 | L195: 71.24 | M195: 72.7 | N195: 36.97 | O195: 9.945 | P195: 41.945 | Q195: 22.64 | R195: 82.120003 | S195: 45.415 | T195: 105.3 | U195: 54.8 | V195: 12.77 | W195: 52.56 | X195: 43.89 | Y195: 44.650002 | Z195: 20.945 | AA195: 4.9781 | AB195: 71.56 | AC195: 11.66 | AD195: 59.84 | AE195: 39.384998
A196: 2010-07-07 | B196: 5992.86 | C196: 45.009998 | D196: 85.900002 | E196: 38.91 | F196: 42.28 | G196: 39.855 | H196: 5.007 | I196: 38.355 | J196: 38.259998 | K196: 44.7251 | L196: 71.25 | M196: 73.69 | N196: 36.8 | O196: 9.971 | P196: 41.58 | Q196: 22.84 | R196: 83.169998 | S196: 46.005 | T196: 105.8 | U196: 55.08 | V196: 12.925 | W196: 53.21 | X196: 43.435 | Y196: 44.77 | Z196: 21.385 | AA196: 5.0406 | AB196: 72.18 | AC196: 11.96 | AD196: 59.67 | AE196: 38.400002
A197: 2010-07-08 | B197: 6035.66 | C197: 45.744999 | D197: 87.120003 | E197: 39.15 | F197: 42.225 | G197: 40.63 | H197: 5.083 | I197: 38.995 | J197: 38.764999 | K197: 44.9395 | L197: 72.12 | M197: 73.22 | N197: 37.22 | O197: 9.973 | P197: 41.635 | Q197: 22.735 | R197: 83.910004 | S197: 46.4 | T197: 106.5 | U197: 54.92 | V197: 12.825 | W197: 53 | X197: 43.635 | Y197: 45.334999 | Z197: 21.59 | AA197: 5.0439 | AB197: 72.47 | AC197: 12.105 | AD197: 59.9 | AE197: 39.029999
A198: 2010-07-09 | B198: 6065.24 | C198: 46.029999 | D198: 87.330002 | E198: 38.905 | F198: 42.615 | G198: 40.505 | H198: 5.038 | I198: 38.605 | J198: 38.365002 | K198: 44.7114 | L198: 73.22 | M198: 74.15 | N198: 37.275 | O198: 9.886 | P198: 41.565 | Q198: 22.93 | R198: 84.550003 | S198: 46.41 | T198: 105.8 | U198: 54.95 | V198: 12.795 | W198: 53 | X198: 43.58 | Y198: 45.235001 | Z198: 21.51 | AA198: 5.0455 | AB198: 72.34 | AC198: 12.12 | AD198: 61.01 | AE198: 38.785
A199: 2010-07-12 | B199: 6077.19 | C199: 46.5 | D199: 89.169998 | E199: 42.13 | F199: 42.7 | G199: 41.185 | H199: 5.18 | I199: 39.965 | J199: 38.34 | K199: 45.9706 | L199: 77 | M199: 75.84 | N199: 37.46 | O199: 10.025 | P199: 43.805 | Q199: 23.06 | R199: 85.589996 | S199: 46.935 | T199: 106.9 | U199: 55.39 | V199: 12.95 | W199: 53.07 | X199: 44.16 | Y199: 45.685001 | Z199: 22.255 | AA199: 5.1504 | AB199: 74.95 | AC199: 12.335 | AD199: 62.14 | AE199: 38.32
A200: 2010-07-13 | B200: 6191.13 | C200: 46.360001 | D200: 88.809998 | E200: 41.545 | F200: 43.06 | G200: 40.92 | H200: 5.306 | I200: 39.315 | J200: 38.279999 | K200: 46.0253 | L200: 77.3 | M200: 76.27 | N200: 37.86 | O200: 10.08 | P200: 43.545 | Q200: 23.07 | R200: 87.150002 | S200: 47.185 | T200: 107.75 | U200: 55.06 | V200: 13.085 | W200: 53.26 | X200: 44.3 | Y200: 45.895 | Z200: 22.18 | AA200: 5.2386 | AB200: 74.4 | AC200: 12.415 | AD200: 63.9 | AE200: 38.93
... 313 more rows

Sheet Renditen
A1: ='DAX 30 Werte'!A1 -> Datum | B1: ='DAX 30 Werte'!B1 -> DAX | C1: ='DAX 30 Werte'!C1 -> BASF SE | D1: ='DAX 30 Werte'!D1 -> Linde AG | E1: ='DAX 30 Werte'!E1 -> BMW AG | F1: ='DAX 30 Werte'!F1 -> Fresenius Medical Care AG & Co Kgaa | G1: ='DAX 30 Werte'!G1 -> Adidas AG | H1: ='DAX 30 Werte'!H1 -> Infineon Technologies AG | I1: ='DAX 30 Werte'!I1 -> Heidelbergcement AG | J1: ='DAX 30 Werte'!J1 -> K S AG | K1: ='DAX 30 Werte'!K1 -> Deutsche Bank AG | L1: ='DAX 30 Werte'!L1 -> Volkswagen AG | M1: ='DAX 30 Werte'!M1 -> Siemens AG | N1: ='DAX 30 Werte'!N1 -> SAP AG | O1: ='DAX 30 Werte'!O1 -> Deutsche Telekom AG | P1: ='DAX 30 Werte'!P1 -> Daimler AG | Q1: ='DAX 30 Werte'!Q1 -> EON AG | R1: ='DAX 30 Werte'!R1 -> Allianz Se | S1: ='DAX 30 Werte'!S1 -> Bayer AG | T1: ='DAX 30 Werte'!T1 -> Muenchener Rueckversicherungs Gesellschaft AG in Muenchen | U1: ='DAX 30 Werte'!U1 -> RWE AG | V1: ='DAX 30 Werte'!V1 -> Deutsche Post AG | W1: ='DAX 30 Werte'!W1 -> Fresenius SE & Co KGaA | X1: ='DAX 30 Werte'!X1 -> METRO AG | Y1: ='DAX 30 Werte'!Y1 -> Beiersdorf AG | Z1: ='DAX 30 Werte'!Z1 -> ThyssenKrupp AG | AA1: ='DAX 30 Werte'!AA1 -> COMMERZBANK AG | AB1: ='DAX 30 Werte'!AB1 -> MAN SE | AC1: ='DAX 30 Werte'!AC1 -> Deutsche Lufthansa AG | AD1: ='DAX 30 Werte'!AD1 -> Merck KGaA | AE1: ='DAX 30 Werte'!AE1 -> Henkel AG & Co KGaA
A2: 2009-10-02 | B2: =('DAX 30 Werte'!B3-'DAX 30 Werte'!B2)/'DAX 30 Werte'!B2 -> -0.01559982357 | C2: =('DAX 30 Werte'!C3-'DAX 30 Werte'!C2)/'DAX 30 Werte'!C2 -> -0.01670020155 | D2: =('DAX 30 Werte'!D3-'DAX 30 Werte'!D2)/'DAX 30 Werte'!D2 -> -0.009928213317 | E2: =('DAX 30 Werte'!E3-'DAX 30 Werte'!E2)/'DAX 30 Werte'!E2 -> -0.0178957112 | F2: =('DAX 30 Werte'!F3-'DAX 30 Werte'!F2)/'DAX 30 Werte'!F2 -> -0.008904719501 | G2: =('DAX 30 Werte'!G3-'DAX 30 Werte'!G2)/'DAX 30 Werte'!G2 -> -0.01661971831 | H2: =('DAX 30 Werte'!H3-'DAX 30 Werte'!H2)/'DAX 30 Werte'!H2 -> -0.03457446809 | I2: =('DAX 30 Werte'!I3-'DAX 30 Werte'!I2)/'DAX 30 Werte'!I2 -> -0.00701754386 | J2: =('DAX 30 Werte'!J3-'DAX 30 Werte'!J2)/'DAX 30 Werte'!J2 -> -0.004935620189 | K2: =('DAX 30 Werte'!K3-'DAX 30 Werte'!K2)/'DAX 30 Werte'!K2 -> -0.0231367771 | L2: =('DAX 30 Werte'!L3-'DAX 30 Werte'!L2)/'DAX 30 Werte'!L2 -> -0.01854927835 | M2: =('DAX 30 Werte'!M3-'DAX 30 Werte'!M2)/'DAX 30 Werte'!M2 -> -0.02240987334 | N2: =('DAX 30 Werte'!N3-'DAX 30 Werte'!N2)/'DAX 30 Werte'!N2 -> -0.00854444611 | O2: =('DAX 30 Werte'!O3-'DAX 30 Werte'!O2)/'DAX 30 Werte'!O2 -> -0.006546644845 | P2: =('DAX 30 Werte'!P3-'DAX 30 Werte'!P2)/'DAX 30 Werte'!P2 -> -0.01841317365 | Q2: =('DAX 30 Werte'!Q3-'DAX 30 Werte'!Q2)/'DAX 30 Werte'!Q2 -> -0.01345132743 | R2: =('DAX 30 Werte'!R3-'DAX 30 Werte'!R2)/'DAX 30 Werte'!R2 -> -0.02962085238 | S2: =('DAX 30 Werte'!S3-'DAX 30 Werte'!S2)/'DAX 30 Werte'!S2 -> -0.01194353963 | T2: =('DAX 30 Werte'!T3-'DAX 30 Werte'!T2)/'DAX 30 Werte'!T2 -> 0.004731574158 | U2: =('DAX 30 Werte'!U3-'DAX 30 Werte'!U2)/'DAX 30 Werte'!U2 -> -0.007182761373 | V2: =('DAX 30 Werte'!V3-'DAX 30 Werte'!V2)/'DAX 30 Werte'!V2 -> -0.0237711523 | W2: =('DAX 30 Werte'!W3-'DAX 30 Werte'!W2)/'DAX 30 Werte'!W2 -> 0.003881755748 | X2: =('DAX 30 Werte'!X3-'DAX 30 Werte'!X2)/'DAX 30 Werte'!X2 -> -0.030029232 | Y2: =('DAX 30 Werte'!Y3-'DAX 30 Werte'!Y2)/'DAX 30 Werte'!Y2 -> -0.0103015078 | Z2: =('DAX 30 Werte'!Z3-'DAX 30 Werte'!Z2)/'DAX 30 Werte'!Z2 -> -0.007488986784 | AA2: =('DAX 30 Werte'!AA3-'DAX 30 Werte'!AA2)/'DAX 30 Werte'!AA2 -> -0.08998289581 | AB2: =('DAX 30 Werte'!AB3-'DAX 30 Werte'!AB2)/'DAX 30 Werte'!AB2 -> -0.01214574899 | AC2: =('DAX 30 Werte'!AC3-'DAX 30 Werte'!AC2)/'DAX 30 Werte'!AC2 -> -0.01788756388 | AD2: =('DAX 30 Werte'!AD3-'DAX 30 Werte'!AD2)/'DAX 30 Werte'!AD2 -> -0.01069518717 | AE2: =('DAX 30 Werte'!AD3-'DAX 30 Werte'!AD2)/'DAX 30 Werte'!AD2 -> -0.01069518717
A3: 2009-10-05 | B3: =('DAX 30 Werte'!B4-'DAX 30 Werte'!B3)/'DAX 30 Werte'!B3 -> 0.00748916403 | C3: =('DAX 30 Werte'!C4-'DAX 30 Werte'!C3)/'DAX 30 Werte'!C3 -> 0.01581250273 | D3: =('DAX 30 Werte'!D4-'DAX 30 Werte'!D3)/'DAX 30 Werte'!D3 -> 0.004038899553 | E3: =('DAX 30 Werte'!E4-'DAX 30 Werte'!E3)/'DAX 30 Werte'!E3 -> -0.001727929626 | F3: =('DAX 30 Werte'!F4-'DAX 30 Werte'!F3)/'DAX 30 Werte'!F3 -> 0.01257861635 | G3: =('DAX 30 Werte'!G4-'DAX 30 Werte'!G3)/'DAX 30 Werte'!G3 -> 0.003723861358 | H3: =('DAX 30 Werte'!H4-'DAX 30 Werte'!H3)/'DAX 30 Werte'!H3 -> 0.0261707989 | I3: =('DAX 30 Werte'!I4-'DAX 30 Werte'!I3)/'DAX 30 Werte'!I3 -> -0.002591283863 | J3: =('DAX 30 Werte'!J4-'DAX 30 Werte'!J3)/'DAX 30 Werte'!J3 -> 0.003857843699 | K3: =('DAX 30 Werte'!K4-'DAX 30 Werte'!K3)/'DAX 30 Werte'!K3 -> 0.01696011404 | L3: =('DAX 30 Werte'!L4-'DAX 30 Werte'!L3)/'DAX 30 Werte'!L3 -> 0.01822963023 | M3: =('DAX 30 Werte'!M4-'DAX 30 Werte'!M3)/'DAX 30 Werte'!M3 -> 0.005813953488 | N3: =('DAX 30 Werte'!N4-'DAX 30 Werte'!N3)/'DAX 30 Werte'!N3 -> 0.0004535833081 | O3: =('DAX 30 Werte'!O4-'DAX 30 Werte'!O3)/'DAX 30 Werte'!O3 -> 0.01647446458 | P3: =('DAX 30 Werte'!P4-'DAX 30 Werte'!P3)/'DAX 30 Werte'!P3 -> -0.00411773677 | Q3: =('DAX 30 Werte'!Q4-'DAX 30 Werte'!Q3)/'DAX 30 Werte'!Q3 -> -0.002511661285 | R3: =('DAX 30 Werte'!R4-'DAX 30 Werte'!R3)/'DAX 30 Werte'!R3 -> 0.009523784871 | S3: =('DAX 30 Werte'!S4-'DAX 30 Werte'!S3)/'DAX 30 Werte'!S3 -> 0.01802197802 | T3: =('DAX 30 Werte'!T4-'DAX 30 Werte'!T3)/'DAX 30 Werte'!T3 -> -0.0009056330375 | U3: =('DAX 30 Werte'!U4-'DAX 30 Werte'!U3)/'DAX 30 Werte'!U3 -> 0.004340836013 | V3: =('DAX 30 Werte'!V4-'DAX 30 Werte'!V3)/'DAX 30 Werte'!V3 -> 0.003301692117 | W3: =('DAX 30 Werte'!W4-'DAX 30 Werte'!W3)/'DAX 30 Werte'!W3 -> -0.01130279595 | X3: =('DAX 30 Werte'!X4-'DAX 30 Werte'!X3)/'DAX 30 Werte'!X3 -> 0.02054794521 | Y3: =('DAX 30 Werte'!Y4-'DAX 30 Werte'!Y3)/'DAX 30 Werte'!Y3 -> 0.001269357737 | Z3: =('DAX 30 Werte'!Z4-'DAX 30 Werte'!Z3)/'DAX 30 Werte'!Z3 -> -0.002219263205 | AA3: =('DAX 30 Werte'!AA4-'DAX 30 Werte'!AA3)/'DAX 30 Werte'!AA3 -> 0.01964533791 | AB3: =('DAX 30 Werte'!AB4-'DAX 30 Werte'!AB3)/'DAX 30 Werte'!AB3 -> 0.021609538 | AC3: =('DAX 30 Werte'!AC4-'DAX 30 Werte'!AC3)/'DAX 30 Werte'!AC3 -> 0.004336513443 | AD3: =('DAX 30 Werte'!AD4-'DAX 30 Werte'!AD3)/'DAX 30 Werte'!AD3 -> 0.003453453453 | AE3: =('DAX 30 Werte'!AD4-'DAX 30 Werte'!AD3)/'DAX 30 Werte'!AD3 -> 0.003453453453
A4: 2009-10-06 | B4: =('DAX 30 Werte'!B5-'DAX 30 Werte'!B4)/'DAX 30 Werte'!B4 -> 0.02700926691 | C4: =('DAX 30 Werte'!C5-'DAX 30 Werte'!C4)/'DAX 30 Werte'!C4 -> 0.04122225544 | D4: =('DAX 30 Werte'!D5-'DAX 30 Werte'!D4)/'DAX 30 Werte'!D4 -> 0.03731451171 | E4: =('DAX 30 Werte'!E5-'DAX 30 Werte'!E4)/'DAX 30 Werte'!E4 -> 0.01951219512 | F4: =('DAX 30 Werte'!F5-'DAX 30 Werte'!F4)/'DAX 30 Werte'!F4 -> -0.004436557232 | G4: =('DAX 30 Werte'!G5-'DAX 30 Werte'!G4)/'DAX 30 Werte'!G4 -> 0.02739726027 | H4: =('DAX 30 Werte'!H5-'DAX 30 Werte'!H4)/'DAX 30 Werte'!H4 -> 0.0255033557 | I4: =('DAX 30 Werte'!I5-'DAX 30 Werte'!I4)/'DAX 30 Werte'!I4 -> 0.02739726027 | J4: =('DAX 30 Werte'!J5-'DAX 30 Werte'!J4)/'DAX 30 Werte'!J4 -> 0.03239094436 | K4: =('DAX 30 Werte'!K5-'DAX 30 Werte'!K4)/'DAX 30 Werte'!K4 -> 0.04312727933 | L4: =('DAX 30 Werte'!L5-'DAX 30 Werte'!L4)/'DAX 30 Werte'!L4 -> 0.04331322892 | M4: =('DAX 30 Werte'!M5-'DAX 30 Werte'!M4)/'DAX 30 Werte'!M4 -> 0.04211395541 | N4: =('DAX 30 Werte'!N5-'DAX 30 Werte'!N4)/'DAX 30 Werte'!N4 -> 0.0009067553272 | O4: =('DAX 30 Werte'!O5-'DAX 30 Werte'!O4)/'DAX 30 Werte'!O4 -> 0.01782820097 | P4: =('DAX 30 Werte'!P5-'DAX 30 Werte'!P4)/'DAX 30 Werte'!P4 -> 0.0336906585 | Q4: =('DAX 30 Werte'!Q5-'DAX 30 Werte'!Q4)/'DAX 30 Werte'!Q4 -> 0.02158273381 | R4: =('DAX 30 Werte'!R5-'DAX 30 Werte'!R4)/'DAX 30 Werte'!R4 -> 0.03846155056 | S4: =('DAX 30 Werte'!S5-'DAX 30 Werte'!S4)/'DAX 30 Werte'!S4 -> 0.02590673575 | T4: =('DAX 30 Werte'!T5-'DAX 30 Werte'!T4)/'DAX 30 Werte'!T4 -> 0.01024292966 | U4: =('DAX 30 Werte'!U5-'DAX 30 Werte'!U4)/'DAX 30 Werte'!U4 -> 0.0134464543 | V4: =('DAX 30 Werte'!V5-'DAX 30 Werte'!V4)/'DAX 30 Werte'!V4 -> 0.03496503497 | W4: =('DAX 30 Werte'!W5-'DAX 30 Werte'!W4)/'DAX 30 Werte'!W4 -> 0.007220216606 | X4: =('DAX 30 Werte'!X5-'DAX 30 Werte'!X4)/'DAX 30 Werte'!X4 -> 0.03060402685 | Y4: =('DAX 30 Werte'!Y5-'DAX 30 Werte'!Y4)/'DAX 30 Werte'!Y4 -> 0.02434084747 | Z4: =('DAX 30 Werte'!Z5-'DAX 30 Werte'!Z4)/'DAX 30 Werte'!Z4 -> 0.03247330961 | AA4: =('DAX 30 Werte'!AA5-'DAX 30 Werte'!AA4)/'DAX 30 Werte'!AA4 -> 0.05972398096 | AB4: =('DAX 30 Werte'!AB5-'DAX 30 Werte'!AB4)/'DAX 30 Werte'!AB4 -> 0.0144055434 | AC4: =('DAX 30 Werte'!AC5-'DAX 30 Werte'!AC4)/'DAX 30 Werte'!AC4 -> 0.01554404145 | AD4: =('DAX 30 Werte'!AD5-'DAX 30 Werte'!AD4)/'DAX 30 Werte'!AD4 -> 0.01391590603 | AE4: =('DAX 30 Werte'!AD5-'DAX 30 Werte'!AD4)/'DAX 30 Werte'!AD4 -> 0.01391590603
A5: 2009-10-07 | B5: =('DAX 30 Werte'!B6-'DAX 30 Werte'!B5)/'DAX 30 Werte'!B5 -> -0.002985343712 | C5: =('DAX 30 Werte'!C6-'DAX 30 Werte'!C5)/'DAX 30 Werte'!C5 -> 0.003322342285 | D5: =('DAX 30 Werte'!D6-'DAX 30 Werte'!D5)/'DAX 30 Werte'!D5 -> -0.005750214038 | E5: =('DAX 30 Werte'!E6-'DAX 30 Werte'!E5)/'DAX 30 Werte'!E5 -> -0.007562895509 | F5: =('DAX 30 Werte'!F6-'DAX 30 Werte'!F5)/'DAX 30 Werte'!F5 -> 0.005050505051 | G5: =('DAX 30 Werte'!G6-'DAX 30 Werte'!G5)/'DAX 30 Werte'!G5 -> -0.02416666667 | H5: =('DAX 30 Werte'!H6-'DAX 30 Werte'!H5)/'DAX 30 Werte'!H5 -> -0.007853403141 | I5: =('DAX 30 Werte'!I6-'DAX 30 Werte'!I5)/'DAX 30 Werte'!I5 -> 0.00183908046 | J5: =('DAX 30 Werte'!J6-'DAX 30 Werte'!J5)/'DAX 30 Werte'!J5 -> 0.01621908801 | K5: =('DAX 30 Werte'!K6-'DAX 30 Werte'!K5)/'DAX 30 Werte'!K5 -> -0.005866324931 | L5: =('DAX 30 Werte'!L6-'DAX 30 Werte'!L5)/'DAX 30 Werte'!L5 -> 0.01741261955 | M5: =('DAX 30 Werte'!M6-'DAX 30 Werte'!M5)/'DAX 30 Werte'!M5 -> -0.003169572108 | N5: =('DAX 30 Werte'!N6-'DAX 30 Werte'!N5)/'DAX 30 Werte'!N5 -> 0.008455382757 | O5: =('DAX 30 Werte'!O6-'DAX 30 Werte'!O5)/'DAX 30 Werte'!O5 -> -0.004777070064 | P5: =('DAX 30 Werte'!P6-'DAX 30 Werte'!P5)/'DAX 30 Werte'!P5 -> -0.006666666667 | Q5: =('DAX 30 Werte'!Q6-'DAX 30 Werte'!Q5)/'DAX 30 Werte'!Q5 -> -0.01302816901 | R5: =('DAX 30 Werte'!R6-'DAX 30 Werte'!R5)/'DAX 30 Werte'!R5 -> 0.002795213105 | S5: =('DAX 30 Werte'!S6-'DAX 30 Werte'!S5)/'DAX 30 Werte'!S5 -> -0.001893939394 | T5: =('DAX 30 Werte'!T6-'DAX 30 Werte'!T5)/'DAX 30 Werte'!T5 -> -0.004486316734 | U5: =('DAX 30 Werte'!U6-'DAX 30 Werte'!U5)/'DAX 30 Werte'!U5 -> -0.00126362344 | V5: =('DAX 30 Werte'!V6-'DAX 30 Werte'!V5)/'DAX 30 Werte'!V5 -> 0 | W5: =('DAX 30 Werte'!W6-'DAX 30 Werte'!W5)/'DAX 30 Werte'!W5 -> -0.003882915173 | X5: =('DAX 30 Werte'!X6-'DAX 30 Werte'!X5)/'DAX 30 Werte'!X5 -> -0.03230007815 | Y5: =('DAX 30 Werte'!Y6-'DAX 30 Werte'!Y5)/'DAX 30 Werte'!Y5 -> 0.003960371091 | Z5: =('DAX 30 Werte'!Z6-'DAX 30 Werte'!Z5)/'DAX 30 Werte'!Z5 -> -0.007755277897 | AA5: =('DAX 30 Werte'!AA6-'DAX 30 Werte'!AA5)/'DAX 30 Werte'!AA5 -> 0.01697094369 | AB5: =('DAX 30 Werte'!AB6-'DAX 30 Werte'!AB5)/'DAX 30 Werte'!AB5 -> 0.01078554737 | AC5: =('DAX 30 Werte'!AC6-'DAX 30 Werte'!AC5)/'DAX 30 Werte'!AC5 -> -0.009353741497 | AD5: =('DAX 30 Werte'!AD6-'DAX 30 Werte'!AD5)/'DAX 30 Werte'!AD5 -> -0.0007378984652 | AE5: =('DAX 30 Werte'!AD6-'DAX 30 Werte'!AD5)/'DAX 30 Werte'!AD5 -> -0.0007378984652
A6: 2009-10-08 | B6: =('DAX 30 Werte'!B7-'DAX 30 Werte'!B6)/'DAX 30 Werte'!B6 -> 0.01343615654 | C6: =('DAX 30 Werte'!C7-'DAX 30 Werte'!C6)/'DAX 30 Werte'!C6 -> 0.03394036788 | D6: =('DAX 30 Werte'!D7-'DAX 30 Werte'!D6)/'DAX 30 Werte'!D6 -> -0.002286456013 | E6: =('DAX 30 Werte'!E7-'DAX 30 Werte'!E6)/'DAX 30 Werte'!E6 -> 0.02814930016 | F6: =('DAX 30 Werte'!F7-'DAX 30 Werte'!F6)/'DAX 30 Werte'!F6 -> 0.002955956252 | G6: =('DAX 30 Werte'!G7-'DAX 30 Werte'!G6)/'DAX 30 Werte'!G6 -> -0.01793339026 | H6: =('DAX 30 Werte'!H7-'DAX 30 Werte'!H6)/'DAX 30 Werte'!H6 -> -0.001319261214 | I6: =('DAX 30 Werte'!I7-'DAX 30 Werte'!I6)/'DAX 30 Werte'!I6 -> 0.0105553006 | J6: =('DAX 30 Werte'!J7-'DAX 30 Werte'!J6)/'DAX 30 Werte'!J6 -> 0.01805331075 | K6: =('DAX 30 Werte'!K7-'DAX 30 Werte'!K6)/'DAX 30 Werte'!K6 -> 0.01979495844 | L6: =('DAX 30 Werte'!L7-'DAX 30 Werte'!L6)/'DAX 30 Werte'!L6 -> 0.0135187572 | M6: =('DAX 30 Werte'!M7-'DAX 30 Werte'!M6)/'DAX 30 Werte'!M6 -> 0.02543720191 | N6: =('DAX 30 Werte'!N7-'DAX 30 Werte'!N6)/'DAX 30 Werte'!N6 -> 0.02784848031 | O6: =('DAX 30 Werte'!O7-'DAX 30 Werte'!O6)/'DAX 30 Werte'!O6 -> 0.006933333333 | P6: =('DAX 30 Werte'!P7-'DAX 30 Werte'!P6)/'DAX 30 Werte'!P6 -> 0.02953020134 | Q6: =('DAX 30 Werte'!Q7-'DAX 30 Werte'!Q6)/'DAX 30 Werte'!Q6 -> -0.001070281841 | R6: =('DAX 30 Werte'!R7-'DAX 30 Werte'!R6)/'DAX 30 Werte'!R6 -> 0.005458792229 | S6: =('DAX 30 Werte'!S7-'DAX 30 Werte'!S6)/'DAX 30 Werte'!S6 -> -0.00421674046 | T6: =('DAX 30 Werte'!T7-'DAX 30 Werte'!T6)/'DAX 30 Werte'!T6 -> 0.01351960342 | U6: =('DAX 30 Werte'!U7-'DAX 30 Werte'!U6)/'DAX 30 Werte'!U6 -> 0.001739680531 | V6: =('DAX 30 Werte'!V7-'DAX 30 Werte'!V6)/'DAX 30 Werte'!V6 -> 0.01669316375 | W6: =('DAX 30 Werte'!W7-'DAX 30 Werte'!W6)/'DAX 30 Werte'!W6 -> 0.01139430285 | X6: =('DAX 30 Werte'!X7-'DAX 30 Werte'!X6)/'DAX 30 Werte'!X6 -> 0.0134589502 | Y6: =('DAX 30 Werte'!Y7-'DAX 30 Werte'!Y6)/'DAX 30 Werte'!Y6 -> 0.01084810131 | Z6: =('DAX 30 Werte'!Z7-'DAX 30 Werte'!Z6)/'DAX 30 Werte'!Z6 -> 0.04038211029 | AA6: =('DAX 30 Werte'!AA7-'DAX 30 Werte'!AA6)/'DAX 30 Werte'!AA6 -> -0.004164497657 | AB6: =('DAX 30 Werte'!AB7-'DAX 30 Werte'!AB6)/'DAX 30 Werte'!AB6 -> 0.01244887071 | AC6: =('DAX 30 Werte'!AC7-'DAX 30 Werte'!AC6)/'DAX 30 Werte'!AC6 -> 0.01373390558 | AD6: =('DAX 30 Werte'!AD7-'DAX 30 Werte'!AD6)/'DAX 30 Werte'!AD6 -> 0.002806084773 | AE6: =('DAX 30 Werte'!AD7-'DAX 30 Werte'!AD6)/'DAX 30 Werte'!AD6 -> 0.002806084773
A7: 2009-10-09 | B7: =('DAX 30 Werte'!B8-'DAX 30 Werte'!B7)/'DAX 30 Werte'!B7 -> -0.0008151784121 | C7: =('DAX 30 Werte'!C8-'DAX 30 Werte'!C7)/'DAX 30 Werte'!C7 -> 0.0005337870154 | D7: =('DAX 30 Werte'!D8-'DAX 30 Werte'!D7)/'DAX 30 Werte'!D7 -> -0.002426530062 | E7: =('DAX 30 Werte'!E8-'DAX 30 Werte'!E7)/'DAX 30 Werte'!E7 -> -0.006504310997 | F7: =('DAX 30 Werte'!F8-'DAX 30 Werte'!F7)/'DAX 30 Werte'!F7 -> -0.01237842617 | G7: =('DAX 30 Werte'!G8-'DAX 30 Werte'!G7)/'DAX 30 Werte'!G7 -> 0.01014492754 | H7: =('DAX 30 Werte'!H8-'DAX 30 Werte'!H7)/'DAX 30 Werte'!H7 -> -0.001321003963 | I7: =('DAX 30 Werte'!I8-'DAX 30 Werte'!I7)/'DAX 30 Werte'!I7 -> 0.02179836512 | J7: =('DAX 30 Werte'!J8-'DAX 30 Werte'!J7)/'DAX 30 Werte'!J7 -> -0.01439216924 | K7: =('DAX 30 Werte'!K8-'DAX 30 Werte'!K7)/'DAX 30 Werte'!K7 -> -0.005784354834 | L7: =('DAX 30 Werte'!L8-'DAX 30 Werte'!L7)/'DAX 30 Werte'!L7 -> -0.02484137907 | M7: =('DAX 30 Werte'!M8-'DAX 30 Werte'!M7)/'DAX 30 Werte'!M7 -> 0.003720930233 | N7: =('DAX 30 Werte'!N8-'DAX 30 Werte'!N7)/'DAX 30 Werte'!N7 -> 0.004515659141 | O7: =('DAX 30 Werte'!O8-'DAX 30 Werte'!O7)/'DAX 30 Werte'!O7 -> -0.01271186441 | P7: =('DAX 30 Werte'!P8-'DAX 30 Werte'!P7)/'DAX 30 Werte'!P7 -> 0.006084311169 | Q7: =('DAX 30 Werte'!Q8-'DAX 30 Werte'!Q7)/'DAX 30 Werte'!Q7 -> -0.003928571429 | R7: =('DAX 30 Werte'!R8-'DAX 30 Werte'!R7)/'DAX 30 Werte'!R7 -> 0.004620549844 | S7: =('DAX 30 Werte'!S8-'DAX 30 Werte'!S7)/'DAX 30 Werte'!S7 -> -0.005293245818 | T7: =('DAX 30 Werte'!T8-'DAX 30 Werte'!T7)/'DAX 30 Werte'!T7 -> 0.007647843486 | U7: =('DAX 30 Werte'!U8-'DAX 30 Werte'!U7)/'DAX 30 Werte'!U7 -> -0.00410483107 | V7: =('DAX 30 Werte'!V8-'DAX 30 Werte'!V7)/'DAX 30 Werte'!V7 -> -0.002345582486 | W7: =('DAX 30 Werte'!W8-'DAX 30 Werte'!W7)/'DAX 30 Werte'!W7 -> 0.0002964719834 | X7: =('DAX 30 Werte'!X8-'DAX 30 Werte'!X7)/'DAX 30 Werte'!X7 -> 0.008499335989 | Y7: =('DAX 30 Werte'!Y8-'DAX 30 Werte'!Y7)/'DAX 30 Werte'!Y7 -> 0.003170756098 | Z7: =('DAX 30 Werte'!Z8-'DAX 30 Werte'!Z7)/'DAX 30 Werte'!Z7 -> -0.002921535893 | AA7: =('DAX 30 Werte'!AA8-'DAX 30 Werte'!AA7)/'DAX 30 Werte'!AA7 -> -0.007183929505 | AB7: =('DAX 30 Werte'!AB8-'DAX 30 Werte'!AB7)/'DAX 30 Werte'!AB7 -> 0.005972246619 | AC7: =('DAX 30 Werte'!AC8-'DAX 30 Werte'!AC7)/'DAX 30 Werte'!AC7 -> -0.0004233700254 | AD7: =('DAX 30 Werte'!AD8-'DAX 30 Werte'!AD7)/'DAX 30 Werte'!AD7 -> 0.00058910162 | AE7: =('DAX 30 Werte'!AD8-'DAX 30 Werte'!AD7)/'DAX 30 Werte'!AD7 -> 0.00058910162
A8: 2009-10-12 | B8: =('DAX 30 Werte'!B9-'DAX 30 Werte'!B8)/'DAX 30 Werte'!B8 -> 0.01249150893 | C8: =('DAX 30 Werte'!C9-'DAX 30 Werte'!C8)/'DAX 30 Werte'!C8 -> 0.0229393426 | D8: =('DAX 30 Werte'!D9-'DAX 30 Werte'!D8)/'DAX 30 Werte'!D8 -> 0.01729728378 | E8: =('DAX 30 Werte'!E9-'DAX 30 Werte'!E8)/'DAX 30 Werte'!E8 -> 0.02101096224 | F8: =('DAX 30 Werte'!F9-'DAX 30 Werte'!F8)/'DAX 30 Werte'!F8 -> 0.002984183826 | G8: =('DAX 30 Werte'!G9-'DAX 30 Werte'!G8)/'DAX 30 Werte'!G8 -> -0.002869440459 | H8: =('DAX 30 Werte'!H9-'DAX 30 Werte'!H8)/'DAX 30 Werte'!H8 -> 0.05026455026 | I8: =('DAX 30 Werte'!I9-'DAX 30 Werte'!I8)/'DAX 30 Werte'!I8 -> 0.007777777778 | J8: =('DAX 30 Werte'!J9-'DAX 30 Werte'!J8)/'DAX 30 Werte'!J8 -> 0.00338986799 | K8: =('DAX 30 Werte'!K9-'DAX 30 Werte'!K8)/'DAX 30 Werte'!K8 -> 0.0210234181 | L8: =('DAX 30 Werte'!L9-'DAX 30 Werte'!L8)/'DAX 30 Werte'!L8 -> -0.03061851831 | M8: =('DAX 30 Werte'!M9-'DAX 30 Werte'!M8)/'DAX 30 Werte'!M8 -> 0.02641334569 | N8: =('DAX 30 Werte'!N9-'DAX 30 Werte'!N8)/'DAX 30 Werte'!N8 -> 0.008120649652 | O8: =('DAX 30 Werte'!O9-'DAX 30 Werte'!O8)/'DAX 30 Werte'!O8 -> 0.01072961373 | P8: =('DAX 30 Werte'!P9-'DAX 30 Werte'!P8)/'DAX 30 Werte'!P8 -> 0.002159827214 | Q8: =('DAX 30 Werte'!Q9-'DAX 30 Werte'!Q8)/'DAX 30 Werte'!Q8 -> -0.005378271782 | R8: =('DAX 30 Werte'!R9-'DAX 30 Werte'!R8)/'DAX 30 Werte'!R8 -> 0.01080835908 | S8: =('DAX 30 Werte'!S9-'DAX 30 Werte'!S8)/'DAX 30 Werte'!S8 -> 0.02554278416 | T8: =('DAX 30 Werte'!T9-'DAX 30 Werte'!T8)/'DAX 30 Werte'!T8 -> 0.00423616627 | U8: =('DAX 30 Werte'!U9-'DAX 30 Werte'!U8)/'DAX 30 Werte'!U8 -> 0.0004755865568 | V8: =('DAX 30 Werte'!V9-'DAX 30 Werte'!V8)/'DAX 30 Werte'!V8 -> -0.005485893417 | W8: =('DAX 30 Werte'!W9-'DAX 30 Werte'!W8)/'DAX 30 Werte'!W8 -> 0.01837581506 | X8: =('DAX 30 Werte'!X9-'DAX 30 Werte'!X8)/'DAX 30 Werte'!X8 -> 0.003423755597 | Y8: =('DAX 30 Werte'!Y9-'DAX 30 Werte'!Y8)/'DAX 30 Werte'!Y8 -> 0.009968392658 | Z8: =('DAX 30 Werte'!Z9-'DAX 30 Werte'!Z8)/'DAX 30 Werte'!Z8 -> 0.0117203851 | AA8: =('DAX 30 Werte'!AA9-'DAX 30 Werte'!AA8)/'DAX 30 Werte'!AA8 -> 0.0150735626 | AB8: =('DAX 30 Werte'!AB9-'DAX 30 Werte'!AB8)/'DAX 30 Werte'!AB8 -> 0.01763576043 | AC8: =('DAX 30 Werte'!AC9-'DAX 30 Werte'!AC8)/'DAX 30 Werte'!AC8 -> 0.01101228293 | AD8: =('DAX 30 Werte'!AD9-'DAX 30 Werte'!AD8)/'DAX 30 Werte'!AD8 -> 0.0144244922 | AE8: =('DAX 30 Werte'!AD9-'DAX 30 Werte'!AD8)/'DAX 30 Werte'!AD8 -> 0.0144244922
A9: 2009-10-13 | B9: =('DAX 30 Werte'!B10-'DAX 30 Werte'!B9)/'DAX 30 Werte'!B9 -> -0.01191721581 | C9: =('DAX 30 Werte'!C10-'DAX 30 Werte'!C9)/'DAX 30 Werte'!C9 -> -0.0138200268 | D9: =('DAX 30 Werte'!D10-'DAX 30 Werte'!D9)/'DAX 30 Werte'!D9 -> -0.008634458138 | E9: =('DAX 30 Werte'!E10-'DAX 30 Werte'!E9)/'DAX 30 Werte'!E9 -> -0.009991052789 | F9: =('DAX 30 Werte'!F10-'DAX 30 Werte'!F9)/'DAX 30 Werte'!F9 -> -0.01100862838 | G9: =('DAX 30 Werte'!G10-'DAX 30 Werte'!G9)/'DAX 30 Werte'!G9 -> -0.0126618705 | H9: =('DAX 30 Werte'!H10-'DAX 30 Werte'!H9)/'DAX 30 Werte'!H9 -> -0.02644836272 | I9: =('DAX 30 Werte'!I10-'DAX 30 Werte'!I9)/'DAX 30 Werte'!I9 -> 0.009261300992 | J9: =('DAX 30 Werte'!J10-'DAX 30 Werte'!J9)/'DAX 30 Werte'!J9 -> -0.01455299569 | K9: =('DAX 30 Werte'!K10-'DAX 30 Werte'!K9)/'DAX 30 Werte'!K9 -> -0.0117671712 | L9: =('DAX 30 Werte'!L10-'DAX 30 Werte'!L9)/'DAX 30 Werte'!L9 -> 0.007897056966 | M9: =('DAX 30 Werte'!M10-'DAX 30 Werte'!M9)/'DAX 30 Werte'!M9 -> -0.01249059443 | N9: =('DAX 30 Werte'!N10-'DAX 30 Werte'!N9)/'DAX 30 Werte'!N9 -> -0.00503452244 | O9: =('DAX 30 Werte'!O10-'DAX 30 Werte'!O9)/'DAX 30 Werte'!O9 -> -0.01220806794 | P9: =('DAX 30 Werte'!P10-'DAX 30 Werte'!P9)/'DAX 30 Werte'!P9 -> -0.00933908046 | Q9: =('DAX 30 Werte'!Q10-'DAX 30 Werte'!Q9)/'DAX 30 Werte'!Q9 -> -0.01333813987 | R9: =('DAX 30 Werte'!R10-'DAX 30 Werte'!R9)/'DAX 30 Werte'!R9 -> -0.0143328625 | S9: =('DAX 30 Werte'!S10-'DAX 30 Werte'!S9)/'DAX 30 Werte'!S9 -> -0.01722706517 | T9: =('DAX 30 Werte'!T10-'DAX 30 Werte'!T9)/'DAX 30 Werte'!T9 -> -0.009491167941 | U9: =('DAX 30 Werte'!U10-'DAX 30 Werte'!U9)/'DAX 30 Werte'!U9 -> -0.01172555855 | V9: =('DAX 30 Werte'!V10-'DAX 30 Werte'!V9)/'DAX 30 Werte'!V9 -> -0.012214342 | W9: =('DAX 30 Werte'!W10-'DAX 30 Werte'!W9)/'DAX 30 Werte'!W9 -> 0.001455180442 | X9: =('DAX 30 Werte'!X10-'DAX 30 Werte'!X9)/'DAX 30 Werte'!X9 -> 0.01443569554 | Y9: =('DAX 30 Werte'!Y10-'DAX 30 Werte'!Y9)/'DAX 30 Werte'!Y9 -> -0.00842566181 | Z9: =('DAX 30 Werte'!Z10-'DAX 30 Werte'!Z9)/'DAX 30 Werte'!Z9 -> 0.01158460902 | AA9: =('DAX 30 Werte'!AA10-'DAX 30 Werte'!AA9)/'DAX 30 Werte'!AA9 -> -0.001185606734 | AB9: =('DAX 30 Werte'!AB10-'DAX 30 Werte'!AB9)/'DAX 30 Werte'!AB9 -> -0.02333562114 | AC9: =('DAX 30 Werte'!AC10-'DAX 30 Werte'!AC9)/'DAX 30 Werte'!AC9 -> -0.01256807708 | AD9: =('DAX 30 Werte'!AD10-'DAX 30 Werte'!AD9)/'DAX 30 Werte'!AD9 -> -0.004933255949 | AE9: =('DAX 30 Werte'!AD10-'DAX 30 Werte'!AD9)/'DAX 30 Werte'!AD9 -> -0.004933255949
A10: 2009-10-14 | B10: =('DAX 30 Werte'!B11-'DAX 30 Werte'!B10)/'DAX 30 Werte'!B10 -> 0.024470146 | C10: =('DAX 30 Werte'!C11-'DAX 30 Werte'!C10)/'DAX 30 Werte'!C10 -> 0.07377051824 | D10: =('DAX 30 Werte'!D11-'DAX 30 Werte'!D10)/'DAX 30 Werte'!D10 -> 0.01500741049 | E10: =('DAX 30 Werte'!E11-'DAX 30 Werte'!E10)/'DAX 30 Werte'!E10 -> 0.02530501582 | F10: =('DAX 30 Werte'!F11-'DAX 30 Werte'!F10)/'DAX 30 Werte'!F10 -> 0.003610108303 | G10: =('DAX 30 Werte'!G11-'DAX 30 Werte'!G10)/'DAX 30 Werte'!G10 -> 0.04226173127 | H10: =('DAX 30 Werte'!H11-'DAX 30 Werte'!H10)/'DAX 30 Werte'!H10 -> 0.04010349288 | I10: =('DAX 30 Werte'!I11-'DAX 30 Werte'!I10)/'DAX 30 Werte'!I10 -> 0.032335591 | J10: =('DAX 30 Werte'!J11-'DAX 30 Werte'!J10)/'DAX 30 Werte'!J10 -> 0.03401889938 | K10: =('DAX 30 Werte'!K11-'DAX 30 Werte'!K10)/'DAX 30 Werte'!K10 -> 0.0418610436 | L10: =('DAX 30 Werte'!L11-'DAX 30 Werte'!L10)/'DAX 30 Werte'!L10 -> -0.0165683608 | M10: =('DAX 30 Werte'!M11-'DAX 30 Werte'!M10)/'DAX 30 Werte'!M10 -> 0.05150868638 | N10: =('DAX 30 Werte'!N11-'DAX 30 Werte'!N10)/'DAX 30 Werte'!N10 -> 0.0141679919 | O10: =('DAX 30 Werte'!O11-'DAX 30 Werte'!O10)/'DAX 30 Werte'!O10 -> 0.01880709296 | P10: =('DAX 30 Werte'!P11-'DAX 30 Werte'!P10)/'DAX 30 Werte'!P10 -> 0.01812907904 | Q10: =('DAX 30 Werte'!Q11-'DAX 30 Werte'!Q10)/'DAX 30 Werte'!Q10 -> -0.01571063208 | R10: =('DAX 30 Werte'!R11-'DAX 30 Werte'!R10)/'DAX 30 Werte'!R10 -> 0.01696481207 | S10: =('DAX 30 Werte'!S11-'DAX 30 Werte'!S10)/'DAX 30 Werte'!S10 -> 0.03041182682 | T10: =('DAX 30 Werte'!T11-'DAX 30 Werte'!T10)/'DAX 30 Werte'!T10 -> 0.01321976755 | U10: =('DAX 30 Werte'!U11-'DAX 30 Werte'!U10)/'DAX 30 Werte'!U10 -> -0.002405002405 | V10: =('DAX 30 Werte'!V11-'DAX 30 Werte'!V10)/'DAX 30 Werte'!V10 -> 0.01834862385 | W10: =('DAX 30 Werte'!W11-'DAX 30 Werte'!W10)/'DAX 30 Werte'!W10 -> -0.01104330137 | X10: =('DAX 30 Werte'!X11-'DAX 30 Werte'!X10)/'DAX 30 Werte'!X10 -> 0.01164294955 | Y10: =('DAX 30 Werte'!Y11-'DAX 30 Werte'!Y10)/'DAX 30 Werte'!Y10 -> 0.007283394205 | Z10: =('DAX 30 Werte'!Z11-'DAX 30 Werte'!Z10)/'DAX 30 Werte'!Z10 -> 0.03721881391 | AA10: =('DAX 30 Werte'!AA11-'DAX 30 Werte'!AA10)/'DAX 30 Werte'!AA10 -> 0.03328090688 | AB10: =('DAX 30 Werte'!AB11-'DAX 30 Werte'!AB10)/'DAX 30 Werte'!AB10 -> 0.02442023893 | AC10: =('DAX 30 Werte'!AC11-'DAX 30 Werte'!AC10)/'DAX 30 Werte'!AC10 -> 0.01739499364 | AD10: =('DAX 30 Werte'!AD11-'DAX 30 Werte'!AD10)/'DAX 30 Werte'!AD10 -> 0.009769612132 | AE10: =('DAX 30 Werte'!AD11-'DAX 30 Werte'!AD10)/'DAX 30 Werte'!AD10 -> 0.009769612132
A11: 2009-10-15 | B11: =('DAX 30 Werte'!B12-'DAX 30 Werte'!B11)/'DAX 30 Werte'!B11 -> -0.003992046654 | C11: =('DAX 30 Werte'!C12-'DAX 30 Werte'!C11)/'DAX 30 Werte'!C11 -> -0.01231223806 | D11: =('DAX 30 Werte'!D12-'DAX 30 Werte'!D11)/'DAX 30 Werte'!D11 -> 0 | E11: =('DAX 30 Werte'!E12-'DAX 30 Werte'!E11)/'DAX 30 Werte'!E11 -> -0.01336859116 | F11: =('DAX 30 Werte'!F12-'DAX 30 Werte'!F11)/'DAX 30 Werte'!F11 -> 0.004196642686 | G11: =('DAX 30 Werte'!G12-'DAX 30 Werte'!G11)/'DAX 30 Werte'!G11 -> 0.01510067114 | H11: =('DAX 30 Werte'!H12-'DAX 30 Werte'!H11)/'DAX 30 Werte'!H11 -> -0.03731343284 | I11: =('DAX 30 Werte'!I12-'DAX 30 Werte'!I11)/'DAX 30 Werte'!I11 -> 0.003174603175 | J11: =('DAX 30 Werte'!J12-'DAX 30 Werte'!J11)/'DAX 30 Werte'!J11 -> -0.009946364184 | K11: =('DAX 30 Werte'!K12-'DAX 30 Werte'!K11)/'DAX 30 Werte'!K11 -> 0.006786865419 | L11: =('DAX 30 Werte'!L12-'DAX 30 Werte'!L11)/'DAX 30 Werte'!L11 -> 0.01697756733 | M11: =('DAX 30 Werte'!M12-'DAX 30 Werte'!M11)/'DAX 30 Werte'!M11 -> -0.007971014493 | N11: =('DAX 30 Werte'!N12-'DAX 30 Werte'!N11)/'DAX 30 Werte'!N11 -> -0.007982893799 | O11: =('DAX 30 Werte'!O12-'DAX 30 Werte'!O11)/'DAX 30 Werte'!O11 -> 0.007383966245 | P11: =('DAX 30 Werte'!P12-'DAX 30 Werte'!P11)/'DAX 30 Werte'!P11 -> -0.0001424501425 | Q11: =('DAX 30 Werte'!Q12-'DAX 30 Werte'!Q11)/'DAX 30 Werte'!Q11 -> -0.01336302895 | R11: =('DAX 30 Werte'!R12-'DAX 30 Werte'!R11)/'DAX 30 Werte'!R11 -> -0.009192067322 | S11: =('DAX 30 Werte'!S12-'DAX 30 Werte'!S11)/'DAX 30 Werte'!S11 -> 0.0002049600328 | T11: =('DAX 30 Werte'!T12-'DAX 30 Werte'!T11)/'DAX 30 Werte'!T11 -> -0.01085814361 | U11: =('DAX 30 Werte'!U12-'DAX 30 Werte'!U11)/'DAX 30 Werte'!U11 -> -0.01960784314 | V11: =('DAX 30 Werte'!V12-'DAX 30 Werte'!V11)/'DAX 30 Werte'!V11 -> 0.01292596945 | W11: =('DAX 30 Werte'!W12-'DAX 30 Werte'!W11)/'DAX 30 Werte'!W11 -> -0.008815750808 | X11: =('DAX 30 Werte'!X12-'DAX 30 Werte'!X11)/'DAX 30 Werte'!X11 -> 0.01815856777 | Y11: =('DAX 30 Werte'!Y12-'DAX 30 Werte'!Y11)/'DAX 30 Werte'!Y11 -> 0.01229206979 | Z11: =('DAX 30 Werte'!Z12-'DAX 30 Werte'!Z11)/'DAX 30 Werte'!Z11 -> 0.01340694006 | AA11: =('DAX 30 Werte'!AA12-'DAX 30 Werte'!AA11)/'DAX 30 Werte'!AA11 -> -0.006318298654 | AB11: =('DAX 30 Werte'!AB12-'DAX 30 Werte'!AB11)/'DAX 30 Werte'!AB11 -> 0.004973417939 | AC11: =('DAX 30 Werte'!AC12-'DAX 30 Werte'!AC11)/'DAX 30 Werte'!AC11 -> -0.002502085071 | AD11: =('DAX 30 Werte'!AD12-'DAX 30 Werte'!AD11)/'DAX 30 Werte'!AD11 -> 0.007942238267 | AE11: =('DAX 30 Werte'!AD12-'DAX 30 Werte'!AD11)/'DAX 30 Werte'!AD11 -> 0.007942238267
A12: 2009-10-16 | B12: =('DAX 30 Werte'!B13-'DAX 30 Werte'!B12)/'DAX 30 Werte'!B12 -> -0.01498601385 | C12: =('DAX 30 Werte'!C13-'DAX 30 Werte'!C12)/'DAX 30 Werte'!C12 -> -0.01770129599 | D12: =('DAX 30 Werte'!D13-'DAX 30 Werte'!D12)/'DAX 30 Werte'!D12 -> -0.0102970165 | E12: =('DAX 30 Werte'!E13-'DAX 30 Werte'!E12)/'DAX 30 Werte'!E12 -> -0.009827278142 | F12: =('DAX 30 Werte'!F13-'DAX 30 Werte'!F12)/'DAX 30 Werte'!F12 -> -0.001492537313 | G12: =('DAX 30 Werte'!G13-'DAX 30 Werte'!G12)/'DAX 30 Werte'!G12 -> -0.004132231405 | H12: =('DAX 30 Werte'!H13-'DAX 30 Werte'!H12)/'DAX 30 Werte'!H12 -> -0.02713178295 | I12: =('DAX 30 Werte'!I13-'DAX 30 Werte'!I12)/'DAX 30 Werte'!I12 -> -0.0276371308 | J12: =('DAX 30 Werte'!J13-'DAX 30 Werte'!J12)/'DAX 30 Werte'!J12 -> 0.003864009264 | K12: =('DAX 30 Werte'!K13-'DAX 30 Werte'!K12)/'DAX 30 Werte'!K12 -> -0.02758064359 | L12: =('DAX 30 Werte'!L13-'DAX 30 Werte'!L12)/'DAX 30 Werte'!L12 -> -0.06254037238 | M12: =('DAX 30 Werte'!M13-'DAX 30 Werte'!M12)/'DAX 30 Werte'!M12 -> -0.02761139518 | N12: =('DAX 30 Werte'!N13-'DAX 30 Werte'!N12)/'DAX 30 Werte'!N12 -> -0.007328639172 | O12: =('DAX 30 Werte'!O13-'DAX 30 Werte'!O12)/'DAX 30 Werte'!O12 -> -0.01570680628 | P12: =('DAX 30 Werte'!P13-'DAX 30 Werte'!P12)/'DAX 30 Werte'!P12 -> 0.001852115686 | Q12: =('DAX 30 Werte'!Q13-'DAX 30 Werte'!Q12)/'DAX 30 Werte'!Q12 -> -0.01655379985 | R12: =('DAX 30 Werte'!R13-'DAX 30 Werte'!R12)/'DAX 30 Werte'!R12 -> -0.0130569239 | S12: =('DAX 30 Werte'!S13-'DAX 30 Werte'!S12)/'DAX 30 Werte'!S12 -> -0.02602459016 | T12: =('DAX 30 Werte'!T13-'DAX 30 Werte'!T12)/'DAX 30 Werte'!T12 -> -0.01885623229 | U12: =('DAX 30 Werte'!U13-'DAX 30 Werte'!U12)/'DAX 30 Werte'!U12 -> -0.00262295082 | V12: =('DAX 30 Werte'!V13-'DAX 30 Werte'!V12)/'DAX 30 Werte'!V12 -> -0.01198762568 | W12: =('DAX 30 Werte'!W13-'DAX 30 Werte'!W12)/'DAX 30 Werte'!W12 -> 0.008004743552 | X12: =('DAX 30 Werte'!X13-'DAX 30 Werte'!X12)/'DAX 30 Werte'!X12 -> -0.01632755589 | Y12: =('DAX 30 Werte'!Y13-'DAX 30 Werte'!Y12)/'DAX 30 Werte'!Y12 -> -0.001428595238 | Z12: =('DAX 30 Werte'!Z13-'DAX 30 Werte'!Z12)/'DAX 30 Werte'!Z12 -> -0.02256809339 | AA12: =('DAX 30 Werte'!AA13-'DAX 30 Werte'!AA12)/'DAX 30 Werte'!AA12 -> -0.03011604214 | AB12: =('DAX 30 Werte'!AB13-'DAX 30 Werte'!AB12)/'DAX 30 Werte'!AB12 -> 0.003754266212 | AC12: =('DAX 30 Werte'!AC13-'DAX 30 Werte'!AC12)/'DAX 30 Werte'!AC12 -> -0.01923076923 | AD12: =('DAX 30 Werte'!AD13-'DAX 30 Werte'!AD12)/'DAX 30 Werte'!AD12 -> -0.007306590258 | AE12: =('DAX 30 Werte'!AD13-'DAX 30 Werte'!AD12)/'DAX 30 Werte'!AD12 -> -0.007306590258
A13: 2009-10-19 | B13: =('DAX 30 Werte'!B14-'DAX 30 Werte'!B13)/'DAX 30 Werte'!B13 -> 0.01900793782 | C13: =('DAX 30 Werte'!C14-'DAX 30 Werte'!C13)/'DAX 30 Werte'!C13 -> 0.03604055655 | D13: =('DAX 30 Werte'!D14-'DAX 30 Werte'!D13)/'DAX 30 Werte'!D13 -> 0.01907430947 | E13: =('DAX 30 Werte'!E14-'DAX 30 Werte'!E13)/'DAX 30 Werte'!E13 -> 0.04255639098 | F13: =('DAX 30 Werte'!F14-'DAX 30 Werte'!F13)/'DAX 30 Werte'!F13 -> 0.0008968609865 | G13: =('DAX 30 Werte'!G14-'DAX 30 Werte'!G13)/'DAX 30 Werte'!G13 -> 0.01244813278 | H13: =('DAX 30 Werte'!H14-'DAX 30 Werte'!H13)/'DAX 30 Werte'!H13 -> 0.01859229748 | I13: =('DAX 30 Werte'!I14-'DAX 30 Werte'!I13)/'DAX 30 Werte'!I13 -> 0.04838359731 | J13: =('DAX 30 Werte'!J14-'DAX 30 Werte'!J13)/'DAX 30 Werte'!J13 -> 0.03284572736 | K13: =('DAX 30 Werte'!K14-'DAX 30 Werte'!K13)/'DAX 30 Werte'!K13 -> 0.02143059892 | L13: =('DAX 30 Werte'!L14-'DAX 30 Werte'!L13)/'DAX 30 Werte'!L13 -> 0.01369972507 | M13: =('DAX 30 Werte'!M14-'DAX 30 Werte'!M13)/'DAX 30 Werte'!M13 -> 0.017578125 | N13: =('DAX 30 Werte'!N14-'DAX 30 Werte'!N13)/'DAX 30 Werte'!N13 -> 0.01462072959 | O13: =('DAX 30 Werte'!O14-'DAX 30 Werte'!O13)/'DAX 30 Werte'!O13 -> 0.006382978723 | P13: =('DAX 30 Werte'!P14-'DAX 30 Werte'!P13)/'DAX 30 Werte'!P13 -> 0.06996587031 | Q13: =('DAX 30 Werte'!Q14-'DAX 30 Werte'!Q13)/'DAX 30 Werte'!Q13 -> 0.003825554705 | R13: =('DAX 30 Werte'!R14-'DAX 30 Werte'!R13)/'DAX 30 Werte'!R13 -> -0.0009284205856 | S13: =('DAX 30 Werte'!S14-'DAX 30 Werte'!S13)/'DAX 30 Werte'!S13 -> 0.0235640648 | T13: =('DAX 30 Werte'!T14-'DAX 30 Werte'!T13)/'DAX 30 Werte'!T13 -> 0.02138410178 | U13: =('DAX 30 Werte'!U14-'DAX 30 Werte'!U13)/'DAX 30 Werte'!U13 -> 0.00476660092 | V13: =('DAX 30 Werte'!V14-'DAX 30 Werte'!V13)/'DAX 30 Werte'!V13 -> 0.005870841487 | W13: =('DAX 30 Werte'!W14-'DAX 30 Werte'!W13)/'DAX 30 Werte'!W13 -> -0.006470588235 | X13: =('DAX 30 Werte'!X14-'DAX 30 Werte'!X13)/'DAX 30 Werte'!X13 -> 0.006639427988 | Y13: =('DAX 30 Werte'!Y14-'DAX 30 Werte'!Y13)/'DAX 30 Werte'!Y13 -> 0.01335243236 | Z13: =('DAX 30 Werte'!Z14-'DAX 30 Werte'!Z13)/'DAX 30 Werte'!Z13 -> 0.008757961783 | AA13: =('DAX 30 Werte'!AA14-'DAX 30 Werte'!AA13)/'DAX 30 Werte'!AA13 -> 0.005378827386 | AB13: =('DAX 30 Werte'!AB14-'DAX 30 Werte'!AB13)/'DAX 30 Werte'!AB13 -> 0.02227133628 | AC13: =('DAX 30 Werte'!AC14-'DAX 30 Werte'!AC13)/'DAX 30 Werte'!AC13 -> -0.003410059676 | AD13: =('DAX 30 Werte'!AD14-'DAX 30 Werte'!AD13)/'DAX 30 Werte'!AD13 -> 0.01241160341 | AE13: =('DAX 30 Werte'!AD14-'DAX 30 Werte'!AD13)/'DAX 30 Werte'!AD13 -> 0.01241160341
A14: 2009-10-20 | B14: =('DAX 30 Werte'!B15-'DAX 30 Werte'!B14)/'DAX 30 Werte'!B14 -> -0.006969599628 | C14: =('DAX 30 Werte'!C15-'DAX 30 Werte'!C14)/'DAX 30 Werte'!C14 -> -0.01959823616 | D14: =('DAX 30 Werte'!D15-'DAX 30 Werte'!D14)/'DAX 30 Werte'!D14 -> -0.00916236887 | E14: =('DAX 30 Werte'!E15-'DAX 30 Werte'!E14)/'DAX 30 Werte'!E14 -> 0.01254868023 | F14: =('DAX 30 Werte'!F15-'DAX 30 Werte'!F14)/'DAX 30 Werte'!F14 -> -0.007168458781 | G14: =('DAX 30 Werte'!G15-'DAX 30 Werte'!G14)/'DAX 30 Werte'!G14 -> -0.02158469945 | H14: =('DAX 30 Werte'!H15-'DAX 30 Werte'!H14)/'DAX 30 Werte'!H14 -> 0.01173402868 | I14: =('DAX 30 Werte'!I15-'DAX 30 Werte'!I14)/'DAX 30 Werte'!I14 -> -0.01427980132 | J14: =('DAX 30 Werte'!J15-'DAX 30 Werte'!J14)/'DAX 30 Werte'!J14 -> 0.01614906308 | K14: =('DAX 30 Werte'!K15-'DAX 30 Werte'!K14)/'DAX 30 Werte'!K14 -> -0.01178503563 | L14: =('DAX 30 Werte'!L15-'DAX 30 Werte'!L14)/'DAX 30 Werte'!L14 -> -0.03635246392 | M14: =('DAX 30 Werte'!M15-'DAX 30 Werte'!M14)/'DAX 30 Werte'!M14 -> -0.00693931788 | N14: =('DAX 30 Werte'!N15-'DAX 30 Werte'!N14)/'DAX 30 Werte'!N14 -> -0.008417748609 | O14: =('DAX 30 Werte'!O15-'DAX 30 Werte'!O14)/'DAX 30 Werte'!O14 -> -0.001057082452 | P14: =('DAX 30 Werte'!P15-'DAX 30 Werte'!P14)/'DAX 30 Werte'!P14 -> -0.01687931951 | Q14: =('DAX 30 Werte'!Q15-'DAX 30 Werte'!Q14)/'DAX 30 Werte'!Q14 -> 0.01524390244 | R14: =('DAX 30 Werte'!R15-'DAX 30 Werte'!R14)/'DAX 30 Werte'!R14 -> -0.01614588297 | S14: =('DAX 30 Werte'!S15-'DAX 30 Werte'!S14)/'DAX 30 Werte'!S14 -> -0.02034943474 | T14: =('DAX 30 Werte'!T15-'DAX 30 Werte'!T14)/'DAX 30 Werte'!T14 -> 0.003091872792 | U14: =('DAX 30 Werte'!U15-'DAX 30 Werte'!U14)/'DAX 30 Werte'!U14 -> 0.01177817765 | V14: =('DAX 30 Werte'!V15-'DAX 30 Werte'!V14)/'DAX 30 Werte'!V14 -> -0.008171206226 | W14: =('DAX 30 Werte'!W15-'DAX 30 Werte'!W14)/'DAX 30 Werte'!W14 -> -0.002368265246 | X14: =('DAX 30 Werte'!X15-'DAX 30 Werte'!X14)/'DAX 30 Werte'!X14 -> -0.01141552511 | Y14: =('DAX 30 Werte'!Y15-'DAX 30 Werte'!Y14)/'DAX 30 Werte'!Y14 -> -0.003529458824 | Z14: =('DAX 30 Werte'!Z15-'DAX 30 Werte'!Z14)/'DAX 30 Werte'!Z14 -> -0.01065509077 | AA14: =('DAX 30 Werte'!AA15-'DAX 30 Werte'!AA14)/'DAX 30 Werte'!AA14 -> -0.009499673958 | AB14: =('DAX 30 Werte'!AB15-'DAX 30 Werte'!AB14)/'DAX 30 Werte'!AB14 -> -0.01097621819 | AC14: =('DAX 30 Werte'!AC15-'DAX 30 Werte'!AC14)/'DAX 30 Werte'!AC14 -> -0.01112061591 | AD14: =('DAX 30 Werte'!AD15-'DAX 30 Werte'!AD14)/'DAX 30 Werte'!AD14 -> -0.001282965075 | AE14: =('DAX 30 Werte'!AD15-'DAX 30 Werte'!AD14)/'DAX 30 Werte'!AD14 -> -0.001282965075
A15: 2009-10-21 | B15: =('DAX 30 Werte'!B16-'DAX 30 Werte'!B15)/'DAX 30 Werte'!B15 -> 0.003737243559 | C15: =('DAX 30 Werte'!C16-'DAX 30 Werte'!C15)/'DAX 30 Werte'!C15 -> 0.009495302349 | D15: =('DAX 30 Werte'!D16-'DAX 30 Werte'!D15)/'DAX 30 Werte'!D15 -> 0.006472985725 | E15: =('DAX 30 Werte'!E16-'DAX 30 Werte'!E15)/'DAX 30 Werte'!E15 -> 0.01396011396 | F15: =('DAX 30 Werte'!F16-'DAX 30 Werte'!F15)/'DAX 30 Werte'!F15 -> -0.00421179302 | G15: =('DAX 30 Werte'!G16-'DAX 30 Werte'!G15)/'DAX 30 Werte'!G15 -> -0.01507958671 | H15: =('DAX 30 Werte'!H16-'DAX 30 Werte'!H15)/'DAX 30 Werte'!H15 -> -0.0412371134 | I15: =('DAX 30 Werte'!I16-'DAX 30 Werte'!I15)/'DAX 30 Werte'!I15 -> -0.01343690951 | J15: =('DAX 30 Werte'!J16-'DAX 30 Werte'!J15)/'DAX 30 Werte'!J15 -> -0.001956009831 | K15: =('DAX 30 Werte'!K16-'DAX 30 Werte'!K15)/'DAX 30 Werte'!K15 -> -0.02421355936 | L15: =('DAX 30 Werte'!L16-'DAX 30 Werte'!L15)/'DAX 30 Werte'!L15 -> 0.01991433844 | M15: =('DAX 30 Werte'!M16-'DAX 30 Werte'!M15)/'DAX 30 Werte'!M15 -> 0.00223015165 | N15: =('DAX 30 Werte'!N16-'DAX 30 Werte'!N15)/'DAX 30 Werte'!N15 -> 0.006330935252 | O15: =('DAX 30 Werte'!O16-'DAX 30 Werte'!O15)/'DAX 30 Werte'!O15 -> 0.01957671958 | P15: =('DAX 30 Werte'!P16-'DAX 30 Werte'!P15)/'DAX 30 Werte'!P15 -> 0.005137217791 | Q15: =('DAX 30 Werte'!Q16-'DAX 30 Werte'!Q15)/'DAX 30 Werte'!Q15 -> 0.02177177177 | R15: =('DAX 30 Werte'!R16-'DAX 30 Werte'!R15)/'DAX 30 Werte'!R15 -> -0.006847627161 | S15: =('DAX 30 Werte'!S16-'DAX 30 Werte'!S15)/'DAX 30 Werte'!S15 -> 0.01321863198 | T15: =('DAX 30 Werte'!T16-'DAX 30 Werte'!T15)/'DAX 30 Werte'!T15 -> 0.002818141788 | U15: =('DAX 30 Werte'!U16-'DAX 30 Werte'!U15)/'DAX 30 Werte'!U15 -> 0.006628940986 | V15: =('DAX 30 Werte'!V16-'DAX 30 Werte'!V15)/'DAX 30 Werte'!V15 -> 0.00196155355 | W15: =('DAX 30 Werte'!W16-'DAX 30 Werte'!W15)/'DAX 30 Werte'!W15 -> 0.00237388724 | X15: =('DAX 30 Werte'!X16-'DAX 30 Werte'!X15)/'DAX 30 Werte'!X15 -> 0.01129073646 | Y15: =('DAX 30 Werte'!Y16-'DAX 30 Werte'!Y15)/'DAX 30 Werte'!Y15 -> 0.002597426333 | Z15: =('DAX 30 Werte'!Z16-'DAX 30 Werte'!Z15)/'DAX 30 Werte'!Z15 -> -0.0043877144 | AA15: =('DAX 30 Werte'!AA16-'DAX 30 Werte'!AA15)/'DAX 30 Werte'!AA15 -> -0.002408917483 | AB15: =('DAX 30 Werte'!AB16-'DAX 30 Werte'!AB15)/'DAX 30 Werte'!AB15 -> -0.009080208508 | AC15: =('DAX 30 Werte'!AC16-'DAX 30 Werte'!AC15)/'DAX 30 Werte'!AC15 -> 0.002162629758 | AD15: =('DAX 30 Werte'!AD16-'DAX 30 Werte'!AD15)/'DAX 30 Werte'!AD15 -> 0.01327433628 | AE15: =('DAX 30 Werte'!AD16-'DAX 30 Werte'!AD15)/'DAX 30 Werte'!AD15 -> 0.01327433628
A16: 2009-10-22 | B16: =('DAX 30 Werte'!B17-'DAX 30 Werte'!B16)/'DAX 30 Werte'!B16 -> -0.01209567514 | C16: =('DAX 30 Werte'!C17-'DAX 30 Werte'!C16)/'DAX 30 Werte'!C16 -> -0.02227727612 | D16: =('DAX 30 Werte'!D17-'DAX 30 Werte'!D16)/'DAX 30 Werte'!D16 -> -0.01338763582 | E16: =('DAX 30 Werte'!E17-'DAX 30 Werte'!E16)/'DAX 30 Werte'!E16 -> -0.0008429334083 | F16: =('DAX 30 Werte'!F17-'DAX 30 Werte'!F16)/'DAX 30 Werte'!F16 -> -0.004833836858 | G16: =('DAX 30 Werte'!G17-'DAX 30 Werte'!G16)/'DAX 30 Werte'!G16 -> -0.008505812305 | H16: =('DAX 30 Werte'!H17-'DAX 30 Werte'!H16)/'DAX 30 Werte'!H16 -> -0.04301075269 | I16: =('DAX 30 Werte'!I17-'DAX 30 Werte'!I16)/'DAX 30 Werte'!I16 -> -0.03575228772 | J16: =('DAX 30 Werte'!J17-'DAX 30 Werte'!J16)/'DAX 30 Werte'!J16 -> -0.0151886241 | K16: =('DAX 30 Werte'!K17-'DAX 30 Werte'!K16)/'DAX 30 Werte'!K16 -> -0.02277883987 | L16: =('DAX 30 Werte'!L17-'DAX 30 Werte'!L16)/'DAX 30 Werte'!L16 -> 0.004398632274 | M16: =('DAX 30 Werte'!M17-'DAX 30 Werte'!M16)/'DAX 30 Werte'!M16 -> -0.01973001038 | N16: =('DAX 30 Werte'!N17-'DAX 30 Werte'!N16)/'DAX 30 Werte'!N16 -> -0.01658564484 | O16: =('DAX 30 Werte'!O17-'DAX 30 Werte'!O16)/'DAX 30 Werte'!O16 -> 0.005189413596 | P16: =('DAX 30 Werte'!P17-'DAX 30 Werte'!P16)/'DAX 30 Werte'!P16 -> -0.01197041022 | Q16: =('DAX 30 Werte'!Q17-'DAX 30 Werte'!Q16)/'DAX 30 Werte'!Q16 -> -0.006245407788 | R16: =('DAX 30 Werte'!R17-'DAX 30 Werte'!R16)/'DAX 30 Werte'!R16 -> -0.0009510460907 | S16: =('DAX 30 Werte'!S17-'DAX 30 Werte'!S16)/'DAX 30 Werte'!S16 -> -0.005798301926 | T16: =('DAX 30 Werte'!T17-'DAX 30 Werte'!T16)/'DAX 30 Werte'!T16 -> -0.01633441644 | U16: =('DAX 30 Werte'!U17-'DAX 30 Werte'!U16)/'DAX 30 Werte'!U16 -> -0.00497911982 | V16: =('DAX 30 Werte'!V17-'DAX 30 Werte'!V16)/'DAX 30 Werte'!V16 -> -0.02662490211 | W16: =('DAX 30 Werte'!W17-'DAX 30 Werte'!W16)/'DAX 30 Werte'!W16 -> -0.00828892836 | X16: =('DAX 30 Werte'!X17-'DAX 30 Werte'!X16)/'DAX 30 Werte'!X16 -> -0.009388480081 | Y16: =('DAX 30 Werte'!Y17-'DAX 30 Werte'!Y16)/'DAX 30 Werte'!Y16 -> -0.001884079178 | Z16: =('DAX 30 Werte'!Z17-'DAX 30 Werte'!Z16)/'DAX 30 Werte'!Z16 -> -0.02724358974 | AA16: =('DAX 30 Werte'!AA17-'DAX 30 Werte'!AA16)/'DAX 30 Werte'!AA16 -> -0.02644209137 | AB16: =('DAX 30 Werte'!AB17-'DAX 30 Werte'!AB16)/'DAX 30 Werte'!AB16 -> -0.01187849992 | AC16: =('DAX 30 Werte'!AC17-'DAX 30 Werte'!AC16)/'DAX 30 Werte'!AC16 -> -0.01510574018 | AD16: =('DAX 30 Werte'!AD17-'DAX 30 Werte'!AD16)/'DAX 30 Werte'!AD16 -> -0.01239611213 | AE16: =('DAX 30 Werte'!AD17-'DAX 30 Werte'!AD16)/'DAX 30 Werte'!AD16 -> -0.01239611213
A17: 2009-10-23 | B17: =('DAX 30 Werte'!B18-'DAX 30 Werte'!B17)/'DAX 30 Werte'!B17 -> -0.003935498089 | C17: =('DAX 30 Werte'!C18-'DAX 30 Werte'!C17)/'DAX 30 Werte'!C17 -> -0.008607594937 | D17: =('DAX 30 Werte'!D18-'DAX 30 Werte'!D17)/'DAX 30 Werte'!D17 -> -0.003458746933 | E17: =('DAX 30 Werte'!E18-'DAX 30 Werte'!E17)/'DAX 30 Werte'!E17 -> 0.01068616423 | F17: =('DAX 30 Werte'!F18-'DAX 30 Werte'!F17)/'DAX 30 Werte'!F17 -> -0.02003642987 | G17: =('DAX 30 Werte'!G18-'DAX 30 Werte'!G17)/'DAX 30 Werte'!G17 -> -0.007720903632 | H17: =('DAX 30 Werte'!H18-'DAX 30 Werte'!H17)/'DAX 30 Werte'!H17 -> -0.02387640449 | I17: =('DAX 30 Werte'!I18-'DAX 30 Werte'!I17)/'DAX 30 Werte'!I17 -> -0.001324210991 | J17: =('DAX 30 Werte'!J18-'DAX 30 Werte'!J17)/'DAX 30 Werte'!J17 -> 0.01990051357 | K17: =('DAX 30 Werte'!K18-'DAX 30 Werte'!K17)/'DAX 30 Werte'!K17 -> 0.002558596427 | L17: =('DAX 30 Werte'!L18-'DAX 30 Werte'!L17)/'DAX 30 Werte'!L17 -> 0.003970352498 | M17: =('DAX 30 Werte'!M18-'DAX 30 Werte'!M17)/'DAX 30 Werte'!M17 -> -0.008020581114 | N17: =('DAX 30 Werte'!N18-'DAX 30 Werte'!N17)/'DAX 30 Werte'!N17 -> 0.001453911021 | O17: =('DAX 30 Werte'!O18-'DAX 30 Werte'!O17)/'DAX 30 Werte'!O17 -> -0.01239029427 | P17: =('DAX 30 Werte'!P18-'DAX 30 Werte'!P17)/'DAX 30 Werte'!P17 -> 0.003947726654 | Q17: =('DAX 30 Werte'!Q18-'DAX 30 Werte'!Q17)/'DAX 30 Werte'!Q17 -> -0.003696857671 | R17: =('DAX 30 Werte'!R18-'DAX 30 Werte'!R17)/'DAX 30 Werte'!R17 -> -0.004045740076 | S17: =('DAX 30 Werte'!S18-'DAX 30 Werte'!S17)/'DAX 30 Werte'!S17 -> -0.006873568007 | T17: =('DAX 30 Werte'!T18-'DAX 30 Werte'!T17)/'DAX 30 Werte'!T17 -> -0.01312382823 | U17: =('DAX 30 Werte'!U18-'DAX 30 Werte'!U17)/'DAX 30 Werte'!U17 -> -0.01016949153 | V17: =('DAX 30 Werte'!V18-'DAX 30 Werte'!V17)/'DAX 30 Werte'!V17 -> -0.003620273532 | W17: =('DAX 30 Werte'!W18-'DAX 30 Werte'!W17)/'DAX 30 Werte'!W17 -> 0.005373134328 | X17: =('DAX 30 Werte'!X18-'DAX 30 Werte'!X17)/'DAX 30 Werte'!X17 -> 0.006147540984 | Y17: =('DAX 30 Werte'!Y18-'DAX 30 Werte'!Y17)/'DAX 30 Werte'!Y17 -> -0.0002360075452 | Z17: =('DAX 30 Werte'!Z18-'DAX 30 Werte'!Z17)/'DAX 30 Werte'!Z17 -> 0.004942339374 | AA17: =('DAX 30 Werte'!AA18-'DAX 30 Werte'!AA17)/'DAX 30 Werte'!AA17 -> 0.004945232703 | AB17: =('DAX 30 Werte'!AB18-'DAX 30 Werte'!AB17)/'DAX 30 Werte'!AB17 -> 0.01064743259 | AC17: =('DAX 30 Werte'!AC18-'DAX 30 Werte'!AC17)/'DAX 30 Werte'!AC17 -> 0.0166520596 | AD17: =('DAX 30 Werte'!AD18-'DAX 30 Werte'!AD17)/'DAX 30 Werte'!AD17 -> -0.008700613322 | AE17: =('DAX 30 Werte'!AD18-'DAX 30 Werte'!AD17)/'DAX 30 Werte'!AD17 -> -0.008700613322
A18: 2009-10-26 | B18: =('DAX 30 Werte'!B19-'DAX 30 Werte'!B18)/'DAX 30 Werte'!B18 -> -0.01708810592 | C18: =('DAX 30 Werte'!C19-'DAX 30 Werte'!C18)/'DAX 30 Werte'!C18 -> -0.02221652196 | D18: =('DAX 30 Werte'!D19-'DAX 30 Werte'!D18)/'DAX 30 Werte'!D18 -> -0.004805780013 | E18: =('DAX 30 Werte'!E19-'DAX 30 Werte'!E18)/'DAX 30 Werte'!E18 -> -0.009321090707 | F18: =('DAX 30 Werte'!F19-'DAX 30 Werte'!F18)/'DAX 30 Werte'!F18 -> -0.01301115242 | G18: =('DAX 30 Werte'!G19-'DAX 30 Werte'!G18)/'DAX 30 Werte'!G18 -> -0.02795389049 | H18: =('DAX 30 Werte'!H19-'DAX 30 Werte'!H18)/'DAX 30 Werte'!H18 -> -0.02877697842 | I18: =('DAX 30 Werte'!I19-'DAX 30 Werte'!I18)/'DAX 30 Werte'!I18 -> -0.02320441989 | J18: =('DAX 30 Werte'!J19-'DAX 30 Werte'!J18)/'DAX 30 Werte'!J18 -> -0.03512199444 | K18: =('DAX 30 Werte'!K19-'DAX 30 Werte'!K18)/'DAX 30 Werte'!K18 -> -0.04177352065 | L18: =('DAX 30 Werte'!L19-'DAX 30 Werte'!L18)/'DAX 30 Werte'!L18 -> -0.02140696693 | M18: =('DAX 30 Werte'!M19-'DAX 30 Werte'!M18)/'DAX 30 Werte'!M18 -> -0.01342486651 | N18: =('DAX 30 Werte'!N19-'DAX 30 Werte'!N18)/'DAX 30 Werte'!N18 -> -0.00987224158 | O18: =('DAX 30 Werte'!O19-'DAX 30 Werte'!O18)/'DAX 30 Werte'!O18 -> -0.007318348144 | P18: =('DAX 30 Werte'!P19-'DAX 30 Werte'!P18)/'DAX 30 Werte'!P18 -> -0.02833898305 | Q18: =('DAX 30 Werte'!Q19-'DAX 30 Werte'!Q18)/'DAX 30 Werte'!Q18 -> -0.005565862709 | R18: =('DAX 30 Werte'!R19-'DAX 30 Werte'!R18)/'DAX 30 Werte'!R18 -> -0.04360805413 | S18: =('DAX 30 Werte'!S19-'DAX 30 Werte'!S18)/'DAX 30 Werte'!S18 -> 0.002936241611 | T18: =('DAX 30 Werte'!T19-'DAX 30 Werte'!T18)/'DAX 30 Werte'!T18 -> -0.005608829383 | U18: =('DAX 30 Werte'!U19-'DAX 30 Werte'!U18)/'DAX 30 Werte'!U18 -> -0.001467710372 | V18: =('DAX 30 Werte'!V19-'DAX 30 Werte'!V18)/'DAX 30 Werte'!V18 -> -0.02624142107 | W18: =('DAX 30 Werte'!W19-'DAX 30 Werte'!W18)/'DAX 30 Werte'!W18 -> -0.007125890736 | X18: =('DAX 30 Werte'!X19-'DAX 30 Werte'!X18)/'DAX 30 Werte'!X18 -> -0.007892057026 | Y18: =('DAX 30 Werte'!Y19-'DAX 30 Werte'!Y18)/'DAX 30 Werte'!Y18 -> -0.007080458038 | Z18: =('DAX 30 Werte'!Z19-'DAX 30 Werte'!Z18)/'DAX 30 Werte'!Z18 -> -0.01680327869 | AA18: =('DAX 30 Werte'!AA19-'DAX 30 Werte'!AA18)/'DAX 30 Werte'!AA18 -> -0.0380794702 | AB18: =('DAX 30 Werte'!AB19-'DAX 30 Werte'!AB18)/'DAX 30 Werte'!AB18 -> -0.02107051827 | AC18: =('DAX 30 Werte'!AC19-'DAX 30 Werte'!AC18)/'DAX 30 Werte'!AC18 -> -0.03706896552 | AD18: =('DAX 30 Werte'!AD19-'DAX 30 Werte'!AD18)/'DAX 30 Werte'!AD18 -> -0.03985611511 | AE18: =('DAX 30 Werte'!AD19-'DAX 30 Werte'!AD18)/'DAX 30 Werte'!AD18 -> -0.03985611511
A19: 2009-10-27 | B19: =('DAX 30 Werte'!B20-'DAX 30 Werte'!B19)/'DAX 30 Werte'!B19 -> -0.001265472798 | C19: =('DAX 30 Werte'!C20-'DAX 30 Werte'!C19)/'DAX 30 Werte'!C19 -> -0.001305797824 | D19: =('DAX 30 Werte'!D20-'DAX 30 Werte'!D19)/'DAX 30 Werte'!D19 -> 0.008048276001 | E19: =('DAX 30 Werte'!E20-'DAX 30 Werte'!E19)/'DAX 30 Werte'!E19 -> -0.032017975 | F19: =('DAX 30 Werte'!F20-'DAX 30 Werte'!F19)/'DAX 30 Werte'!F19 -> 0.02322661645 | G19: =('DAX 30 Werte'!G20-'DAX 30 Werte'!G19)/'DAX 30 Werte'!G19 -> -0.009783575452 | H19: =('DAX 30 Werte'!H20-'DAX 30 Werte'!H19)/'DAX 30 Werte'!H19 -> -0.07555555556 | I19: =('DAX 30 Werte'!I20-'DAX 30 Werte'!I19)/'DAX 30 Werte'!I19 -> -0.04389140271 | J19: =('DAX 30 Werte'!J20-'DAX 30 Werte'!J19)/'DAX 30 Werte'!J19 -> -0.01289177636 | K19: =('DAX 30 Werte'!K20-'DAX 30 Werte'!K19)/'DAX 30 Werte'!K19 -> -0.004634873968 | L19: =('DAX 30 Werte'!L20-'DAX 30 Werte'!L19)/'DAX 30 Werte'!L19 -> -0.04221841889 | M19: =('DAX 30 Werte'!M20-'DAX 30 Werte'!M19)/'DAX 30 Werte'!M19 -> 0.005875985774 | N19: =('DAX 30 Werte'!N20-'DAX 30 Werte'!N19)/'DAX 30 Werte'!N19 -> 0.009090909091 | O19: =('DAX 30 Werte'!O20-'DAX 30 Werte'!O19)/'DAX 30 Werte'!O19 -> -0.0005265929437 | P19: =('DAX 30 Werte'!P20-'DAX 30 Werte'!P19)/'DAX 30 Werte'!P19 -> -0.02135082333 | Q19: =('DAX 30 Werte'!Q20-'DAX 30 Werte'!Q19)/'DAX 30 Werte'!Q19 -> 0.008955223881 | R19: =('DAX 30 Werte'!R20-'DAX 30 Werte'!R19)/'DAX 30 Werte'!R19 -> -0.0006246470722 | S19: =('DAX 30 Werte'!S20-'DAX 30 Werte'!S19)/'DAX 30 Werte'!S19 -> 0.01171058135 | T19: =('DAX 30 Werte'!T20-'DAX 30 Werte'!T19)/'DAX 30 Werte'!T19 -> 0.01437409025 | U19: =('DAX 30 Werte'!U20-'DAX 30 Werte'!U19)/'DAX 30 Werte'!U19 -> -0.004082965866 | V19: =('DAX 30 Werte'!V20-'DAX 30 Werte'!V19)/'DAX 30 Werte'!V19 -> -0.01907131012 | W19: =('DAX 30 Werte'!W20-'DAX 30 Werte'!W19)/'DAX 30 Werte'!W19 -> 0.0005980861244 | X19: =('DAX 30 Werte'!X20-'DAX 30 Werte'!X19)/'DAX 30 Werte'!X19 -> -0.005388760585 | Y19: =('DAX 30 Werte'!Y20-'DAX 30 Werte'!Y19)/'DAX 30 Werte'!Y19 -> -0.002139291657 | Z19: =('DAX 30 Werte'!Z20-'DAX 30 Werte'!Z19)/'DAX 30 Werte'!Z19 -> -0.02334305961 | AA19: =('DAX 30 Werte'!AA20-'DAX 30 Werte'!AA19)/'DAX 30 Werte'!AA19 -> -0.05619302607 | AB19: =('DAX 30 Werte'!AB20-'DAX 30 Werte'!AB19)/'DAX 30 Werte'!AB19 -> -0.02430133657 | AC19: =('DAX 30 Werte'!AC20-'DAX 30 Werte'!AC19)/'DAX 30 Werte'!AC19 -> -0.01790510295 | AD19: =('DAX 30 Werte'!AD20-'DAX 30 Werte'!AD19)/'DAX 30 Werte'!AD19 -> -0.003596583246 | AE19: =('DAX 30 Werte'!AD20-'DAX 30 Werte'!AD19)/'DAX 30 Werte'!AD19 -> -0.003596583246
A20: 2009-10-28 | B20: =('DAX 30 Werte'!B21-'DAX 30 Werte'!B20)/'DAX 30 Werte'!B20 -> -0.02462280524 | C20: =('DAX 30 Werte'!C21-'DAX 30 Werte'!C20)/'DAX 30 Werte'!C20 -> -0.03242682885 | D20: =('DAX 30 Werte'!D21-'DAX 30 Werte'!D20)/'DAX 30 Werte'!D20 -> -0.02169001938 | E20: =('DAX 30 Werte'!E21-'DAX 30 Werte'!E20)/'DAX 30 Werte'!E20 -> -0.03888002321 | F20: =('DAX 30 Werte'!F21-'DAX 30 Werte'!F20)/'DAX 30 Werte'!F20 -> 0.006748466258 | G20: =('DAX 30 Werte'!G21-'DAX 30 Werte'!G20)/'DAX 30 Werte'!G20 -> -0.0374251497 | H20: =('DAX 30 Werte'!H21-'DAX 30 Werte'!H20)/'DAX 30 Werte'!H20 -> -0.02403846154 | I20: =('DAX 30 Werte'!I21-'DAX 30 Werte'!I20)/'DAX 30 Werte'!I20 -> -0.05986748699 | J20: =('DAX 30 Werte'!J21-'DAX 30 Werte'!J20)/'DAX 30 Werte'!J20 -> -0.0307298717 | K20: =('DAX 30 Werte'!K21-'DAX 30 Werte'!K20)/'DAX 30 Werte'!K20 -> -0.03091634885 | L20: =('DAX 30 Werte'!L21-'DAX 30 Werte'!L20)/'DAX 30 Werte'!L20 -> -0.04946216102 | M20: =('DAX 30 Werte'!M21-'DAX 30 Werte'!M20)/'DAX 30 Werte'!M20 -> -0.03013066872 | N20: =('DAX 30 Werte'!N21-'DAX 30 Werte'!N20)/'DAX 30 Werte'!N20 -> -0.07730310956 | O20: =('DAX 30 Werte'!O21-'DAX 30 Werte'!O20)/'DAX 30 Werte'!O20 -> 0.01106427819 | P20: =('DAX 30 Werte'!P21-'DAX 30 Werte'!P20)/'DAX 30 Werte'!P20 -> -0.05275916156 | Q20: =('DAX 30 Werte'!Q21-'DAX 30 Werte'!Q20)/'DAX 30 Werte'!Q20 -> -0.005177514793 | R20: =('DAX 30 Werte'!R21-'DAX 30 Werte'!R20)/'DAX 30 Werte'!R20 -> -0.0149999625 | S20: =('DAX 30 Werte'!S21-'DAX 30 Werte'!S20)/'DAX 30 Werte'!S20 -> -0.0093013642 | T20: =('DAX 30 Werte'!T21-'DAX 30 Werte'!T20)/'DAX 30 Werte'!T20 -> -0.003587443946 | U20: =('DAX 30 Werte'!U21-'DAX 30 Werte'!U20)/'DAX 30 Werte'!U20 -> 0.005903574943 | V20: =('DAX 30 Werte'!V21-'DAX 30 Werte'!V20)/'DAX 30 Werte'!V20 -> -0.03212172443 | W20: =('DAX 30 Werte'!W21-'DAX 30 Werte'!W20)/'DAX 30 Werte'!W20 -> -0.003885236103 | X20: =('DAX 30 Werte'!X21-'DAX 30 Werte'!X20)/'DAX 30 Werte'!X20 -> -0.02631578947 | Y20: =('DAX 30 Werte'!Y21-'DAX 30 Werte'!Y20)/'DAX 30 Werte'!Y20 -> -0.007860838495 | Z20: =('DAX 30 Werte'!Z21-'DAX 30 Werte'!Z20)/'DAX 30 Werte'!Z20 -> -0.06103286385 | AA20: =('DAX 30 Werte'!AA21-'DAX 30 Werte'!AA20)/'DAX 30 Werte'!AA20 -> -0.06158184458 | AB20: =('DAX 30 Werte'!AB21-'DAX 30 Werte'!AB20)/'DAX 30 Werte'!AB20 -> -0.02810887742 | AC20: =('DAX 30 Werte'!AC21-'DAX 30 Werte'!AC20)/'DAX 30 Werte'!AC20 -> -0.0546946217 | AD20: =('DAX 30 Werte'!AD21-'DAX 30 Werte'!AD20)/'DAX 30 Werte'!AD20 -> -0.009775906151 | AE20: =('DAX 30 Werte'!AD21-'DAX 30 Werte'!AD20)/'DAX 30 Werte'!AD20 -> -0.009775906151
A21: 2009-10-29 | B21: =('DAX 30 Werte'!B22-'DAX 30 Werte'!B21)/'DAX 30 Werte'!B21 -> 0.01658943247 | C21: =('DAX 30 Werte'!C22-'DAX 30 Werte'!C21)/'DAX 30 Werte'!C21 -> 0.0113512973 | D21: =('DAX 30 Werte'!D22-'DAX 30 Werte'!D21)/'DAX 30 Werte'!D21 -> 0.006120838117 | E21: =('DAX 30 Werte'!E22-'DAX 30 Werte'!E21)/'DAX 30 Werte'!E21 -> 0.02430188679 | F21: =('DAX 30 Werte'!F22-'DAX 30 Werte'!F21)/'DAX 30 Werte'!F21 -> 0.01432053626 | G21: =('DAX 30 Werte'!G22-'DAX 30 Werte'!G21)/'DAX 30 Werte'!G21 -> 0.01897356143 | H21: =('DAX 30 Werte'!H22-'DAX 30 Werte'!H21)/'DAX 30 Werte'!H21 -> 0.06239737274 | I21: =('DAX 30 Werte'!I22-'DAX 30 Werte'!I21)/'DAX 30 Werte'!I21 -> 0.03423105965 | J21: =('DAX 30 Werte'!J22-'DAX 30 Werte'!J21)/'DAX 30 Werte'!J21 -> 0.01585205393 | K21: =('DAX 30 Werte'!K22-'DAX 30 Werte'!K21)/'DAX 30 Werte'!K21 -> 0.0560330434 | L21: =('DAX 30 Werte'!L22-'DAX 30 Werte'!L21)/'DAX 30 Werte'!L21 -> 0.07132024518 | M21: =('DAX 30 Werte'!M22-'DAX 30 Werte'!M21)/'DAX 30 Werte'!M21 -> 0.02266603265 | N21: =('DAX 30 Werte'!N22-'DAX 30 Werte'!N21)/'DAX 30 Werte'!N21 -> -0.005511811024 | O21: =('DAX 30 Werte'!O22-'DAX 30 Werte'!O21)/'DAX 30 Werte'!O21 -> -0.002084418968 | P21: =('DAX 30 Werte'!P22-'DAX 30 Werte'!P21)/'DAX 30 Werte'!P21 -> 0.04124642481 | Q21: =('DAX 30 Werte'!Q22-'DAX 30 Werte'!Q21)/'DAX 30 Werte'!Q21 -> -0.008178438662 | R21: =('DAX 30 Werte'!R22-'DAX 30 Werte'!R21)/'DAX 30 Werte'!R21 -> 0.03616749862 | S21: =('DAX 30 Werte'!S22-'DAX 30 Werte'!S21)/'DAX 30 Werte'!S21 -> 0.007302315877 | T21: =('DAX 30 Werte'!T22-'DAX 30 Werte'!T21)/'DAX 30 Werte'!T21 -> -0.000900090009 | U21: =('DAX 30 Werte'!U22-'DAX 30 Werte'!U21)/'DAX 30 Werte'!U21 -> -0.007662210629 | V21: =('DAX 30 Werte'!V22-'DAX 30 Werte'!V21)/'DAX 30 Werte'!V21 -> 0.0288209607 | W21: =('DAX 30 Werte'!W22-'DAX 30 Werte'!W21)/'DAX 30 Werte'!W21 -> 0.0201020102 | X21: =('DAX 30 Werte'!X22-'DAX 30 Werte'!X21)/'DAX 30 Werte'!X21 -> 0.01271860095 | Y21: =('DAX 30 Werte'!Y22-'DAX 30 Werte'!Y21)/'DAX 30 Werte'!Y21 -> 0.006962712751 | Z21: =('DAX 30 Werte'!Z22-'DAX 30 Werte'!Z21)/'DAX 30 Werte'!Z21 -> 0.02818181818 | AA21: =('DAX 30 Werte'!AA22-'DAX 30 Werte'!AA21)/'DAX 30 Werte'!AA21 -> 0.0620062978 | AB21: =('DAX 30 Werte'!AB22-'DAX 30 Werte'!AB21)/'DAX 30 Werte'!AB21 -> 0.05363353469 | AC21: =('DAX 30 Werte'!AC22-'DAX 30 Werte'!AC21)/'DAX 30 Werte'!AC21 -> 0.02603664417 | AD21: =('DAX 30 Werte'!AD22-'DAX 30 Werte'!AD21)/'DAX 30 Werte'!AD21 -> -0.003189550425 | AE21: =('DAX 30 Werte'!AD22-'DAX 30 Werte'!AD21)/'DAX 30 Werte'!AD21 -> -0.003189550425
A22: 2009-10-30 | B22: =('DAX 30 Werte'!B23-'DAX 30 Werte'!B22)/'DAX 30 Werte'!B22 -> -0.03087096976 | C22: =('DAX 30 Werte'!C23-'DAX 30 Werte'!C22)/'DAX 30 Werte'!C22 -> -0.02458573087 | D22: =('DAX 30 Werte'!D23-'DAX 30 Werte'!D22)/'DAX 30 Werte'!D22 -> -0.03487903157 | E22: =('DAX 30 Werte'!E23-'DAX 30 Werte'!E22)/'DAX 30 Werte'!E22 -> -0.01871500147 | F22: =('DAX 30 Werte'!F23-'DAX 30 Werte'!F22)/'DAX 30 Werte'!F22 -> -0.01021327726 | G22: =('DAX 30 Werte'!G23-'DAX 30 Werte'!G22)/'DAX 30 Werte'!G22 -> -0.03846153846 | H22: =('DAX 30 Werte'!H23-'DAX 30 Werte'!H22)/'DAX 30 Werte'!H22 -> -0.05255023184 | I22: =('DAX 30 Werte'!I23-'DAX 30 Werte'!I22)/'DAX 30 Werte'!I22 -> -0.00876125578 | J22: =('DAX 30 Werte'!J23-'DAX 30 Werte'!J22)/'DAX 30 Werte'!J22 -> -0.03302986763 | K22: =('DAX 30 Werte'!K23-'DAX 30 Werte'!K22)/'DAX 30 Werte'!K22 -> -0.04037537961 | L22: =('DAX 30 Werte'!L23-'DAX 30 Werte'!L22)/'DAX 30 Werte'!L22 -> -0.03328614646 | M22: =('DAX 30 Werte'!M23-'DAX 30 Werte'!M22)/'DAX 30 Werte'!M22 -> -0.04727216367 | N22: =('DAX 30 Werte'!N23-'DAX 30 Werte'!N22)/'DAX 30 Werte'!N22 -> -0.02454473476 | O22: =('DAX 30 Werte'!O23-'DAX 30 Werte'!O22)/'DAX 30 Werte'!O22 -> -0.02976501305 | P22: =('DAX 30 Werte'!P23-'DAX 30 Werte'!P22)/'DAX 30 Werte'!P22 -> -0.04351597513 | Q22: =('DAX 30 Werte'!Q23-'DAX 30 Werte'!Q22)/'DAX 30 Werte'!Q22 -> -0.02211394303 | R22: =('DAX 30 Werte'!R23-'DAX 30 Werte'!R22)/'DAX 30 Werte'!R22 -> -0.04421311588 | S22: =('DAX 30 Werte'!S23-'DAX 30 Werte'!S22)/'DAX 30 Werte'!S22 -> -0.02174813587 | T22: =('DAX 30 Werte'!T23-'DAX 30 Werte'!T22)/'DAX 30 Werte'!T22 -> -0.03027027027 | U22: =('DAX 30 Werte'!U23-'DAX 30 Werte'!U22)/'DAX 30 Werte'!U22 -> -0.01922129128 | V22: =('DAX 30 Werte'!V23-'DAX 30 Werte'!V22)/'DAX 30 Werte'!V22 -> -0.02419354839 | W22: =('DAX 30 Werte'!W23-'DAX 30 Werte'!W22)/'DAX 30 Werte'!W22 -> -0.004117647059 | X22: =('DAX 30 Werte'!X23-'DAX 30 Werte'!X22)/'DAX 30 Werte'!X22 -> -0.01203558346 | Y22: =('DAX 30 Werte'!Y23-'DAX 30 Werte'!Y22)/'DAX 30 Werte'!Y22 -> -0.000953671935 | Z22: =('DAX 30 Werte'!Z23-'DAX 30 Werte'!Z22)/'DAX 30 Werte'!Z22 -> -0.03183023873 | AA22: =('DAX 30 Werte'!AA23-'DAX 30 Werte'!AA22)/'DAX 30 Werte'!AA22 -> -0.03597024788 | AB22: =('DAX 30 Werte'!AB23-'DAX 30 Werte'!AB22)/'DAX 30 Werte'!AB22 -> -0.02744961779 | AC22: =('DAX 30 Werte'!AC23-'DAX 30 Werte'!AC22)/'DAX 30 Werte'!AC22 -> -0.01315789474 | AD22: =('DAX 30 Werte'!AD23-'DAX 30 Werte'!AD22)/'DAX 30 Werte'!AD22 -> -0.02620752705 | AE22: =('DAX 30 Werte'!AD23-'DAX 30 Werte'!AD22)/'DAX 30 Werte'!AD22 -> -0.02620752705
A23: 2009-11-02 | B23: =('DAX 30 Werte'!B24-'DAX 30 Werte'!B23)/'DAX 30 Werte'!B23 -> 0.002928922836 | C23: =('DAX 30 Werte'!C24-'DAX 30 Werte'!C23)/'DAX 30 Werte'!C23 -> -0.001643863014 | D23: =('DAX 30 Werte'!D24-'DAX 30 Werte'!D23)/'DAX 30 Werte'!D23 -> 0.02521365773 | E23: =('DAX 30 Werte'!E24-'DAX 30 Werte'!E23)/'DAX 30 Werte'!E23 -> 0.009310707313 | F23: =('DAX 30 Werte'!F24-'DAX 30 Werte'!F23)/'DAX 30 Werte'!F23 -> -0.006069802731 | G23: =('DAX 30 Werte'!G24-'DAX 30 Werte'!G23)/'DAX 30 Werte'!G23 -> 0.0380952381 | H23: =('DAX 30 Werte'!H24-'DAX 30 Werte'!H23)/'DAX 30 Werte'!H23 -> 0.04078303426 | I23: =('DAX 30 Werte'!I24-'DAX 30 Werte'!I23)/'DAX 30 Werte'!I23 -> 0.0311809477 | J23: =('DAX 30 Werte'!J24-'DAX 30 Werte'!J23)/'DAX 30 Werte'!J23 -> 0.0002689254933 | K23: =('DAX 30 Werte'!K24-'DAX 30 Werte'!K23)/'DAX 30 Werte'!K23 -> -0.001917386516 | L23: =('DAX 30 Werte'!L24-'DAX 30 Werte'!L23)/'DAX 30 Werte'!L23 -> -0.009901078415 | M23: =('DAX 30 Werte'!M24-'DAX 30 Werte'!M23)/'DAX 30 Werte'!M23 -> 0.00439238653 | N23: =('DAX 30 Werte'!N24-'DAX 30 Werte'!N23)/'DAX 30 Werte'!N23 -> 0.01607142857 | O23: =('DAX 30 Werte'!O24-'DAX 30 Werte'!O23)/'DAX 30 Werte'!O23 -> 0.003767491927 | P23: =('DAX 30 Werte'!P24-'DAX 30 Werte'!P23)/'DAX 30 Werte'!P23 -> -0.001209189843 | Q23: =('DAX 30 Werte'!Q24-'DAX 30 Werte'!Q23)/'DAX 30 Werte'!Q23 -> -0.00728248371 | R23: =('DAX 30 Werte'!R24-'DAX 30 Werte'!R23)/'DAX 30 Werte'!R23 -> 0.008585315113 | S23: =('DAX 30 Werte'!S24-'DAX 30 Werte'!S23)/'DAX 30 Werte'!S23 -> -0.002117298327 | T23: =('DAX 30 Werte'!T24-'DAX 30 Werte'!T23)/'DAX 30 Werte'!T23 -> 0.003158677072 | U23: =('DAX 30 Werte'!U24-'DAX 30 Werte'!U23)/'DAX 30 Werte'!U23 -> 0.002177554439 | V23: =('DAX 30 Werte'!V24-'DAX 30 Werte'!V23)/'DAX 30 Werte'!V23 -> -0.001304915181 | W23: =('DAX 30 Werte'!W24-'DAX 30 Werte'!W23)/'DAX 30 Werte'!W23 -> -0.00915534554 | X23: =('DAX 30 Werte'!X24-'DAX 30 Werte'!X23)/'DAX 30 Werte'!X23 -> -0.00688559322 | Y23: =('DAX 30 Werte'!Y24-'DAX 30 Werte'!Y23)/'DAX 30 Werte'!Y23 -> -0.01217190873 | Z23: =('DAX 30 Werte'!Z24-'DAX 30 Werte'!Z23)/'DAX 30 Werte'!Z23 -> 0.009132420091 | AA23: =('DAX 30 Werte'!AA24-'DAX 30 Werte'!AA23)/'DAX 30 Werte'!AA23 -> 0.01267179866 | AB23: =('DAX 30 Werte'!AB24-'DAX 30 Werte'!AB23)/'DAX 30 Werte'!AB23 -> -0.00571632726 | AC23: =('DAX 30 Werte'!AC24-'DAX 30 Werte'!AC23)/'DAX 30 Werte'!AC23 -> -0.00380952381 | AD23: =('DAX 30 Werte'!AD24-'DAX 30 Werte'!AD23)/'DAX 30 Werte'!AD23 -> -0.00625880144 | AE23: =('DAX 30 Werte'!AD24-'DAX 30 Werte'!AD23)/'DAX 30 Werte'!AD23 -> -0.00625880144
A24: 2009-11-03 | B24: =('DAX 30 Werte'!B25-'DAX 30 Werte'!B24)/'DAX 30 Werte'!B24 -> -0.01426488081 | C24: =('DAX 30 Werte'!C25-'DAX 30 Werte'!C24)/'DAX 30 Werte'!C24 -> -0.005488392028 | D24: =('DAX 30 Werte'!D25-'DAX 30 Werte'!D24)/'DAX 30 Werte'!D24 -> 0.001366293172 | E24: =('DAX 30 Werte'!E25-'DAX 30 Werte'!E24)/'DAX 30 Werte'!E24 -> -0.06263948817 | F24: =('DAX 30 Werte'!F25-'DAX 30 Werte'!F24)/'DAX 30 Werte'!F24 -> 0.04549618321 | G24: =('DAX 30 Werte'!G25-'DAX 30 Werte'!G24)/'DAX 30 Werte'!G24 -> -0.001834862385 | H24: =('DAX 30 Werte'!H25-'DAX 30 Werte'!H24)/'DAX 30 Werte'!H24 -> -0.04231974922 | I24: =('DAX 30 Werte'!I25-'DAX 30 Werte'!I24)/'DAX 30 Werte'!I24 -> -0.03642857143 | J24: =('DAX 30 Werte'!J25-'DAX 30 Werte'!J24)/'DAX 30 Werte'!J24 -> 0.010486721 | K24: =('DAX 30 Werte'!K25-'DAX 30 Werte'!K24)/'DAX 30 Werte'!K24 -> -0.04164977144 | L24: =('DAX 30 Werte'!L25-'DAX 30 Werte'!L24)/'DAX 30 Werte'!L24 -> -0.01044754157 | M24: =('DAX 30 Werte'!M25-'DAX 30 Werte'!M24)/'DAX 30 Werte'!M24 -> -0.01846452867 | N24: =('DAX 30 Werte'!N25-'DAX 30 Werte'!N24)/'DAX 30 Werte'!N24 -> 0.00862757629 | O24: =('DAX 30 Werte'!O25-'DAX 30 Werte'!O24)/'DAX 30 Werte'!O24 -> -0.01501340483 | P24: =('DAX 30 Werte'!P25-'DAX 30 Werte'!P24)/'DAX 30 Werte'!P24 -> -0.0443401937 | Q24: =('DAX 30 Werte'!Q25-'DAX 30 Werte'!Q24)/'DAX 30 Werte'!Q24 -> -0.01467181467 | R24: =('DAX 30 Werte'!R25-'DAX 30 Werte'!R24)/'DAX 30 Werte'!R24 -> -0.01257779205 | S24: =('DAX 30 Werte'!S25-'DAX 30 Werte'!S24)/'DAX 30 Werte'!S24 -> -0.006365372374 | T24: =('DAX 30 Werte'!T25-'DAX 30 Werte'!T24)/'DAX 30 Werte'!T24 -> -0.01879977774 | U24: =('DAX 30 Werte'!U25-'DAX 30 Werte'!U24)/'DAX 30 Werte'!U24 -> -0.01337121845 | V24: =('DAX 30 Werte'!V25-'DAX 30 Werte'!V24)/'DAX 30 Werte'!V24 -> -0.0100174216 | W24: =('DAX 30 Werte'!W25-'DAX 30 Werte'!W24)/'DAX 30 Werte'!W24 -> 0.04679582712 | X24: =('DAX 30 Werte'!X25-'DAX 30 Werte'!X24)/'DAX 30 Werte'!X24 -> 0.0424 | Y24: =('DAX 30 Werte'!Y25-'DAX 30 Werte'!Y24)/'DAX 30 Werte'!Y24 -> 0.03334141177 | Z24: =('DAX 30 Werte'!Z25-'DAX 30 Werte'!Z24)/'DAX 30 Werte'!Z24 -> -0.01628959276 | AA24: =('DAX 30 Werte'!AA25-'DAX 30 Werte'!AA24)/'DAX 30 Werte'!AA24 -> -0.04033391763 | AB24: =('DAX 30 Werte'!AB25-'DAX 30 Werte'!AB24)/'DAX 30 Werte'!AB24 -> -0.03269852677 | AC24: =('DAX 30 Werte'!AC25-'DAX 30 Werte'!AC24)/'DAX 30 Werte'!AC24 -> 0.0004780114723 | AD24: =('DAX 30 Werte'!AD25-'DAX 30 Werte'!AD24)/'DAX 30 Werte'!AD24 -> -0.002046921745 | AE24: =('DAX 30 Werte'!AD25-'DAX 30 Werte'!AD24)/'DAX 30 Werte'!AD24 -> -0.002046921745
A25: 2009-11-04 | B25: =('DAX 30 Werte'!B26-'DAX 30 Werte'!B25)/'DAX 30 Werte'!B25 -> 0.01697628588 | C25: =('DAX 30 Werte'!C26-'DAX 30 Werte'!C25)/'DAX 30 Werte'!C25 -> 0.01986746579 | D25: =('DAX 30 Werte'!D26-'DAX 30 Werte'!D25)/'DAX 30 Werte'!D25 -> 0.02592442317 | E25: =('DAX 30 Werte'!E26-'DAX 30 Werte'!E25)/'DAX 30 Werte'!E25 -> 0.02492063492 | F25: =('DAX 30 Werte'!F26-'DAX 30 Werte'!F25)/'DAX 30 Werte'!F25 -> 0.01664719626 | G25: =('DAX 30 Werte'!G26-'DAX 30 Werte'!G25)/'DAX 30 Werte'!G25 -> 0.03768382353 | H25: =('DAX 30 Werte'!H26-'DAX 30 Werte'!H25)/'DAX 30 Werte'!H25 -> 0.07037643208 | I25: =('DAX 30 Werte'!I26-'DAX 30 Werte'!I25)/'DAX 30 Werte'!I25 -> 0.06251544354 | J25: =('DAX 30 Werte'!J26-'DAX 30 Werte'!J25)/'DAX 30 Werte'!J25 -> 0.02527941534 | K25: =('DAX 30 Werte'!K26-'DAX 30 Werte'!K25)/'DAX 30 Werte'!K25 -> 0.02320618523 | L25: =('DAX 30 Werte'!L26-'DAX 30 Werte'!L25)/'DAX 30 Werte'!L25 -> 0.01523437263 | M25: =('DAX 30 Werte'!M26-'DAX 30 Werte'!M25)/'DAX 30 Werte'!M25 -> 0.01287128713 | N25: =('DAX 30 Werte'!N26-'DAX 30 Werte'!N25)/'DAX 30 Werte'!N25 -> 0.005702518612 | O25: =('DAX 30 Werte'!O26-'DAX 30 Werte'!O25)/'DAX 30 Werte'!O25 -> 0.01088731628 | P25: =('DAX 30 Werte'!P26-'DAX 30 Werte'!P25)/'DAX 30 Werte'!P25 -> 0.03135391924 | Q25: =('DAX 30 Werte'!Q26-'DAX 30 Werte'!Q25)/'DAX 30 Werte'!Q25 -> 0.02155172414 | R25: =('DAX 30 Werte'!R26-'DAX 30 Werte'!R25)/'DAX 30 Werte'!R25 -> 0.02097268372 | S25: =('DAX 30 Werte'!S26-'DAX 30 Werte'!S25)/'DAX 30 Werte'!S25 -> 0.0008541533205 | T25: =('DAX 30 Werte'!T26-'DAX 30 Werte'!T25)/'DAX 30 Werte'!T25 -> 0.01349693252 | U25: =('DAX 30 Werte'!U26-'DAX 30 Werte'!U25)/'DAX 30 Werte'!U25 -> 0.004573945451 | V25: =('DAX 30 Werte'!V26-'DAX 30 Werte'!V25)/'DAX 30 Werte'!V25 -> 0.03607567092 | W25: =('DAX 30 Werte'!W26-'DAX 30 Werte'!W25)/'DAX 30 Werte'!W25 -> 0.01822323462 | X25: =('DAX 30 Werte'!X26-'DAX 30 Werte'!X25)/'DAX 30 Werte'!X25 -> 0.01381427475 | Y25: =('DAX 30 Werte'!Y26-'DAX 30 Werte'!Y25)/'DAX 30 Werte'!Y25 -> -0.03086273089 | Z25: =('DAX 30 Werte'!Z26-'DAX 30 Werte'!Z25)/'DAX 30 Werte'!Z25 -> 0.03173873045 | AA25: =('DAX 30 Werte'!AA26-'DAX 30 Werte'!AA25)/'DAX 30 Werte'!AA25 -> 0.04419929469 | AB25: =('DAX 30 Werte'!AB26-'DAX 30 Werte'!AB25)/'DAX 30 Werte'!AB25 -> 0.01690193165 | AC25: =('DAX 30 Werte'!AC26-'DAX 30 Werte'!AC25)/'DAX 30 Werte'!AC25 -> 0.03057811753 | AD25: =('DAX 30 Werte'!AD26-'DAX 30 Werte'!AD25)/'DAX 30 Werte'!AD25 -> 0.01435784159 | AE25: =('DAX 30 Werte'!AD26-'DAX 30 Werte'!AD25)/'DAX 30 Werte'!AD25 -> 0.01435784159
A26: 2009-11-05 | B26: =('DAX 30 Werte'!B27-'DAX 30 Werte'!B26)/'DAX 30 Werte'!B26 -> 0.006739245036 | C26: =('DAX 30 Werte'!C27-'DAX 30 Werte'!C26)/'DAX 30 Werte'!C26 -> 0.02462121279 | D26: =('DAX 30 Werte'!D27-'DAX 30 Werte'!D26)/'DAX 30 Werte'!D26 -> 0.01955049822 | E26: =('DAX 30 Werte'!E27-'DAX 30 Werte'!E26)/'DAX 30 Werte'!E26 -> 0.01533219761 | F26: =('DAX 30 Werte'!F27-'DAX 30 Werte'!F26)/'DAX 30 Werte'!F26 -> 0.009480034473 | G26: =('DAX 30 Werte'!G27-'DAX 30 Werte'!G26)/'DAX 30 Werte'!G26 -> 0.01003838205 | H26: =('DAX 30 Werte'!H27-'DAX 30 Werte'!H26)/'DAX 30 Werte'!H26 -> -0.01987767584 | I26: =('DAX 30 Werte'!I27-'DAX 30 Werte'!I26)/'DAX 30 Werte'!I26 -> 0.04581395349 | J26: =('DAX 30 Werte'!J27-'DAX 30 Werte'!J26)/'DAX 30 Werte'!J26 -> 0.004671738039 | K26: =('DAX 30 Werte'!K27-'DAX 30 Werte'!K26)/'DAX 30 Werte'!K26 -> -0.009897164395 | L26: =('DAX 30 Werte'!L27-'DAX 30 Werte'!L26)/'DAX 30 Werte'!L26 -> 0.01173558759 | M26: =('DAX 30 Werte'!M27-'DAX 30 Werte'!M26)/'DAX 30 Werte'!M26 -> 0.01254480287 | N26: =('DAX 30 Werte'!N27-'DAX 30 Werte'!N26)/'DAX 30 Werte'!N26 -> 0 | O26: =('DAX 30 Werte'!O27-'DAX 30 Werte'!O26)/'DAX 30 Werte'!O26 -> 0.02315562736 | P26: =('DAX 30 Werte'!P27-'DAX 30 Werte'!P26)/'DAX 30 Werte'!P26 -> 0.002917242438 | Q26: =('DAX 30 Werte'!Q27-'DAX 30 Werte'!Q26)/'DAX 30 Werte'!Q26 -> 0.008055235903 | R26: =('DAX 30 Werte'!R27-'DAX 30 Werte'!R26)/'DAX 30 Werte'!R26 -> -0.00730940157 | S26: =('DAX 30 Werte'!S27-'DAX 30 Werte'!S26)/'DAX 30 Werte'!S26 -> 0.02410923832 | T26: =('DAX 30 Werte'!T27-'DAX 30 Werte'!T26)/'DAX 30 Werte'!T26 -> -0.01098901099 | U26: =('DAX 30 Werte'!U27-'DAX 30 Werte'!U26)/'DAX 30 Werte'!U26 -> -0.003035413153 | V26: =('DAX 30 Werte'!V27-'DAX 30 Werte'!V26)/'DAX 30 Werte'!V26 -> 0.002123142251 | W26: =('DAX 30 Werte'!W27-'DAX 30 Werte'!W26)/'DAX 30 Werte'!W26 -> 0.003914988814 | X26: =('DAX 30 Werte'!X27-'DAX 30 Werte'!X26)/'DAX 30 Werte'!X26 -> 0.03280343174 | Y26: =('DAX 30 Werte'!Y27-'DAX 30 Werte'!Y26)/'DAX 30 Werte'!Y26 -> 0.004825114479 | Z26: =('DAX 30 Werte'!Z27-'DAX 30 Werte'!Z26)/'DAX 30 Werte'!Z26 -> 0.008916629514 | AA26: =('DAX 30 Werte'!AA27-'DAX 30 Werte'!AA26)/'DAX 30 Werte'!AA26 -> -0.04650236409 | AB26: =('DAX 30 Werte'!AB27-'DAX 30 Werte'!AB26)/'DAX 30 Werte'!AB26 -> 0.01205479452 | AC26: =('DAX 30 Werte'!AC27-'DAX 30 Werte'!AC26)/'DAX 30 Werte'!AC26 -> -0.004172461752 | AD26: =('DAX 30 Werte'!AD27-'DAX 30 Werte'!AD26)/'DAX 30 Werte'!AD26 -> 0.01119925338 | AE26: =('DAX 30 Werte'!AD27-'DAX 30 Werte'!AD26)/'DAX 30 Werte'!AD26 -> 0.01119925338
A27: 2009-11-06 | B27: =('DAX 30 Werte'!B28-'DAX 30 Werte'!B27)/'DAX 30 Werte'!B27 -> 0.001337366719 | C27: =('DAX 30 Werte'!C28-'DAX 30 Werte'!C27)/'DAX 30 Werte'!C27 -> -0.008449960614 | D27: =('DAX 30 Werte'!D28-'DAX 30 Werte'!D27)/'DAX 30 Werte'!D27 -> 0.001695760412 | E27: =('DAX 30 Werte'!E28-'DAX 30 Werte'!E27)/'DAX 30 Werte'!E27 -> 0.00884685784 | F27: =('DAX 30 Werte'!F28-'DAX 30 Werte'!F27)/'DAX 30 Werte'!F27 -> -0.005976095618 | G27: =('DAX 30 Werte'!G28-'DAX 30 Werte'!G27)/'DAX 30 Werte'!G27 -> 0.0008769365683 | H27: =('DAX 30 Werte'!H28-'DAX 30 Werte'!H27)/'DAX 30 Werte'!H27 -> 0.007800312012 | I27: =('DAX 30 Werte'!I28-'DAX 30 Werte'!I27)/'DAX 30 Werte'!I27 -> -0.01200800534 | J27: =('DAX 30 Werte'!J28-'DAX 30 Werte'!J27)/'DAX 30 Werte'!J27 -> 0.001808264751 | K27: =('DAX 30 Werte'!K28-'DAX 30 Werte'!K27)/'DAX 30 Werte'!K27 -> 0.003541996161 | L27: =('DAX 30 Werte'!L28-'DAX 30 Werte'!L27)/'DAX 30 Werte'!L27 -> 0.02305415052 | M27: =('DAX 30 Werte'!M28-'DAX 30 Werte'!M27)/'DAX 30 Werte'!M27 -> -0.003057119871 | N27: =('DAX 30 Werte'!N28-'DAX 30 Werte'!N27)/'DAX 30 Werte'!N27 -> -0.009450307135 | O27: =('DAX 30 Werte'!O28-'DAX 30 Werte'!O27)/'DAX 30 Werte'!O27 -> -0.005789473684 | P27: =('DAX 30 Werte'!P28-'DAX 30 Werte'!P27)/'DAX 30 Werte'!P27 -> 0.01684017146 | Q27: =('DAX 30 Werte'!Q28-'DAX 30 Werte'!Q27)/'DAX 30 Werte'!Q27 -> -0.002283105023 | R27: =('DAX 30 Werte'!R28-'DAX 30 Werte'!R27)/'DAX 30 Werte'!R27 -> 0.006855414759 | S27: =('DAX 30 Werte'!S28-'DAX 30 Werte'!S27)/'DAX 30 Werte'!S27 -> 0.0075 | T27: =('DAX 30 Werte'!T28-'DAX 30 Werte'!T27)/'DAX 30 Werte'!T27 -> -0.008380414313 | U27: =('DAX 30 Werte'!U28-'DAX 30 Werte'!U27)/'DAX 30 Werte'!U27 -> 0.003044654939 | V27: =('DAX 30 Werte'!V28-'DAX 30 Werte'!V27)/'DAX 30 Werte'!V27 -> 0.01101694915 | W27: =('DAX 30 Werte'!W28-'DAX 30 Werte'!W27)/'DAX 30 Werte'!W27 -> 0.005013927577 | X27: =('DAX 30 Werte'!X28-'DAX 30 Werte'!X27)/'DAX 30 Werte'!X27 -> 0 | Y27: =('DAX 30 Werte'!Y28-'DAX 30 Werte'!Y27)/'DAX 30 Werte'!Y27 -> -0.00384153643 | Z27: =('DAX 30 Werte'!Z28-'DAX 30 Werte'!Z27)/'DAX 30 Werte'!Z27 -> 0.01060539107 | AA27: =('DAX 30 Werte'!AA28-'DAX 30 Werte'!AA27)/'DAX 30 Werte'!AA27 -> 0.01166127802 | AB27: =('DAX 30 Werte'!AB28-'DAX 30 Werte'!AB27)/'DAX 30 Werte'!AB27 -> 0.01371593575 | AC27: =('DAX 30 Werte'!AC28-'DAX 30 Werte'!AC27)/'DAX 30 Werte'!AC27 -> 0.02979515829 | AD27: =('DAX 30 Werte'!AD28-'DAX 30 Werte'!AD27)/'DAX 30 Werte'!AD27 -> -0.0006152899554 | AE27: =('DAX 30 Werte'!AD28-'DAX 30 Werte'!AD27)/'DAX 30 Werte'!AD27 -> -0.0006152899554
A28: 2009-11-09 | B28: =('DAX 30 Werte'!B29-'DAX 30 Werte'!B28)/'DAX 30 Werte'!B28 -> 0.02395481255 | C28: =('DAX 30 Werte'!C29-'DAX 30 Werte'!C28)/'DAX 30 Werte'!C28 -> 0.02529962784 | D28: =('DAX 30 Werte'!D29-'DAX 30 Werte'!D28)/'DAX 30 Werte'!D28 -> 0.01510608132 | E28: =('DAX 30 Werte'!E29-'DAX 30 Werte'!E28)/'DAX 30 Werte'!E28 -> 0.01149077714 | F28: =('DAX 30 Werte'!F29-'DAX 30 Werte'!F28)/'DAX 30 Werte'!F28 -> -0.0008588605783 | G28: =('DAX 30 Werte'!G29-'DAX 30 Werte'!G28)/'DAX 30 Werte'!G28 -> 0.01635514019 | H28: =('DAX 30 Werte'!H29-'DAX 30 Werte'!H28)/'DAX 30 Werte'!H28 -> -0.003095975232 | I28: =('DAX 30 Werte'!I29-'DAX 30 Werte'!I28)/'DAX 30 Werte'!I28 -> 0.03083502138 | J28: =('DAX 30 Werte'!J29-'DAX 30 Werte'!J28)/'DAX 30 Werte'!J28 -> 0.006962336465 | K28: =('DAX 30 Werte'!K29-'DAX 30 Werte'!K28)/'DAX 30 Werte'!K28 -> 0.03371895489 | L28: =('DAX 30 Werte'!L29-'DAX 30 Werte'!L28)/'DAX 30 Werte'!L28 -> 0.0262673024 | M28: =('DAX 30 Werte'!M29-'DAX 30 Werte'!M28)/'DAX 30 Werte'!M28 -> 0.02808263396 | N28: =('DAX 30 Werte'!N29-'DAX 30 Werte'!N28)/'DAX 30 Werte'!N28 -> 0.001749085705 | O28: =('DAX 30 Werte'!O29-'DAX 30 Werte'!O28)/'DAX 30 Werte'!O28 -> 0.01535203812 | P28: =('DAX 30 Werte'!P29-'DAX 30 Werte'!P28)/'DAX 30 Werte'!P28 -> 0.02213188799 | Q28: =('DAX 30 Werte'!Q29-'DAX 30 Werte'!Q28)/'DAX 30 Werte'!Q28 -> 0.03165522502 | R28: =('DAX 30 Werte'!R29-'DAX 30 Werte'!R28)/'DAX 30 Werte'!R28 -> 0.04274365257 | S28: =('DAX 30 Werte'!S29-'DAX 30 Werte'!S28)/'DAX 30 Werte'!S28 -> 0.02667493797 | T28: =('DAX 30 Werte'!T29-'DAX 30 Werte'!T28)/'DAX 30 Werte'!T28 -> 0.01120501377 | U28: =('DAX 30 Werte'!U29-'DAX 30 Werte'!U28)/'DAX 30 Werte'!U28 -> 0.02006745363 | V28: =('DAX 30 Werte'!V29-'DAX 30 Werte'!V28)/'DAX 30 Werte'!V28 -> 0.0410729254 | W28: =('DAX 30 Werte'!W29-'DAX 30 Werte'!W28)/'DAX 30 Werte'!W28 -> 0.01358093126 | X28: =('DAX 30 Werte'!X29-'DAX 30 Werte'!X28)/'DAX 30 Werte'!X28 -> 0.04055704862 | Y28: =('DAX 30 Werte'!Y29-'DAX 30 Werte'!Y28)/'DAX 30 Werte'!Y28 -> 0.006025548034 | Z28: =('DAX 30 Werte'!Z29-'DAX 30 Werte'!Z28)/'DAX 30 Werte'!Z28 -> 0.02579798863 | AA28: =('DAX 30 Werte'!AA29-'DAX 30 Werte'!AA28)/'DAX 30 Werte'!AA28 -> 0.05754452743 | AB28: =('DAX 30 Werte'!AB29-'DAX 30 Werte'!AB28)/'DAX 30 Werte'!AB28 -> 0.031511483 | AC28: =('DAX 30 Werte'!AC29-'DAX 30 Werte'!AC28)/'DAX 30 Werte'!AC28 -> 0.01446654611 | AD28: =('DAX 30 Werte'!AD29-'DAX 30 Werte'!AD28)/'DAX 30 Werte'!AD28 -> 0.01400646452 | AE28: =('DAX 30 Werte'!AD29-'DAX 30 Werte'!AD28)/'DAX 30 Werte'!AD28 -> 0.01400646452
A29: 2009-11-10 | B29: =('DAX 30 Werte'!B30-'DAX 30 Werte'!B29)/'DAX 30 Werte'!B29 -> -0.001160200152 | C29: =('DAX 30 Werte'!C30-'DAX 30 Werte'!C29)/'DAX 30 Werte'!C29 -> 0.005714311688 | D29: =('DAX 30 Werte'!D30-'DAX 30 Werte'!D29)/'DAX 30 Werte'!D29 -> -0.003720243889 | E29: =('DAX 30 Werte'!E30-'DAX 30 Werte'!E29)/'DAX 30 Werte'!E29 -> -0.02242152466 | F29: =('DAX 30 Werte'!F30-'DAX 30 Werte'!F29)/'DAX 30 Werte'!F29 -> 0.02206303725 | G29: =('DAX 30 Werte'!G30-'DAX 30 Werte'!G29)/'DAX 30 Werte'!G29 -> 0.007471264368 | H29: =('DAX 30 Werte'!H30-'DAX 30 Werte'!H29)/'DAX 30 Werte'!H29 -> -0.01708074534 | I29: =('DAX 30 Werte'!I30-'DAX 30 Werte'!I29)/'DAX 30 Werte'!I29 -> -0.007860262009 | J29: =('DAX 30 Werte'!J30-'DAX 30 Werte'!J29)/'DAX 30 Werte'!J29 -> -0.01152369851 | K29: =('DAX 30 Werte'!K30-'DAX 30 Werte'!K29)/'DAX 30 Werte'!K29 -> 0.001707182928 | L29: =('DAX 30 Werte'!L30-'DAX 30 Werte'!L29)/'DAX 30 Werte'!L29 -> -0.1577628478 | M29: =('DAX 30 Werte'!M30-'DAX 30 Werte'!M29)/'DAX 30 Werte'!M29 -> -0.001883830455 | N29: =('DAX 30 Werte'!N30-'DAX 30 Werte'!N29)/'DAX 30 Werte'!N29 -> -0.002698412698 | O29: =('DAX 30 Werte'!O30-'DAX 30 Werte'!O29)/'DAX 30 Werte'!O29 -> 0 | P29: =('DAX 30 Werte'!P30-'DAX 30 Werte'!P29)/'DAX 30 Werte'!P29 -> -0.003240536161 | Q29: =('DAX 30 Werte'!Q30-'DAX 30 Werte'!Q29)/'DAX 30 Werte'!Q29 -> -0.004436229205 | R29: =('DAX 30 Werte'!R30-'DAX 30 Werte'!R29)/'DAX 30 Werte'!R29 -> 0.003385804234 | S29: =('DAX 30 Werte'!S30-'DAX 30 Werte'!S29)/'DAX 30 Werte'!S29 -> 0.001409869084 | T29: =('DAX 30 Werte'!T30-'DAX 30 Werte'!T29)/'DAX 30 Werte'!T29 -> -0.0003756221241 | U29: =('DAX 30 Werte'!U30-'DAX 30 Werte'!U29)/'DAX 30 Werte'!U29 -> 0.004628864275 | V29: =('DAX 30 Werte'!V30-'DAX 30 Werte'!V29)/'DAX 30 Werte'!V29 -> -0.0004025764895 | W29: =('DAX 30 Werte'!W30-'DAX 30 Werte'!W29)/'DAX 30 Werte'!W29 -> 0.02980585179 | X29: =('DAX 30 Werte'!X30-'DAX 30 Werte'!X29)/'DAX 30 Werte'!X29 -> -0.004695938014 | Y29: =('DAX 30 Werte'!Y30-'DAX 30 Werte'!Y29)/'DAX 30 Werte'!Y29 -> 0.01245797736 | Z29: =('DAX 30 Werte'!Z30-'DAX 30 Werte'!Z29)/'DAX 30 Werte'!Z29 -> -0.009803921569 | AA29: =('DAX 30 Werte'!AA30-'DAX 30 Werte'!AA29)/'DAX 30 Werte'!AA29 -> -0.02448175753 | AB29: =('DAX 30 Werte'!AB30-'DAX 30 Werte'!AB29)/'DAX 30 Werte'!AB29 -> 0.01328960994 | AC29: =('DAX 30 Werte'!AC30-'DAX 30 Werte'!AC29)/'DAX 30 Werte'!AC29 -> -0.008021390374 | AD29: =('DAX 30 Werte'!AD30-'DAX 30 Werte'!AD29)/'DAX 30 Werte'!AD29 -> 0.002732240437 | AE29: =('DAX 30 Werte'!AD30-'DAX 30 Werte'!AD29)/'DAX 30 Werte'!AD29 -> 0.002732240437
A30: 2009-11-11 | B30: =('DAX 30 Werte'!B31-'DAX 30 Werte'!B30)/'DAX 30 Werte'!B30 -> 0.009825055227 | C30: =('DAX 30 Werte'!C31-'DAX 30 Werte'!C30)/'DAX 30 Werte'!C30 -> 0.01652892519 | D30: =('DAX 30 Werte'!D31-'DAX 30 Werte'!D30)/'DAX 30 Werte'!D30 -> 0.001158846193 | E30: =('DAX 30 Werte'!E31-'DAX 30 Werte'!E30)/'DAX 30 Werte'!E30 -> 0.009480122324 | F30: =('DAX 30 Werte'!F31-'DAX 30 Werte'!F30)/'DAX 30 Werte'!F30 -> -0.008690776563 | G30: =('DAX 30 Werte'!G31-'DAX 30 Werte'!G30)/'DAX 30 Werte'!G30 -> 0.0233884769 | H30: =('DAX 30 Werte'!H31-'DAX 30 Werte'!H30)/'DAX 30 Werte'!H30 -> 0.06951026856 | I30: =('DAX 30 Werte'!I31-'DAX 30 Werte'!I30)/'DAX 30 Werte'!I30 -> 0.02222711268 | J30: =('DAX 30 Werte'!J31-'DAX 30 Werte'!J30)/'DAX 30 Werte'!J30 -> -0.01943007957 | K30: =('DAX 30 Werte'!K31-'DAX 30 Werte'!K30)/'DAX 30 Werte'!K30 -> 0.01503098879 | L30: =('DAX 30 Werte'!L31-'DAX 30 Werte'!L30)/'DAX 30 Werte'!L30 -> 0.007474118734 | M30: =('DAX 30 Werte'!M31-'DAX 30 Werte'!M30)/'DAX 30 Werte'!M30 -> 0.002044668135 | N30: =('DAX 30 Werte'!N31-'DAX 30 Werte'!N30)/'DAX 30 Werte'!N30 -> 0.01893999682 | O30: =('DAX 30 Werte'!O31-'DAX 30 Werte'!O30)/'DAX 30 Werte'!O30 -> 0.0005213764338 | P30: =('DAX 30 Werte'!P31-'DAX 30 Werte'!P30)/'DAX 30 Werte'!P30 -> 0.01728978868 | Q30: =('DAX 30 Werte'!Q31-'DAX 30 Werte'!Q30)/'DAX 30 Werte'!Q30 -> 0.01188265874 | R30: =('DAX 30 Werte'!R31-'DAX 30 Werte'!R30)/'DAX 30 Werte'!R30 -> -0.001566702763 | S30: =('DAX 30 Werte'!S31-'DAX 30 Werte'!S30)/'DAX 30 Werte'!S30 -> 0.01226870475 | T30: =('DAX 30 Werte'!T31-'DAX 30 Werte'!T30)/'DAX 30 Werte'!T30 -> 0.0103334899 | U30: =('DAX 30 Werte'!U31-'DAX 30 Werte'!U30)/'DAX 30 Werte'!U30 -> 0.01036695738 | V30: =('DAX 30 Werte'!V31-'DAX 30 Werte'!V30)/'DAX 30 Werte'!V30 -> 0.006846556585 | W30: =('DAX 30 Werte'!W31-'DAX 30 Werte'!W30)/'DAX 30 Werte'!W30 -> 0.01964949549 | X30: =('DAX 30 Werte'!X31-'DAX 30 Werte'!X30)/'DAX 30 Werte'!X30 -> 0.01391837698 | Y30: =('DAX 30 Werte'!Y31-'DAX 30 Werte'!Y30)/'DAX 30 Werte'!Y30 -> -0.0007098438575 | Z30: =('DAX 30 Werte'!Z31-'DAX 30 Werte'!Z30)/'DAX 30 Werte'!Z30 -> 0.02023245803 | AA30: =('DAX 30 Werte'!AA31-'DAX 30 Werte'!AA30)/'DAX 30 Werte'!AA30 -> 0.01742111767 | AB30: =('DAX 30 Werte'!AB31-'DAX 30 Werte'!AB30)/'DAX 30 Werte'!AB30 -> 0.009027422926 | AC30: =('DAX 30 Werte'!AC31-'DAX 30 Werte'!AC30)/'DAX 30 Werte'!AC30 -> -0.009883198562 | AD30: =('DAX 30 Werte'!AD31-'DAX 30 Werte'!AD30)/'DAX 30 Werte'!AD30 -> 0.004692703603 | AE30: =('DAX 30 Werte'!AD31-'DAX 30 Werte'!AD30)/'DAX 30 Werte'!AD30 -> 0.004692703603
A31: 2009-11-12 | B31: =('DAX 30 Werte'!B32-'DAX 30 Werte'!B31)/'DAX 30 Werte'!B31 -> -0.0007744758175 | C31: =('DAX 30 Werte'!C32-'DAX 30 Werte'!C31)/'DAX 30 Werte'!C31 -> 0.002794715376 | D31: =('DAX 30 Werte'!D32-'DAX 30 Werte'!D31)/'DAX 30 Werte'!D31 -> 0.0223793955 | E31: =('DAX 30 Werte'!E32-'DAX 30 Werte'!E31)/'DAX 30 Werte'!E31 -> 0.005301423811 | F31: =('DAX 30 Werte'!F32-'DAX 30 Werte'!F31)/'DAX 30 Werte'!F31 -> -0.003959276018 | G31: =('DAX 30 Werte'!G32-'DAX 30 Werte'!G31)/'DAX 30 Werte'!G31 -> -0.008918617614 | H31: =('DAX 30 Werte'!H32-'DAX 30 Werte'!H31)/'DAX 30 Werte'!H31 -> -0.01329394387 | I31: =('DAX 30 Werte'!I32-'DAX 30 Werte'!I31)/'DAX 30 Werte'!I31 -> 0.007319698601 | J31: =('DAX 30 Werte'!J32-'DAX 30 Werte'!J31)/'DAX 30 Werte'!J31 -> 0.01717307468 | K31: =('DAX 30 Werte'!K32-'DAX 30 Werte'!K31)/'DAX 30 Werte'!K31 -> -0.007700629638 | L31: =('DAX 30 Werte'!L32-'DAX 30 Werte'!L31)/'DAX 30 Werte'!L31 -> -0.01054930332 | M31: =('DAX 30 Werte'!M32-'DAX 30 Werte'!M31)/'DAX 30 Werte'!M31 -> 0.0006278449223 | N31: =('DAX 30 Werte'!N32-'DAX 30 Werte'!N31)/'DAX 30 Werte'!N31 -> 0.001249609497 | O31: =('DAX 30 Werte'!O32-'DAX 30 Werte'!O31)/'DAX 30 Werte'!O31 -> 0.006774361647 | P31: =('DAX 30 Werte'!P32-'DAX 30 Werte'!P31)/'DAX 30 Werte'!P31 -> -0.00987797792 | Q31: =('DAX 30 Werte'!Q32-'DAX 30 Werte'!Q31)/'DAX 30 Werte'!Q31 -> -0.01688073394 | R31: =('DAX 30 Werte'!R32-'DAX 30 Werte'!R31)/'DAX 30 Werte'!R31 -> 0.007362715929 | S31: =('DAX 30 Werte'!S32-'DAX 30 Werte'!S31)/'DAX 30 Werte'!S31 -> 0.01748460163 | T31: =('DAX 30 Werte'!T32-'DAX 30 Werte'!T31)/'DAX 30 Werte'!T31 -> -0.008926080893 | U31: =('DAX 30 Werte'!U32-'DAX 30 Werte'!U31)/'DAX 30 Werte'!U31 -> 0.002117263844 | V31: =('DAX 30 Werte'!V32-'DAX 30 Werte'!V31)/'DAX 30 Werte'!V31 -> -0.0052 | W31: =('DAX 30 Werte'!W32-'DAX 30 Werte'!W31)/'DAX 30 Werte'!W31 -> -0.01510416667 | X31: =('DAX 30 Werte'!X32-'DAX 30 Werte'!X31)/'DAX 30 Werte'!X31 -> -0.005583992555 | Y31: =('DAX 30 Werte'!Y32-'DAX 30 Werte'!Y31)/'DAX 30 Werte'!Y31 -> 0.005209590339 | Z31: =('DAX 30 Werte'!Z32-'DAX 30 Werte'!Z31)/'DAX 30 Werte'!Z31 -> -0.006329113924 | AA31: =('DAX 30 Werte'!AA32-'DAX 30 Werte'!AA31)/'DAX 30 Werte'!AA31 -> -0.01643859049 | AB31: =('DAX 30 Werte'!AB32-'DAX 30 Werte'!AB31)/'DAX 30 Werte'!AB31 -> 0.006920999325 | AC31: =('DAX 30 Werte'!AC32-'DAX 30 Werte'!AC31)/'DAX 30 Werte'!AC31 -> 0.01633393829 | AD31: =('DAX 30 Werte'!AD32-'DAX 30 Werte'!AD31)/'DAX 30 Werte'!AD31 -> -0.004369444026 | AE31: =('DAX 30 Werte'!AD32-'DAX 30 Werte'!AD31)/'DAX 30 Werte'!AD31 -> -0.004369444026
A32: 2009-11-13 | B32: =('DAX 30 Werte'!B33-'DAX 30 Werte'!B32)/'DAX 30 Werte'!B32 -> 0.004037811001 | C32: =('DAX 30 Werte'!C33-'DAX 30 Werte'!C32)/'DAX 30 Werte'!C32 -> 0.007347276226 | D32: =('DAX 30 Werte'!D33-'DAX 30 Werte'!D32)/'DAX 30 Werte'!D32 -> 0.00289348353 | E32: =('DAX 30 Werte'!E33-'DAX 30 Werte'!E32)/'DAX 30 Werte'!E32 -> 0.008437547085 | F32: =('DAX 30 Werte'!F33-'DAX 30 Werte'!F32)/'DAX 30 Werte'!F32 -> 0.02101078932 | G32: =('DAX 30 Werte'!G33-'DAX 30 Werte'!G32)/'DAX 30 Werte'!G32 -> 0.005905511811 | H32: =('DAX 30 Werte'!H33-'DAX 30 Werte'!H32)/'DAX 30 Werte'!H32 -> 0.01347305389 | I32: =('DAX 30 Werte'!I33-'DAX 30 Werte'!I32)/'DAX 30 Werte'!I32 -> 0.0008548835221 | J32: =('DAX 30 Werte'!J33-'DAX 30 Werte'!J32)/'DAX 30 Werte'!J32 -> 0.007792197047 | K32: =('DAX 30 Werte'!K33-'DAX 30 Werte'!K32)/'DAX 30 Werte'!K32 -> 0.003580376397 | L32: =('DAX 30 Werte'!L33-'DAX 30 Werte'!L32)/'DAX 30 Werte'!L32 -> 0.003665090806 | M32: =('DAX 30 Werte'!M33-'DAX 30 Werte'!M32)/'DAX 30 Werte'!M32 -> 0.001568627451 | N32: =('DAX 30 Werte'!N33-'DAX 30 Werte'!N32)/'DAX 30 Werte'!N32 -> 0.007644305772 | O32: =('DAX 30 Werte'!O33-'DAX 30 Werte'!O32)/'DAX 30 Werte'!O32 -> 0.002070393375 | P32: =('DAX 30 Werte'!P33-'DAX 30 Werte'!P32)/'DAX 30 Werte'!P32 -> 0.006455399061 | Q32: =('DAX 30 Werte'!Q33-'DAX 30 Werte'!Q32)/'DAX 30 Werte'!Q32 -> -0.004106009705 | R32: =('DAX 30 Werte'!R33-'DAX 30 Werte'!R32)/'DAX 30 Werte'!R32 -> 0.007668332227 | S32: =('DAX 30 Werte'!S33-'DAX 30 Werte'!S32)/'DAX 30 Werte'!S32 -> 0.006053505175 | T32: =('DAX 30 Werte'!T33-'DAX 30 Werte'!T32)/'DAX 30 Werte'!T32 -> 0.004690871564 | U32: =('DAX 30 Werte'!U33-'DAX 30 Werte'!U32)/'DAX 30 Werte'!U32 -> 0.004063058671 | V32: =('DAX 30 Werte'!V33-'DAX 30 Werte'!V32)/'DAX 30 Werte'!V32 -> 0.009650180941 | W32: =('DAX 30 Werte'!W33-'DAX 30 Werte'!W32)/'DAX 30 Werte'!W32 -> 0.009518773136 | X32: =('DAX 30 Werte'!X33-'DAX 30 Werte'!X32)/'DAX 30 Werte'!X32 -> 0.006785212915 | Y32: =('DAX 30 Werte'!Y33-'DAX 30 Werte'!Y32)/'DAX 30 Werte'!Y32 -> 0.01083625416 | Z32: =('DAX 30 Werte'!Z33-'DAX 30 Werte'!Z32)/'DAX 30 Werte'!Z32 -> 0.01231422505 | AA32: =('DAX 30 Werte'!AA33-'DAX 30 Werte'!AA32)/'DAX 30 Werte'!AA32 -> -0.0257917529 | AB32: =('DAX 30 Werte'!AB33-'DAX 30 Werte'!AB32)/'DAX 30 Werte'!AB32 -> -0.007879295893 | AC32: =('DAX 30 Werte'!AC33-'DAX 30 Werte'!AC32)/'DAX 30 Werte'!AC32 -> 0.0008928571429 | AD32: =('DAX 30 Werte'!AD33-'DAX 30 Werte'!AD32)/'DAX 30 Werte'!AD32 -> 0.0009079903148 | AE32: =('DAX 30 Werte'!AD33-'DAX 30 Werte'!AD32)/'DAX 30 Werte'!AD32 -> 0.0009079903148
A33: 2009-11-16 | B33: =('DAX 30 Werte'!B34-'DAX 30 Werte'!B33)/'DAX 30 Werte'!B33 -> 0.02074793866 | C33: =('DAX 30 Werte'!C34-'DAX 30 Werte'!C33)/'DAX 30 Werte'!C33 -> 0.03169019274 | D33: =('DAX 30 Werte'!D34-'DAX 30 Werte'!D33)/'DAX 30 Werte'!D33 -> 0.02521327113 | E33: =('DAX 30 Werte'!E34-'DAX 30 Werte'!E33)/'DAX 30 Werte'!E33 -> 0.03361721201 | F33: =('DAX 30 Werte'!F34-'DAX 30 Werte'!F33)/'DAX 30 Werte'!F33 -> -0.001946607341 | G33: =('DAX 30 Werte'!G34-'DAX 30 Werte'!G33)/'DAX 30 Werte'!G33 -> 0.02236511043 | H33: =('DAX 30 Werte'!H34-'DAX 30 Werte'!H33)/'DAX 30 Werte'!H33 -> 0.03249630724 | I33: =('DAX 30 Werte'!I34-'DAX 30 Werte'!I33)/'DAX 30 Werte'!I33 -> 0.01580183643 | J33: =('DAX 30 Werte'!J34-'DAX 30 Werte'!J33)/'DAX 30 Werte'!J33 -> -0.01005154895 | K33: =('DAX 30 Werte'!K34-'DAX 30 Werte'!K33)/'DAX 30 Werte'!K33 -> 0.03092864142 | L33: =('DAX 30 Werte'!L34-'DAX 30 Werte'!L33)/'DAX 30 Werte'!L33 -> 0.03651373022 | M33: =('DAX 30 Werte'!M34-'DAX 30 Werte'!M33)/'DAX 30 Werte'!M33 -> 0.03038371182 | N33: =('DAX 30 Werte'!N34-'DAX 30 Werte'!N33)/'DAX 30 Werte'!N33 -> 0.01703050008 | O33: =('DAX 30 Werte'!O34-'DAX 30 Werte'!O33)/'DAX 30 Werte'!O33 -> 0.009297520661 | P33: =('DAX 30 Werte'!P34-'DAX 30 Werte'!P33)/'DAX 30 Werte'!P33 -> 0.04402332362 | Q33: =('DAX 30 Werte'!Q34-'DAX 30 Werte'!Q33)/'DAX 30 Werte'!Q33 -> 0.007496251874 | R33: =('DAX 30 Werte'!R34-'DAX 30 Werte'!R33)/'DAX 30 Werte'!R33 -> 0.02068963188 | S33: =('DAX 30 Werte'!S34-'DAX 30 Werte'!S33)/'DAX 30 Werte'!S33 -> 0.01319875776 | T33: =('DAX 30 Werte'!T34-'DAX 30 Werte'!T33)/'DAX 30 Werte'!T33 -> 0.007283593239 | U33: =('DAX 30 Werte'!U34-'DAX 30 Werte'!U33)/'DAX 30 Werte'!U33 -> 0.01262544513 | V33: =('DAX 30 Werte'!V34-'DAX 30 Werte'!V33)/'DAX 30 Werte'!V33 -> 0.02270011947 | W33: =('DAX 30 Werte'!W34-'DAX 30 Werte'!W33)/'DAX 30 Werte'!W33 -> 0.009952854898 | X33: =('DAX 30 Werte'!X34-'DAX 30 Werte'!X33)/'DAX 30 Werte'!X33 -> 0.01092261213 | Y33: =('DAX 30 Werte'!Y34-'DAX 30 Werte'!Y33)/'DAX 30 Werte'!Y33 -> 0.01608012118 | Z33: =('DAX 30 Werte'!Z34-'DAX 30 Werte'!Z33)/'DAX 30 Werte'!Z33 -> 0.04446308725 | AA33: =('DAX 30 Werte'!AA34-'DAX 30 Werte'!AA33)/'DAX 30 Werte'!AA33 -> 0.01574550129 | AB33: =('DAX 30 Werte'!AB34-'DAX 30 Werte'!AB33)/'DAX 30 Werte'!AB33 -> 0.02534640081 | AC33: =('DAX 30 Werte'!AC34-'DAX 30 Werte'!AC33)/'DAX 30 Werte'!AC33 -> 0.008920606601 | AD33: =('DAX 30 Werte'!AD34-'DAX 30 Werte'!AD33)/'DAX 30 Werte'!AD33 -> 0.009676443907 | AE33: =('DAX 30 Werte'!AD34-'DAX 30 Werte'!AD33)/'DAX 30 Werte'!AD33 -> 0.009676443907
A34: 2009-11-17 | B34: =('DAX 30 Werte'!B35-'DAX 30 Werte'!B34)/'DAX 30 Werte'!B34 -> -0.004546221933 | C34: =('DAX 30 Werte'!C35-'DAX 30 Werte'!C34)/'DAX 30 Werte'!C34 -> -0.01145784983 | D34: =('DAX 30 Werte'!D35-'DAX 30 Werte'!D34)/'DAX 30 Werte'!D34 -> -0.006362461531 | E34: =('DAX 30 Werte'!E35-'DAX 30 Werte'!E34)/'DAX 30 Werte'!E34 -> -0.02052616363 | F34: =('DAX 30 Werte'!F35-'DAX 30 Werte'!F34)/'DAX 30 Werte'!F34 -> -0.001950404012 | G34: =('DAX 30 Werte'!G35-'DAX 30 Werte'!G34)/'DAX 30 Werte'!G34 -> -0.01312551272 | H34: =('DAX 30 Werte'!H35-'DAX 30 Werte'!H34)/'DAX 30 Werte'!H34 -> -0.01716738197 | I34: =('DAX 30 Werte'!I35-'DAX 30 Werte'!I34)/'DAX 30 Werte'!I34 -> -0.02396468362 | J34: =('DAX 30 Werte'!J35-'DAX 30 Werte'!J34)/'DAX 30 Werte'!J34 -> 0.04504039875 | K34: =('DAX 30 Werte'!K35-'DAX 30 Werte'!K34)/'DAX 30 Werte'!K34 -> -0.006537573131 | L34: =('DAX 30 Werte'!L35-'DAX 30 Werte'!L34)/'DAX 30 Werte'!L34 -> -0.009607484946 | M34: =('DAX 30 Werte'!M35-'DAX 30 Werte'!M34)/'DAX 30 Werte'!M34 -> -0.01276789786 | N34: =('DAX 30 Werte'!N35-'DAX 30 Werte'!N34)/'DAX 30 Werte'!N34 -> 0.001978992236 | O34: =('DAX 30 Werte'!O35-'DAX 30 Werte'!O34)/'DAX 30 Werte'!O34 -> -0.00307062436 | P34: =('DAX 30 Werte'!P35-'DAX 30 Werte'!P34)/'DAX 30 Werte'!P34 -> -0.01130969003 | Q34: =('DAX 30 Werte'!Q35-'DAX 30 Werte'!Q34)/'DAX 30 Werte'!Q34 -> 0.000744047619 | R34: =('DAX 30 Werte'!R35-'DAX 30 Werte'!R34)/'DAX 30 Werte'!R34 -> -0.01199904529 | S34: =('DAX 30 Werte'!S35-'DAX 30 Werte'!S34)/'DAX 30 Werte'!S34 -> 0.02088122605 | T34: =('DAX 30 Werte'!T35-'DAX 30 Werte'!T34)/'DAX 30 Werte'!T34 -> -0.008899601372 | U34: =('DAX 30 Werte'!U35-'DAX 30 Werte'!U34)/'DAX 30 Werte'!U34 -> -0.003516624041 | V34: =('DAX 30 Werte'!V35-'DAX 30 Werte'!V34)/'DAX 30 Werte'!V34 -> -0.01012461059 | W34: =('DAX 30 Werte'!W35-'DAX 30 Werte'!W34)/'DAX 30 Werte'!W34 -> -0.009336099585 | X34: =('DAX 30 Werte'!X35-'DAX 30 Werte'!X34)/'DAX 30 Werte'!X34 -> -0.005747126437 | Y34: =('DAX 30 Werte'!Y35-'DAX 30 Werte'!Y34)/'DAX 30 Werte'!Y34 -> 0.005045917663 | Z34: =('DAX 30 Werte'!Z35-'DAX 30 Werte'!Z34)/'DAX 30 Werte'!Z34 -> -0.004819277108 | AA34: =('DAX 30 Werte'!AA35-'DAX 30 Werte'!AA34)/'DAX 30 Werte'!AA34 -> -0.009156736616 | AB34: =('DAX 30 Werte'!AB35-'DAX 30 Werte'!AB34)/'DAX 30 Werte'!AB34 -> -0.006427158866 | AC34: =('DAX 30 Werte'!AC35-'DAX 30 Werte'!AC34)/'DAX 30 Werte'!AC34 -> -0.0207780725 | AD34: =('DAX 30 Werte'!AD35-'DAX 30 Werte'!AD34)/'DAX 30 Werte'!AD34 -> -0.0182689428 | AE34: =('DAX 30 Werte'!AD35-'DAX 30 Werte'!AD34)/'DAX 30 Werte'!AD34 -> -0.0182689428
A35: 2009-11-18 | B35: =('DAX 30 Werte'!B36-'DAX 30 Werte'!B35)/'DAX 30 Werte'!B35 -> 0.001588666818 | C35: =('DAX 30 Werte'!C36-'DAX 30 Werte'!C35)/'DAX 30 Werte'!C35 -> -0.006411788074 | D35: =('DAX 30 Werte'!D36-'DAX 30 Werte'!D35)/'DAX 30 Werte'!D35 -> -0.006033715134 | E35: =('DAX 30 Werte'!E36-'DAX 30 Werte'!E35)/'DAX 30 Werte'!E35 -> 0.0002951593861 | F35: =('DAX 30 Werte'!F36-'DAX 30 Werte'!F35)/'DAX 30 Werte'!F35 -> -0.001116694584 | G35: =('DAX 30 Werte'!G36-'DAX 30 Werte'!G35)/'DAX 30 Werte'!G35 -> 0.003879190912 | H35: =('DAX 30 Werte'!H36-'DAX 30 Werte'!H35)/'DAX 30 Werte'!H35 -> 0.008733624454 | I35: =('DAX 30 Werte'!I36-'DAX 30 Werte'!I35)/'DAX 30 Werte'!I35 -> -0.006676717639 | J35: =('DAX 30 Werte'!J36-'DAX 30 Werte'!J35)/'DAX 30 Werte'!J35 -> 0.01121077282 | K35: =('DAX 30 Werte'!K36-'DAX 30 Werte'!K35)/'DAX 30 Werte'!K35 -> 0.001062823249 | L35: =('DAX 30 Werte'!L36-'DAX 30 Werte'!L35)/'DAX 30 Werte'!L35 -> -0.003718270272 | M35: =('DAX 30 Werte'!M36-'DAX 30 Werte'!M35)/'DAX 30 Werte'!M35 -> 0.02386451116 | N35: =('DAX 30 Werte'!N36-'DAX 30 Werte'!N35)/'DAX 30 Werte'!N35 -> -0.003342449104 | O35: =('DAX 30 Werte'!O36-'DAX 30 Werte'!O35)/'DAX 30 Werte'!O35 -> -0.006160164271 | P35: =('DAX 30 Werte'!P36-'DAX 30 Werte'!P35)/'DAX 30 Werte'!P35 -> 0.01624064398 | Q35: =('DAX 30 Werte'!Q36-'DAX 30 Werte'!Q35)/'DAX 30 Werte'!Q35 -> 0.01524163569 | R35: =('DAX 30 Werte'!R36-'DAX 30 Werte'!R35)/'DAX 30 Werte'!R35 -> -0.005541823029 | S35: =('DAX 30 Werte'!S36-'DAX 30 Werte'!S35)/'DAX 30 Werte'!S35 -> -0.02758491274 | T35: =('DAX 30 Werte'!T36-'DAX 30 Werte'!T35)/'DAX 30 Werte'!T35 -> -0.006921709849 | U35: =('DAX 30 Werte'!U36-'DAX 30 Werte'!U35)/'DAX 30 Werte'!U35 -> 0.01106833494 | V35: =('DAX 30 Werte'!V36-'DAX 30 Werte'!V35)/'DAX 30 Werte'!V35 -> 0.004327301338 | W35: =('DAX 30 Werte'!W36-'DAX 30 Werte'!W35)/'DAX 30 Werte'!W35 -> 0.01701570681 | X35: =('DAX 30 Werte'!X36-'DAX 30 Werte'!X35)/'DAX 30 Werte'!X35 -> -0.005780346821 | Y35: =('DAX 30 Werte'!Y36-'DAX 30 Werte'!Y35)/'DAX 30 Werte'!Y35 -> -0.001825604747 | Z35: =('DAX 30 Werte'!Z36-'DAX 30 Werte'!Z35)/'DAX 30 Werte'!Z35 -> 0.004439063761 | AA35: =('DAX 30 Werte'!AA36-'DAX 30 Werte'!AA35)/'DAX 30 Werte'!AA35 -> -0.003565283715 | AB35: =('DAX 30 Werte'!AB36-'DAX 30 Werte'!AB35)/'DAX 30 Werte'!AB35 -> 0.01111295406 | AC35: =('DAX 30 Werte'!AC36-'DAX 30 Werte'!AC35)/'DAX 30 Werte'!AC35 -> 0.003611738149 | AD35: =('DAX 30 Werte'!AD36-'DAX 30 Werte'!AD35)/'DAX 30 Werte'!AD35 -> 0.0004575960952 | AE35: =('DAX 30 Werte'!AD36-'DAX 30 Werte'!AD35)/'DAX 30 Werte'!AD35 -> 0.0004575960952
A36: 2009-11-19 | B36: =('DAX 30 Werte'!B37-'DAX 30 Werte'!B36)/'DAX 30 Werte'!B36 -> -0.01476084256 | C36: =('DAX 30 Werte'!C37-'DAX 30 Werte'!C36)/'DAX 30 Werte'!C36 -> -0.009928071235 | D36: =('DAX 30 Werte'!D37-'DAX 30 Werte'!D36)/'DAX 30 Werte'!D36 -> -0.01858275497 | E36: =('DAX 30 Werte'!E37-'DAX 30 Werte'!E36)/'DAX 30 Werte'!E36 -> -0.0203599882 | F36: =('DAX 30 Werte'!F37-'DAX 30 Werte'!F36)/'DAX 30 Werte'!F36 -> -0.001956400224 | G36: =('DAX 30 Werte'!G37-'DAX 30 Werte'!G36)/'DAX 30 Werte'!G36 -> -0.0198730334 | H36: =('DAX 30 Werte'!H37-'DAX 30 Werte'!H36)/'DAX 30 Werte'!H36 -> -0.07215007215 | I36: =('DAX 30 Werte'!I37-'DAX 30 Werte'!I36)/'DAX 30 Werte'!I36 -> -0.03729401561 | J36: =('DAX 30 Werte'!J37-'DAX 30 Werte'!J36)/'DAX 30 Werte'!J36 -> -0.02808576312 | K36: =('DAX 30 Werte'!K37-'DAX 30 Werte'!K36)/'DAX 30 Werte'!K36 -> -0.02494241206 | L36: =('DAX 30 Werte'!L37-'DAX 30 Werte'!L36)/'DAX 30 Werte'!L36 -> -0.006816148476 | M36: =('DAX 30 Werte'!M37-'DAX 30 Werte'!M36)/'DAX 30 Werte'!M36 -> -0.01804511278 | N36: =('DAX 30 Werte'!N37-'DAX 30 Werte'!N36)/'DAX 30 Werte'!N36 -> -0.01768292683 | O36: =('DAX 30 Werte'!O37-'DAX 30 Werte'!O36)/'DAX 30 Werte'!O36 -> -0.01342975207 | P36: =('DAX 30 Werte'!P37-'DAX 30 Werte'!P36)/'DAX 30 Werte'!P36 -> -0.01862145636 | Q36: =('DAX 30 Werte'!Q37-'DAX 30 Werte'!Q36)/'DAX 30 Werte'!Q36 -> -0.01135115342 | R36: =('DAX 30 Werte'!R37-'DAX 30 Werte'!R36)/'DAX 30 Werte'!R36 -> -0.005928385389 | S36: =('DAX 30 Werte'!S37-'DAX 30 Werte'!S36)/'DAX 30 Werte'!S36 -> -0.006175221922 | T36: =('DAX 30 Werte'!T37-'DAX 30 Werte'!T36)/'DAX 30 Werte'!T36 -> -0.01139681643 | U36: =('DAX 30 Werte'!U37-'DAX 30 Werte'!U36)/'DAX 30 Werte'!U36 -> -0.009519276535 | V36: =('DAX 30 Werte'!V37-'DAX 30 Werte'!V36)/'DAX 30 Werte'!V36 -> -0.01370936154 | W36: =('DAX 30 Werte'!W37-'DAX 30 Werte'!W36)/'DAX 30 Werte'!W36 -> -0.01492921493 | X36: =('DAX 30 Werte'!X37-'DAX 30 Werte'!X36)/'DAX 30 Werte'!X36 -> -0.02302325581 | Y36: =('DAX 30 Werte'!Y37-'DAX 30 Werte'!Y36)/'DAX 30 Werte'!Y36 -> -0.007316049048 | Z36: =('DAX 30 Werte'!Z37-'DAX 30 Werte'!Z36)/'DAX 30 Werte'!Z36 -> -0.01566894335 | AA36: =('DAX 30 Werte'!AA37-'DAX 30 Werte'!AA36)/'DAX 30 Werte'!AA36 -> -0.02851751638 | AB36: =('DAX 30 Werte'!AB37-'DAX 30 Werte'!AB36)/'DAX 30 Werte'!AB36 -> -0.02312992126 | AC36: =('DAX 30 Werte'!AC37-'DAX 30 Werte'!AC36)/'DAX 30 Werte'!AC36 -> -0.02923976608 | AD36: =('DAX 30 Werte'!AD37-'DAX 30 Werte'!AD36)/'DAX 30 Werte'!AD36 -> -0.02363165117 | AE36: =('DAX 30 Werte'!AD37-'DAX 30 Werte'!AD36)/'DAX 30 Werte'!AD36 -> -0.02363165117
A37: 2009-11-20 | B37: =('DAX 30 Werte'!B38-'DAX 30 Werte'!B37)/'DAX 30 Werte'!B37 -> -0.006844750604 | C37: =('DAX 30 Werte'!C38-'DAX 30 Werte'!C37)/'DAX 30 Werte'!C37 -> -0.0005013788042 | D37: =('DAX 30 Werte'!D38-'DAX 30 Werte'!D37)/'DAX 30 Werte'!D37 -> 0.006563961038 | E37: =('DAX 30 Werte'!E38-'DAX 30 Werte'!E37)/'DAX 30 Werte'!E37 -> -0.01325301205 | F37: =('DAX 30 Werte'!F38-'DAX 30 Werte'!F37)/'DAX 30 Werte'!F37 -> 0.001680201624 | G37: =('DAX 30 Werte'!G38-'DAX 30 Werte'!G37)/'DAX 30 Werte'!G37 -> -0.005350605463 | H37: =('DAX 30 Werte'!H38-'DAX 30 Werte'!H37)/'DAX 30 Werte'!H37 -> -0.03421461897 | I37: =('DAX 30 Werte'!I38-'DAX 30 Werte'!I37)/'DAX 30 Werte'!I37 -> -0.01554054054 | J37: =('DAX 30 Werte'!J38-'DAX 30 Werte'!J37)/'DAX 30 Werte'!J37 -> 0.02408112642 | K37: =('DAX 30 Werte'!K38-'DAX 30 Werte'!K37)/'DAX 30 Werte'!K37 -> -0.02707137532 | L37: =('DAX 30 Werte'!L38-'DAX 30 Werte'!L37)/'DAX 30 Werte'!L37 -> -0.06029513053 | M37: =('DAX 30 Werte'!M38-'DAX 30 Werte'!M37)/'DAX 30 Werte'!M37 -> -0.01837672282 | N37: =('DAX 30 Werte'!N38-'DAX 30 Werte'!N37)/'DAX 30 Werte'!N37 -> -0.004655493482 | O37: =('DAX 30 Werte'!O38-'DAX 30 Werte'!O37)/'DAX 30 Werte'!O37 -> -0.005235602094 | P37: =('DAX 30 Werte'!P38-'DAX 30 Werte'!P37)/'DAX 30 Werte'!P37 -> -0.009487397338 | Q37: =('DAX 30 Werte'!Q38-'DAX 30 Werte'!Q37)/'DAX 30 Werte'!Q37 -> -0.006666666667 | R37: =('DAX 30 Werte'!R38-'DAX 30 Werte'!R37)/'DAX 30 Werte'!R37 -> -0.00811059199 | S37: =('DAX 30 Werte'!S38-'DAX 30 Werte'!S37)/'DAX 30 Werte'!S37 -> 0.004077669903 | T37: =('DAX 30 Werte'!T38-'DAX 30 Werte'!T37)/'DAX 30 Werte'!T37 -> -0.008860518293 | U37: =('DAX 30 Werte'!U38-'DAX 30 Werte'!U37)/'DAX 30 Werte'!U37 -> -0.004965561429 | V37: =('DAX 30 Werte'!V38-'DAX 30 Werte'!V37)/'DAX 30 Werte'!V37 -> 0.001588562351 | W37: =('DAX 30 Werte'!W38-'DAX 30 Werte'!W37)/'DAX 30 Werte'!W37 -> -0.008884243533 | X37: =('DAX 30 Werte'!X38-'DAX 30 Werte'!X37)/'DAX 30 Werte'!X37 -> 0.006427041181 | Y37: =('DAX 30 Werte'!Y38-'DAX 30 Werte'!Y37)/'DAX 30 Werte'!Y37 -> 0.01497010663 | Z37: =('DAX 30 Werte'!Z38-'DAX 30 Werte'!Z37)/'DAX 30 Werte'!Z37 -> -0.007755102041 | AA37: =('DAX 30 Werte'!AA38-'DAX 30 Werte'!AA37)/'DAX 30 Werte'!AA37 -> -0.03745373255 | AB37: =('DAX 30 Werte'!AB38-'DAX 30 Werte'!AB37)/'DAX 30 Werte'!AB37 -> -0.0005037783375 | AC37: =('DAX 30 Werte'!AC38-'DAX 30 Werte'!AC37)/'DAX 30 Werte'!AC37 -> -0.007877664504 | AD37: =('DAX 30 Werte'!AD38-'DAX 30 Werte'!AD37)/'DAX 30 Werte'!AD37 -> 0.00296689569 | AE37: =('DAX 30 Werte'!AD38-'DAX 30 Werte'!AD37)/'DAX 30 Werte'!AD37 -> 0.00296689569
A38: 2009-11-23 | B38: =('DAX 30 Werte'!B39-'DAX 30 Werte'!B38)/'DAX 30 Werte'!B38 -> 0.02442633517 | C38: =('DAX 30 Werte'!C39-'DAX 30 Werte'!C38)/'DAX 30 Werte'!C38 -> 0.04038126512 | D38: =('DAX 30 Werte'!D39-'DAX 30 Werte'!D38)/'DAX 30 Werte'!D38 -> 0.0347379492 | E38: =('DAX 30 Werte'!E39-'DAX 30 Werte'!E38)/'DAX 30 Werte'!E38 -> 0.001068376068 | F38: =('DAX 30 Werte'!F39-'DAX 30 Werte'!F38)/'DAX 30 Werte'!F38 -> 0.0002795638803 | G38: =('DAX 30 Werte'!G39-'DAX 30 Werte'!G38)/'DAX 30 Werte'!G38 -> 0.0325594564 | H38: =('DAX 30 Werte'!H39-'DAX 30 Werte'!H38)/'DAX 30 Werte'!H38 -> 0.02415458937 | I38: =('DAX 30 Werte'!I39-'DAX 30 Werte'!I38)/'DAX 30 Werte'!I38 -> 0.01807366735 | J38: =('DAX 30 Werte'!J39-'DAX 30 Werte'!J38)/'DAX 30 Werte'!J38 -> 0.02747524558 | K38: =('DAX 30 Werte'!K39-'DAX 30 Werte'!K38)/'DAX 30 Werte'!K38 -> 0.03852468721 | L38: =('DAX 30 Werte'!L39-'DAX 30 Werte'!L38)/'DAX 30 Werte'!L38 -> 0.02973440553 | M38: =('DAX 30 Werte'!M39-'DAX 30 Werte'!M38)/'DAX 30 Werte'!M38 -> 0.03744149766 | N38: =('DAX 30 Werte'!N39-'DAX 30 Werte'!N38)/'DAX 30 Werte'!N38 -> 0.01216089804 | O38: =('DAX 30 Werte'!O39-'DAX 30 Werte'!O38)/'DAX 30 Werte'!O38 -> 0.02052631579 | P38: =('DAX 30 Werte'!P39-'DAX 30 Werte'!P38)/'DAX 30 Werte'!P38 -> 0.01987133667 | Q38: =('DAX 30 Werte'!Q39-'DAX 30 Werte'!Q38)/'DAX 30 Werte'!Q38 -> 0.01230425056 | R38: =('DAX 30 Werte'!R39-'DAX 30 Werte'!R38)/'DAX 30 Werte'!R38 -> 0.02453093918 | S38: =('DAX 30 Werte'!S39-'DAX 30 Werte'!S38)/'DAX 30 Werte'!S38 -> 0.03016824599 | T38: =('DAX 30 Werte'!T39-'DAX 30 Werte'!T38)/'DAX 30 Werte'!T38 -> 0.01711044891 | U38: =('DAX 30 Werte'!U39-'DAX 30 Werte'!U38)/'DAX 30 Werte'!U38 -> 0.01690276883 | V38: =('DAX 30 Werte'!V39-'DAX 30 Werte'!V38)/'DAX 30 Werte'!V38 -> 0.03053132435 | W38: =('DAX 30 Werte'!W39-'DAX 30 Werte'!W38)/'DAX 30 Werte'!W38 -> 0.02240970208 | X38: =('DAX 30 Werte'!X39-'DAX 30 Werte'!X38)/'DAX 30 Werte'!X38 -> 0.02223273415 | Y38: =('DAX 30 Werte'!Y39-'DAX 30 Werte'!Y38)/'DAX 30 Werte'!Y38 -> 0.01747220331 | Z38: =('DAX 30 Werte'!Z39-'DAX 30 Werte'!Z38)/'DAX 30 Werte'!Z38 -> 0.02591526121 | AA38: =('DAX 30 Werte'!AA39-'DAX 30 Werte'!AA38)/'DAX 30 Werte'!AA38 -> 0.01679040548 | AB38: =('DAX 30 Werte'!AB39-'DAX 30 Werte'!AB38)/'DAX 30 Werte'!AB38 -> 0.003024193548 | AC38: =('DAX 30 Werte'!AC39-'DAX 30 Werte'!AC38)/'DAX 30 Werte'!AC38 -> 0.02382064456 | AD38: =('DAX 30 Werte'!AD39-'DAX 30 Werte'!AD38)/'DAX 30 Werte'!AD38 -> 0.03035964503 | AE38: =('DAX 30 Werte'!AD39-'DAX 30 Werte'!AD38)/'DAX 30 Werte'!AD38 -> 0.03035964503
A39: 2009-11-24 | B39: =('DAX 30 Werte'!B40-'DAX 30 Werte'!B39)/'DAX 30 Werte'!B39 -> -0.005545136758 | C39: =('DAX 30 Werte'!C40-'DAX 30 Werte'!C39)/'DAX 30 Werte'!C39 -> -0.005303809065 | D39: =('DAX 30 Werte'!D40-'DAX 30 Werte'!D39)/'DAX 30 Werte'!D39 -> -0.002302775365 | E39: =('DAX 30 Werte'!E40-'DAX 30 Werte'!E39)/'DAX 30 Werte'!E39 -> -0.01433145297 | F39: =('DAX 30 Werte'!F40-'DAX 30 Werte'!F39)/'DAX 30 Werte'!F39 -> 0.002794857462 | G39: =('DAX 30 Werte'!G40-'DAX 30 Werte'!G39)/'DAX 30 Werte'!G39 -> -0.005483959419 | H39: =('DAX 30 Werte'!H40-'DAX 30 Werte'!H39)/'DAX 30 Werte'!H39 -> 0.02201257862 | I39: =('DAX 30 Werte'!I40-'DAX 30 Werte'!I39)/'DAX 30 Werte'!I39 -> 0.00606741573 | J39: =('DAX 30 Werte'!J40-'DAX 30 Werte'!J39)/'DAX 30 Werte'!J39 -> 0.002409063158 | K39: =('DAX 30 Werte'!K40-'DAX 30 Werte'!K39)/'DAX 30 Werte'!K39 -> -0.01903821625 | L39: =('DAX 30 Werte'!L40-'DAX 30 Werte'!L39)/'DAX 30 Werte'!L39 -> -0.02718721705 | M39: =('DAX 30 Werte'!M40-'DAX 30 Werte'!M39)/'DAX 30 Werte'!M39 -> -0.006766917293 | N39: =('DAX 30 Werte'!N40-'DAX 30 Werte'!N39)/'DAX 30 Werte'!N39 -> -0.007085643869 | O39: =('DAX 30 Werte'!O40-'DAX 30 Werte'!O39)/'DAX 30 Werte'!O39 -> -0.002578648788 | P39: =('DAX 30 Werte'!P40-'DAX 30 Werte'!P39)/'DAX 30 Werte'!P39 -> -0.006447995514 | Q39: =('DAX 30 Werte'!Q40-'DAX 30 Werte'!Q39)/'DAX 30 Werte'!Q39 -> -0.005524861878 | R39: =('DAX 30 Werte'!R40-'DAX 30 Werte'!R39)/'DAX 30 Werte'!R39 -> -0.004460058842 | S39: =('DAX 30 Werte'!S40-'DAX 30 Werte'!S39)/'DAX 30 Werte'!S39 -> 0.004317627182 | T39: =('DAX 30 Werte'!T40-'DAX 30 Werte'!T39)/'DAX 30 Werte'!T39 -> -0.005670541537 | U39: =('DAX 30 Werte'!U40-'DAX 30 Werte'!U39)/'DAX 30 Werte'!U39 -> -0.002374544879 | V39: =('DAX 30 Werte'!V40-'DAX 30 Werte'!V39)/'DAX 30 Werte'!V39 -> -0.001154290112 | W39: =('DAX 30 Werte'!W40-'DAX 30 Werte'!W39)/'DAX 30 Werte'!W39 -> -0.017019082 | X39: =('DAX 30 Werte'!X40-'DAX 30 Werte'!X39)/'DAX 30 Werte'!X39 -> -0.01434521055 | Y39: =('DAX 30 Werte'!Y40-'DAX 30 Werte'!Y39)/'DAX 30 Werte'!Y39 -> -0.006021409456 | Z39: =('DAX 30 Werte'!Z40-'DAX 30 Werte'!Z39)/'DAX 30 Werte'!Z39 -> -0.001603849238 | AA39: =('DAX 30 Werte'!AA40-'DAX 30 Werte'!AA39)/'DAX 30 Werte'!AA39 -> -0.03375645922 | AB39: =('DAX 30 Werte'!AB40-'DAX 30 Werte'!AB39)/'DAX 30 Werte'!AB39 -> -0.01273031826 | AC39: =('DAX 30 Werte'!AC40-'DAX 30 Werte'!AC39)/'DAX 30 Werte'!AC39 -> -0.007299270073 | AD39: =('DAX 30 Werte'!AD40-'DAX 30 Werte'!AD39)/'DAX 30 Werte'!AD39 -> -0.002719854941 | AE39: =('DAX 30 Werte'!AD40-'DAX 30 Werte'!AD39)/'DAX 30 Werte'!AD39 -> -0.002719854941
A40: 2009-11-25 | B40: =('DAX 30 Werte'!B41-'DAX 30 Werte'!B40)/'DAX 30 Werte'!B40 -> 0.005842986423 | C40: =('DAX 30 Werte'!C41-'DAX 30 Werte'!C40)/'DAX 30 Werte'!C40 -> 0.01551148888 | D40: =('DAX 30 Werte'!D41-'DAX 30 Werte'!D40)/'DAX 30 Werte'!D40 -> 0.01275513848 | E40: =('DAX 30 Werte'!E41-'DAX 30 Werte'!E40)/'DAX 30 Werte'!E40 -> -0.005104408353 | F40: =('DAX 30 Werte'!F41-'DAX 30 Werte'!F40)/'DAX 30 Werte'!F40 -> 0.003901895206 | G40: =('DAX 30 Werte'!G41-'DAX 30 Werte'!G40)/'DAX 30 Werte'!G40 -> 0.03915081334 | H40: =('DAX 30 Werte'!H41-'DAX 30 Werte'!H40)/'DAX 30 Werte'!H40 -> -0.01230769231 | I40: =('DAX 30 Werte'!I41-'DAX 30 Werte'!I40)/'DAX 30 Werte'!I40 -> 0.01652892562 | J40: =('DAX 30 Werte'!J41-'DAX 30 Werte'!J40)/'DAX 30 Werte'!J40 -> 0.0403748836 | K40: =('DAX 30 Werte'!K41-'DAX 30 Werte'!K40)/'DAX 30 Werte'!K40 -> -0.002900959531 | L40: =('DAX 30 Werte'!L41-'DAX 30 Werte'!L40)/'DAX 30 Werte'!L40 -> -0.007115977334 | M40: =('DAX 30 Werte'!M41-'DAX 30 Werte'!M40)/'DAX 30 Werte'!M40 -> 0.01574564724 | N40: =('DAX 30 Werte'!N41-'DAX 30 Werte'!N40)/'DAX 30 Werte'!N40 -> 0.0006205398697 | O40: =('DAX 30 Werte'!O41-'DAX 30 Werte'!O40)/'DAX 30 Werte'!O40 -> 0.02119958635 | P40: =('DAX 30 Werte'!P41-'DAX 30 Werte'!P40)/'DAX 30 Werte'!P40 -> 0.008182844244 | Q40: =('DAX 30 Werte'!Q41-'DAX 30 Werte'!Q40)/'DAX 30 Werte'!Q40 -> 0.01 | R40: =('DAX 30 Werte'!R41-'DAX 30 Werte'!R40)/'DAX 30 Werte'!R40 -> 0.001650542325 | S40: =('DAX 30 Werte'!S41-'DAX 30 Werte'!S40)/'DAX 30 Werte'!S40 -> -0.008785046729 | T40: =('DAX 30 Werte'!T41-'DAX 30 Werte'!T40)/'DAX 30 Werte'!T40 -> 0.000380191997 | U40: =('DAX 30 Werte'!U41-'DAX 30 Werte'!U40)/'DAX 30 Werte'!U40 -> 0.0004760393526 | V40: =('DAX 30 Werte'!V41-'DAX 30 Werte'!V40)/'DAX 30 Werte'!V40 -> 0.002311248074 | W40: =('DAX 30 Werte'!W41-'DAX 30 Werte'!W40)/'DAX 30 Werte'!W40 -> 0.01206715635 | X40: =('DAX 30 Werte'!X41-'DAX 30 Werte'!X40)/'DAX 30 Werte'!X40 -> 0.02018779343 | Y40: =('DAX 30 Werte'!Y41-'DAX 30 Werte'!Y40)/'DAX 30 Werte'!Y40 -> 0.01637870765 | Z40: =('DAX 30 Werte'!Z41-'DAX 30 Werte'!Z40)/'DAX 30 Werte'!Z40 -> 0.003614457831 | AA40: =('DAX 30 Werte'!AA41-'DAX 30 Werte'!AA40)/'DAX 30 Werte'!AA40 -> -0.01553992521 | AB40: =('DAX 30 Werte'!AB41-'DAX 30 Werte'!AB40)/'DAX 30 Werte'!AB40 -> -0.01255514082 | AC40: =('DAX 30 Werte'!AC41-'DAX 30 Werte'!AC40)/'DAX 30 Werte'!AC40 -> -0.004595588235 | AD40: =('DAX 30 Werte'!AD41-'DAX 30 Werte'!AD40)/'DAX 30 Werte'!AD40 -> 0.006363636364 | AE40: =('DAX 30 Werte'!AD41-'DAX 30 Werte'!AD40)/'DAX 30 Werte'!AD40 -> 0.006363636364
A41: 2009-11-26 | B41: =('DAX 30 Werte'!B42-'DAX 30 Werte'!B41)/'DAX 30 Werte'!B41 -> -0.03254339982 | C41: =('DAX 30 Werte'!C42-'DAX 30 Werte'!C41)/'DAX 30 Werte'!C41 -> -0.03937952079 | D41: =('DAX 30 Werte'!D42-'DAX 30 Werte'!D41)/'DAX 30 Werte'!D41 -> -0.03118634888 | E41: =('DAX 30 Werte'!E42-'DAX 30 Werte'!E41)/'DAX 30 Werte'!E41 -> -0.02674129353 | F41: =('DAX 30 Werte'!F42-'DAX 30 Werte'!F41)/'DAX 30 Werte'!F41 -> -0.01027207107 | G41: =('DAX 30 Werte'!G42-'DAX 30 Werte'!G41)/'DAX 30 Werte'!G41 -> -0.007959671 | H41: =('DAX 30 Werte'!H42-'DAX 30 Werte'!H41)/'DAX 30 Werte'!H41 -> -0.04205607477 | I41: =('DAX 30 Werte'!I42-'DAX 30 Werte'!I41)/'DAX 30 Werte'!I41 -> -0.05075807515 | J41: =('DAX 30 Werte'!J42-'DAX 30 Werte'!J41)/'DAX 30 Werte'!J41 -> -0.03626703823 | K41: =('DAX 30 Werte'!K42-'DAX 30 Werte'!K41)/'DAX 30 Werte'!K41 -> -0.06381107155 | L41: =('DAX 30 Werte'!L42-'DAX 30 Werte'!L41)/'DAX 30 Werte'!L41 -> -0.06398571881 | M41: =('DAX 30 Werte'!M42-'DAX 30 Werte'!M41)/'DAX 30 Werte'!M41 -> -0.03294082576 | N41: =('DAX 30 Werte'!N42-'DAX 30 Werte'!N41)/'DAX 30 Werte'!N41 -> -0.01891472868 | O41: =('DAX 30 Werte'!O42-'DAX 30 Werte'!O41)/'DAX 30 Werte'!O41 -> -0.01164556962 | P41: =('DAX 30 Werte'!P42-'DAX 30 Werte'!P41)/'DAX 30 Werte'!P41 -> -0.0454799888 | Q41: =('DAX 30 Werte'!Q42-'DAX 30 Werte'!Q41)/'DAX 30 Werte'!Q41 -> -0.03043637697 | R41: =('DAX 30 Werte'!R42-'DAX 30 Werte'!R41)/'DAX 30 Werte'!R41 -> -0.03731165298 | S41: =('DAX 30 Werte'!S42-'DAX 30 Werte'!S41)/'DAX 30 Werte'!S41 -> -0.03356590609 | T41: =('DAX 30 Werte'!T42-'DAX 30 Werte'!T41)/'DAX 30 Werte'!T41 -> -0.01273159145 | U41: =('DAX 30 Werte'!U42-'DAX 30 Werte'!U41)/'DAX 30 Werte'!U41 -> -0.02458366376 | V41: =('DAX 30 Werte'!V42-'DAX 30 Werte'!V41)/'DAX 30 Werte'!V41 -> -0.04035357417 | W41: =('DAX 30 Werte'!W42-'DAX 30 Werte'!W41)/'DAX 30 Werte'!W41 -> -0.02099533437 | X41: =('DAX 30 Werte'!X42-'DAX 30 Werte'!X41)/'DAX 30 Werte'!X41 -> -0.02715140359 | Y41: =('DAX 30 Werte'!Y42-'DAX 30 Werte'!Y41)/'DAX 30 Werte'!Y41 -> -0.02649008888 | Z41: =('DAX 30 Werte'!Z42-'DAX 30 Werte'!Z41)/'DAX 30 Werte'!Z41 -> -0.04041616647 | AA41: =('DAX 30 Werte'!AA42-'DAX 30 Werte'!AA41)/'DAX 30 Werte'!AA41 -> -0.03863640837 | AB41: =('DAX 30 Werte'!AB42-'DAX 30 Werte'!AB41)/'DAX 30 Werte'!AB41 -> -0.02336769759 | AC41: =('DAX 30 Werte'!AC42-'DAX 30 Werte'!AC41)/'DAX 30 Werte'!AC41 -> -0.02585410896 | AD41: =('DAX 30 Werte'!AD42-'DAX 30 Werte'!AD41)/'DAX 30 Werte'!AD41 -> -0.01866907558 | AE41: =('DAX 30 Werte'!AD42-'DAX 30 Werte'!AD41)/'DAX 30 Werte'!AD41 -> -0.01866907558
A42: 2009-11-27 | B42: =('DAX 30 Werte'!B43-'DAX 30 Werte'!B42)/'DAX 30 Werte'!B42 -> 0.0127249442 | C42: =('DAX 30 Werte'!C43-'DAX 30 Werte'!C42)/'DAX 30 Werte'!C42 -> 0.008447204969 | D42: =('DAX 30 Werte'!D43-'DAX 30 Werte'!D42)/'DAX 30 Werte'!D42 -> 0.01807609328 | E42: =('DAX 30 Werte'!E43-'DAX 30 Werte'!E42)/'DAX 30 Werte'!E42 -> 0.03130990415 | F42: =('DAX 30 Werte'!F43-'DAX 30 Werte'!F42)/'DAX 30 Werte'!F42 -> 0.00476858345 | G42: =('DAX 30 Werte'!G43-'DAX 30 Werte'!G42)/'DAX 30 Werte'!G42 -> 0.01203530356 | H42: =('DAX 30 Werte'!H43-'DAX 30 Werte'!H42)/'DAX 30 Werte'!H42 -> 0.04715447154 | I42: =('DAX 30 Werte'!I43-'DAX 30 Werte'!I42)/'DAX 30 Werte'!I42 -> 0.02847222222 | J42: =('DAX 30 Werte'!J43-'DAX 30 Werte'!J42)/'DAX 30 Werte'!J42 -> 0.031054826 | K42: =('DAX 30 Werte'!K43-'DAX 30 Werte'!K42)/'DAX 30 Werte'!K42 -> 0.0275418354 | L42: =('DAX 30 Werte'!L43-'DAX 30 Werte'!L42)/'DAX 30 Werte'!L42 -> 0.01792938356 | M42: =('DAX 30 Werte'!M43-'DAX 30 Werte'!M42)/'DAX 30 Werte'!M42 -> 0.01294697904 | N42: =('DAX 30 Werte'!N43-'DAX 30 Werte'!N42)/'DAX 30 Werte'!N42 -> 0.01422250316 | O42: =('DAX 30 Werte'!O43-'DAX 30 Werte'!O42)/'DAX 30 Werte'!O42 -> 0.009221311475 | P42: =('DAX 30 Werte'!P43-'DAX 30 Werte'!P42)/'DAX 30 Werte'!P42 -> 0.01524703123 | Q42: =('DAX 30 Werte'!Q43-'DAX 30 Werte'!Q42)/'DAX 30 Werte'!Q42 -> 0.01323751891 | R42: =('DAX 30 Werte'!R43-'DAX 30 Werte'!R42)/'DAX 30 Werte'!R42 -> 0.009781085588 | S42: =('DAX 30 Werte'!S43-'DAX 30 Werte'!S42)/'DAX 30 Werte'!S42 -> -0.001756097561 | T42: =('DAX 30 Werte'!T43-'DAX 30 Werte'!T42)/'DAX 30 Werte'!T42 -> 0.01106726975 | U42: =('DAX 30 Werte'!U43-'DAX 30 Werte'!U42)/'DAX 30 Werte'!U42 -> 0.009593495935 | V42: =('DAX 30 Werte'!V43-'DAX 30 Werte'!V42)/'DAX 30 Werte'!V42 -> 0.01081297557 | W42: =('DAX 30 Werte'!W43-'DAX 30 Werte'!W42)/'DAX 30 Werte'!W42 -> 0.02515223723 | X42: =('DAX 30 Werte'!X43-'DAX 30 Werte'!X42)/'DAX 30 Werte'!X42 -> 0.008987701041 | Y42: =('DAX 30 Werte'!Y43-'DAX 30 Werte'!Y42)/'DAX 30 Werte'!Y42 -> -0.00702941075 | Z42: =('DAX 30 Werte'!Z43-'DAX 30 Werte'!Z42)/'DAX 30 Werte'!Z42 -> 0.02043369475 | AA42: =('DAX 30 Werte'!AA43-'DAX 30 Werte'!AA42)/'DAX 30 Werte'!AA42 -> 0.02297109164 | AB42: =('DAX 30 Werte'!AB43-'DAX 30 Werte'!AB42)/'DAX 30 Werte'!AB42 -> -0.002287121745 | AC42: =('DAX 30 Werte'!AC43-'DAX 30 Werte'!AC42)/'DAX 30 Werte'!AC42 -> 0.005213270142 | AD42: =('DAX 30 Werte'!AD43-'DAX 30 Werte'!AD42)/'DAX 30 Werte'!AD42 -> 0.004295796257 | AE42: =('DAX 30 Werte'!AD43-'DAX 30 Werte'!AD42)/'DAX 30 Werte'!AD42 -> 0.004295796257
A43: 2009-11-30 | B43: =('DAX 30 Werte'!B44-'DAX 30 Werte'!B43)/'DAX 30 Werte'!B43 -> -0.01049315729 | C43: =('DAX 30 Werte'!C44-'DAX 30 Werte'!C43)/'DAX 30 Werte'!C43 -> -0.0105937423 | D43: =('DAX 30 Werte'!D44-'DAX 30 Werte'!D43)/'DAX 30 Werte'!D43 -> -0.004256426939 | E43: =('DAX 30 Werte'!E44-'DAX 30 Werte'!E43)/'DAX 30 Werte'!E43 -> -0.02648698885 | F43: =('DAX 30 Werte'!F44-'DAX 30 Werte'!F43)/'DAX 30 Werte'!F43 -> -0.01144611949 | G43: =('DAX 30 Werte'!G44-'DAX 30 Werte'!G43)/'DAX 30 Werte'!G43 -> 0.00766384778 | H43: =('DAX 30 Werte'!H44-'DAX 30 Werte'!H43)/'DAX 30 Werte'!H43 -> -0.009316770186 | I43: =('DAX 30 Werte'!I44-'DAX 30 Werte'!I43)/'DAX 30 Werte'!I43 -> -0.005176682422 | J43: =('DAX 30 Werte'!J44-'DAX 30 Werte'!J43)/'DAX 30 Werte'!J43 -> -0.01618440452 | K43: =('DAX 30 Werte'!K44-'DAX 30 Werte'!K43)/'DAX 30 Werte'!K43 -> 0.002400323701 | L43: =('DAX 30 Werte'!L44-'DAX 30 Werte'!L43)/'DAX 30 Werte'!L43 -> 0.03669834847 | M43: =('DAX 30 Werte'!M44-'DAX 30 Werte'!M43)/'DAX 30 Werte'!M43 -> -0.006999391357 | N43: =('DAX 30 Werte'!N44-'DAX 30 Werte'!N43)/'DAX 30 Werte'!N43 -> -0.008413836086 | O43: =('DAX 30 Werte'!O44-'DAX 30 Werte'!O43)/'DAX 30 Werte'!O43 -> -0.003045685279 | P43: =('DAX 30 Werte'!P44-'DAX 30 Werte'!P43)/'DAX 30 Werte'!P43 -> -0.02613718412 | Q43: =('DAX 30 Werte'!Q44-'DAX 30 Werte'!Q43)/'DAX 30 Werte'!Q43 -> -0.01679731243 | R43: =('DAX 30 Werte'!R44-'DAX 30 Werte'!R43)/'DAX 30 Werte'!R43 -> -0.00932311463 | S43: =('DAX 30 Werte'!S44-'DAX 30 Werte'!S43)/'DAX 30 Werte'!S43 -> -0.003322908522 | T43: =('DAX 30 Werte'!T44-'DAX 30 Werte'!T43)/'DAX 30 Werte'!T43 -> -0.005996573387 | U43: =('DAX 30 Werte'!U44-'DAX 30 Werte'!U43)/'DAX 30 Werte'!U43 -> -0.01546142696 | V43: =('DAX 30 Werte'!V44-'DAX 30 Werte'!V43)/'DAX 30 Werte'!V43 -> -0.0118858954 | W43: =('DAX 30 Werte'!W44-'DAX 30 Werte'!W43)/'DAX 30 Werte'!W43 -> -0.002840909091 | X43: =('DAX 30 Werte'!X44-'DAX 30 Werte'!X43)/'DAX 30 Werte'!X43 -> -0.01898734177 | Y43: =('DAX 30 Werte'!Y44-'DAX 30 Werte'!Y43)/'DAX 30 Werte'!Y43 -> -0.01096140646 | Z43: =('DAX 30 Werte'!Z44-'DAX 30 Werte'!Z43)/'DAX 30 Werte'!Z43 -> -0.008173273396 | AA43: =('DAX 30 Werte'!AA44-'DAX 30 Werte'!AA43)/'DAX 30 Werte'!AA43 -> -0.002401633111 | AB43: =('DAX 30 Werte'!AB44-'DAX 30 Werte'!AB43)/'DAX 30 Werte'!AB43 -> -0.03897019926 | AC43: =('DAX 30 Werte'!AC44-'DAX 30 Werte'!AC43)/'DAX 30 Werte'!AC43 -> 0.002357378595 | AD43: =('DAX 30 Werte'!AD44-'DAX 30 Werte'!AD43)/'DAX 30 Werte'!AD43 -> -0.04048273755 | AE43: =('DAX 30 Werte'!AD44-'DAX 30 Werte'!AD43)/'DAX 30 Werte'!AD43 -> -0.04048273755
A44: 2009-12-01 | B44: =('DAX 30 Werte'!B45-'DAX 30 Werte'!B44)/'DAX 30 Werte'!B44 -> 0.02677947724 | C44: =('DAX 30 Werte'!C45-'DAX 30 Werte'!C44)/'DAX 30 Werte'!C44 -> 0.02016934761 | D44: =('DAX 30 Werte'!D45-'DAX 30 Werte'!D44)/'DAX 30 Werte'!D44 -> 0.02149489576 | E44: =('DAX 30 Werte'!E45-'DAX 30 Werte'!E44)/'DAX 30 Werte'!E44 -> 0.02227525855 | F44: =('DAX 30 Werte'!F45-'DAX 30 Werte'!F44)/'DAX 30 Werte'!F44 -> 0.0138378989 | G44: =('DAX 30 Werte'!G45-'DAX 30 Werte'!G44)/'DAX 30 Werte'!G44 -> 0.009703645424 | H44: =('DAX 30 Werte'!H45-'DAX 30 Werte'!H44)/'DAX 30 Werte'!H44 -> 0.03761755486 | I44: =('DAX 30 Werte'!I45-'DAX 30 Werte'!I44)/'DAX 30 Werte'!I44 -> 0.06221719457 | J44: =('DAX 30 Werte'!J45-'DAX 30 Werte'!J44)/'DAX 30 Werte'!J44 -> 0.06630109836 | K44: =('DAX 30 Werte'!K45-'DAX 30 Werte'!K44)/'DAX 30 Werte'!K44 -> 0.03319110312 | L44: =('DAX 30 Werte'!L45-'DAX 30 Werte'!L44)/'DAX 30 Werte'!L44 -> 0.05309621062 | M44: =('DAX 30 Werte'!M45-'DAX 30 Werte'!M44)/'DAX 30 Werte'!M44 -> 0.03723567269 | N44: =('DAX 30 Werte'!N45-'DAX 30 Werte'!N44)/'DAX 30 Werte'!N44 -> 0.007542426147 | O44: =('DAX 30 Werte'!O45-'DAX 30 Werte'!O44)/'DAX 30 Werte'!O44 -> 0.03869653768 | P44: =('DAX 30 Werte'!P45-'DAX 30 Werte'!P44)/'DAX 30 Werte'!P44 -> 0.04107354686 | Q44: =('DAX 30 Werte'!Q45-'DAX 30 Werte'!Q44)/'DAX 30 Werte'!Q44 -> 0.023158694 | R44: =('DAX 30 Werte'!R45-'DAX 30 Werte'!R44)/'DAX 30 Werte'!R44 -> 0.03434364459 | S44: =('DAX 30 Werte'!S45-'DAX 30 Werte'!S44)/'DAX 30 Werte'!S44 -> 0.02529907825 | T44: =('DAX 30 Werte'!T45-'DAX 30 Werte'!T44)/'DAX 30 Werte'!T44 -> 0.02298190175 | U44: =('DAX 30 Werte'!U45-'DAX 30 Werte'!U44)/'DAX 30 Werte'!U44 -> 0.02371994111 | V44: =('DAX 30 Werte'!V45-'DAX 30 Werte'!V44)/'DAX 30 Werte'!V44 -> 0.0376904571 | W44: =('DAX 30 Werte'!W45-'DAX 30 Werte'!W44)/'DAX 30 Werte'!W44 -> 0.03004403004 | X44: =('DAX 30 Werte'!X45-'DAX 30 Werte'!X44)/'DAX 30 Werte'!X44 -> 0.007885304659 | Y44: =('DAX 30 Werte'!Y45-'DAX 30 Werte'!Y44)/'DAX 30 Werte'!Y44 -> 0.02147312349 | Z44: =('DAX 30 Werte'!Z45-'DAX 30 Werte'!Z44)/'DAX 30 Werte'!Z44 -> 0.03461063041 | AA44: =('DAX 30 Werte'!AA45-'DAX 30 Werte'!AA44)/'DAX 30 Werte'!AA44 -> 0.01847690888 | AB44: =('DAX 30 Werte'!AB45-'DAX 30 Werte'!AB44)/'DAX 30 Werte'!AB44 -> -0.04403669725 | AC44: =('DAX 30 Werte'!AC45-'DAX 30 Werte'!AC44)/'DAX 30 Werte'!AC44 -> 0.0272812794 | AD44: =('DAX 30 Werte'!AD45-'DAX 30 Werte'!AD44)/'DAX 30 Werte'!AD44 -> 0.02340391657 | AE44: =('DAX 30 Werte'!AD45-'DAX 30 Werte'!AD44)/'DAX 30 Werte'!AD44 -> 0.02340391657
A45: 2009-12-02 | B45: =('DAX 30 Werte'!B46-'DAX 30 Werte'!B45)/'DAX 30 Werte'!B45 -> 0.0008776773921 | C45: =('DAX 30 Werte'!C46-'DAX 30 Werte'!C45)/'DAX 30 Werte'!C45 -> 0.0153770316 | D45: =('DAX 30 Werte'!D46-'DAX 30 Werte'!D45)/'DAX 30 Werte'!D45 -> -0.001195576294 | E45: =('DAX 30 Werte'!E46-'DAX 30 Werte'!E45)/'DAX 30 Werte'!E45 -> -0.01463035019 | F45: =('DAX 30 Werte'!F46-'DAX 30 Werte'!F45)/'DAX 30 Werte'!F45 -> 0.008635097493 | G45: =('DAX 30 Werte'!G46-'DAX 30 Werte'!G45)/'DAX 30 Werte'!G45 -> -0.01558441558 | H45: =('DAX 30 Werte'!H46-'DAX 30 Werte'!H45)/'DAX 30 Werte'!H45 -> -0.007552870091 | I45: =('DAX 30 Werte'!I46-'DAX 30 Werte'!I45)/'DAX 30 Werte'!I45 -> -0.001916932907 | J45: =('DAX 30 Werte'!J46-'DAX 30 Werte'!J45)/'DAX 30 Werte'!J45 -> 0.005843852404 | K45: =('DAX 30 Werte'!K46-'DAX 30 Werte'!K45)/'DAX 30 Werte'!K45 -> -0.01430100763 | L45: =('DAX 30 Werte'!L46-'DAX 30 Werte'!L45)/'DAX 30 Werte'!L45 -> 0.03579894563 | M45: =('DAX 30 Werte'!M46-'DAX 30 Werte'!M45)/'DAX 30 Werte'!M45 -> -0.001772787709 | N45: =('DAX 30 Werte'!N46-'DAX 30 Werte'!N45)/'DAX 30 Werte'!N45 -> -0.03243917654 | O45: =('DAX 30 Werte'!O46-'DAX 30 Werte'!O45)/'DAX 30 Werte'!O45 -> 0.01421568627 | P45: =('DAX 30 Werte'!P46-'DAX 30 Werte'!P45)/'DAX 30 Werte'!P45 -> 0.002136447799 | Q45: =('DAX 30 Werte'!Q46-'DAX 30 Werte'!Q45)/'DAX 30 Werte'!Q45 -> 0.0107606679 | R45: =('DAX 30 Werte'!R46-'DAX 30 Werte'!R45)/'DAX 30 Werte'!R45 -> -0.003899255721 | S45: =('DAX 30 Werte'!S46-'DAX 30 Werte'!S45)/'DAX 30 Werte'!S45 -> 0.01798010712 | T45: =('DAX 30 Werte'!T46-'DAX 30 Werte'!T45)/'DAX 30 Werte'!T45 -> -0.01132640644 | U45: =('DAX 30 Werte'!U46-'DAX 30 Werte'!U45)/'DAX 30 Werte'!U45 -> 0.006871204858 | V45: =('DAX 30 Werte'!V46-'DAX 30 Werte'!V45)/'DAX 30 Werte'!V45 -> 0.004636785162 | W45: =('DAX 30 Werte'!W46-'DAX 30 Werte'!W45)/'DAX 30 Werte'!W45 -> 0.003771687201 | X45: =('DAX 30 Werte'!X46-'DAX 30 Werte'!X45)/'DAX 30 Werte'!X45 -> 0.005215742058 | Y45: =('DAX 30 Werte'!Y46-'DAX 30 Werte'!Y45)/'DAX 30 Werte'!Y45 -> 0.01650088081 | Z45: =('DAX 30 Werte'!Z46-'DAX 30 Werte'!Z45)/'DAX 30 Werte'!Z45 -> 0.00199123855 | AA45: =('DAX 30 Werte'!AA46-'DAX 30 Werte'!AA45)/'DAX 30 Werte'!AA45 -> -0.02919219178 | AB45: =('DAX 30 Werte'!AB46-'DAX 30 Werte'!AB45)/'DAX 30 Werte'!AB45 -> 0.01708253359 | AC45: =('DAX 30 Werte'!AC46-'DAX 30 Werte'!AC45)/'DAX 30 Werte'!AC45 -> 0.01098901099 | AD45: =('DAX 30 Werte'!AD46-'DAX 30 Werte'!AD45)/'DAX 30 Werte'!AD45 -> 0.01026757934 | AE45: =('DAX 30 Werte'!AD46-'DAX 30 Werte'!AD45)/'DAX 30 Werte'!AD45 -> 0.01026757934
A46: 2009-12-03 | B46: =('DAX 30 Werte'!B47-'DAX 30 Werte'!B46)/'DAX 30 Werte'!B46 -> -0.001959638029 | C46: =('DAX 30 Werte'!C47-'DAX 30 Werte'!C46)/'DAX 30 Werte'!C46 -> -0.004807596385 | D46: =('DAX 30 Werte'!D47-'DAX 30 Werte'!D46)/'DAX 30 Werte'!D46 -> -0.003710773238 | E46: =('DAX 30 Werte'!E47-'DAX 30 Werte'!E46)/'DAX 30 Werte'!E46 -> 0.01705891644 | F46: =('DAX 30 Werte'!F47-'DAX 30 Werte'!F46)/'DAX 30 Werte'!F46 -> 0.008837337752 | G46: =('DAX 30 Werte'!G47-'DAX 30 Werte'!G46)/'DAX 30 Werte'!G46 -> -0.01873350923 | H46: =('DAX 30 Werte'!H47-'DAX 30 Werte'!H46)/'DAX 30 Werte'!H46 -> 0.001522070015 | I46: =('DAX 30 Werte'!I47-'DAX 30 Werte'!I46)/'DAX 30 Werte'!I46 -> 0.007042253521 | J46: =('DAX 30 Werte'!J47-'DAX 30 Werte'!J46)/'DAX 30 Werte'!J46 -> 0.01231703491 | K46: =('DAX 30 Werte'!K47-'DAX 30 Werte'!K46)/'DAX 30 Werte'!K46 -> 0.001227142237 | L46: =('DAX 30 Werte'!L47-'DAX 30 Werte'!L46)/'DAX 30 Werte'!L46 -> 0.01736163822 | M46: =('DAX 30 Werte'!M47-'DAX 30 Werte'!M46)/'DAX 30 Werte'!M46 -> -0.05165014059 | N46: =('DAX 30 Werte'!N47-'DAX 30 Werte'!N46)/'DAX 30 Werte'!N46 -> 0.0006447453256 | O46: =('DAX 30 Werte'!O47-'DAX 30 Werte'!O46)/'DAX 30 Werte'!O46 -> 0.0009666505558 | P46: =('DAX 30 Werte'!P47-'DAX 30 Werte'!P46)/'DAX 30 Werte'!P46 -> 0.00810119386 | Q46: =('DAX 30 Werte'!Q47-'DAX 30 Werte'!Q46)/'DAX 30 Werte'!Q46 -> 0.00624082232 | R46: =('DAX 30 Werte'!R47-'DAX 30 Werte'!R46)/'DAX 30 Werte'!R46 -> 0.001186227716 | S46: =('DAX 30 Werte'!S47-'DAX 30 Werte'!S46)/'DAX 30 Werte'!S46 -> 0.003382187148 | T46: =('DAX 30 Werte'!T47-'DAX 30 Werte'!T46)/'DAX 30 Werte'!T46 -> 0.00880515054 | U46: =('DAX 30 Werte'!U47-'DAX 30 Werte'!U46)/'DAX 30 Werte'!U46 -> 0.004602444056 | V46: =('DAX 30 Werte'!V47-'DAX 30 Werte'!V46)/'DAX 30 Werte'!V46 -> 0.02192307692 | W46: =('DAX 30 Werte'!W47-'DAX 30 Werte'!W46)/'DAX 30 Werte'!W46 -> -0.003507014028 | X46: =('DAX 30 Werte'!X47-'DAX 30 Werte'!X46)/'DAX 30 Werte'!X46 -> 0.008254716981 | Y46: =('DAX 30 Werte'!Y47-'DAX 30 Werte'!Y46)/'DAX 30 Werte'!Y46 -> 0.01089610827 | Z46: =('DAX 30 Werte'!Z47-'DAX 30 Werte'!Z46)/'DAX 30 Werte'!Z46 -> 0.002384737679 | AA46: =('DAX 30 Werte'!AA47-'DAX 30 Werte'!AA46)/'DAX 30 Werte'!AA46 -> 0.01462919752 | AB46: =('DAX 30 Werte'!AB47-'DAX 30 Werte'!AB46)/'DAX 30 Werte'!AB46 -> -0.003208152482 | AC46: =('DAX 30 Werte'!AC47-'DAX 30 Werte'!AC46)/'DAX 30 Werte'!AC46 -> 0.03532608696 | AD46: =('DAX 30 Werte'!AD47-'DAX 30 Werte'!AD46)/'DAX 30 Werte'!AD46 -> -0.005081613797 | AE46: =('DAX 30 Werte'!AD47-'DAX 30 Werte'!AD46)/'DAX 30 Werte'!AD46 -> -0.005081613797
A47: 2009-12-04 | B47: =('DAX 30 Werte'!B48-'DAX 30 Werte'!B47)/'DAX 30 Werte'!B47 -> 0.008197076434 | C47: =('DAX 30 Werte'!C48-'DAX 30 Werte'!C47)/'DAX 30 Werte'!C47 -> 0.01183567576 | D47: =('DAX 30 Werte'!D48-'DAX 30 Werte'!D47)/'DAX 30 Werte'!D47 -> 0.01501862255 | E47: =('DAX 30 Werte'!E48-'DAX 30 Werte'!E47)/'DAX 30 Werte'!E47 -> 0.01723870166 | F47: =('DAX 30 Werte'!F48-'DAX 30 Werte'!F47)/'DAX 30 Werte'!F47 -> 0.01341363263 | G47: =('DAX 30 Werte'!G48-'DAX 30 Werte'!G47)/'DAX 30 Werte'!G47 -> 0.01425114278 | H47: =('DAX 30 Werte'!H48-'DAX 30 Werte'!H47)/'DAX 30 Werte'!H47 -> 0.004559270517 | I47: =('DAX 30 Werte'!I48-'DAX 30 Werte'!I47)/'DAX 30 Werte'!I47 -> 0.009112100021 | J47: =('DAX 30 Werte'!J48-'DAX 30 Werte'!J47)/'DAX 30 Werte'!J47 -> -0.003902708818 | K47: =('DAX 30 Werte'!K48-'DAX 30 Werte'!K47)/'DAX 30 Werte'!K47 -> 0.01346860085 | L47: =('DAX 30 Werte'!L48-'DAX 30 Werte'!L47)/'DAX 30 Werte'!L47 -> 0.01275890452 | M47: =('DAX 30 Werte'!M48-'DAX 30 Werte'!M47)/'DAX 30 Werte'!M47 -> -0.009051186017 | N47: =('DAX 30 Werte'!N48-'DAX 30 Werte'!N47)/'DAX 30 Werte'!N47 -> 0.002094072165 | O47: =('DAX 30 Werte'!O48-'DAX 30 Werte'!O47)/'DAX 30 Werte'!O47 -> 0.02076291647 | P47: =('DAX 30 Werte'!P48-'DAX 30 Werte'!P47)/'DAX 30 Werte'!P47 -> 0.01254758212 | Q47: =('DAX 30 Werte'!Q48-'DAX 30 Werte'!Q47)/'DAX 30 Werte'!Q47 -> 0.01313389274 | R47: =('DAX 30 Werte'!R48-'DAX 30 Werte'!R47)/'DAX 30 Werte'!R47 -> 0.002369620797 | S47: =('DAX 30 Werte'!S48-'DAX 30 Werte'!S47)/'DAX 30 Werte'!S47 -> 0.006179775281 | T47: =('DAX 30 Werte'!T48-'DAX 30 Werte'!T47)/'DAX 30 Werte'!T47 -> -0.003284842797 | U47: =('DAX 30 Werte'!U48-'DAX 30 Werte'!U47)/'DAX 30 Werte'!U47 -> 0.01105845182 | V47: =('DAX 30 Werte'!V48-'DAX 30 Werte'!V47)/'DAX 30 Werte'!V47 -> 0.01768912307 | W47: =('DAX 30 Werte'!W48-'DAX 30 Werte'!W47)/'DAX 30 Werte'!W47 -> -0.005781799899 | X47: =('DAX 30 Werte'!X48-'DAX 30 Werte'!X47)/'DAX 30 Werte'!X47 -> 0.01356725146 | Y47: =('DAX 30 Werte'!Y48-'DAX 30 Werte'!Y47)/'DAX 30 Werte'!Y47 -> 0.01715800742 | Z47: =('DAX 30 Werte'!Z48-'DAX 30 Werte'!Z47)/'DAX 30 Werte'!Z47 -> 0.003965107058 | AA47: =('DAX 30 Werte'!AA48-'DAX 30 Werte'!AA47)/'DAX 30 Werte'!AA47 -> 0.003199616046 | AB47: =('DAX 30 Werte'!AB48-'DAX 30 Werte'!AB47)/'DAX 30 Werte'!AB47 -> 0.01495645589 | AC47: =('DAX 30 Werte'!AC48-'DAX 30 Werte'!AC47)/'DAX 30 Werte'!AC47 -> 0.01968503937 | AD47: =('DAX 30 Werte'!AD48-'DAX 30 Werte'!AD47)/'DAX 30 Werte'!AD47 -> 0.009131713357 | AE47: =('DAX 30 Werte'!AD48-'DAX 30 Werte'!AD47)/'DAX 30 Werte'!AD47 -> 0.009131713357
A48: 2009-12-07 | B48: =('DAX 30 Werte'!B49-'DAX 30 Werte'!B48)/'DAX 30 Werte'!B48 -> -0.005655204421 | C48: =('DAX 30 Werte'!C49-'DAX 30 Werte'!C48)/'DAX 30 Werte'!C48 -> 0.0152781097 | D48: =('DAX 30 Werte'!D49-'DAX 30 Werte'!D48)/'DAX 30 Werte'!D48 -> -0.007102343498 | E48: =('DAX 30 Werte'!E49-'DAX 30 Werte'!E48)/'DAX 30 Werte'!E48 -> -0.00427480916 | F48: =('DAX 30 Werte'!F49-'DAX 30 Werte'!F48)/'DAX 30 Werte'!F48 -> -0.003241491086 | G48: =('DAX 30 Werte'!G49-'DAX 30 Werte'!G48)/'DAX 30 Werte'!G48 -> 0.01299045599 | H48: =('DAX 30 Werte'!H49-'DAX 30 Werte'!H48)/'DAX 30 Werte'!H48 -> 0.01059001513 | I48: =('DAX 30 Werte'!I49-'DAX 30 Werte'!I48)/'DAX 30 Werte'!I48 -> 0.01616967661 | J48: =('DAX 30 Werte'!J49-'DAX 30 Werte'!J48)/'DAX 30 Werte'!J48 -> -0.01935929982 | K48: =('DAX 30 Werte'!K49-'DAX 30 Werte'!K48)/'DAX 30 Werte'!K48 -> -0.007147964408 | L48: =('DAX 30 Werte'!L49-'DAX 30 Werte'!L48)/'DAX 30 Werte'!L48 -> 0.01622140579 | M48: =('DAX 30 Werte'!M49-'DAX 30 Werte'!M48)/'DAX 30 Werte'!M48 -> -0.01637795276 | N48: =('DAX 30 Werte'!N49-'DAX 30 Werte'!N48)/'DAX 30 Werte'!N48 -> -0.0118951937 | O48: =('DAX 30 Werte'!O49-'DAX 30 Werte'!O48)/'DAX 30 Werte'!O48 -> -0.01135288553 | P48: =('DAX 30 Werte'!P49-'DAX 30 Werte'!P48)/'DAX 30 Werte'!P48 -> 0.01322751323 | Q48: =('DAX 30 Werte'!Q49-'DAX 30 Werte'!Q48)/'DAX 30 Werte'!Q48 -> -0.006841915736 | R48: =('DAX 30 Werte'!R49-'DAX 30 Werte'!R48)/'DAX 30 Werte'!R48 -> -0.01028362908 | S48: =('DAX 30 Werte'!S49-'DAX 30 Werte'!S48)/'DAX 30 Werte'!S48 -> -0.01358645077 | T48: =('DAX 30 Werte'!T49-'DAX 30 Werte'!T48)/'DAX 30 Werte'!T48 -> -0.003578154426 | U48: =('DAX 30 Werte'!U49-'DAX 30 Werte'!U48)/'DAX 30 Werte'!U48 -> -0.00703125 | V48: =('DAX 30 Werte'!V49-'DAX 30 Werte'!V48)/'DAX 30 Werte'!V48 -> -0.008136094675 | W48: =('DAX 30 Werte'!W49-'DAX 30 Werte'!W48)/'DAX 30 Werte'!W48 -> 0.007079646018 | X48: =('DAX 30 Werte'!X49-'DAX 30 Werte'!X48)/'DAX 30 Werte'!X48 -> -0.003231017771 | Y48: =('DAX 30 Werte'!Y49-'DAX 30 Werte'!Y48)/'DAX 30 Werte'!Y48 -> 0.0002162197138 | Z48: =('DAX 30 Werte'!Z49-'DAX 30 Werte'!Z48)/'DAX 30 Werte'!Z48 -> -0.01579778831 | AA48: =('DAX 30 Werte'!AA49-'DAX 30 Werte'!AA48)/'DAX 30 Werte'!AA48 -> -0.009588167285 | AB48: =('DAX 30 Werte'!AB49-'DAX 30 Werte'!AB48)/'DAX 30 Werte'!AB48 -> -0.01958589815 | AC48: =('DAX 30 Werte'!AC49-'DAX 30 Werte'!AC48)/'DAX 30 Werte'!AC48 -> 0.000858000858 | AD48: =('DAX 30 Werte'!AD49-'DAX 30 Werte'!AD48)/'DAX 30 Werte'!AD48 -> -0.003527607362 | AE48: =('DAX 30 Werte'!AD49-'DAX 30 Werte'!AD48)/'DAX 30 Werte'!AD48 -> -0.003527607362
A49: 2009-12-08 | B49: =('DAX 30 Werte'!B50-'DAX 30 Werte'!B49)/'DAX 30 Werte'!B49 -> -0.0166247461 | C49: =('DAX 30 Werte'!C50-'DAX 30 Werte'!C49)/'DAX 30 Werte'!C49 -> -0.03080174067 | D49: =('DAX 30 Werte'!D50-'DAX 30 Werte'!D49)/'DAX 30 Werte'!D49 -> -0.02062464308 | E49: =('DAX 30 Werte'!E50-'DAX 30 Werte'!E49)/'DAX 30 Werte'!E49 -> -0.01195952162 | F49: =('DAX 30 Werte'!F50-'DAX 30 Werte'!F49)/'DAX 30 Werte'!F49 -> -0.0162601626 | G49: =('DAX 30 Werte'!G50-'DAX 30 Werte'!G49)/'DAX 30 Werte'!G49 -> -0.01203873332 | H49: =('DAX 30 Werte'!H50-'DAX 30 Werte'!H49)/'DAX 30 Werte'!H49 -> 0.01047904192 | I49: =('DAX 30 Werte'!I50-'DAX 30 Werte'!I49)/'DAX 30 Werte'!I49 -> -0.02376524075 | J49: =('DAX 30 Werte'!J50-'DAX 30 Werte'!J49)/'DAX 30 Werte'!J49 -> -0.03407758012 | K49: =('DAX 30 Werte'!K50-'DAX 30 Werte'!K49)/'DAX 30 Werte'!K49 -> -0.01957336902 | L49: =('DAX 30 Werte'!L50-'DAX 30 Werte'!L49)/'DAX 30 Werte'!L49 -> -0.006664671163 | M49: =('DAX 30 Werte'!M50-'DAX 30 Werte'!M49)/'DAX 30 Werte'!M49 -> -0.00688440602 | N49: =('DAX 30 Werte'!N50-'DAX 30 Werte'!N49)/'DAX 30 Werte'!N49 -> -0.01041158289 | O49: =('DAX 30 Werte'!O50-'DAX 30 Werte'!O49)/'DAX 30 Werte'!O49 -> -0.03157894737 | P49: =('DAX 30 Werte'!P50-'DAX 30 Werte'!P49)/'DAX 30 Werte'!P49 -> -0.02830836883 | Q49: =('DAX 30 Werte'!Q50-'DAX 30 Werte'!Q49)/'DAX 30 Werte'!Q49 -> -0.01305293691 | R49: =('DAX 30 Werte'!R50-'DAX 30 Werte'!R49)/'DAX 30 Werte'!R49 -> -0.01062948726 | S49: =('DAX 30 Werte'!S50-'DAX 30 Werte'!S49)/'DAX 30 Werte'!S49 -> -0.01716981132 | T49: =('DAX 30 Werte'!T50-'DAX 30 Werte'!T49)/'DAX 30 Werte'!T49 -> -0.01228501229 | U49: =('DAX 30 Werte'!U50-'DAX 30 Werte'!U49)/'DAX 30 Werte'!U49 -> -0.006766325728 | V49: =('DAX 30 Werte'!V50-'DAX 30 Werte'!V49)/'DAX 30 Werte'!V49 -> -0.009694258016 | W49: =('DAX 30 Werte'!W50-'DAX 30 Werte'!W49)/'DAX 30 Werte'!W49 -> 0.01531508913 | X49: =('DAX 30 Werte'!X50-'DAX 30 Werte'!X49)/'DAX 30 Werte'!X49 -> -0.00764065756 | Y49: =('DAX 30 Werte'!Y50-'DAX 30 Werte'!Y49)/'DAX 30 Werte'!Y49 -> -0.02313513514 | Z49: =('DAX 30 Werte'!Z50-'DAX 30 Werte'!Z49)/'DAX 30 Werte'!Z49 -> -0.01484751204 | AA49: =('DAX 30 Werte'!AA50-'DAX 30 Werte'!AA49)/'DAX 30 Werte'!AA49 -> -0.01773170977 | AB49: =('DAX 30 Werte'!AB50-'DAX 30 Werte'!AB49)/'DAX 30 Werte'!AB49 -> -0.0003805175038 | AC49: =('DAX 30 Werte'!AC50-'DAX 30 Werte'!AC49)/'DAX 30 Werte'!AC49 -> -0.009001285898 | AD49: =('DAX 30 Werte'!AD50-'DAX 30 Werte'!AD49)/'DAX 30 Werte'!AD49 -> -0.009388948746 | AE49: =('DAX 30 Werte'!AD50-'DAX 30 Werte'!AD49)/'DAX 30 Werte'!AD49 -> -0.009388948746
A50: 2009-12-09 | B50: =('DAX 30 Werte'!B51-'DAX 30 Werte'!B50)/'DAX 30 Werte'!B50 -> -0.007161716984 | C50: =('DAX 30 Werte'!C51-'DAX 30 Werte'!C50)/'DAX 30 Werte'!C50 -> 0.009946627609 | D50: =('DAX 30 Werte'!D51-'DAX 30 Werte'!D50)/'DAX 30 Werte'!D50 -> -0.00255629939 | E50: =('DAX 30 Werte'!E51-'DAX 30 Werte'!E50)/'DAX 30 Werte'!E50 -> -0.01629422719 | F50: =('DAX 30 Werte'!F51-'DAX 30 Werte'!F50)/'DAX 30 Werte'!F50 -> 0.0002754820937 | G50: =('DAX 30 Werte'!G51-'DAX 30 Werte'!G50)/'DAX 30 Werte'!G50 -> -0.0002649006623 | H50: =('DAX 30 Werte'!H51-'DAX 30 Werte'!H50)/'DAX 30 Werte'!H50 -> -0.001481481481 | I50: =('DAX 30 Werte'!I51-'DAX 30 Werte'!I50)/'DAX 30 Werte'!I50 -> -0.005292125318 | J50: =('DAX 30 Werte'!J51-'DAX 30 Werte'!J50)/'DAX 30 Werte'!J50 -> -0.004622822609 | K50: =('DAX 30 Werte'!K51-'DAX 30 Werte'!K50)/'DAX 30 Werte'!K50 -> -0.01737509947 | L50: =('DAX 30 Werte'!L51-'DAX 30 Werte'!L50)/'DAX 30 Werte'!L50 -> -0.007955528143 | M50: =('DAX 30 Werte'!M51-'DAX 30 Werte'!M50)/'DAX 30 Werte'!M50 -> -0.02289214896 | N50: =('DAX 30 Werte'!N51-'DAX 30 Werte'!N50)/'DAX 30 Werte'!N50 -> -0.01068551701 | O50: =('DAX 30 Werte'!O51-'DAX 30 Werte'!O50)/'DAX 30 Werte'!O50 -> -0.0009881422925 | P50: =('DAX 30 Werte'!P51-'DAX 30 Werte'!P50)/'DAX 30 Werte'!P50 -> -0.01400084854 | Q50: =('DAX 30 Werte'!Q51-'DAX 30 Werte'!Q50)/'DAX 30 Werte'!Q50 -> -0.005143277002 | R50: =('DAX 30 Werte'!R51-'DAX 30 Werte'!R50)/'DAX 30 Werte'!R50 -> -0.01376145648 | S50: =('DAX 30 Werte'!S51-'DAX 30 Werte'!S50)/'DAX 30 Werte'!S50 -> 0.006911115377 | T50: =('DAX 30 Werte'!T51-'DAX 30 Werte'!T50)/'DAX 30 Werte'!T50 -> -0.01760428626 | U50: =('DAX 30 Werte'!U51-'DAX 30 Werte'!U50)/'DAX 30 Werte'!U50 -> 0.001901140684 | V50: =('DAX 30 Werte'!V51-'DAX 30 Werte'!V50)/'DAX 30 Werte'!V50 -> -0.01054216867 | W50: =('DAX 30 Werte'!W51-'DAX 30 Werte'!W50)/'DAX 30 Werte'!W50 -> -0.006429277943 | X50: =('DAX 30 Werte'!X51-'DAX 30 Werte'!X50)/'DAX 30 Werte'!X50 -> -0.01143257116 | Y50: =('DAX 30 Werte'!Y51-'DAX 30 Werte'!Y50)/'DAX 30 Werte'!Y50 -> -0.01704293935 | Z50: =('DAX 30 Werte'!Z51-'DAX 30 Werte'!Z50)/'DAX 30 Werte'!Z50 -> -0.01099796334 | AA50: =('DAX 30 Werte'!AA51-'DAX 30 Werte'!AA50)/'DAX 30 Werte'!AA50 -> -0.02298991886 | AB50: =('DAX 30 Werte'!AB51-'DAX 30 Werte'!AB50)/'DAX 30 Werte'!AB50 -> -0.0003806623525 | AC50: =('DAX 30 Werte'!AC51-'DAX 30 Werte'!AC50)/'DAX 30 Werte'!AC50 -> -0.008650519031 | AD50: =('DAX 30 Werte'!AD51-'DAX 30 Werte'!AD50)/'DAX 30 Werte'!AD50 -> -0.01988812927 | AE50: =('DAX 30 Werte'!AD51-'DAX 30 Werte'!AD50)/'DAX 30 Werte'!AD50 -> -0.01988812927
A51: 2009-12-10 | B51: =('DAX 30 Werte'!B52-'DAX 30 Werte'!B51)/'DAX 30 Werte'!B51 -> 0.01083245984 | C51: =('DAX 30 Werte'!C52-'DAX 30 Werte'!C51)/'DAX 30 Werte'!C51 -> 0.01489308155 | D51: =('DAX 30 Werte'!D52-'DAX 30 Werte'!D51)/'DAX 30 Werte'!D51 -> 0.005369721617 | E51: =('DAX 30 Werte'!E52-'DAX 30 Werte'!E51)/'DAX 30 Werte'!E51 -> -0.001262028711 | F51: =('DAX 30 Werte'!F52-'DAX 30 Werte'!F51)/'DAX 30 Werte'!F51 -> -0.001377031121 | G51: =('DAX 30 Werte'!G52-'DAX 30 Werte'!G51)/'DAX 30 Werte'!G51 -> -0.01006889242 | H51: =('DAX 30 Werte'!H52-'DAX 30 Werte'!H51)/'DAX 30 Werte'!H51 -> -0.001483679525 | I51: =('DAX 30 Werte'!I52-'DAX 30 Werte'!I51)/'DAX 30 Werte'!I51 -> -0.02191955735 | J51: =('DAX 30 Werte'!J52-'DAX 30 Werte'!J51)/'DAX 30 Werte'!J51 -> 0.01686624297 | K51: =('DAX 30 Werte'!K52-'DAX 30 Werte'!K51)/'DAX 30 Werte'!K51 -> 0.01505213104 | L51: =('DAX 30 Werte'!L52-'DAX 30 Werte'!L51)/'DAX 30 Werte'!L51 -> 0.02217377685 | M51: =('DAX 30 Werte'!M52-'DAX 30 Werte'!M51)/'DAX 30 Werte'!M51 -> 0.01468404554 | N51: =('DAX 30 Werte'!N52-'DAX 30 Werte'!N51)/'DAX 30 Werte'!N51 -> 0.005483549352 | O51: =('DAX 30 Werte'!O52-'DAX 30 Werte'!O51)/'DAX 30 Werte'!O51 -> 0.006923837784 | P51: =('DAX 30 Werte'!P52-'DAX 30 Werte'!P51)/'DAX 30 Werte'!P51 -> 0.004733218589 | Q51: =('DAX 30 Werte'!Q52-'DAX 30 Werte'!Q51)/'DAX 30 Werte'!Q51 -> 0.011816839 | R51: =('DAX 30 Werte'!R52-'DAX 30 Werte'!R51)/'DAX 30 Werte'!R51 -> 0.01787034337 | S51: =('DAX 30 Werte'!S52-'DAX 30 Werte'!S51)/'DAX 30 Werte'!S51 -> 0.01830314585 | T51: =('DAX 30 Werte'!T52-'DAX 30 Werte'!T51)/'DAX 30 Werte'!T51 -> 0.01928320997 | U51: =('DAX 30 Werte'!U52-'DAX 30 Werte'!U51)/'DAX 30 Werte'!U51 -> 0.005376344086 | V51: =('DAX 30 Werte'!V52-'DAX 30 Werte'!V51)/'DAX 30 Werte'!V51 -> 0.004185692542 | W51: =('DAX 30 Werte'!W52-'DAX 30 Werte'!W51)/'DAX 30 Werte'!W51 -> 0.01916376307 | X51: =('DAX 30 Werte'!X52-'DAX 30 Werte'!X51)/'DAX 30 Werte'!X51 -> -0.0009440641964 | Y51: =('DAX 30 Werte'!Y52-'DAX 30 Werte'!Y51)/'DAX 30 Werte'!Y51 -> 0.0153118667 | Z51: =('DAX 30 Werte'!Z52-'DAX 30 Werte'!Z51)/'DAX 30 Werte'!Z51 -> 0.01359143328 | AA51: =('DAX 30 Werte'!AA52-'DAX 30 Werte'!AA51)/'DAX 30 Werte'!AA51 -> 0.01008766411 | AB51: =('DAX 30 Werte'!AB52-'DAX 30 Werte'!AB51)/'DAX 30 Werte'!AB51 -> -0.003808073115 | AC51: =('DAX 30 Werte'!AC52-'DAX 30 Werte'!AC51)/'DAX 30 Werte'!AC51 -> 0.004363001745 | AD51: =('DAX 30 Werte'!AD52-'DAX 30 Werte'!AD51)/'DAX 30 Werte'!AD51 -> 0.009036144578 | AE51: =('DAX 30 Werte'!AD52-'DAX 30 Werte'!AD51)/'DAX 30 Werte'!AD51 -> 0.009036144578
A52: 2009-12-11 | B52: =('DAX 30 Werte'!B53-'DAX 30 Werte'!B52)/'DAX 30 Werte'!B52 -> 0.008279879909 | C52: =('DAX 30 Werte'!C53-'DAX 30 Werte'!C52)/'DAX 30 Werte'!C52 -> 0.01869824852 | D52: =('DAX 30 Werte'!D53-'DAX 30 Werte'!D52)/'DAX 30 Werte'!D52 -> 0.03908717064 | E52: =('DAX 30 Werte'!E53-'DAX 30 Werte'!E52)/'DAX 30 Werte'!E52 -> 0.00205338809 | F52: =('DAX 30 Werte'!F53-'DAX 30 Werte'!F52)/'DAX 30 Werte'!F52 -> 0.004688361831 | G52: =('DAX 30 Werte'!G53-'DAX 30 Werte'!G52)/'DAX 30 Werte'!G52 -> 0.009635974304 | H52: =('DAX 30 Werte'!H53-'DAX 30 Werte'!H52)/'DAX 30 Werte'!H52 -> -0.01337295691 | I52: =('DAX 30 Werte'!I53-'DAX 30 Werte'!I52)/'DAX 30 Werte'!I52 -> 0.0226283725 | J52: =('DAX 30 Werte'!J53-'DAX 30 Werte'!J52)/'DAX 30 Werte'!J52 -> 0.01562504883 | K52: =('DAX 30 Werte'!K53-'DAX 30 Werte'!K52)/'DAX 30 Werte'!K52 -> -0.009437414621 | L52: =('DAX 30 Werte'!L53-'DAX 30 Werte'!L52)/'DAX 30 Werte'!L52 -> 0.02507607017 | M52: =('DAX 30 Werte'!M53-'DAX 30 Werte'!M52)/'DAX 30 Werte'!M52 -> 0.00487804878 | N52: =('DAX 30 Werte'!N53-'DAX 30 Werte'!N52)/'DAX 30 Werte'!N52 -> 0.01404726491 | O52: =('DAX 30 Werte'!O53-'DAX 30 Werte'!O52)/'DAX 30 Werte'!O52 -> -0.001473477407 | P52: =('DAX 30 Werte'!P53-'DAX 30 Werte'!P52)/'DAX 30 Werte'!P52 -> 0.004568165596 | Q52: =('DAX 30 Werte'!Q53-'DAX 30 Werte'!Q52)/'DAX 30 Werte'!Q52 -> 0.006204379562 | R52: =('DAX 30 Werte'!R53-'DAX 30 Werte'!R52)/'DAX 30 Werte'!R52 -> 0.01731594433 | S52: =('DAX 30 Werte'!S53-'DAX 30 Werte'!S52)/'DAX 30 Werte'!S52 -> 0.01909754728 | T52: =('DAX 30 Werte'!T53-'DAX 30 Werte'!T52)/'DAX 30 Werte'!T52 -> -9.55474871e-05 | U52: =('DAX 30 Werte'!U53-'DAX 30 Werte'!U52)/'DAX 30 Werte'!U52 -> 0.0127398553 | V52: =('DAX 30 Werte'!V53-'DAX 30 Werte'!V52)/'DAX 30 Werte'!V52 -> -0.0003789314134 | W52: =('DAX 30 Werte'!W53-'DAX 30 Werte'!W52)/'DAX 30 Werte'!W52 -> -0.001221001221 | X52: =('DAX 30 Werte'!X53-'DAX 30 Werte'!X52)/'DAX 30 Werte'!X52 -> 0.01252067092 | Y52: =('DAX 30 Werte'!Y53-'DAX 30 Werte'!Y52)/'DAX 30 Werte'!Y52 -> -0.005766200931 | Z52: =('DAX 30 Werte'!Z53-'DAX 30 Werte'!Z52)/'DAX 30 Werte'!Z52 -> -0.006095083299 | AA52: =('DAX 30 Werte'!AA53-'DAX 30 Werte'!AA52)/'DAX 30 Werte'!AA52 -> -0.01247845857 | AB52: =('DAX 30 Werte'!AB53-'DAX 30 Werte'!AB52)/'DAX 30 Werte'!AB52 -> -0.002675840979 | AC52: =('DAX 30 Werte'!AC53-'DAX 30 Werte'!AC52)/'DAX 30 Werte'!AC52 -> 0.01824500434 | AD52: =('DAX 30 Werte'!AD53-'DAX 30 Werte'!AD52)/'DAX 30 Werte'!AD52 -> -0.001885310291 | AE52: =('DAX 30 Werte'!AD53-'DAX 30 Werte'!AD52)/'DAX 30 Werte'!AD52 -> -0.001885310291
A53: 2009-12-14 | B53: =('DAX 30 Werte'!B54-'DAX 30 Werte'!B53)/'DAX 30 Werte'!B53 -> 0.007986046568 | C53: =('DAX 30 Werte'!C54-'DAX 30 Werte'!C53)/'DAX 30 Werte'!C53 -> -0.001626394014 | D53: =('DAX 30 Werte'!D54-'DAX 30 Werte'!D53)/'DAX 30 Werte'!D53 -> 0.02745325999 | E53: =('DAX 30 Werte'!E54-'DAX 30 Werte'!E53)/'DAX 30 Werte'!E53 -> -0.0039407314 | F53: =('DAX 30 Werte'!F54-'DAX 30 Werte'!F53)/'DAX 30 Werte'!F53 -> 0.01043096349 | G53: =('DAX 30 Werte'!G54-'DAX 30 Werte'!G53)/'DAX 30 Werte'!G53 -> -0.001855779427 | H53: =('DAX 30 Werte'!H54-'DAX 30 Werte'!H53)/'DAX 30 Werte'!H53 -> 0.01807228916 | I53: =('DAX 30 Werte'!I54-'DAX 30 Werte'!I53)/'DAX 30 Werte'!I53 -> 0.01744680851 | J53: =('DAX 30 Werte'!J54-'DAX 30 Werte'!J53)/'DAX 30 Werte'!J53 -> 0.004497017751 | K53: =('DAX 30 Werte'!K54-'DAX 30 Werte'!K53)/'DAX 30 Werte'!K53 -> 0.03433922519 | L53: =('DAX 30 Werte'!L54-'DAX 30 Werte'!L53)/'DAX 30 Werte'!L53 -> 0.01875992729 | M53: =('DAX 30 Werte'!M54-'DAX 30 Werte'!M53)/'DAX 30 Werte'!M53 -> -0.007766990291 | N53: =('DAX 30 Werte'!N54-'DAX 30 Werte'!N53)/'DAX 30 Werte'!N53 -> 0.01336375489 | O53: =('DAX 30 Werte'!O54-'DAX 30 Werte'!O53)/'DAX 30 Werte'!O53 -> 0.009837678308 | P53: =('DAX 30 Werte'!P54-'DAX 30 Werte'!P53)/'DAX 30 Werte'!P53 -> 0.02245274975 | Q53: =('DAX 30 Werte'!Q54-'DAX 30 Werte'!Q53)/'DAX 30 Werte'!Q53 -> 0.007979688067 | R53: =('DAX 30 Werte'!R54-'DAX 30 Werte'!R53)/'DAX 30 Werte'!R53 -> 0.007446867788 | S53: =('DAX 30 Werte'!S54-'DAX 30 Werte'!S53)/'DAX 30 Werte'!S53 -> -0.006797721845 | T53: =('DAX 30 Werte'!T54-'DAX 30 Werte'!T53)/'DAX 30 Werte'!T53 -> 0.01290014333 | U53: =('DAX 30 Werte'!U54-'DAX 30 Werte'!U53)/'DAX 30 Werte'!U53 -> 0.00760987731 | V53: =('DAX 30 Werte'!V54-'DAX 30 Werte'!V53)/'DAX 30 Werte'!V53 -> 0.01440485216 | W53: =('DAX 30 Werte'!W54-'DAX 30 Werte'!W53)/'DAX 30 Werte'!W53 -> 0.01344743276 | X53: =('DAX 30 Werte'!X54-'DAX 30 Werte'!X53)/'DAX 30 Werte'!X53 -> -0.0006999533364 | Y53: =('DAX 30 Werte'!Y54-'DAX 30 Werte'!Y53)/'DAX 30 Werte'!Y53 -> 0.006691924752 | Z53: =('DAX 30 Werte'!Z54-'DAX 30 Werte'!Z53)/'DAX 30 Werte'!Z53 -> 0.02330335241 | AA53: =('DAX 30 Werte'!AA54-'DAX 30 Werte'!AA53)/'DAX 30 Werte'!AA53 -> 0.005887052689 | AB53: =('DAX 30 Werte'!AB54-'DAX 30 Werte'!AB53)/'DAX 30 Werte'!AB53 -> 0.01188194711 | AC53: =('DAX 30 Werte'!AC54-'DAX 30 Werte'!AC53)/'DAX 30 Werte'!AC53 -> 0.008532423208 | AD53: =('DAX 30 Werte'!AD54-'DAX 30 Werte'!AD53)/'DAX 30 Werte'!AD53 -> 0.0113332284 | AE53: =('DAX 30 Werte'!AD54-'DAX 30 Werte'!AD53)/'DAX 30 Werte'!AD53 -> 0.0113332284
A54: 2009-12-15 | B54: =('DAX 30 Werte'!B55-'DAX 30 Werte'!B54)/'DAX 30 Werte'!B54 -> 0.001564907467 | C54: =('DAX 30 Werte'!C55-'DAX 30 Werte'!C54)/'DAX 30 Werte'!C54 -> 0.002327181701 | D54: =('DAX 30 Werte'!D55-'DAX 30 Werte'!D54)/'DAX 30 Werte'!D54 -> -0.02080720935 | E54: =('DAX 30 Werte'!E55-'DAX 30 Werte'!E54)/'DAX 30 Werte'!E54 -> -0.0001582528881 | F54: =('DAX 30 Werte'!F55-'DAX 30 Werte'!F54)/'DAX 30 Werte'!F54 -> 0.003803314317 | G54: =('DAX 30 Werte'!G55-'DAX 30 Werte'!G54)/'DAX 30 Werte'!G54 -> 0.009561752988 | H54: =('DAX 30 Werte'!H55-'DAX 30 Werte'!H54)/'DAX 30 Werte'!H54 -> 0.01331360947 | I54: =('DAX 30 Werte'!I55-'DAX 30 Werte'!I54)/'DAX 30 Werte'!I54 -> 0.001672940192 | J54: =('DAX 30 Werte'!J55-'DAX 30 Werte'!J54)/'DAX 30 Werte'!J54 -> -0.01154566474 | K54: =('DAX 30 Werte'!K55-'DAX 30 Werte'!K54)/'DAX 30 Werte'!K54 -> 0.002023231669 | L54: =('DAX 30 Werte'!L55-'DAX 30 Werte'!L54)/'DAX 30 Werte'!L54 -> 0.004714401526 | M54: =('DAX 30 Werte'!M55-'DAX 30 Werte'!M54)/'DAX 30 Werte'!M54 -> 0.0004892367906 | N54: =('DAX 30 Werte'!N55-'DAX 30 Werte'!N54)/'DAX 30 Werte'!N54 -> -0.006754583467 | O54: =('DAX 30 Werte'!O55-'DAX 30 Werte'!O54)/'DAX 30 Werte'!O54 -> 0.001461276181 | P54: =('DAX 30 Werte'!P55-'DAX 30 Werte'!P54)/'DAX 30 Werte'!P54 -> 0.0107018763 | Q54: =('DAX 30 Werte'!Q55-'DAX 30 Werte'!Q54)/'DAX 30 Werte'!Q54 -> 0.005037783375 | R54: =('DAX 30 Werte'!R55-'DAX 30 Werte'!R54)/'DAX 30 Werte'!R54 -> -0.005397230832 | S54: =('DAX 30 Werte'!S55-'DAX 30 Werte'!S54)/'DAX 30 Werte'!S54 -> 0.004069552349 | T54: =('DAX 30 Werte'!T55-'DAX 30 Werte'!T54)/'DAX 30 Werte'!T54 -> 0 | U54: =('DAX 30 Werte'!U55-'DAX 30 Werte'!U54)/'DAX 30 Werte'!U54 -> 0.006473489519 | V54: =('DAX 30 Werte'!V55-'DAX 30 Werte'!V54)/'DAX 30 Werte'!V54 -> 0.00485799701 | W54: =('DAX 30 Werte'!W55-'DAX 30 Werte'!W54)/'DAX 30 Werte'!W54 -> -0.0007237635706 | X54: =('DAX 30 Werte'!X55-'DAX 30 Werte'!X54)/'DAX 30 Werte'!X54 -> 0.003268736867 | Y54: =('DAX 30 Werte'!Y55-'DAX 30 Werte'!Y54)/'DAX 30 Werte'!Y54 -> 0.01706184318 | Z54: =('DAX 30 Werte'!Z55-'DAX 30 Werte'!Z54)/'DAX 30 Werte'!Z54 -> -0.00599280863 | AA54: =('DAX 30 Werte'!AA55-'DAX 30 Werte'!AA54)/'DAX 30 Werte'!AA54 -> -0.00418042724 | AB54: =('DAX 30 Werte'!AB55-'DAX 30 Werte'!AB54)/'DAX 30 Werte'!AB54 -> 0.02234848485 | AC54: =('DAX 30 Werte'!AC55-'DAX 30 Werte'!AC54)/'DAX 30 Werte'!AC54 -> -0.001692047377 | AD54: =('DAX 30 Werte'!AD55-'DAX 30 Werte'!AD54)/'DAX 30 Werte'!AD54 -> 0.001245136187 | AE54: =('DAX 30 Werte'!AD55-'DAX 30 Werte'!AD54)/'DAX 30 Werte'!AD54 -> 0.001245136187
A55: 2009-12-16 | B55: =('DAX 30 Werte'!B56-'DAX 30 Werte'!B55)/'DAX 30 Werte'!B55 -> 0.01584660337 | C55: =('DAX 30 Werte'!C56-'DAX 30 Werte'!C55)/'DAX 30 Werte'!C55 -> 0.01578825168 | D55: =('DAX 30 Werte'!D56-'DAX 30 Werte'!D55)/'DAX 30 Werte'!D55 -> -0.002670738411 | E55: =('DAX 30 Werte'!E56-'DAX 30 Werte'!E55)/'DAX 30 Werte'!E55 -> 0.01915163026 | F55: =('DAX 30 Werte'!F56-'DAX 30 Werte'!F55)/'DAX 30 Werte'!F55 -> 0.007036535859 | G55: =('DAX 30 Werte'!G56-'DAX 30 Werte'!G55)/'DAX 30 Werte'!G55 -> 0.004998684557 | H55: =('DAX 30 Werte'!H56-'DAX 30 Werte'!H55)/'DAX 30 Werte'!H55 -> 0.04087591241 | I55: =('DAX 30 Werte'!I56-'DAX 30 Werte'!I55)/'DAX 30 Werte'!I55 -> 0.01670146138 | J55: =('DAX 30 Werte'!J56-'DAX 30 Werte'!J55)/'DAX 30 Werte'!J55 -> -0.005721144083 | K55: =('DAX 30 Werte'!K56-'DAX 30 Werte'!K55)/'DAX 30 Werte'!K55 -> 0.05454573632 | L55: =('DAX 30 Werte'!L56-'DAX 30 Werte'!L55)/'DAX 30 Werte'!L55 -> 0.004106667139 | M55: =('DAX 30 Werte'!M56-'DAX 30 Werte'!M55)/'DAX 30 Werte'!M55 -> 0.00912795436 | N55: =('DAX 30 Werte'!N56-'DAX 30 Werte'!N55)/'DAX 30 Werte'!N55 -> 0.02477331606 | O55: =('DAX 30 Werte'!O56-'DAX 30 Werte'!O55)/'DAX 30 Werte'!O55 -> 0.0009727626459 | P55: =('DAX 30 Werte'!P56-'DAX 30 Werte'!P55)/'DAX 30 Werte'!P55 -> 0.02090209021 | Q55: =('DAX 30 Werte'!Q56-'DAX 30 Werte'!Q55)/'DAX 30 Werte'!Q55 -> 0.01253132832 | R55: =('DAX 30 Werte'!R56-'DAX 30 Werte'!R55)/'DAX 30 Werte'!R55 -> 0.01887467331 | S55: =('DAX 30 Werte'!S56-'DAX 30 Werte'!S55)/'DAX 30 Werte'!S55 -> 0.01418570376 | T55: =('DAX 30 Werte'!T56-'DAX 30 Werte'!T55)/'DAX 30 Werte'!T55 -> 0.01179245283 | U55: =('DAX 30 Werte'!U56-'DAX 30 Werte'!U55)/'DAX 30 Werte'!U55 -> 0.01071975498 | V55: =('DAX 30 Werte'!V56-'DAX 30 Werte'!V55)/'DAX 30 Werte'!V55 -> 0.01636296021 | W55: =('DAX 30 Werte'!W56-'DAX 30 Werte'!W55)/'DAX 30 Werte'!W55 -> 0.01810719459 | X55: =('DAX 30 Werte'!X56-'DAX 30 Werte'!X55)/'DAX 30 Werte'!X55 -> -0.01023970212 | Y55: =('DAX 30 Werte'!Y56-'DAX 30 Werte'!Y55)/'DAX 30 Werte'!Y55 -> -0.001742962887 | Z55: =('DAX 30 Werte'!Z56-'DAX 30 Werte'!Z55)/'DAX 30 Werte'!Z55 -> 0.02170418006 | AA55: =('DAX 30 Werte'!AA56-'DAX 30 Werte'!AA55)/'DAX 30 Werte'!AA55 -> 0.06727257462 | AB55: =('DAX 30 Werte'!AB56-'DAX 30 Werte'!AB55)/'DAX 30 Werte'!AB55 -> 0.01296776584 | AC55: =('DAX 30 Werte'!AC56-'DAX 30 Werte'!AC55)/'DAX 30 Werte'!AC55 -> 0.01737288136 | AD55: =('DAX 30 Werte'!AD56-'DAX 30 Werte'!AD55)/'DAX 30 Werte'!AD55 -> 0.0007772423442 | AE55: =('DAX 30 Werte'!AD56-'DAX 30 Werte'!AD55)/'DAX 30 Werte'!AD55 -> 0.0007772423442
A56: 2009-12-17 | B56: =('DAX 30 Werte'!B57-'DAX 30 Werte'!B56)/'DAX 30 Werte'!B56 -> -0.009992495888 | C56: =('DAX 30 Werte'!C57-'DAX 30 Werte'!C56)/'DAX 30 Werte'!C56 -> -0.01302857143 | D56: =('DAX 30 Werte'!D57-'DAX 30 Werte'!D56)/'DAX 30 Werte'!D56 -> -0.005006403598 | E56: =('DAX 30 Werte'!E57-'DAX 30 Werte'!E56)/'DAX 30 Werte'!E56 -> 0.004503804939 | F56: =('DAX 30 Werte'!F57-'DAX 30 Werte'!F56)/'DAX 30 Werte'!F56 -> 0.001343724805 | G56: =('DAX 30 Werte'!G57-'DAX 30 Werte'!G56)/'DAX 30 Werte'!G56 -> 0.0112565445 | H56: =('DAX 30 Werte'!H57-'DAX 30 Werte'!H56)/'DAX 30 Werte'!H56 -> -0.0350631136 | I56: =('DAX 30 Werte'!I57-'DAX 30 Werte'!I56)/'DAX 30 Werte'!I56 -> -0.01950718686 | J56: =('DAX 30 Werte'!J57-'DAX 30 Werte'!J56)/'DAX 30 Werte'!J56 -> -0.01918002923 | K56: =('DAX 30 Werte'!K57-'DAX 30 Werte'!K56)/'DAX 30 Werte'!K56 -> -0.02298908491 | L56: =('DAX 30 Werte'!L57-'DAX 30 Werte'!L56)/'DAX 30 Werte'!L56 -> -0.03285706311 | M56: =('DAX 30 Werte'!M57-'DAX 30 Werte'!M56)/'DAX 30 Werte'!M56 -> -0.001938297529 | N56: =('DAX 30 Werte'!N57-'DAX 30 Werte'!N56)/'DAX 30 Werte'!N56 -> -0.002844051193 | O56: =('DAX 30 Werte'!O57-'DAX 30 Werte'!O56)/'DAX 30 Werte'!O56 -> -0.01895043732 | P56: =('DAX 30 Werte'!P57-'DAX 30 Werte'!P56)/'DAX 30 Werte'!P56 -> -0.009967672414 | Q56: =('DAX 30 Werte'!Q57-'DAX 30 Werte'!Q56)/'DAX 30 Werte'!Q56 -> -0.01343705799 | R56: =('DAX 30 Werte'!R57-'DAX 30 Werte'!R56)/'DAX 30 Werte'!R56 -> -0.01030450352 | S56: =('DAX 30 Werte'!S57-'DAX 30 Werte'!S56)/'DAX 30 Werte'!S56 -> -0.0123524069 | T56: =('DAX 30 Werte'!T57-'DAX 30 Werte'!T56)/'DAX 30 Werte'!T56 -> -0.00634032634 | U56: =('DAX 30 Werte'!U57-'DAX 30 Werte'!U56)/'DAX 30 Werte'!U56 -> -0.009545454545 | V56: =('DAX 30 Werte'!V57-'DAX 30 Werte'!V56)/'DAX 30 Werte'!V56 -> -0.01829491401 | W56: =('DAX 30 Werte'!W57-'DAX 30 Werte'!W56)/'DAX 30 Werte'!W56 -> -0.00165994783 | X56: =('DAX 30 Werte'!X57-'DAX 30 Werte'!X56)/'DAX 30 Werte'!X56 -> -0.009405125794 | Y56: =('DAX 30 Werte'!Y57-'DAX 30 Werte'!Y56)/'DAX 30 Werte'!Y56 -> 0 | Z56: =('DAX 30 Werte'!Z57-'DAX 30 Werte'!Z56)/'DAX 30 Werte'!Z56 -> -0.001180173092 | AA56: =('DAX 30 Werte'!AA57-'DAX 30 Werte'!AA56)/'DAX 30 Werte'!AA56 -> -0.04253938285 | AB56: =('DAX 30 Werte'!AB57-'DAX 30 Werte'!AB56)/'DAX 30 Werte'!AB56 -> -0.01499634236 | AC56: =('DAX 30 Werte'!AC57-'DAX 30 Werte'!AC56)/'DAX 30 Werte'!AC56 -> -0.00583090379 | AD56: =('DAX 30 Werte'!AD57-'DAX 30 Werte'!AD56)/'DAX 30 Werte'!AD56 -> -0.005281143212 | AE56: =('DAX 30 Werte'!AD57-'DAX 30 Werte'!AD56)/'DAX 30 Werte'!AD56 -> -0.005281143212
A57: 2009-12-18 | B57: =('DAX 30 Werte'!B58-'DAX 30 Werte'!B57)/'DAX 30 Werte'!B57 -> -0.002263689934 | C57: =('DAX 30 Werte'!C58-'DAX 30 Werte'!C57)/'DAX 30 Werte'!C57 -> -0.004400138953 | D57: =('DAX 30 Werte'!D58-'DAX 30 Werte'!D57)/'DAX 30 Werte'!D57 -> -0.01790310108 | E57: =('DAX 30 Werte'!E58-'DAX 30 Werte'!E57)/'DAX 30 Werte'!E57 -> -0.0122139765 | F57: =('DAX 30 Werte'!F58-'DAX 30 Werte'!F57)/'DAX 30 Werte'!F57 -> 0.01207729469 | G57: =('DAX 30 Werte'!G58-'DAX 30 Werte'!G57)/'DAX 30 Werte'!G57 -> -0.001553196997 | H57: =('DAX 30 Werte'!H58-'DAX 30 Werte'!H57)/'DAX 30 Werte'!H57 -> 0.04069767442 | I57: =('DAX 30 Werte'!I58-'DAX 30 Werte'!I57)/'DAX 30 Werte'!I57 -> 0.01047120419 | J57: =('DAX 30 Werte'!J58-'DAX 30 Werte'!J57)/'DAX 30 Werte'!J57 -> 0.0004888780249 | K57: =('DAX 30 Werte'!K58-'DAX 30 Werte'!K57)/'DAX 30 Werte'!K57 -> -0.0215681092 | L57: =('DAX 30 Werte'!L58-'DAX 30 Werte'!L57)/'DAX 30 Werte'!L57 -> -0.004227298964 | M57: =('DAX 30 Werte'!M58-'DAX 30 Werte'!M57)/'DAX 30 Werte'!M57 -> -0.001132869396 | N57: =('DAX 30 Werte'!N58-'DAX 30 Werte'!N57)/'DAX 30 Werte'!N57 -> 0.02059895421 | O57: =('DAX 30 Werte'!O58-'DAX 30 Werte'!O57)/'DAX 30 Werte'!O57 -> -0.007429420505 | P57: =('DAX 30 Werte'!P58-'DAX 30 Werte'!P57)/'DAX 30 Werte'!P57 -> -0.0001360544218 | Q57: =('DAX 30 Werte'!Q58-'DAX 30 Werte'!Q57)/'DAX 30 Werte'!Q57 -> 0.008960573477 | R57: =('DAX 30 Werte'!R58-'DAX 30 Werte'!R57)/'DAX 30 Werte'!R57 -> -0.01731402607 | S57: =('DAX 30 Werte'!S58-'DAX 30 Werte'!S57)/'DAX 30 Werte'!S57 -> -0.002942799338 | T57: =('DAX 30 Werte'!T58-'DAX 30 Werte'!T57)/'DAX 30 Werte'!T57 -> -0.000656845266 | U57: =('DAX 30 Werte'!U58-'DAX 30 Werte'!U57)/'DAX 30 Werte'!U57 -> 0.001376778339 | V57: =('DAX 30 Werte'!V58-'DAX 30 Werte'!V57)/'DAX 30 Werte'!V57 -> 0.0007454342154 | W57: =('DAX 30 Werte'!W58-'DAX 30 Werte'!W57)/'DAX 30 Werte'!W57 -> 0.003087885986 | X57: =('DAX 30 Werte'!X58-'DAX 30 Werte'!X57)/'DAX 30 Werte'!X57 -> 0.003323047709 | Y57: =('DAX 30 Werte'!Y58-'DAX 30 Werte'!Y57)/'DAX 30 Werte'!Y57 -> 0.00152769533 | Z57: =('DAX 30 Werte'!Z58-'DAX 30 Werte'!Z57)/'DAX 30 Werte'!Z57 -> 0.0003938558488 | AA57: =('DAX 30 Werte'!AA58-'DAX 30 Werte'!AA57)/'DAX 30 Werte'!AA57 -> -0.02799687782 | AB57: =('DAX 30 Werte'!AB58-'DAX 30 Werte'!AB57)/'DAX 30 Werte'!AB57 -> 0.001485332343 | AC57: =('DAX 30 Werte'!AC58-'DAX 30 Werte'!AC57)/'DAX 30 Werte'!AC57 -> -0.01675743611 | AD57: =('DAX 30 Werte'!AD58-'DAX 30 Werte'!AD57)/'DAX 30 Werte'!AD57 -> 0.01217988757 | AE57: =('DAX 30 Werte'!AD58-'DAX 30 Werte'!AD57)/'DAX 30 Werte'!AD57 -> 0.01217988757
A58: 2009-12-21 | B58: =('DAX 30 Werte'!B59-'DAX 30 Werte'!B58)/'DAX 30 Werte'!B58 -> 0.01703248554 | C58: =('DAX 30 Werte'!C59-'DAX 30 Werte'!C58)/'DAX 30 Werte'!C58 -> 0.01186317693 | D58: =('DAX 30 Werte'!D59-'DAX 30 Werte'!D58)/'DAX 30 Werte'!D58 -> 0.006076516144 | E58: =('DAX 30 Werte'!E59-'DAX 30 Werte'!E58)/'DAX 30 Werte'!E58 -> -0.004069494444 | F58: =('DAX 30 Werte'!F59-'DAX 30 Werte'!F58)/'DAX 30 Werte'!F58 -> -0.006099177937 | G58: =('DAX 30 Werte'!G59-'DAX 30 Werte'!G58)/'DAX 30 Werte'!G58 -> 0.004666839513 | H58: =('DAX 30 Werte'!H59-'DAX 30 Werte'!H58)/'DAX 30 Werte'!H58 -> 0.03910614525 | I58: =('DAX 30 Werte'!I59-'DAX 30 Werte'!I58)/'DAX 30 Werte'!I58 -> 0.0132642487 | J58: =('DAX 30 Werte'!J59-'DAX 30 Werte'!J58)/'DAX 30 Werte'!J58 -> 0.01539215734 | K58: =('DAX 30 Werte'!K59-'DAX 30 Werte'!K58)/'DAX 30 Werte'!K58 -> 0.01783557275 | L58: =('DAX 30 Werte'!L59-'DAX 30 Werte'!L58)/'DAX 30 Werte'!L58 -> 0.007126763958 | M58: =('DAX 30 Werte'!M59-'DAX 30 Werte'!M58)/'DAX 30 Werte'!M58 -> 0.02786779002 | N58: =('DAX 30 Werte'!N59-'DAX 30 Werte'!N58)/'DAX 30 Werte'!N58 -> 0.02158049992 | O58: =('DAX 30 Werte'!O59-'DAX 30 Werte'!O58)/'DAX 30 Werte'!O58 -> 0.02644710579 | P58: =('DAX 30 Werte'!P59-'DAX 30 Werte'!P58)/'DAX 30 Werte'!P58 -> 0.006803646755 | Q58: =('DAX 30 Werte'!Q59-'DAX 30 Werte'!Q58)/'DAX 30 Werte'!Q58 -> 0.01207815275 | R58: =('DAX 30 Werte'!R59-'DAX 30 Werte'!R58)/'DAX 30 Werte'!R58 -> 0.02714284524 | S58: =('DAX 30 Werte'!S59-'DAX 30 Werte'!S58)/'DAX 30 Werte'!S58 -> 0.02785463937 | T58: =('DAX 30 Werte'!T59-'DAX 30 Werte'!T58)/'DAX 30 Werte'!T58 -> 0.01408450704 | U58: =('DAX 30 Werte'!U59-'DAX 30 Werte'!U58)/'DAX 30 Werte'!U58 -> 0.01970669111 | V58: =('DAX 30 Werte'!V59-'DAX 30 Werte'!V58)/'DAX 30 Werte'!V58 -> 0.01229050279 | W58: =('DAX 30 Werte'!W59-'DAX 30 Werte'!W58)/'DAX 30 Werte'!W58 -> 0.004262372721 | X58: =('DAX 30 Werte'!X59-'DAX 30 Werte'!X58)/'DAX 30 Werte'!X58 -> 0.02152827064 | Y58: =('DAX 30 Werte'!Y59-'DAX 30 Werte'!Y58)/'DAX 30 Werte'!Y58 -> 0.002179189413 | Z58: =('DAX 30 Werte'!Z59-'DAX 30 Werte'!Z58)/'DAX 30 Werte'!Z58 -> 0.02007874016 | AA58: =('DAX 30 Werte'!AA59-'DAX 30 Werte'!AA58)/'DAX 30 Werte'!AA58 -> 0.01100991103 | AB58: =('DAX 30 Werte'!AB59-'DAX 30 Werte'!AB58)/'DAX 30 Werte'!AB58 -> 0.008898776418 | AC58: =('DAX 30 Werte'!AC59-'DAX 30 Werte'!AC58)/'DAX 30 Werte'!AC58 -> 0.01917341287 | AD58: =('DAX 30 Werte'!AD59-'DAX 30 Werte'!AD58)/'DAX 30 Werte'!AD58 -> 0.006016661524 | AE58: =('DAX 30 Werte'!AD59-'DAX 30 Werte'!AD58)/'DAX 30 Werte'!AD58 -> 0.006016661524
A59: 2009-12-22 | B59: =('DAX 30 Werte'!B60-'DAX 30 Werte'!B59)/'DAX 30 Werte'!B59 -> 0.002556263943 | C59: =('DAX 30 Werte'!C60-'DAX 30 Werte'!C59)/'DAX 30 Werte'!C59 -> 0 | D59: =('DAX 30 Werte'!D60-'DAX 30 Werte'!D59)/'DAX 30 Werte'!D59 -> -0.007934687164 | E59: =('DAX 30 Werte'!E60-'DAX 30 Werte'!E59)/'DAX 30 Werte'!E59 -> 0.01084394154 | F59: =('DAX 30 Werte'!F60-'DAX 30 Werte'!F59)/'DAX 30 Werte'!F59 -> -0.001867662753 | G59: =('DAX 30 Werte'!G60-'DAX 30 Werte'!G59)/'DAX 30 Werte'!G59 -> -0.005161290323 | H59: =('DAX 30 Werte'!H60-'DAX 30 Werte'!H59)/'DAX 30 Werte'!H59 -> 0.03629032258 | I59: =('DAX 30 Werte'!I60-'DAX 30 Werte'!I59)/'DAX 30 Werte'!I59 -> -0.005931683371 | J59: =('DAX 30 Werte'!J60-'DAX 30 Werte'!J59)/'DAX 30 Werte'!J59 -> -0.01756494183 | K59: =('DAX 30 Werte'!K60-'DAX 30 Werte'!K59)/'DAX 30 Werte'!K59 -> -0.01358515645 | L59: =('DAX 30 Werte'!L60-'DAX 30 Werte'!L59)/'DAX 30 Werte'!L59 -> -0.01385125464 | M59: =('DAX 30 Werte'!M60-'DAX 30 Werte'!M59)/'DAX 30 Werte'!M59 -> 0.00551702396 | N59: =('DAX 30 Werte'!N60-'DAX 30 Werte'!N59)/'DAX 30 Werte'!N59 -> -0.004559270517 | O59: =('DAX 30 Werte'!O60-'DAX 30 Werte'!O59)/'DAX 30 Werte'!O59 -> 0.01263976665 | P59: =('DAX 30 Werte'!P60-'DAX 30 Werte'!P59)/'DAX 30 Werte'!P59 -> 0.008244357346 | Q59: =('DAX 30 Werte'!Q60-'DAX 30 Werte'!Q59)/'DAX 30 Werte'!Q59 -> 0.004914004914 | R59: =('DAX 30 Werte'!R60-'DAX 30 Werte'!R59)/'DAX 30 Werte'!R59 -> 0.01170609657 | S59: =('DAX 30 Werte'!S60-'DAX 30 Werte'!S59)/'DAX 30 Werte'!S59 -> -0.005204594401 | T59: =('DAX 30 Werte'!T60-'DAX 30 Werte'!T59)/'DAX 30 Werte'!T59 -> 0.009351851852 | U59: =('DAX 30 Werte'!U60-'DAX 30 Werte'!U59)/'DAX 30 Werte'!U59 -> 0.01078651685 | V59: =('DAX 30 Werte'!V60-'DAX 30 Werte'!V59)/'DAX 30 Werte'!V59 -> 0.005886681383 | W59: =('DAX 30 Werte'!W60-'DAX 30 Werte'!W59)/'DAX 30 Werte'!W59 -> -0.001650554115 | X59: =('DAX 30 Werte'!X60-'DAX 30 Werte'!X59)/'DAX 30 Werte'!X59 -> -0.005558128763 | Y59: =('DAX 30 Werte'!Y60-'DAX 30 Werte'!Y59)/'DAX 30 Werte'!Y59 -> -0.002391845949 | Z59: =('DAX 30 Werte'!Z60-'DAX 30 Werte'!Z59)/'DAX 30 Werte'!Z59 -> 0.0003859513701 | AA59: =('DAX 30 Werte'!AA60-'DAX 30 Werte'!AA59)/'DAX 30 Werte'!AA59 -> -0.01172609841 | AB59: =('DAX 30 Werte'!AB60-'DAX 30 Werte'!AB59)/'DAX 30 Werte'!AB59 -> 0.01176038221 | AC59: =('DAX 30 Werte'!AC60-'DAX 30 Werte'!AC59)/'DAX 30 Werte'!AC59 -> -0.007107023411 | AD59: =('DAX 30 Werte'!AD60-'DAX 30 Werte'!AD59)/'DAX 30 Werte'!AD59 -> -0.003220364975 | AE59: =('DAX 30 Werte'!AD60-'DAX 30 Werte'!AD59)/'DAX 30 Werte'!AD59 -> -0.003220364975
A60: 2009-12-23 | B60: =('DAX 30 Werte'!B61-'DAX 30 Werte'!B60)/'DAX 30 Werte'!B60 -> 0.001976221431 | C60: =('DAX 30 Werte'!C61-'DAX 30 Werte'!C60)/'DAX 30 Werte'!C60 -> 0.008505724138 | D60: =('DAX 30 Werte'!D61-'DAX 30 Werte'!D60)/'DAX 30 Werte'!D60 -> 0.003223158764 | E60: =('DAX 30 Werte'!E61-'DAX 30 Werte'!E60)/'DAX 30 Werte'!E60 -> -0.001243781095 | F60: =('DAX 30 Werte'!F61-'DAX 30 Werte'!F60)/'DAX 30 Werte'!F60 -> 0.007484629778 | G60: =('DAX 30 Werte'!G61-'DAX 30 Werte'!G60)/'DAX 30 Werte'!G60 -> -0.003631647211 | H60: =('DAX 30 Werte'!H61-'DAX 30 Werte'!H60)/'DAX 30 Werte'!H60 -> -0.0168612192 | I60: =('DAX 30 Werte'!I61-'DAX 30 Werte'!I60)/'DAX 30 Werte'!I60 -> -0.01028806584 | J60: =('DAX 30 Werte'!J61-'DAX 30 Werte'!J60)/'DAX 30 Werte'!J60 -> -0.01934854179 | K60: =('DAX 30 Werte'!K61-'DAX 30 Werte'!K60)/'DAX 30 Werte'!K60 -> 0.002994634158 | L60: =('DAX 30 Werte'!L61-'DAX 30 Werte'!L60)/'DAX 30 Werte'!L60 -> -0.0283972575 | M60: =('DAX 30 Werte'!M61-'DAX 30 Werte'!M60)/'DAX 30 Werte'!M60 -> 0.002037936981 | N60: =('DAX 30 Werte'!N61-'DAX 30 Werte'!N60)/'DAX 30 Werte'!N60 -> -0.0009160305344 | O60: =('DAX 30 Werte'!O61-'DAX 30 Werte'!O60)/'DAX 30 Werte'!O60 -> 0.0004800768123 | P60: =('DAX 30 Werte'!P61-'DAX 30 Werte'!P60)/'DAX 30 Werte'!P60 -> 0.003217158177 | Q60: =('DAX 30 Werte'!Q61-'DAX 30 Werte'!Q60)/'DAX 30 Werte'!Q60 -> -0.002794271743 | R60: =('DAX 30 Werte'!R61-'DAX 30 Werte'!R60)/'DAX 30 Werte'!R60 -> 0.003322270554 | S60: =('DAX 30 Werte'!S61-'DAX 30 Werte'!S60)/'DAX 30 Werte'!S60 -> 0.007035901137 | T60: =('DAX 30 Werte'!T61-'DAX 30 Werte'!T60)/'DAX 30 Werte'!T60 -> -0.001926428768 | U60: =('DAX 30 Werte'!U61-'DAX 30 Werte'!U60)/'DAX 30 Werte'!U60 -> 0.0056321328 | V60: =('DAX 30 Werte'!V61-'DAX 30 Werte'!V60)/'DAX 30 Werte'!V60 -> -0.002926115582 | W60: =('DAX 30 Werte'!W61-'DAX 30 Werte'!W60)/'DAX 30 Werte'!W60 -> 0.02952290978 | X60: =('DAX 30 Werte'!X61-'DAX 30 Werte'!X60)/'DAX 30 Werte'!X60 -> -0.0004657661854 | Y60: =('DAX 30 Werte'!Y61-'DAX 30 Werte'!Y60)/'DAX 30 Werte'!Y60 -> 0.004577135907 | Z60: =('DAX 30 Werte'!Z61-'DAX 30 Werte'!Z60)/'DAX 30 Werte'!Z60 -> 0.01427469136 | AA60: =('DAX 30 Werte'!AA61-'DAX 30 Werte'!AA60)/'DAX 30 Werte'!AA60 -> 0.01017321969 | AB60: =('DAX 30 Werte'!AB61-'DAX 30 Werte'!AB60)/'DAX 30 Werte'!AB60 -> -0.01053396295 | AC60: =('DAX 30 Werte'!AC61-'DAX 30 Werte'!AC60)/'DAX 30 Werte'!AC60 -> 0.006736842105 | AD60: =('DAX 30 Werte'!AD61-'DAX 30 Werte'!AD60)/'DAX 30 Werte'!AD60 -> -0.001384615385 | AE60: =('DAX 30 Werte'!AD61-'DAX 30 Werte'!AD60)/'DAX 30 Werte'!AD60 -> -0.001384615385
A61: 2009-12-28 | B61: =('DAX 30 Werte'!B62-'DAX 30 Werte'!B61)/'DAX 30 Werte'!B61 -> 0.007634151582 | C61: =('DAX 30 Werte'!C62-'DAX 30 Werte'!C61)/'DAX 30 Werte'!C61 -> 0.001823615268 | D61: =('DAX 30 Werte'!D62-'DAX 30 Werte'!D61)/'DAX 30 Werte'!D61 -> -0.0005949904736 | E61: =('DAX 30 Werte'!E62-'DAX 30 Werte'!E61)/'DAX 30 Werte'!E61 -> -0.0099626401 | F61: =('DAX 30 Werte'!F62-'DAX 30 Werte'!F61)/'DAX 30 Werte'!F61 -> -0.01008224993 | G61: =('DAX 30 Werte'!G62-'DAX 30 Werte'!G61)/'DAX 30 Werte'!G61 -> 0.009112210362 | H61: =('DAX 30 Werte'!H62-'DAX 30 Werte'!H61)/'DAX 30 Werte'!H61 -> 0.01319261214 | I61: =('DAX 30 Werte'!I62-'DAX 30 Werte'!I61)/'DAX 30 Werte'!I61 -> -0.003534303534 | J61: =('DAX 30 Werte'!J62-'DAX 30 Werte'!J61)/'DAX 30 Werte'!J61 -> 0.01273721247 | K61: =('DAX 30 Werte'!K62-'DAX 30 Werte'!K61)/'DAX 30 Werte'!K61 -> 0.01223719794 | L61: =('DAX 30 Werte'!L62-'DAX 30 Werte'!L61)/'DAX 30 Werte'!L61 -> 0.01367067397 | M61: =('DAX 30 Werte'!M62-'DAX 30 Werte'!M61)/'DAX 30 Werte'!M61 -> 0.01783479349 | N61: =('DAX 30 Werte'!N62-'DAX 30 Werte'!N61)/'DAX 30 Werte'!N61 -> 0.00641809291 | O61: =('DAX 30 Werte'!O62-'DAX 30 Werte'!O61)/'DAX 30 Werte'!O61 -> 0.002399232246 | P61: =('DAX 30 Werte'!P62-'DAX 30 Werte'!P61)/'DAX 30 Werte'!P61 -> 0.006146445751 | Q61: =('DAX 30 Werte'!Q62-'DAX 30 Werte'!Q61)/'DAX 30 Werte'!Q61 -> 0.01786339755 | R61: =('DAX 30 Werte'!R62-'DAX 30 Werte'!R61)/'DAX 30 Werte'!R61 -> 0.008906131333 | S61: =('DAX 30 Werte'!S62-'DAX 30 Werte'!S61)/'DAX 30 Werte'!S61 -> 0.009494804729 | T61: =('DAX 30 Werte'!T62-'DAX 30 Werte'!T61)/'DAX 30 Werte'!T61 -> 0.003768382353 | U61: =('DAX 30 Werte'!U62-'DAX 30 Werte'!U61)/'DAX 30 Werte'!U61 -> 0.005747973471 | V61: =('DAX 30 Werte'!V62-'DAX 30 Werte'!V61)/'DAX 30 Werte'!V61 -> 0.007703595011 | W61: =('DAX 30 Werte'!W62-'DAX 30 Werte'!W61)/'DAX 30 Werte'!W61 -> -0.004358797889 | X61: =('DAX 30 Werte'!X62-'DAX 30 Werte'!X61)/'DAX 30 Werte'!X61 -> 0.004659832246 | Y61: =('DAX 30 Werte'!Y62-'DAX 30 Werte'!Y61)/'DAX 30 Werte'!Y61 -> -0.006075048818 | Z61: =('DAX 30 Werte'!Z62-'DAX 30 Werte'!Z61)/'DAX 30 Werte'!Z61 -> 0.008368200837 | AA61: =('DAX 30 Werte'!AA62-'DAX 30 Werte'!AA61)/'DAX 30 Werte'!AA61 -> -0.00334994347 | AB61: =('DAX 30 Werte'!AB62-'DAX 30 Werte'!AB61)/'DAX 30 Werte'!AB61 -> -0.01229809104 | AC61: =('DAX 30 Werte'!AC62-'DAX 30 Werte'!AC61)/'DAX 30 Werte'!AC61 -> -0.001672940192 | AD61: =('DAX 30 Werte'!AD62-'DAX 30 Werte'!AD61)/'DAX 30 Werte'!AD61 -> -0.004929902943 | AE61: =('DAX 30 Werte'!AD62-'DAX 30 Werte'!AD61)/'DAX 30 Werte'!AD61 -> -0.004929902943
A62: 2009-12-29 | B62: =('DAX 30 Werte'!B63-'DAX 30 Werte'!B62)/'DAX 30 Werte'!B62 -> 0.001437633685 | C62: =('DAX 30 Werte'!C63-'DAX 30 Werte'!C62)/'DAX 30 Werte'!C62 -> -0.002957929398 | D62: =('DAX 30 Werte'!D63-'DAX 30 Werte'!D62)/'DAX 30 Werte'!D62 -> -0.003809977469 | E62: =('DAX 30 Werte'!E63-'DAX 30 Werte'!E62)/'DAX 30 Werte'!E62 -> 0.00786163522 | F62: =('DAX 30 Werte'!F63-'DAX 30 Werte'!F62)/'DAX 30 Werte'!F62 -> 0.0002680246583 | G62: =('DAX 30 Werte'!G63-'DAX 30 Werte'!G62)/'DAX 30 Werte'!G62 -> -0.009545923633 | H62: =('DAX 30 Werte'!H63-'DAX 30 Werte'!H62)/'DAX 30 Werte'!H62 -> 0.01171875 | I62: =('DAX 30 Werte'!I63-'DAX 30 Werte'!I62)/'DAX 30 Werte'!I62 -> 0.01293553098 | J62: =('DAX 30 Werte'!J63-'DAX 30 Werte'!J62)/'DAX 30 Werte'!J62 -> -0.003452503168 | K62: =('DAX 30 Werte'!K63-'DAX 30 Werte'!K62)/'DAX 30 Werte'!K62 -> -0.004225100241 | L62: =('DAX 30 Werte'!L63-'DAX 30 Werte'!L62)/'DAX 30 Werte'!L62 -> 0.01736159303 | M62: =('DAX 30 Werte'!M63-'DAX 30 Werte'!M62)/'DAX 30 Werte'!M62 -> -0.003535198279 | N62: =('DAX 30 Werte'!N63-'DAX 30 Werte'!N62)/'DAX 30 Werte'!N62 -> -0.001518372305 | O62: =('DAX 30 Werte'!O63-'DAX 30 Werte'!O62)/'DAX 30 Werte'!O62 -> -0.00287218765 | P62: =('DAX 30 Werte'!P63-'DAX 30 Werte'!P62)/'DAX 30 Werte'!P62 -> 0 | Q62: =('DAX 30 Werte'!Q63-'DAX 30 Werte'!Q62)/'DAX 30 Werte'!Q62 -> 0.01892635926 | R62: =('DAX 30 Werte'!R63-'DAX 30 Werte'!R62)/'DAX 30 Werte'!R62 -> -0.005545473002 | S62: =('DAX 30 Werte'!S63-'DAX 30 Werte'!S62)/'DAX 30 Werte'!S62 -> 0.001774622893 | T62: =('DAX 30 Werte'!T63-'DAX 30 Werte'!T62)/'DAX 30 Werte'!T62 -> 0.004669902024 | U62: =('DAX 30 Werte'!U63-'DAX 30 Werte'!U62)/'DAX 30 Werte'!U62 -> 0.004982415006 | V62: =('DAX 30 Werte'!V63-'DAX 30 Werte'!V62)/'DAX 30 Werte'!V62 -> 0.003640334911 | W62: =('DAX 30 Werte'!W63-'DAX 30 Werte'!W62)/'DAX 30 Werte'!W62 -> 0.008294930876 | X62: =('DAX 30 Werte'!X63-'DAX 30 Werte'!X62)/'DAX 30 Werte'!X62 -> -0.002319109462 | Y62: =('DAX 30 Werte'!Y63-'DAX 30 Werte'!Y62)/'DAX 30 Werte'!Y62 -> 0.003274350507 | Z62: =('DAX 30 Werte'!Z63-'DAX 30 Werte'!Z62)/'DAX 30 Werte'!Z62 -> 0.01169370049 | AA62: =('DAX 30 Werte'!AA63-'DAX 30 Werte'!AA62)/'DAX 30 Werte'!AA62 -> -0.002541910004 | AB62: =('DAX 30 Werte'!AB63-'DAX 30 Werte'!AB62)/'DAX 30 Werte'!AB62 -> 0.007433562535 | AC62: =('DAX 30 Werte'!AC63-'DAX 30 Werte'!AC62)/'DAX 30 Werte'!AC62 -> -0.005446166736 | AD62: =('DAX 30 Werte'!AD63-'DAX 30 Werte'!AD62)/'DAX 30 Werte'!AD62 -> 0.007741136399 | AE62: =('DAX 30 Werte'!AD63-'DAX 30 Werte'!AD62)/'DAX 30 Werte'!AD62 -> 0.007741136399
A63: 2009-12-30 | B63: =('DAX 30 Werte'!B64-'DAX 30 Werte'!B63)/'DAX 30 Werte'!B63 -> -0.009002669861 | C63: =('DAX 30 Werte'!C64-'DAX 30 Werte'!C63)/'DAX 30 Werte'!C63 -> -0.008215449566 | D63: =('DAX 30 Werte'!D64-'DAX 30 Werte'!D63)/'DAX 30 Werte'!D63 -> 0.005856412235 | E63: =('DAX 30 Werte'!E64-'DAX 30 Werte'!E63)/'DAX 30 Werte'!E63 -> -0.007800312012 | F63: =('DAX 30 Werte'!F64-'DAX 30 Werte'!F63)/'DAX 30 Werte'!F63 -> -0.01018220793 | G63: =('DAX 30 Werte'!G64-'DAX 30 Werte'!G63)/'DAX 30 Werte'!G63 -> -0.01615003907 | H63: =('DAX 30 Werte'!H64-'DAX 30 Werte'!H63)/'DAX 30 Werte'!H63 -> -0.001287001287 | I63: =('DAX 30 Werte'!I64-'DAX 30 Werte'!I63)/'DAX 30 Werte'!I63 -> -0.006591143151 | J63: =('DAX 30 Werte'!J64-'DAX 30 Werte'!J63)/'DAX 30 Werte'!J63 -> -0.01039341747 | K63: =('DAX 30 Werte'!K64-'DAX 30 Werte'!K63)/'DAX 30 Werte'!K63 -> -0.02428543609 | L63: =('DAX 30 Werte'!L64-'DAX 30 Werte'!L63)/'DAX 30 Werte'!L63 -> 0.001675414178 | M63: =('DAX 30 Werte'!M64-'DAX 30 Werte'!M63)/'DAX 30 Werte'!M63 -> -0.0095634737 | N63: =('DAX 30 Werte'!N64-'DAX 30 Werte'!N63)/'DAX 30 Werte'!N63 -> 0.003649635036 | O63: =('DAX 30 Werte'!O64-'DAX 30 Werte'!O63)/'DAX 30 Werte'!O63 -> -0.01200192031 | P63: =('DAX 30 Werte'!P64-'DAX 30 Werte'!P63)/'DAX 30 Werte'!P63 -> -0.01115537849 | Q63: =('DAX 30 Werte'!Q64-'DAX 30 Werte'!Q63)/'DAX 30 Werte'!Q63 -> -0.0128335022 | R63: =('DAX 30 Werte'!R64-'DAX 30 Werte'!R63)/'DAX 30 Werte'!R63 -> -0.008193933941 | S63: =('DAX 30 Werte'!S64-'DAX 30 Werte'!S63)/'DAX 30 Werte'!S63 -> -0.008680248007 | T63: =('DAX 30 Werte'!T64-'DAX 30 Werte'!T63)/'DAX 30 Werte'!T63 -> -0.009569814072 | U63: =('DAX 30 Werte'!U64-'DAX 30 Werte'!U63)/'DAX 30 Werte'!U63 -> -0.0090405366 | V63: =('DAX 30 Werte'!V64-'DAX 30 Werte'!V63)/'DAX 30 Werte'!V63 -> -0.02176278564 | W63: =('DAX 30 Werte'!W64-'DAX 30 Werte'!W63)/'DAX 30 Werte'!W63 -> -0.007084095064 | X63: =('DAX 30 Werte'!X64-'DAX 30 Werte'!X63)/'DAX 30 Werte'!X63 -> -0.01046025105 | Y63: =('DAX 30 Werte'!Y64-'DAX 30 Werte'!Y63)/'DAX 30 Werte'!Y63 -> -0.0006527197705 | Z63: =('DAX 30 Werte'!Z64-'DAX 30 Werte'!Z63)/'DAX 30 Werte'!Z63 -> -0.01565995526 | AA63: =('DAX 30 Werte'!AA64-'DAX 30 Werte'!AA63)/'DAX 30 Werte'!AA63 -> -0.00673953792 | AB63: =('DAX 30 Werte'!AB64-'DAX 30 Werte'!AB63)/'DAX 30 Werte'!AB63 -> 0.004242759638 | AC63: =('DAX 30 Werte'!AC64-'DAX 30 Werte'!AC63)/'DAX 30 Werte'!AC63 -> -0.0101095198 | AD63: =('DAX 30 Werte'!AD64-'DAX 30 Werte'!AD63)/'DAX 30 Werte'!AD63 -> 0.001075434014 | AE63: =('DAX 30 Werte'!AD64-'DAX 30 Werte'!AD63)/'DAX 30 Werte'!AD63 -> 0.001075434014
A64: 2010-01-04 | B64: =('DAX 30 Werte'!B65-'DAX 30 Werte'!B64)/'DAX 30 Werte'!B64 -> 0.01525322161 | C64: =('DAX 30 Werte'!C65-'DAX 30 Werte'!C64)/'DAX 30 Werte'!C64 -> 0.03198341077 | D64: =('DAX 30 Werte'!D65-'DAX 30 Werte'!D64)/'DAX 30 Werte'!D64 -> 0.00998094059 | E64: =('DAX 30 Werte'!E65-'DAX 30 Werte'!E64)/'DAX 30 Werte'!E64 -> 0.00786163522 | F64: =('DAX 30 Werte'!F65-'DAX 30 Werte'!F64)/'DAX 30 Werte'!F64 -> 0.0246345425 | G64: =('DAX 30 Werte'!G65-'DAX 30 Werte'!G64)/'DAX 30 Werte'!G64 -> 0.0194598888 | H64: =('DAX 30 Werte'!H65-'DAX 30 Werte'!H64)/'DAX 30 Werte'!H64 -> 0.05773195876 | I64: =('DAX 30 Werte'!I65-'DAX 30 Werte'!I64)/'DAX 30 Werte'!I64 -> 0.01803856521 | J64: =('DAX 30 Werte'!J65-'DAX 30 Werte'!J64)/'DAX 30 Werte'!J64 -> 0.04376093805 | K64: =('DAX 30 Werte'!K65-'DAX 30 Werte'!K64)/'DAX 30 Werte'!K64 -> 0.02832933433 | L64: =('DAX 30 Werte'!L65-'DAX 30 Werte'!L64)/'DAX 30 Werte'!L64 -> -0.0188608794 | M64: =('DAX 30 Werte'!M65-'DAX 30 Werte'!M64)/'DAX 30 Werte'!M64 -> 0.01962311166 | N64: =('DAX 30 Werte'!N65-'DAX 30 Werte'!N64)/'DAX 30 Werte'!N64 -> -0.001818181818 | O64: =('DAX 30 Werte'!O65-'DAX 30 Werte'!O64)/'DAX 30 Werte'!O64 -> 0.03012633625 | P64: =('DAX 30 Werte'!P65-'DAX 30 Werte'!P64)/'DAX 30 Werte'!P64 -> 0.008595218909 | Q64: =('DAX 30 Werte'!Q65-'DAX 30 Werte'!Q64)/'DAX 30 Werte'!Q64 -> 0.001368457065 | R64: =('DAX 30 Werte'!R65-'DAX 30 Werte'!R64)/'DAX 30 Werte'!R64 -> 0.01594950049 | S64: =('DAX 30 Werte'!S65-'DAX 30 Werte'!S64)/'DAX 30 Werte'!S64 -> 0.007862759114 | T64: =('DAX 30 Werte'!T65-'DAX 30 Werte'!T64)/'DAX 30 Werte'!T64 -> -0.003404803534 | U64: =('DAX 30 Werte'!U65-'DAX 30 Werte'!U64)/'DAX 30 Werte'!U64 -> 0.01471453796 | V64: =('DAX 30 Werte'!V65-'DAX 30 Werte'!V64)/'DAX 30 Werte'!V64 -> 0.03670745273 | W64: =('DAX 30 Werte'!W65-'DAX 30 Werte'!W64)/'DAX 30 Werte'!W64 -> 0.01726121979 | X64: =('DAX 30 Werte'!X65-'DAX 30 Werte'!X64)/'DAX 30 Werte'!X64 -> 0.01996711299 | Y64: =('DAX 30 Werte'!Y65-'DAX 30 Werte'!Y64)/'DAX 30 Werte'!Y64 -> 0.011212715 | Z64: =('DAX 30 Werte'!Z65-'DAX 30 Werte'!Z64)/'DAX 30 Werte'!Z64 -> 0.03768939394 | AA64: =('DAX 30 Werte'!AA65-'DAX 30 Werte'!AA64)/'DAX 30 Werte'!AA64 -> 0.0268442145 | AB64: =('DAX 30 Werte'!AB65-'DAX 30 Werte'!AB64)/'DAX 30 Werte'!AB64 -> 0.01120499633 | AC64: =('DAX 30 Werte'!AC65-'DAX 30 Werte'!AC64)/'DAX 30 Werte'!AC64 -> 0.008936170213 | AD64: =('DAX 30 Werte'!AD65-'DAX 30 Werte'!AD64)/'DAX 30 Werte'!AD64 -> 0.0007673419276 | AE64: =('DAX 30 Werte'!AD65-'DAX 30 Werte'!AD64)/'DAX 30 Werte'!AD64 -> 0.0007673419276
A65: 2010-01-05 | B65: =('DAX 30 Werte'!B66-'DAX 30 Werte'!B65)/'DAX 30 Werte'!B65 -> -0.002718119141 | C65: =('DAX 30 Werte'!C66-'DAX 30 Werte'!C65)/'DAX 30 Werte'!C65 -> -0.01516165062 | D65: =('DAX 30 Werte'!D66-'DAX 30 Werte'!D65)/'DAX 30 Werte'!D65 -> -0.02329415294 | E65: =('DAX 30 Werte'!E66-'DAX 30 Werte'!E65)/'DAX 30 Werte'!E65 -> 0.008112324493 | F65: =('DAX 30 Werte'!F66-'DAX 30 Werte'!F65)/'DAX 30 Werte'!F65 -> -0.03091149273 | G65: =('DAX 30 Werte'!G66-'DAX 30 Werte'!G65)/'DAX 30 Werte'!G65 -> 0.03155434359 | H65: =('DAX 30 Werte'!H66-'DAX 30 Werte'!H65)/'DAX 30 Werte'!H65 -> 0.03265107212 | I65: =('DAX 30 Werte'!I66-'DAX 30 Werte'!I65)/'DAX 30 Werte'!I65 -> 0.007128309572 | J65: =('DAX 30 Werte'!J66-'DAX 30 Werte'!J65)/'DAX 30 Werte'!J65 -> 0.06672256508 | K65: =('DAX 30 Werte'!K66-'DAX 30 Werte'!K65)/'DAX 30 Werte'!K65 -> 0.01613470168 | L65: =('DAX 30 Werte'!L66-'DAX 30 Werte'!L65)/'DAX 30 Werte'!L65 -> -0.0193809815 | M65: =('DAX 30 Werte'!M66-'DAX 30 Werte'!M65)/'DAX 30 Werte'!M65 -> 0.000610966855 | N65: =('DAX 30 Werte'!N66-'DAX 30 Werte'!N65)/'DAX 30 Werte'!N65 -> -0.008955676988 | O65: =('DAX 30 Werte'!O66-'DAX 30 Werte'!O65)/'DAX 30 Werte'!O65 -> -0.008490566038 | P65: =('DAX 30 Werte'!P66-'DAX 30 Werte'!P65)/'DAX 30 Werte'!P65 -> -0.008255659121 | Q65: =('DAX 30 Werte'!Q66-'DAX 30 Werte'!Q65)/'DAX 30 Werte'!Q65 -> 0.0006832934745 | R65: =('DAX 30 Werte'!R66-'DAX 30 Werte'!R65)/'DAX 30 Werte'!R65 -> 0.003049435249 | S65: =('DAX 30 Werte'!S66-'DAX 30 Werte'!S65)/'DAX 30 Werte'!S65 -> -0.01826241135 | T65: =('DAX 30 Werte'!T66-'DAX 30 Werte'!T65)/'DAX 30 Werte'!T65 -> 0.001846722068 | U65: =('DAX 30 Werte'!U66-'DAX 30 Werte'!U65)/'DAX 30 Werte'!U65 -> -0.006380510441 | V65: =('DAX 30 Werte'!V66-'DAX 30 Werte'!V65)/'DAX 30 Werte'!V65 -> 0.001430615165 | W65: =('DAX 30 Werte'!W66-'DAX 30 Werte'!W65)/'DAX 30 Werte'!W65 -> -0.0229638009 | X65: =('DAX 30 Werte'!X66-'DAX 30 Werte'!X65)/'DAX 30 Werte'!X65 -> -0.004145555044 | Y65: =('DAX 30 Werte'!Y66-'DAX 30 Werte'!Y65)/'DAX 30 Werte'!Y65 -> -0.005275034988 | Z65: =('DAX 30 Werte'!Z66-'DAX 30 Werte'!Z65)/'DAX 30 Werte'!Z65 -> 0.01350611425 | AA65: =('DAX 30 Werte'!AA66-'DAX 30 Werte'!AA65)/'DAX 30 Werte'!AA65 -> 0.03392735457 | AB65: =('DAX 30 Werte'!AB66-'DAX 30 Werte'!AB65)/'DAX 30 Werte'!AB65 -> -0.0009082652134 | AC65: =('DAX 30 Werte'!AC66-'DAX 30 Werte'!AC65)/'DAX 30 Werte'!AC65 -> 0.01223112611 | AD65: =('DAX 30 Werte'!AD66-'DAX 30 Werte'!AD65)/'DAX 30 Werte'!AD65 -> -0.007360834228 | AE65: =('DAX 30 Werte'!AD66-'DAX 30 Werte'!AD65)/'DAX 30 Werte'!AD65 -> -0.007360834228
A66: 2010-01-06 | B66: =('DAX 30 Werte'!B67-'DAX 30 Werte'!B66)/'DAX 30 Werte'!B66 -> 0.0004094922628 | C66: =('DAX 30 Werte'!C67-'DAX 30 Werte'!C66)/'DAX 30 Werte'!C66 -> 0.006339212422 | D66: =('DAX 30 Werte'!D67-'DAX 30 Werte'!D66)/'DAX 30 Werte'!D66 -> 0.01710437306 | E66: =('DAX 30 Werte'!E67-'DAX 30 Werte'!E66)/'DAX 30 Werte'!E66 -> 0.01547508511 | F66: =('DAX 30 Werte'!F67-'DAX 30 Werte'!F66)/'DAX 30 Werte'!F66 -> -0.002044711014 | G66: =('DAX 30 Werte'!G67-'DAX 30 Werte'!G66)/'DAX 30 Werte'!G66 -> -0.008056394763 | H66: =('DAX 30 Werte'!H67-'DAX 30 Werte'!H66)/'DAX 30 Werte'!H66 -> -0.01344974044 | I66: =('DAX 30 Werte'!I67-'DAX 30 Werte'!I66)/'DAX 30 Werte'!I66 -> 0.0111223458 | J66: =('DAX 30 Werte'!J67-'DAX 30 Werte'!J66)/'DAX 30 Werte'!J66 -> 0.01111730439 | K66: =('DAX 30 Werte'!K67-'DAX 30 Werte'!K66)/'DAX 30 Werte'!K66 -> -0.01045621526 | L66: =('DAX 30 Werte'!L67-'DAX 30 Werte'!L66)/'DAX 30 Werte'!L66 -> 0.02766900264 | M66: =('DAX 30 Werte'!M67-'DAX 30 Werte'!M66)/'DAX 30 Werte'!M66 -> 0.003663562815 | N66: =('DAX 30 Werte'!N67-'DAX 30 Werte'!N66)/'DAX 30 Werte'!N66 -> 0.0177668862 | O66: =('DAX 30 Werte'!O67-'DAX 30 Werte'!O66)/'DAX 30 Werte'!O66 -> -0.02473834443 | P66: =('DAX 30 Werte'!P67-'DAX 30 Werte'!P66)/'DAX 30 Werte'!P66 -> 0.000268528464 | Q66: =('DAX 30 Werte'!Q67-'DAX 30 Werte'!Q66)/'DAX 30 Werte'!Q66 -> -0.00409696142 | R66: =('DAX 30 Werte'!R67-'DAX 30 Werte'!R66)/'DAX 30 Werte'!R66 -> 0.007769418033 | S66: =('DAX 30 Werte'!S67-'DAX 30 Werte'!S66)/'DAX 30 Werte'!S66 -> -0.006321112516 | T66: =('DAX 30 Werte'!T67-'DAX 30 Werte'!T66)/'DAX 30 Werte'!T66 -> -0.006451612903 | U66: =('DAX 30 Werte'!U67-'DAX 30 Werte'!U66)/'DAX 30 Werte'!U66 -> -0.001897256276 | V66: =('DAX 30 Werte'!V67-'DAX 30 Werte'!V66)/'DAX 30 Werte'!V66 -> 0.01107142857 | W66: =('DAX 30 Werte'!W67-'DAX 30 Werte'!W66)/'DAX 30 Werte'!W66 -> -0.005210142411 | X66: =('DAX 30 Werte'!X67-'DAX 30 Werte'!X66)/'DAX 30 Werte'!X66 -> -0.002428307123 | Y66: =('DAX 30 Werte'!Y67-'DAX 30 Werte'!Y66)/'DAX 30 Werte'!Y66 -> -0.0007575757412 | Z66: =('DAX 30 Werte'!Z67-'DAX 30 Werte'!Z66)/'DAX 30 Werte'!Z66 -> -0.004862236629 | AA66: =('DAX 30 Werte'!AA67-'DAX 30 Werte'!AA66)/'DAX 30 Werte'!AA66 -> 0.03345316557 | AB66: =('DAX 30 Werte'!AB67-'DAX 30 Werte'!AB66)/'DAX 30 Werte'!AB66 -> -0.0003636363636 | AC66: =('DAX 30 Werte'!AC67-'DAX 30 Werte'!AC66)/'DAX 30 Werte'!AC66 -> 0.0125 | AD66: =('DAX 30 Werte'!AD67-'DAX 30 Werte'!AD66)/'DAX 30 Werte'!AD66 -> -0.0006179514908 | AE66: =('DAX 30 Werte'!AD67-'DAX 30 Werte'!AD66)/'DAX 30 Werte'!AD66 -> -0.0006179514908
A67: 2010-01-07 | B67: =('DAX 30 Werte'!B68-'DAX 30 Werte'!B67)/'DAX 30 Werte'!B67 -> -0.002480805657 | C67: =('DAX 30 Werte'!C68-'DAX 30 Werte'!C67)/'DAX 30 Werte'!C67 -> -0.006636715261 | D67: =('DAX 30 Werte'!D68-'DAX 30 Werte'!D67)/'DAX 30 Werte'!D67 -> -0.006158266079 | E67: =('DAX 30 Werte'!E68-'DAX 30 Werte'!E67)/'DAX 30 Werte'!E67 -> 0.008838768668 | F67: =('DAX 30 Werte'!F68-'DAX 30 Werte'!F67)/'DAX 30 Werte'!F67 -> -0.006283294632 | G67: =('DAX 30 Werte'!G68-'DAX 30 Werte'!G67)/'DAX 30 Werte'!G67 -> 0.008756345178 | H67: =('DAX 30 Werte'!H68-'DAX 30 Werte'!H67)/'DAX 30 Werte'!H67 -> -0.01650322889 | I67: =('DAX 30 Werte'!I68-'DAX 30 Werte'!I67)/'DAX 30 Werte'!I67 -> 0.0114 | J67: =('DAX 30 Werte'!J68-'DAX 30 Werte'!J67)/'DAX 30 Werte'!J67 -> 0.02621059529 | K67: =('DAX 30 Werte'!K68-'DAX 30 Werte'!K67)/'DAX 30 Werte'!K67 -> 0.004499480994 | L67: =('DAX 30 Werte'!L68-'DAX 30 Werte'!L67)/'DAX 30 Werte'!L67 -> 0.01153821152 | M67: =('DAX 30 Werte'!M68-'DAX 30 Werte'!M67)/'DAX 30 Werte'!M67 -> 0.01186311787 | N67: =('DAX 30 Werte'!N68-'DAX 30 Werte'!N67)/'DAX 30 Werte'!N67 -> 0.02648607976 | O67: =('DAX 30 Werte'!O68-'DAX 30 Werte'!O67)/'DAX 30 Werte'!O67 -> -0.01902439024 | P67: =('DAX 30 Werte'!P68-'DAX 30 Werte'!P67)/'DAX 30 Werte'!P67 -> -0.01422818792 | Q67: =('DAX 30 Werte'!Q68-'DAX 30 Werte'!Q67)/'DAX 30 Werte'!Q67 -> -0.008227631128 | R67: =('DAX 30 Werte'!R68-'DAX 30 Werte'!R67)/'DAX 30 Werte'!R67 -> -0.01150836872 | S67: =('DAX 30 Werte'!S68-'DAX 30 Werte'!S67)/'DAX 30 Werte'!S67 -> -0.01308615049 | T67: =('DAX 30 Werte'!T68-'DAX 30 Werte'!T67)/'DAX 30 Werte'!T67 -> 0.002319109462 | U67: =('DAX 30 Werte'!U68-'DAX 30 Werte'!U67)/'DAX 30 Werte'!U67 -> -0.004240386021 | V67: =('DAX 30 Werte'!V68-'DAX 30 Werte'!V67)/'DAX 30 Werte'!V67 -> -0.002119392441 | W67: =('DAX 30 Werte'!W68-'DAX 30 Werte'!W67)/'DAX 30 Werte'!W67 -> -0.001396648045 | X67: =('DAX 30 Werte'!X68-'DAX 30 Werte'!X67)/'DAX 30 Werte'!X67 -> -0.03975889649 | Y67: =('DAX 30 Werte'!Y68-'DAX 30 Werte'!Y67)/'DAX 30 Werte'!Y67 -> -0.01007256558 | Z67: =('DAX 30 Werte'!Z68-'DAX 30 Werte'!Z67)/'DAX 30 Werte'!Z67 -> -0.002895403547 | AA67: =('DAX 30 Werte'!AA68-'DAX 30 Werte'!AA67)/'DAX 30 Werte'!AA67 -> 0.04118272297 | AB67: =('DAX 30 Werte'!AB68-'DAX 30 Werte'!AB67)/'DAX 30 Werte'!AB67 -> 0.002182611859 | AC67: =('DAX 30 Werte'!AC68-'DAX 30 Werte'!AC67)/'DAX 30 Werte'!AC67 -> 0.01358024691 | AD67: =('DAX 30 Werte'!AD68-'DAX 30 Werte'!AD67)/'DAX 30 Werte'!AD67 -> 0.02102334209 | AE67: =('DAX 30 Werte'!AD68-'DAX 30 Werte'!AD67)/'DAX 30 Werte'!AD67 -> 0.02102334209
A68: 2010-01-08 | B68: =('DAX 30 Werte'!B69-'DAX 30 Werte'!B68)/'DAX 30 Werte'!B68 -> 0.003031883788 | C68: =('DAX 30 Werte'!C69-'DAX 30 Werte'!C68)/'DAX 30 Werte'!C68 -> -0.003057388813 | D68: =('DAX 30 Werte'!D69-'DAX 30 Werte'!D68)/'DAX 30 Werte'!D68 -> -0.00977121091 | E68: =('DAX 30 Werte'!E69-'DAX 30 Werte'!E68)/'DAX 30 Werte'!E68 -> -0.01344410876 | F68: =('DAX 30 Werte'!F69-'DAX 30 Werte'!F68)/'DAX 30 Werte'!F68 -> -0.006872852234 | G68: =('DAX 30 Werte'!G69-'DAX 30 Werte'!G68)/'DAX 30 Werte'!G68 -> -0.003648257642 | H68: =('DAX 30 Werte'!H69-'DAX 30 Werte'!H68)/'DAX 30 Werte'!H68 -> 0.01653696498 | I68: =('DAX 30 Werte'!I69-'DAX 30 Werte'!I68)/'DAX 30 Werte'!I68 -> 0.01146925054 | J68: =('DAX 30 Werte'!J69-'DAX 30 Werte'!J68)/'DAX 30 Werte'!J68 -> -0.003463203388 | K68: =('DAX 30 Werte'!K69-'DAX 30 Werte'!K68)/'DAX 30 Werte'!K68 -> 0.03643242366 | L68: =('DAX 30 Werte'!L69-'DAX 30 Werte'!L68)/'DAX 30 Werte'!L68 -> 0.01079763575 | M68: =('DAX 30 Werte'!M69-'DAX 30 Werte'!M68)/'DAX 30 Werte'!M68 -> 0.00631294153 | N68: =('DAX 30 Werte'!N69-'DAX 30 Werte'!N68)/'DAX 30 Werte'!N68 -> 0.007037091336 | O68: =('DAX 30 Werte'!O69-'DAX 30 Werte'!O68)/'DAX 30 Werte'!O68 -> 0.005469915465 | P68: =('DAX 30 Werte'!P69-'DAX 30 Werte'!P68)/'DAX 30 Werte'!P68 -> 0.005855119826 | Q68: =('DAX 30 Werte'!Q69-'DAX 30 Werte'!Q68)/'DAX 30 Werte'!Q68 -> 0.01036985828 | R68: =('DAX 30 Werte'!R69-'DAX 30 Werte'!R68)/'DAX 30 Werte'!R68 -> -0.005425601838 | S68: =('DAX 30 Werte'!S69-'DAX 30 Werte'!S68)/'DAX 30 Werte'!S68 -> -0.008839779006 | T68: =('DAX 30 Werte'!T69-'DAX 30 Werte'!T68)/'DAX 30 Werte'!T68 -> -0.00185099491 | U68: =('DAX 30 Werte'!U69-'DAX 30 Werte'!U68)/'DAX 30 Werte'!U68 -> -0.001468428781 | V68: =('DAX 30 Werte'!V69-'DAX 30 Werte'!V68)/'DAX 30 Werte'!V68 -> 0.02371681416 | W68: =('DAX 30 Werte'!W69-'DAX 30 Werte'!W68)/'DAX 30 Werte'!W68 -> -0.02097902098 | X68: =('DAX 30 Werte'!X69-'DAX 30 Werte'!X68)/'DAX 30 Werte'!X68 -> -0.02329792371 | Y68: =('DAX 30 Werte'!Y69-'DAX 30 Werte'!Y68)/'DAX 30 Werte'!Y68 -> -0.02888402563 | Z68: =('DAX 30 Werte'!Z69-'DAX 30 Werte'!Z68)/'DAX 30 Werte'!Z68 -> 0.01887477314 | AA68: =('DAX 30 Werte'!AA69-'DAX 30 Werte'!AA68)/'DAX 30 Werte'!AA68 -> 0.012955676 | AB68: =('DAX 30 Werte'!AB69-'DAX 30 Werte'!AB68)/'DAX 30 Werte'!AB68 -> -0.002177858439 | AC68: =('DAX 30 Werte'!AC69-'DAX 30 Werte'!AC68)/'DAX 30 Werte'!AC68 -> 0.02923264312 | AD68: =('DAX 30 Werte'!AD69-'DAX 30 Werte'!AD68)/'DAX 30 Werte'!AD68 -> -0.01014383043 | AE68: =('DAX 30 Werte'!AD69-'DAX 30 Werte'!AD68)/'DAX 30 Werte'!AD68 -> -0.01014383043
A69: 2010-01-11 | B69: =('DAX 30 Werte'!B70-'DAX 30 Werte'!B69)/'DAX 30 Werte'!B69 -> 0.0004786662272 | C69: =('DAX 30 Werte'!C70-'DAX 30 Werte'!C69)/'DAX 30 Werte'!C69 -> -0.01113132667 | D69: =('DAX 30 Werte'!D70-'DAX 30 Werte'!D69)/'DAX 30 Werte'!D69 -> 0.005776221559 | E69: =('DAX 30 Werte'!E70-'DAX 30 Werte'!E69)/'DAX 30 Werte'!E69 -> -0.01485224315 | F69: =('DAX 30 Werte'!F70-'DAX 30 Werte'!F69)/'DAX 30 Werte'!F69 -> 0.01467128028 | G69: =('DAX 30 Werte'!G70-'DAX 30 Werte'!G69)/'DAX 30 Werte'!G69 -> 0.006313131313 | H69: =('DAX 30 Werte'!H70-'DAX 30 Werte'!H69)/'DAX 30 Werte'!H69 -> -0.02870813397 | I69: =('DAX 30 Werte'!I70-'DAX 30 Werte'!I69)/'DAX 30 Werte'!I69 -> 0.006842619746 | J69: =('DAX 30 Werte'!J70-'DAX 30 Werte'!J69)/'DAX 30 Werte'!J69 -> -0.007819309126 | K69: =('DAX 30 Werte'!K70-'DAX 30 Werte'!K69)/'DAX 30 Werte'!K69 -> -0.01203037257 | L69: =('DAX 30 Werte'!L70-'DAX 30 Werte'!L69)/'DAX 30 Werte'!L69 -> 0.007373309558 | M69: =('DAX 30 Werte'!M70-'DAX 30 Werte'!M69)/'DAX 30 Werte'!M69 -> 0.002539208364 | N69: =('DAX 30 Werte'!N70-'DAX 30 Werte'!N69)/'DAX 30 Werte'!N69 -> 0.0096083855 | O69: =('DAX 30 Werte'!O70-'DAX 30 Werte'!O69)/'DAX 30 Werte'!O69 -> 0.006923837784 | P69: =('DAX 30 Werte'!P70-'DAX 30 Werte'!P69)/'DAX 30 Werte'!P69 -> 0.007174766482 | Q69: =('DAX 30 Werte'!Q70-'DAX 30 Werte'!Q69)/'DAX 30 Werte'!Q69 -> 0.00444748546 | R69: =('DAX 30 Werte'!R70-'DAX 30 Werte'!R69)/'DAX 30 Werte'!R69 -> -0.01125125608 | S69: =('DAX 30 Werte'!S70-'DAX 30 Werte'!S69)/'DAX 30 Werte'!S69 -> -0.0001858045336 | T69: =('DAX 30 Werte'!T70-'DAX 30 Werte'!T69)/'DAX 30 Werte'!T69 -> 0.003708854891 | U69: =('DAX 30 Werte'!U70-'DAX 30 Werte'!U69)/'DAX 30 Werte'!U69 -> 0.01176470588 | V69: =('DAX 30 Werte'!V70-'DAX 30 Werte'!V69)/'DAX 30 Werte'!V69 -> -0.005532503458 | W69: =('DAX 30 Werte'!W70-'DAX 30 Werte'!W69)/'DAX 30 Werte'!W69 -> 0.00119047619 | X69: =('DAX 30 Werte'!X70-'DAX 30 Werte'!X69)/'DAX 30 Werte'!X69 -> 0.01989865282 | Y69: =('DAX 30 Werte'!Y70-'DAX 30 Werte'!Y69)/'DAX 30 Werte'!Y69 -> 0.01870207258 | Z69: =('DAX 30 Werte'!Z70-'DAX 30 Werte'!Z69)/'DAX 30 Werte'!Z69 -> -0.02386889918 | AA69: =('DAX 30 Werte'!AA70-'DAX 30 Werte'!AA69)/'DAX 30 Werte'!AA69 -> 0.01174551984 | AB69: =('DAX 30 Werte'!AB70-'DAX 30 Werte'!AB69)/'DAX 30 Werte'!AB69 -> -0.001091305929 | AC69: =('DAX 30 Werte'!AC70-'DAX 30 Werte'!AC69)/'DAX 30 Werte'!AC69 -> 0.01065088757 | AD69: =('DAX 30 Werte'!AD70-'DAX 30 Werte'!AD69)/'DAX 30 Werte'!AD69 -> 0.003517895381 | AE69: =('DAX 30 Werte'!AD70-'DAX 30 Werte'!AD69)/'DAX 30 Werte'!AD69 -> 0.003517895381
A70: 2010-01-12 | B70: =('DAX 30 Werte'!B71-'DAX 30 Werte'!B70)/'DAX 30 Werte'!B70 -> -0.01614104793 | C70: =('DAX 30 Werte'!C71-'DAX 30 Werte'!C70)/'DAX 30 Werte'!C70 -> -0.03560760477 | D70: =('DAX 30 Werte'!D71-'DAX 30 Werte'!D70)/'DAX 30 Werte'!D70 -> -0.008614512835 | E70: =('DAX 30 Werte'!E71-'DAX 30 Werte'!E70)/'DAX 30 Werte'!E70 -> -0.02906434566 | F70: =('DAX 30 Werte'!F71-'DAX 30 Werte'!F70)/'DAX 30 Werte'!F70 -> -0.004228618197 | G70: =('DAX 30 Werte'!G71-'DAX 30 Werte'!G70)/'DAX 30 Werte'!G70 -> -0.03149309912 | H70: =('DAX 30 Werte'!H71-'DAX 30 Werte'!H70)/'DAX 30 Werte'!H70 -> -0.0184729064 | I70: =('DAX 30 Werte'!I71-'DAX 30 Werte'!I70)/'DAX 30 Werte'!I70 -> -0.02737864078 | J70: =('DAX 30 Werte'!J71-'DAX 30 Werte'!J70)/'DAX 30 Werte'!J70 -> -0.03010070053 | K70: =('DAX 30 Werte'!K71-'DAX 30 Werte'!K70)/'DAX 30 Werte'!K70 -> -0.02587583768 | L70: =('DAX 30 Werte'!L71-'DAX 30 Werte'!L70)/'DAX 30 Werte'!L70 -> -0.02613835975 | M70: =('DAX 30 Werte'!M71-'DAX 30 Werte'!M70)/'DAX 30 Werte'!M70 -> -0.01221692491 | N70: =('DAX 30 Werte'!N71-'DAX 30 Werte'!N70)/'DAX 30 Werte'!N70 -> -0.009661139149 | O70: =('DAX 30 Werte'!O71-'DAX 30 Werte'!O70)/'DAX 30 Werte'!O70 -> -0.007858546169 | P70: =('DAX 30 Werte'!P71-'DAX 30 Werte'!P70)/'DAX 30 Werte'!P70 -> -0.0247311828 | Q70: =('DAX 30 Werte'!Q71-'DAX 30 Werte'!Q70)/'DAX 30 Werte'!Q70 -> -0.0166893733 | R70: =('DAX 30 Werte'!R71-'DAX 30 Werte'!R70)/'DAX 30 Werte'!R70 -> -0.004252908046 | S70: =('DAX 30 Werte'!S71-'DAX 30 Werte'!S70)/'DAX 30 Werte'!S70 -> -0.009477792232 | T70: =('DAX 30 Werte'!T71-'DAX 30 Werte'!T70)/'DAX 30 Werte'!T70 -> 0.002771362587 | U70: =('DAX 30 Werte'!U71-'DAX 30 Werte'!U70)/'DAX 30 Werte'!U70 -> -0.0101744186 | V70: =('DAX 30 Werte'!V71-'DAX 30 Werte'!V70)/'DAX 30 Werte'!V70 -> -0.02294853964 | W70: =('DAX 30 Werte'!W71-'DAX 30 Werte'!W70)/'DAX 30 Werte'!W70 -> -0.00594530321 | X70: =('DAX 30 Werte'!X71-'DAX 30 Werte'!X70)/'DAX 30 Werte'!X70 -> -0.009209888512 | Y70: =('DAX 30 Werte'!Y71-'DAX 30 Werte'!Y70)/'DAX 30 Werte'!Y70 -> -0.0321831018 | Z70: =('DAX 30 Werte'!Z71-'DAX 30 Werte'!Z70)/'DAX 30 Werte'!Z70 -> -0.02408759124 | AA70: =('DAX 30 Werte'!AA71-'DAX 30 Werte'!AA70)/'DAX 30 Werte'!AA70 -> -0.04281445259 | AB70: =('DAX 30 Werte'!AB71-'DAX 30 Werte'!AB70)/'DAX 30 Werte'!AB70 -> -0.0316824472 | AC70: =('DAX 30 Werte'!AC71-'DAX 30 Werte'!AC70)/'DAX 30 Werte'!AC70 -> -0.02888368462 | AD70: =('DAX 30 Werte'!AD71-'DAX 30 Werte'!AD70)/'DAX 30 Werte'!AD70 -> -0.009754610578 | AE70: =('DAX 30 Werte'!AD71-'DAX 30 Werte'!AD70)/'DAX 30 Werte'!AD70 -> -0.009754610578
A71: 2010-01-13 | B71: =('DAX 30 Werte'!B72-'DAX 30 Werte'!B71)/'DAX 30 Werte'!B71 -> 0.003388860845 | C71: =('DAX 30 Werte'!C72-'DAX 30 Werte'!C71)/'DAX 30 Werte'!C71 -> 0.009409242496 | D71: =('DAX 30 Werte'!D72-'DAX 30 Werte'!D71)/'DAX 30 Werte'!D71 -> 0.01508568652 | E71: =('DAX 30 Werte'!E72-'DAX 30 Werte'!E71)/'DAX 30 Werte'!E71 -> 0.006082919802 | F71: =('DAX 30 Werte'!F72-'DAX 30 Werte'!F71)/'DAX 30 Werte'!F71 -> 0.01095890411 | G71: =('DAX 30 Werte'!G72-'DAX 30 Werte'!G71)/'DAX 30 Werte'!G71 -> -0.01269594507 | H71: =('DAX 30 Werte'!H72-'DAX 30 Werte'!H71)/'DAX 30 Werte'!H71 -> 0.03161856964 | I71: =('DAX 30 Werte'!I72-'DAX 30 Werte'!I71)/'DAX 30 Werte'!I71 -> 0.01637053304 | J71: =('DAX 30 Werte'!J72-'DAX 30 Werte'!J71)/'DAX 30 Werte'!J71 -> 0.009592596772 | K71: =('DAX 30 Werte'!K72-'DAX 30 Werte'!K71)/'DAX 30 Werte'!K71 -> -0.0167962362 | L71: =('DAX 30 Werte'!L72-'DAX 30 Werte'!L71)/'DAX 30 Werte'!L71 -> -0.02607459937 | M71: =('DAX 30 Werte'!M72-'DAX 30 Werte'!M71)/'DAX 30 Werte'!M71 -> 0.009049773756 | N71: =('DAX 30 Werte'!N72-'DAX 30 Werte'!N71)/'DAX 30 Werte'!N71 -> 0.01033779849 | O71: =('DAX 30 Werte'!O72-'DAX 30 Werte'!O71)/'DAX 30 Werte'!O71 -> 0.005940594059 | P71: =('DAX 30 Werte'!P72-'DAX 30 Werte'!P71)/'DAX 30 Werte'!P71 -> -0.002618522602 | Q71: =('DAX 30 Werte'!Q72-'DAX 30 Werte'!Q71)/'DAX 30 Werte'!Q71 -> -0.006927606512 | R71: =('DAX 30 Werte'!R72-'DAX 30 Werte'!R71)/'DAX 30 Werte'!R71 -> 0.001731524936 | S71: =('DAX 30 Werte'!S72-'DAX 30 Werte'!S71)/'DAX 30 Werte'!S71 -> 0.01838649156 | T71: =('DAX 30 Werte'!T72-'DAX 30 Werte'!T71)/'DAX 30 Werte'!T71 -> 0.0009212344542 | U71: =('DAX 30 Werte'!U72-'DAX 30 Werte'!U71)/'DAX 30 Werte'!U71 -> -0.002202643172 | V71: =('DAX 30 Werte'!V72-'DAX 30 Werte'!V71)/'DAX 30 Werte'!V71 -> 0.01352313167 | W71: =('DAX 30 Werte'!W72-'DAX 30 Werte'!W71)/'DAX 30 Werte'!W71 -> 0.03301435407 | X71: =('DAX 30 Werte'!X72-'DAX 30 Werte'!X71)/'DAX 30 Werte'!X71 -> -0.007338551859 | Y71: =('DAX 30 Werte'!Y72-'DAX 30 Werte'!Y71)/'DAX 30 Werte'!Y71 -> -0.002285498748 | Z71: =('DAX 30 Werte'!Z72-'DAX 30 Werte'!Z71)/'DAX 30 Werte'!Z71 -> 0.01458489155 | AA71: =('DAX 30 Werte'!AA72-'DAX 30 Werte'!AA71)/'DAX 30 Werte'!AA71 -> -0.006225047776 | AB71: =('DAX 30 Werte'!AB72-'DAX 30 Werte'!AB71)/'DAX 30 Werte'!AB71 -> 0 | AC71: =('DAX 30 Werte'!AC72-'DAX 30 Werte'!AC71)/'DAX 30 Werte'!AC71 -> 0.0004019292605 | AD71: =('DAX 30 Werte'!AD72-'DAX 30 Werte'!AD71)/'DAX 30 Werte'!AD71 -> 0.0004617515777 | AE71: =('DAX 30 Werte'!AD72-'DAX 30 Werte'!AD71)/'DAX 30 Werte'!AD71 -> 0.0004617515777
A72: 2010-01-14 | B72: =('DAX 30 Werte'!B73-'DAX 30 Werte'!B72)/'DAX 30 Werte'!B72 -> 0.004316517808 | C72: =('DAX 30 Werte'!C73-'DAX 30 Werte'!C72)/'DAX 30 Werte'!C72 -> 0.002005876106 | D72: =('DAX 30 Werte'!D73-'DAX 30 Werte'!D72)/'DAX 30 Werte'!D72 -> 0.00630124829 | E72: =('DAX 30 Werte'!E73-'DAX 30 Werte'!E72)/'DAX 30 Werte'!E72 -> 0.01479713604 | F72: =('DAX 30 Werte'!F73-'DAX 30 Werte'!F72)/'DAX 30 Werte'!F72 -> 0.01070460705 | G72: =('DAX 30 Werte'!G73-'DAX 30 Werte'!G72)/'DAX 30 Werte'!G72 -> 0.02020732187 | H72: =('DAX 30 Werte'!H73-'DAX 30 Werte'!H72)/'DAX 30 Werte'!H72 -> 0.0124057407 | I72: =('DAX 30 Werte'!I73-'DAX 30 Werte'!I72)/'DAX 30 Werte'!I72 -> 0.009624828128 | J72: =('DAX 30 Werte'!J73-'DAX 30 Werte'!J72)/'DAX 30 Werte'!J72 -> -0.008830784708 | K72: =('DAX 30 Werte'!K73-'DAX 30 Werte'!K72)/'DAX 30 Werte'!K72 -> 0.0003962198018 | L72: =('DAX 30 Werte'!L73-'DAX 30 Werte'!L72)/'DAX 30 Werte'!L72 -> 0 | M72: =('DAX 30 Werte'!M73-'DAX 30 Werte'!M72)/'DAX 30 Werte'!M72 -> 0.004484304933 | N72: =('DAX 30 Werte'!N73-'DAX 30 Werte'!N72)/'DAX 30 Werte'!N72 -> 0.01887880098 | O72: =('DAX 30 Werte'!O73-'DAX 30 Werte'!O72)/'DAX 30 Werte'!O72 -> 0.0009842519685 | P72: =('DAX 30 Werte'!P73-'DAX 30 Werte'!P72)/'DAX 30 Werte'!P72 -> 0.02528672102 | Q72: =('DAX 30 Werte'!Q73-'DAX 30 Werte'!Q72)/'DAX 30 Werte'!Q72 -> -0.002441576561 | R72: =('DAX 30 Werte'!R73-'DAX 30 Werte'!R72)/'DAX 30 Werte'!R72 -> -0.01048624119 | S72: =('DAX 30 Werte'!S73-'DAX 30 Werte'!S72)/'DAX 30 Werte'!S72 -> 0.009395725866 | T72: =('DAX 30 Werte'!T73-'DAX 30 Werte'!T72)/'DAX 30 Werte'!T72 -> -0.006442705936 | U72: =('DAX 30 Werte'!U73-'DAX 30 Werte'!U72)/'DAX 30 Werte'!U72 -> 0.01059602649 | V72: =('DAX 30 Werte'!V73-'DAX 30 Werte'!V72)/'DAX 30 Werte'!V72 -> -0.01299157303 | W72: =('DAX 30 Werte'!W73-'DAX 30 Werte'!W72)/'DAX 30 Werte'!W72 -> 0.01899027327 | X72: =('DAX 30 Werte'!X73-'DAX 30 Werte'!X72)/'DAX 30 Werte'!X72 -> -0.007516017743 | Y72: =('DAX 30 Werte'!Y73-'DAX 30 Werte'!Y72)/'DAX 30 Werte'!Y72 -> 0.002748894806 | Z72: =('DAX 30 Werte'!Z73-'DAX 30 Werte'!Z72)/'DAX 30 Werte'!Z72 -> 0.00350165868 | AA72: =('DAX 30 Werte'!AA73-'DAX 30 Werte'!AA72)/'DAX 30 Werte'!AA72 -> 0.02686493279 | AB72: =('DAX 30 Werte'!AB73-'DAX 30 Werte'!AB72)/'DAX 30 Werte'!AB72 -> -0.01053027454 | AC72: =('DAX 30 Werte'!AC73-'DAX 30 Werte'!AC72)/'DAX 30 Werte'!AC72 -> 0.01004419446 | AD72: =('DAX 30 Werte'!AD73-'DAX 30 Werte'!AD72)/'DAX 30 Werte'!AD72 -> 0.004153846154 | AE72: =('DAX 30 Werte'!AD73-'DAX 30 Werte'!AD72)/'DAX 30 Werte'!AD72 -> 0.004153846154
A73: 2010-01-15 | B73: =('DAX 30 Werte'!B74-'DAX 30 Werte'!B73)/'DAX 30 Werte'!B73 -> -0.01885327474 | C73: =('DAX 30 Werte'!C74-'DAX 30 Werte'!C73)/'DAX 30 Werte'!C73 -> -0.02107866277 | D73: =('DAX 30 Werte'!D74-'DAX 30 Werte'!D73)/'DAX 30 Werte'!D73 -> -0.01677691419 | E73: =('DAX 30 Werte'!E74-'DAX 30 Werte'!E73)/'DAX 30 Werte'!E73 -> -0.008153026027 | F73: =('DAX 30 Werte'!F74-'DAX 30 Werte'!F73)/'DAX 30 Werte'!F73 -> -0.009786834696 | G73: =('DAX 30 Werte'!G74-'DAX 30 Werte'!G73)/'DAX 30 Werte'!G73 -> 0.001028938907 | H73: =('DAX 30 Werte'!H74-'DAX 30 Werte'!H73)/'DAX 30 Werte'!H73 -> -0.02787121576 | I73: =('DAX 30 Werte'!I74-'DAX 30 Werte'!I73)/'DAX 30 Werte'!I73 -> -0.02723735409 | J73: =('DAX 30 Werte'!J74-'DAX 30 Werte'!J73)/'DAX 30 Werte'!J73 -> -0.01522496933 | K73: =('DAX 30 Werte'!K74-'DAX 30 Werte'!K73)/'DAX 30 Werte'!K73 -> -0.03693395108 | L73: =('DAX 30 Werte'!L74-'DAX 30 Werte'!L73)/'DAX 30 Werte'!L73 -> -0.03212595631 | M73: =('DAX 30 Werte'!M74-'DAX 30 Werte'!M73)/'DAX 30 Werte'!M73 -> -0.01145833333 | N73: =('DAX 30 Werte'!N74-'DAX 30 Werte'!N73)/'DAX 30 Werte'!N73 -> -0.03536067893 | O73: =('DAX 30 Werte'!O74-'DAX 30 Werte'!O73)/'DAX 30 Werte'!O73 -> -0.01327433628 | P73: =('DAX 30 Werte'!P74-'DAX 30 Werte'!P73)/'DAX 30 Werte'!P73 -> -0.01644204852 | Q73: =('DAX 30 Werte'!Q74-'DAX 30 Werte'!Q73)/'DAX 30 Werte'!Q73 -> -0.02604895105 | R73: =('DAX 30 Werte'!R74-'DAX 30 Werte'!R73)/'DAX 30 Werte'!R73 -> -0.01281013115 | S73: =('DAX 30 Werte'!S74-'DAX 30 Werte'!S73)/'DAX 30 Werte'!S73 -> -0.03011498449 | T73: =('DAX 30 Werte'!T74-'DAX 30 Werte'!T73)/'DAX 30 Werte'!T73 -> -0.01667438629 | U73: =('DAX 30 Werte'!U74-'DAX 30 Werte'!U73)/'DAX 30 Werte'!U73 -> -0.008009319936 | V73: =('DAX 30 Werte'!V74-'DAX 30 Werte'!V73)/'DAX 30 Werte'!V73 -> -0.02383493419 | W73: =('DAX 30 Werte'!W74-'DAX 30 Werte'!W73)/'DAX 30 Werte'!W73 -> 0.01556818182 | X73: =('DAX 30 Werte'!X74-'DAX 30 Werte'!X73)/'DAX 30 Werte'!X73 -> 0.002234636872 | Y73: =('DAX 30 Werte'!Y74-'DAX 30 Werte'!Y73)/'DAX 30 Werte'!Y73 -> -0.02512856539 | Z73: =('DAX 30 Werte'!Z74-'DAX 30 Werte'!Z73)/'DAX 30 Werte'!Z73 -> -0.02093663912 | AA73: =('DAX 30 Werte'!AA74-'DAX 30 Werte'!AA73)/'DAX 30 Werte'!AA73 -> -0.02497543248 | AB73: =('DAX 30 Werte'!AB74-'DAX 30 Werte'!AB73)/'DAX 30 Werte'!AB73 -> -0.01881413911 | AC73: =('DAX 30 Werte'!AC74-'DAX 30 Werte'!AC73)/'DAX 30 Werte'!AC73 -> 0.01193317422 | AD73: =('DAX 30 Werte'!AD74-'DAX 30 Werte'!AD73)/'DAX 30 Werte'!AD73 -> 0.0156273939 | AE73: =('DAX 30 Werte'!AD74-'DAX 30 Werte'!AD73)/'DAX 30 Werte'!AD73 -> 0.0156273939
A74: 2010-01-18 | B74: =('DAX 30 Werte'!B75-'DAX 30 Werte'!B74)/'DAX 30 Werte'!B74 -> 0.007246463137 | C74: =('DAX 30 Werte'!C75-'DAX 30 Werte'!C74)/'DAX 30 Werte'!C74 -> 0.01816434544 | D74: =('DAX 30 Werte'!D75-'DAX 30 Werte'!D74)/'DAX 30 Werte'!D74 -> -0.002283129028 | E74: =('DAX 30 Werte'!E75-'DAX 30 Werte'!E74)/'DAX 30 Werte'!E74 -> 0.01485931078 | F74: =('DAX 30 Werte'!F75-'DAX 30 Werte'!F74)/'DAX 30 Werte'!F74 -> 0.001895477931 | G74: =('DAX 30 Werte'!G75-'DAX 30 Werte'!G74)/'DAX 30 Werte'!G74 -> 0.006552743158 | H74: =('DAX 30 Werte'!H75-'DAX 30 Werte'!H74)/'DAX 30 Werte'!H74 -> 0.0007414730598 | I74: =('DAX 30 Werte'!I75-'DAX 30 Werte'!I74)/'DAX 30 Werte'!I74 -> 0 | J74: =('DAX 30 Werte'!J75-'DAX 30 Werte'!J74)/'DAX 30 Werte'!J74 -> 0.01374251031 | K74: =('DAX 30 Werte'!K75-'DAX 30 Werte'!K74)/'DAX 30 Werte'!K74 -> 0.005567719879 | L74: =('DAX 30 Werte'!L75-'DAX 30 Werte'!L74)/'DAX 30 Werte'!L74 -> 0.002766297009 | M74: =('DAX 30 Werte'!M75-'DAX 30 Werte'!M74)/'DAX 30 Werte'!M74 -> 0.005268703899 | N74: =('DAX 30 Werte'!N75-'DAX 30 Werte'!N74)/'DAX 30 Werte'!N74 -> -0.004838709677 | O74: =('DAX 30 Werte'!O75-'DAX 30 Werte'!O74)/'DAX 30 Werte'!O74 -> -0.0105630294 | P74: =('DAX 30 Werte'!P75-'DAX 30 Werte'!P74)/'DAX 30 Werte'!P74 -> 0.01712798027 | Q74: =('DAX 30 Werte'!Q75-'DAX 30 Werte'!Q74)/'DAX 30 Werte'!Q74 -> 0.01453957997 | R74: =('DAX 30 Werte'!R75-'DAX 30 Werte'!R74)/'DAX 30 Werte'!R74 -> 0.0002359797182 | S74: =('DAX 30 Werte'!S75-'DAX 30 Werte'!S74)/'DAX 30 Werte'!S74 -> 0.019947309 | T74: =('DAX 30 Werte'!T75-'DAX 30 Werte'!T74)/'DAX 30 Werte'!T74 -> 0.02119642016 | U74: =('DAX 30 Werte'!U75-'DAX 30 Werte'!U74)/'DAX 30 Werte'!U74 -> -0.005137991779 | V74: =('DAX 30 Werte'!V75-'DAX 30 Werte'!V74)/'DAX 30 Werte'!V74 -> 0.01056851312 | W74: =('DAX 30 Werte'!W75-'DAX 30 Werte'!W74)/'DAX 30 Werte'!W74 -> -0.009511021596 | X74: =('DAX 30 Werte'!X75-'DAX 30 Werte'!X74)/'DAX 30 Werte'!X74 -> 0.01003344482 | Y74: =('DAX 30 Werte'!Y75-'DAX 30 Werte'!Y74)/'DAX 30 Werte'!Y74 -> 0.02741656772 | Z74: =('DAX 30 Werte'!Z75-'DAX 30 Werte'!Z74)/'DAX 30 Werte'!Z74 -> 0.003001313074 | AA74: =('DAX 30 Werte'!AA75-'DAX 30 Werte'!AA74)/'DAX 30 Werte'!AA74 -> -0.004259688891 | AB74: =('DAX 30 Werte'!AB75-'DAX 30 Werte'!AB74)/'DAX 30 Werte'!AB74 -> 0.007166376138 | AC74: =('DAX 30 Werte'!AC75-'DAX 30 Werte'!AC74)/'DAX 30 Werte'!AC74 -> 0.003144654088 | AD74: =('DAX 30 Werte'!AD75-'DAX 30 Werte'!AD74)/'DAX 30 Werte'!AD74 -> -0.01116307135 | AE74: =('DAX 30 Werte'!AD75-'DAX 30 Werte'!AD74)/'DAX 30 Werte'!AD74 -> -0.01116307135
A75: 2010-01-19 | B75: =('DAX 30 Werte'!B76-'DAX 30 Werte'!B75)/'DAX 30 Werte'!B75 -> 0.00978787034 | C75: =('DAX 30 Werte'!C76-'DAX 30 Werte'!C75)/'DAX 30 Werte'!C75 -> 0.01275994802 | D75: =('DAX 30 Werte'!D76-'DAX 30 Werte'!D75)/'DAX 30 Werte'!D75 -> 0.009875936527 | E75: =('DAX 30 Werte'!E76-'DAX 30 Werte'!E75)/'DAX 30 Werte'!E75 -> 0.01028037383 | F75: =('DAX 30 Werte'!F76-'DAX 30 Werte'!F75)/'DAX 30 Werte'!F75 -> 0.02067567568 | G75: =('DAX 30 Werte'!G76-'DAX 30 Werte'!G75)/'DAX 30 Werte'!G75 -> -0.008169517488 | H75: =('DAX 30 Werte'!H76-'DAX 30 Werte'!H75)/'DAX 30 Werte'!H75 -> -0.007903185972 | I75: =('DAX 30 Werte'!I76-'DAX 30 Werte'!I75)/'DAX 30 Werte'!I75 -> -0.0143 | J75: =('DAX 30 Werte'!J76-'DAX 30 Werte'!J75)/'DAX 30 Werte'!J75 -> 0.01920476815 | K75: =('DAX 30 Werte'!K76-'DAX 30 Werte'!K75)/'DAX 30 Werte'!K75 -> 0.009022167792 | L75: =('DAX 30 Werte'!L76-'DAX 30 Werte'!L75)/'DAX 30 Werte'!L75 -> -0.01508941178 | M75: =('DAX 30 Werte'!M76-'DAX 30 Werte'!M75)/'DAX 30 Werte'!M75 -> 0.01123090746 | N75: =('DAX 30 Werte'!N76-'DAX 30 Werte'!N75)/'DAX 30 Werte'!N75 -> 0.01296596434 | O75: =('DAX 30 Werte'!O76-'DAX 30 Werte'!O75)/'DAX 30 Werte'!O75 -> 0.01671870279 | P75: =('DAX 30 Werte'!P76-'DAX 30 Werte'!P75)/'DAX 30 Werte'!P75 -> -0.01091203018 | Q75: =('DAX 30 Werte'!Q76-'DAX 30 Werte'!Q75)/'DAX 30 Werte'!Q75 -> 0.01574663836 | R75: =('DAX 30 Werte'!R76-'DAX 30 Werte'!R75)/'DAX 30 Werte'!R75 -> 0.004599587161 | S75: =('DAX 30 Werte'!S76-'DAX 30 Werte'!S75)/'DAX 30 Werte'!S75 -> 0.01162361624 | T75: =('DAX 30 Werte'!T76-'DAX 30 Werte'!T75)/'DAX 30 Werte'!T75 -> 0.02167896679 | U75: =('DAX 30 Werte'!U76-'DAX 30 Werte'!U75)/'DAX 30 Werte'!U75 -> 0.009001032905 | V75: =('DAX 30 Werte'!V76-'DAX 30 Werte'!V75)/'DAX 30 Werte'!V75 -> 0.005409304003 | W75: =('DAX 30 Werte'!W76-'DAX 30 Werte'!W75)/'DAX 30 Werte'!W75 -> 0.01671938545 | X75: =('DAX 30 Werte'!X76-'DAX 30 Werte'!X75)/'DAX 30 Werte'!X75 -> 0.004169732647 | Y75: =('DAX 30 Werte'!Y76-'DAX 30 Werte'!Y75)/'DAX 30 Werte'!Y75 -> 0.01482490558 | Z75: =('DAX 30 Werte'!Z76-'DAX 30 Werte'!Z75)/'DAX 30 Werte'!Z75 -> 0.01140826632 | AA75: =('DAX 30 Werte'!AA76-'DAX 30 Werte'!AA75)/'DAX 30 Werte'!AA75 -> 0.006722432298 | AB75: =('DAX 30 Werte'!AB76-'DAX 30 Werte'!AB75)/'DAX 30 Werte'!AB75 -> 0.001153846154 | AC75: =('DAX 30 Werte'!AC76-'DAX 30 Werte'!AC75)/'DAX 30 Werte'!AC75 -> 0.002351097179 | AD75: =('DAX 30 Werte'!AD76-'DAX 30 Werte'!AD75)/'DAX 30 Werte'!AD75 -> 0.01083142639 | AE75: =('DAX 30 Werte'!AD76-'DAX 30 Werte'!AD75)/'DAX 30 Werte'!AD75 -> 0.01083142639
A76: 2010-01-20 | B76: =('DAX 30 Werte'!B77-'DAX 30 Werte'!B76)/'DAX 30 Werte'!B76 -> -0.02090695526 | C76: =('DAX 30 Werte'!C77-'DAX 30 Werte'!C76)/'DAX 30 Werte'!C76 -> -0.03278112383 | D76: =('DAX 30 Werte'!D77-'DAX 30 Werte'!D76)/'DAX 30 Werte'!D76 -> -0.02206318478 | E76: =('DAX 30 Werte'!E77-'DAX 30 Werte'!E76)/'DAX 30 Werte'!E76 -> -0.01942645698 | F76: =('DAX 30 Werte'!F77-'DAX 30 Werte'!F76)/'DAX 30 Werte'!F76 -> -0.006619886138 | G76: =('DAX 30 Werte'!G77-'DAX 30 Werte'!G76)/'DAX 30 Werte'!G76 -> -0.01685971686 | H76: =('DAX 30 Werte'!H77-'DAX 30 Werte'!H76)/'DAX 30 Werte'!H76 -> -0.003485187951 | I76: =('DAX 30 Werte'!I77-'DAX 30 Werte'!I76)/'DAX 30 Werte'!I76 -> -0.03702952217 | J76: =('DAX 30 Werte'!J77-'DAX 30 Werte'!J76)/'DAX 30 Werte'!J76 -> -0.04743959106 | K76: =('DAX 30 Werte'!K77-'DAX 30 Werte'!K76)/'DAX 30 Werte'!K76 -> -0.02052424114 | L76: =('DAX 30 Werte'!L77-'DAX 30 Werte'!L76)/'DAX 30 Werte'!L76 -> -0.01977058891 | M76: =('DAX 30 Werte'!M77-'DAX 30 Werte'!M76)/'DAX 30 Werte'!M76 -> -0.02487783207 | N76: =('DAX 30 Werte'!N77-'DAX 30 Werte'!N76)/'DAX 30 Werte'!N76 -> -0.01090909091 | O76: =('DAX 30 Werte'!O77-'DAX 30 Werte'!O76)/'DAX 30 Werte'!O76 -> -0.01228330857 | P76: =('DAX 30 Werte'!P77-'DAX 30 Werte'!P76)/'DAX 30 Werte'!P76 -> -0.03037319531 | Q76: =('DAX 30 Werte'!Q77-'DAX 30 Werte'!Q76)/'DAX 30 Werte'!Q76 -> -0.02351506706 | R76: =('DAX 30 Werte'!R77-'DAX 30 Werte'!R76)/'DAX 30 Werte'!R76 -> -0.02488849495 | S76: =('DAX 30 Werte'!S77-'DAX 30 Werte'!S76)/'DAX 30 Werte'!S76 -> -0.02079153748 | T76: =('DAX 30 Werte'!T77-'DAX 30 Werte'!T76)/'DAX 30 Werte'!T76 -> -0.01173814898 | U76: =('DAX 30 Werte'!U77-'DAX 30 Werte'!U76)/'DAX 30 Werte'!U76 -> -0.01696402457 | V76: =('DAX 30 Werte'!V77-'DAX 30 Werte'!V76)/'DAX 30 Werte'!V76 -> -0.03012912482 | W76: =('DAX 30 Werte'!W77-'DAX 30 Werte'!W76)/'DAX 30 Werte'!W76 -> 0.01766666667 | X76: =('DAX 30 Werte'!X77-'DAX 30 Werte'!X76)/'DAX 30 Werte'!X76 -> -0.006472887152 | Y76: =('DAX 30 Werte'!Y77-'DAX 30 Werte'!Y76)/'DAX 30 Werte'!Y76 -> -0.02382285704 | Z76: =('DAX 30 Werte'!Z77-'DAX 30 Werte'!Z76)/'DAX 30 Werte'!Z76 -> -0.03032544379 | AA76: =('DAX 30 Werte'!AA77-'DAX 30 Werte'!AA76)/'DAX 30 Werte'!AA76 -> -0.03160450734 | AB76: =('DAX 30 Werte'!AB77-'DAX 30 Werte'!AB76)/'DAX 30 Werte'!AB76 -> -0.0001920860546 | AC76: =('DAX 30 Werte'!AC77-'DAX 30 Werte'!AC76)/'DAX 30 Werte'!AC76 -> -0.02111024238 | AD76: =('DAX 30 Werte'!AD77-'DAX 30 Werte'!AD76)/'DAX 30 Werte'!AD76 -> 0.02127980682 | AE76: =('DAX 30 Werte'!AD77-'DAX 30 Werte'!AD76)/'DAX 30 Werte'!AD76 -> 0.02127980682
A77: 2010-01-21 | B77: =('DAX 30 Werte'!B78-'DAX 30 Werte'!B77)/'DAX 30 Werte'!B77 -> -0.01786883089 | C77: =('DAX 30 Werte'!C78-'DAX 30 Werte'!C77)/'DAX 30 Werte'!C77 -> -0.01326747011 | D77: =('DAX 30 Werte'!D78-'DAX 30 Werte'!D77)/'DAX 30 Werte'!D77 -> -0.01682923171 | E77: =('DAX 30 Werte'!E78-'DAX 30 Werte'!E77)/'DAX 30 Werte'!E77 -> -0.02028301887 | F77: =('DAX 30 Werte'!F78-'DAX 30 Werte'!F77)/'DAX 30 Werte'!F77 -> -0.00706384113 | G77: =('DAX 30 Werte'!G78-'DAX 30 Werte'!G77)/'DAX 30 Werte'!G77 -> -0.02919230266 | H77: =('DAX 30 Werte'!H78-'DAX 30 Werte'!H77)/'DAX 30 Werte'!H77 -> -0.02573070197 | I77: =('DAX 30 Werte'!I78-'DAX 30 Werte'!I77)/'DAX 30 Werte'!I77 -> -0.03455541509 | J77: =('DAX 30 Werte'!J78-'DAX 30 Werte'!J77)/'DAX 30 Werte'!J77 -> -0.02001396276 | K77: =('DAX 30 Werte'!K78-'DAX 30 Werte'!K77)/'DAX 30 Werte'!K77 -> -0.02489688823 | L77: =('DAX 30 Werte'!L78-'DAX 30 Werte'!L77)/'DAX 30 Werte'!L77 -> -0.02436925345 | M77: =('DAX 30 Werte'!M78-'DAX 30 Werte'!M77)/'DAX 30 Werte'!M77 -> -0.01670463174 | N77: =('DAX 30 Werte'!N78-'DAX 30 Werte'!N77)/'DAX 30 Werte'!N77 -> -0.01794117647 | O77: =('DAX 30 Werte'!O78-'DAX 30 Werte'!O77)/'DAX 30 Werte'!O77 -> -0.009527630127 | P77: =('DAX 30 Werte'!P78-'DAX 30 Werte'!P77)/'DAX 30 Werte'!P77 -> -0.02345835089 | Q77: =('DAX 30 Werte'!Q78-'DAX 30 Werte'!Q77)/'DAX 30 Werte'!Q77 -> -0.01212986086 | R77: =('DAX 30 Werte'!R78-'DAX 30 Werte'!R77)/'DAX 30 Werte'!R77 -> -0.01396576003 | S77: =('DAX 30 Werte'!S78-'DAX 30 Werte'!S77)/'DAX 30 Werte'!S77 -> -0.04861240454 | T77: =('DAX 30 Werte'!T78-'DAX 30 Werte'!T77)/'DAX 30 Werte'!T77 -> -0.002740977615 | U77: =('DAX 30 Werte'!U78-'DAX 30 Werte'!U77)/'DAX 30 Werte'!U77 -> 0.00193394823 | V77: =('DAX 30 Werte'!V78-'DAX 30 Werte'!V77)/'DAX 30 Werte'!V77 -> -0.02218934911 | W77: =('DAX 30 Werte'!W78-'DAX 30 Werte'!W77)/'DAX 30 Werte'!W77 -> 0.004913200131 | X77: =('DAX 30 Werte'!X78-'DAX 30 Werte'!X77)/'DAX 30 Werte'!X77 -> 0.00381069453 | Y77: =('DAX 30 Werte'!Y78-'DAX 30 Werte'!Y77)/'DAX 30 Werte'!Y77 -> -0.01105097246 | Z77: =('DAX 30 Werte'!Z78-'DAX 30 Werte'!Z77)/'DAX 30 Werte'!Z77 -> -0.03947368421 | AA77: =('DAX 30 Werte'!AA78-'DAX 30 Werte'!AA77)/'DAX 30 Werte'!AA77 -> -0.03816016298 | AB77: =('DAX 30 Werte'!AB78-'DAX 30 Werte'!AB77)/'DAX 30 Werte'!AB77 -> -0.003650336215 | AC77: =('DAX 30 Werte'!AC78-'DAX 30 Werte'!AC77)/'DAX 30 Werte'!AC77 -> -0.005591054313 | AD77: =('DAX 30 Werte'!AD78-'DAX 30 Werte'!AD77)/'DAX 30 Werte'!AD77 -> -0.01994975617 | AE77: =('DAX 30 Werte'!AD78-'DAX 30 Werte'!AD77)/'DAX 30 Werte'!AD77 -> -0.01994975617
A78: 2010-01-22 | B78: =('DAX 30 Werte'!B79-'DAX 30 Werte'!B78)/'DAX 30 Werte'!B78 -> -0.008987344636 | C78: =('DAX 30 Werte'!C79-'DAX 30 Werte'!C78)/'DAX 30 Werte'!C78 -> -0.01075660703 | D78: =('DAX 30 Werte'!D79-'DAX 30 Werte'!D78)/'DAX 30 Werte'!D78 -> -0.01339620392 | E78: =('DAX 30 Werte'!E79-'DAX 30 Werte'!E78)/'DAX 30 Werte'!E78 -> -0.01460439737 | F78: =('DAX 30 Werte'!F79-'DAX 30 Werte'!F78)/'DAX 30 Werte'!F78 -> 0.00322147651 | G78: =('DAX 30 Werte'!G79-'DAX 30 Werte'!G78)/'DAX 30 Werte'!G78 -> -0.004854368932 | H78: =('DAX 30 Werte'!H79-'DAX 30 Werte'!H78)/'DAX 30 Werte'!H78 -> -0.03435897436 | I78: =('DAX 30 Werte'!I79-'DAX 30 Werte'!I78)/'DAX 30 Werte'!I78 -> -0.01811436054 | J78: =('DAX 30 Werte'!J79-'DAX 30 Werte'!J78)/'DAX 30 Werte'!J78 -> 0.006411778523 | K78: =('DAX 30 Werte'!K79-'DAX 30 Werte'!K78)/'DAX 30 Werte'!K78 -> -0.04191538576 | L78: =('DAX 30 Werte'!L79-'DAX 30 Werte'!L78)/'DAX 30 Werte'!L78 -> -0.0196385277 | M78: =('DAX 30 Werte'!M79-'DAX 30 Werte'!M78)/'DAX 30 Werte'!M78 -> 0.0004633204633 | N78: =('DAX 30 Werte'!N79-'DAX 30 Werte'!N78)/'DAX 30 Werte'!N78 -> -0.008834980533 | O78: =('DAX 30 Werte'!O79-'DAX 30 Werte'!O78)/'DAX 30 Werte'!O78 -> -0.006784123127 | P78: =('DAX 30 Werte'!P79-'DAX 30 Werte'!P78)/'DAX 30 Werte'!P78 -> -0.0166858458 | Q78: =('DAX 30 Werte'!Q79-'DAX 30 Werte'!Q78)/'DAX 30 Werte'!Q78 -> -0.005597688696 | R78: =('DAX 30 Werte'!R79-'DAX 30 Werte'!R78)/'DAX 30 Werte'!R78 -> -0.006227142705 | S78: =('DAX 30 Werte'!S79-'DAX 30 Werte'!S78)/'DAX 30 Werte'!S78 -> 0.006851996868 | T78: =('DAX 30 Werte'!T79-'DAX 30 Werte'!T78)/'DAX 30 Werte'!T78 -> 0.003206596427 | U78: =('DAX 30 Werte'!U79-'DAX 30 Werte'!U78)/'DAX 30 Werte'!U78 -> -0.004157386785 | V78: =('DAX 30 Werte'!V79-'DAX 30 Werte'!V78)/'DAX 30 Werte'!V78 -> -0.01172465961 | W78: =('DAX 30 Werte'!W79-'DAX 30 Werte'!W78)/'DAX 30 Werte'!W78 -> -0.005867014342 | X78: =('DAX 30 Werte'!X79-'DAX 30 Werte'!X78)/'DAX 30 Werte'!X78 -> -0.009061964242 | Y78: =('DAX 30 Werte'!Y79-'DAX 30 Werte'!Y78)/'DAX 30 Werte'!Y78 -> -0.006285670758 | Z78: =('DAX 30 Werte'!Z79-'DAX 30 Werte'!Z78)/'DAX 30 Werte'!Z78 -> -0.02521342069 | AA78: =('DAX 30 Werte'!AA79-'DAX 30 Werte'!AA78)/'DAX 30 Werte'!AA78 -> 0.002118126273 | AB78: =('DAX 30 Werte'!AB79-'DAX 30 Werte'!AB78)/'DAX 30 Werte'!AB78 -> -0.007905900501 | AC78: =('DAX 30 Werte'!AC79-'DAX 30 Werte'!AC78)/'DAX 30 Werte'!AC78 -> -0.06064257028 | AD78: =('DAX 30 Werte'!AD79-'DAX 30 Werte'!AD78)/'DAX 30 Werte'!AD78 -> -0.01130880579 | AE78: =('DAX 30 Werte'!AD79-'DAX 30 Werte'!AD78)/'DAX 30 Werte'!AD78 -> -0.01130880579
A79: 2010-01-25 | B79: =('DAX 30 Werte'!B80-'DAX 30 Werte'!B79)/'DAX 30 Werte'!B79 -> -0.01122851745 | C79: =('DAX 30 Werte'!C80-'DAX 30 Werte'!C79)/'DAX 30 Werte'!C79 -> -0.01099715804 | D79: =('DAX 30 Werte'!D80-'DAX 30 Werte'!D79)/'DAX 30 Werte'!D79 -> -0.01873268772 | E79: =('DAX 30 Werte'!E80-'DAX 30 Werte'!E79)/'DAX 30 Werte'!E79 -> -0.01824104235 | F79: =('DAX 30 Werte'!F80-'DAX 30 Werte'!F79)/'DAX 30 Werte'!F79 -> -0.01953438587 | G79: =('DAX 30 Werte'!G80-'DAX 30 Werte'!G79)/'DAX 30 Werte'!G79 -> 0.005555555556 | H79: =('DAX 30 Werte'!H80-'DAX 30 Werte'!H79)/'DAX 30 Werte'!H79 -> 0.01433882103 | I79: =('DAX 30 Werte'!I80-'DAX 30 Werte'!I79)/'DAX 30 Werte'!I79 -> 0.0097799511 | J79: =('DAX 30 Werte'!J80-'DAX 30 Werte'!J79)/'DAX 30 Werte'!J79 -> -0.005545091894 | K79: =('DAX 30 Werte'!K80-'DAX 30 Werte'!K79)/'DAX 30 Werte'!K79 -> -0.0006644146337 | L79: =('DAX 30 Werte'!L80-'DAX 30 Werte'!L79)/'DAX 30 Werte'!L79 -> 0.004217805645 | M79: =('DAX 30 Werte'!M80-'DAX 30 Werte'!M79)/'DAX 30 Werte'!M79 -> -0.002778635381 | N79: =('DAX 30 Werte'!N80-'DAX 30 Werte'!N79)/'DAX 30 Werte'!N79 -> -0.01359722012 | O79: =('DAX 30 Werte'!O80-'DAX 30 Werte'!O79)/'DAX 30 Werte'!O79 -> -0.009073300031 | P79: =('DAX 30 Werte'!P80-'DAX 30 Werte'!P79)/'DAX 30 Werte'!P79 -> -0.01989467525 | Q79: =('DAX 30 Werte'!Q80-'DAX 30 Werte'!Q79)/'DAX 30 Werte'!Q79 -> -0.01979299074 | R79: =('DAX 30 Werte'!R80-'DAX 30 Werte'!R79)/'DAX 30 Werte'!R79 -> -0.00528320439 | S79: =('DAX 30 Werte'!S80-'DAX 30 Werte'!S79)/'DAX 30 Werte'!S79 -> -0.02041609955 | T79: =('DAX 30 Werte'!T80-'DAX 30 Werte'!T79)/'DAX 30 Werte'!T79 -> -0.009132420091 | U79: =('DAX 30 Werte'!U80-'DAX 30 Werte'!U79)/'DAX 30 Werte'!U79 -> -0.01565528552 | V79: =('DAX 30 Werte'!V80-'DAX 30 Werte'!V79)/'DAX 30 Werte'!V79 -> -0.006888633754 | W79: =('DAX 30 Werte'!W80-'DAX 30 Werte'!W79)/'DAX 30 Werte'!W79 -> -0.01595628415 | X79: =('DAX 30 Werte'!X80-'DAX 30 Werte'!X79)/'DAX 30 Werte'!X79 -> -0.004695996045 | Y79: =('DAX 30 Werte'!Y80-'DAX 30 Werte'!Y79)/'DAX 30 Werte'!Y79 -> -0.003514138374 | Z79: =('DAX 30 Werte'!Z80-'DAX 30 Werte'!Z79)/'DAX 30 Werte'!Z79 -> -0.01853360489 | AA79: =('DAX 30 Werte'!AA80-'DAX 30 Werte'!AA79)/'DAX 30 Werte'!AA79 -> -0.0164417527 | AB79: =('DAX 30 Werte'!AB80-'DAX 30 Werte'!AB79)/'DAX 30 Werte'!AB79 -> -0.01379980564 | AC79: =('DAX 30 Werte'!AC80-'DAX 30 Werte'!AC79)/'DAX 30 Werte'!AC79 -> -0.02607952116 | AD79: =('DAX 30 Werte'!AD80-'DAX 30 Werte'!AD79)/'DAX 30 Werte'!AD79 -> -0.0001525087693 | AE79: =('DAX 30 Werte'!AD80-'DAX 30 Werte'!AD79)/'DAX 30 Werte'!AD79 -> -0.0001525087693
A80: 2010-01-26 | B80: =('DAX 30 Werte'!B81-'DAX 30 Werte'!B80)/'DAX 30 Werte'!B80 -> 0.006669780178 | C80: =('DAX 30 Werte'!C81-'DAX 30 Werte'!C80)/'DAX 30 Werte'!C80 -> -0.002623663168 | D80: =('DAX 30 Werte'!D81-'DAX 30 Werte'!D80)/'DAX 30 Werte'!D80 -> 0.004612440566 | E80: =('DAX 30 Werte'!E81-'DAX 30 Werte'!E80)/'DAX 30 Werte'!E80 -> 0.003815527538 | F80: =('DAX 30 Werte'!F81-'DAX 30 Werte'!F80)/'DAX 30 Werte'!F80 -> 0.004639737991 | G80: =('DAX 30 Werte'!G81-'DAX 30 Werte'!G80)/'DAX 30 Werte'!G80 -> -0.0001347527287 | H80: =('DAX 30 Werte'!H81-'DAX 30 Werte'!H80)/'DAX 30 Werte'!H80 -> 0.02041884817 | I80: =('DAX 30 Werte'!I81-'DAX 30 Werte'!I80)/'DAX 30 Werte'!I80 -> 0.01144618094 | J80: =('DAX 30 Werte'!J81-'DAX 30 Werte'!J80)/'DAX 30 Werte'!J80 -> -0.009016514415 | K80: =('DAX 30 Werte'!K81-'DAX 30 Werte'!K80)/'DAX 30 Werte'!K80 -> -0.01100057231 | L80: =('DAX 30 Werte'!L81-'DAX 30 Werte'!L80)/'DAX 30 Werte'!L80 -> 0.01137333805 | M80: =('DAX 30 Werte'!M81-'DAX 30 Werte'!M80)/'DAX 30 Werte'!M80 -> 0.05139318885 | N80: =('DAX 30 Werte'!N81-'DAX 30 Werte'!N80)/'DAX 30 Werte'!N80 -> 0.002297442181 | O80: =('DAX 30 Werte'!O81-'DAX 30 Werte'!O80)/'DAX 30 Werte'!O80 -> 0 | P80: =('DAX 30 Werte'!P81-'DAX 30 Werte'!P80)/'DAX 30 Werte'!P80 -> 0.01074626866 | Q80: =('DAX 30 Werte'!Q81-'DAX 30 Werte'!Q80)/'DAX 30 Werte'!Q80 -> 0.002037791775 | R80: =('DAX 30 Werte'!R81-'DAX 30 Werte'!R80)/'DAX 30 Werte'!R80 -> 0.003087944702 | S80: =('DAX 30 Werte'!S81-'DAX 30 Werte'!S80)/'DAX 30 Werte'!S80 -> 0.01310043668 | T80: =('DAX 30 Werte'!T81-'DAX 30 Werte'!T80)/'DAX 30 Werte'!T80 -> 0.01198156682 | U80: =('DAX 30 Werte'!U81-'DAX 30 Werte'!U80)/'DAX 30 Werte'!U80 -> -0.000605877007 | V80: =('DAX 30 Werte'!V81-'DAX 30 Werte'!V80)/'DAX 30 Werte'!V80 -> -0.01734104046 | W80: =('DAX 30 Werte'!W81-'DAX 30 Werte'!W80)/'DAX 30 Werte'!W80 -> -0.01377165704 | X80: =('DAX 30 Werte'!X81-'DAX 30 Werte'!X80)/'DAX 30 Werte'!X80 -> -0.003724857214 | Y80: =('DAX 30 Werte'!Y81-'DAX 30 Werte'!Y80)/'DAX 30 Werte'!Y80 -> 0.0109321735 | Z80: =('DAX 30 Werte'!Z81-'DAX 30 Werte'!Z80)/'DAX 30 Werte'!Z80 -> -0.01016808466 | AA80: =('DAX 30 Werte'!AA81-'DAX 30 Werte'!AA80)/'DAX 30 Werte'!AA80 -> -0.007128835624 | AB80: =('DAX 30 Werte'!AB81-'DAX 30 Werte'!AB80)/'DAX 30 Werte'!AB80 -> -0.01024832479 | AC80: =('DAX 30 Werte'!AC81-'DAX 30 Werte'!AC80)/'DAX 30 Werte'!AC80 -> 0.01492537313 | AD80: =('DAX 30 Werte'!AD81-'DAX 30 Werte'!AD80)/'DAX 30 Werte'!AD80 -> 0.01143990238 | AE80: =('DAX 30 Werte'!AD81-'DAX 30 Werte'!AD80)/'DAX 30 Werte'!AD80 -> 0.01143990238
A81: 2010-01-27 | B81: =('DAX 30 Werte'!B82-'DAX 30 Werte'!B81)/'DAX 30 Werte'!B81 -> -0.004538775395 | C81: =('DAX 30 Werte'!C82-'DAX 30 Werte'!C81)/'DAX 30 Werte'!C81 -> 0.01077289213 | D81: =('DAX 30 Werte'!D82-'DAX 30 Werte'!D81)/'DAX 30 Werte'!D81 -> -0.01071296974 | E81: =('DAX 30 Werte'!E82-'DAX 30 Werte'!E81)/'DAX 30 Werte'!E81 -> -0.02197983804 | F81: =('DAX 30 Werte'!F82-'DAX 30 Werte'!F81)/'DAX 30 Werte'!F81 -> -0.007199130671 | G81: =('DAX 30 Werte'!G82-'DAX 30 Werte'!G81)/'DAX 30 Werte'!G81 -> -0.004986522911 | H81: =('DAX 30 Werte'!H82-'DAX 30 Werte'!H81)/'DAX 30 Werte'!H81 -> -0.02103642894 | I81: =('DAX 30 Werte'!I82-'DAX 30 Werte'!I81)/'DAX 30 Werte'!I81 -> -0.06006528836 | J81: =('DAX 30 Werte'!J82-'DAX 30 Werte'!J81)/'DAX 30 Werte'!J81 -> -0.01089424185 | K81: =('DAX 30 Werte'!K82-'DAX 30 Werte'!K81)/'DAX 30 Werte'!K81 -> -0.01258316958 | L81: =('DAX 30 Werte'!L82-'DAX 30 Werte'!L81)/'DAX 30 Werte'!L81 -> -0.02785513381 | M81: =('DAX 30 Werte'!M82-'DAX 30 Werte'!M81)/'DAX 30 Werte'!M81 -> -0.01383981154 | N81: =('DAX 30 Werte'!N82-'DAX 30 Werte'!N81)/'DAX 30 Werte'!N81 -> 0.0009168704156 | O81: =('DAX 30 Werte'!O82-'DAX 30 Werte'!O81)/'DAX 30 Werte'!O81 -> -0.006172839506 | P81: =('DAX 30 Werte'!P82-'DAX 30 Werte'!P81)/'DAX 30 Werte'!P81 -> -0.02761370348 | Q81: =('DAX 30 Werte'!Q82-'DAX 30 Werte'!Q81)/'DAX 30 Werte'!Q81 -> 0.002773155851 | R81: =('DAX 30 Werte'!R82-'DAX 30 Werte'!R81)/'DAX 30 Werte'!R81 -> -0.002585876155 | S81: =('DAX 30 Werte'!S82-'DAX 30 Werte'!S81)/'DAX 30 Werte'!S81 -> -0.004506269592 | T81: =('DAX 30 Werte'!T82-'DAX 30 Werte'!T81)/'DAX 30 Werte'!T81 -> 0.0004553734062 | U81: =('DAX 30 Werte'!U82-'DAX 30 Werte'!U81)/'DAX 30 Werte'!U81 -> -0.005001515611 | V81: =('DAX 30 Werte'!V82-'DAX 30 Werte'!V81)/'DAX 30 Werte'!V81 -> -0.005490196078 | W81: =('DAX 30 Werte'!W82-'DAX 30 Werte'!W81)/'DAX 30 Werte'!W81 -> -0.002252252252 | X81: =('DAX 30 Werte'!X82-'DAX 30 Werte'!X81)/'DAX 30 Werte'!X81 -> -0.005608175474 | Y81: =('DAX 30 Werte'!Y82-'DAX 30 Werte'!Y81)/'DAX 30 Werte'!Y81 -> -0.008837232558 | Z81: =('DAX 30 Werte'!Z82-'DAX 30 Werte'!Z81)/'DAX 30 Werte'!Z81 -> -0.01970649895 | AA81: =('DAX 30 Werte'!AA82-'DAX 30 Werte'!AA81)/'DAX 30 Werte'!AA81 -> -0.03602497399 | AB81: =('DAX 30 Werte'!AB82-'DAX 30 Werte'!AB81)/'DAX 30 Werte'!AB81 -> -0.02648347272 | AC81: =('DAX 30 Werte'!AC82-'DAX 30 Werte'!AC81)/'DAX 30 Werte'!AC81 -> -0.009515570934 | AD81: =('DAX 30 Werte'!AD82-'DAX 30 Werte'!AD81)/'DAX 30 Werte'!AD81 -> -0.01749359071 | AE81: =('DAX 30 Werte'!AD82-'DAX 30 Werte'!AD81)/'DAX 30 Werte'!AD81 -> -0.01749359071
A82: 2010-01-28 | B82: =('DAX 30 Werte'!B83-'DAX 30 Werte'!B82)/'DAX 30 Werte'!B82 -> -0.018229019 | C82: =('DAX 30 Werte'!C83-'DAX 30 Werte'!C82)/'DAX 30 Werte'!C82 -> -0.007931565053 | D82: =('DAX 30 Werte'!D83-'DAX 30 Werte'!D82)/'DAX 30 Werte'!D82 -> -0.01121571484 | E82: =('DAX 30 Werte'!E83-'DAX 30 Werte'!E82)/'DAX 30 Werte'!E82 -> -0.001351808043 | F82: =('DAX 30 Werte'!F83-'DAX 30 Werte'!F82)/'DAX 30 Werte'!F82 -> -0.01217676837 | G82: =('DAX 30 Werte'!G83-'DAX 30 Werte'!G82)/'DAX 30 Werte'!G82 -> -0.01693078694 | H82: =('DAX 30 Werte'!H83-'DAX 30 Werte'!H82)/'DAX 30 Werte'!H82 -> 0.02306079665 | I82: =('DAX 30 Werte'!I83-'DAX 30 Werte'!I82)/'DAX 30 Werte'!I82 -> -0.01759666589 | J82: =('DAX 30 Werte'!J83-'DAX 30 Werte'!J82)/'DAX 30 Werte'!J82 -> -0.03510045909 | K82: =('DAX 30 Werte'!K83-'DAX 30 Werte'!K82)/'DAX 30 Werte'!K82 -> -0.004436541742 | L82: =('DAX 30 Werte'!L83-'DAX 30 Werte'!L82)/'DAX 30 Werte'!L82 -> 0.005517957532 | M82: =('DAX 30 Werte'!M83-'DAX 30 Werte'!M82)/'DAX 30 Werte'!M82 -> -0.03105404598 | N82: =('DAX 30 Werte'!N83-'DAX 30 Werte'!N82)/'DAX 30 Werte'!N82 -> -0.01740458015 | O82: =('DAX 30 Werte'!O83-'DAX 30 Werte'!O82)/'DAX 30 Werte'!O82 -> -0.02619047619 | P82: =('DAX 30 Werte'!P83-'DAX 30 Werte'!P82)/'DAX 30 Werte'!P82 -> -0.01837509491 | Q82: =('DAX 30 Werte'!Q83-'DAX 30 Werte'!Q82)/'DAX 30 Werte'!Q82 -> -0.02212389381 | R82: =('DAX 30 Werte'!R83-'DAX 30 Werte'!R82)/'DAX 30 Werte'!R82 -> -0.01765432099 | S82: =('DAX 30 Werte'!S83-'DAX 30 Werte'!S82)/'DAX 30 Werte'!S82 -> -0.03011218264 | T82: =('DAX 30 Werte'!T83-'DAX 30 Werte'!T82)/'DAX 30 Werte'!T82 -> -0.006827492035 | U82: =('DAX 30 Werte'!U83-'DAX 30 Werte'!U82)/'DAX 30 Werte'!U82 -> -0.02711348058 | V82: =('DAX 30 Werte'!V83-'DAX 30 Werte'!V82)/'DAX 30 Werte'!V82 -> -0.01458990536 | W82: =('DAX 30 Werte'!W83-'DAX 30 Werte'!W82)/'DAX 30 Werte'!W82 -> 0 | X82: =('DAX 30 Werte'!X83-'DAX 30 Werte'!X82)/'DAX 30 Werte'!X82 -> -0.0131595438 | Y82: =('DAX 30 Werte'!Y83-'DAX 30 Werte'!Y82)/'DAX 30 Werte'!Y82 -> -0.009150610257 | Z82: =('DAX 30 Werte'!Z83-'DAX 30 Werte'!Z82)/'DAX 30 Werte'!Z82 -> -0.02673224979 | AA82: =('DAX 30 Werte'!AA83-'DAX 30 Werte'!AA82)/'DAX 30 Werte'!AA82 -> -0.01139920983 | AB82: =('DAX 30 Werte'!AB83-'DAX 30 Werte'!AB82)/'DAX 30 Werte'!AB82 -> -0.01851094293 | AC82: =('DAX 30 Werte'!AC83-'DAX 30 Werte'!AC82)/'DAX 30 Werte'!AC82 -> -0.0008733624454 | AD82: =('DAX 30 Werte'!AD83-'DAX 30 Werte'!AD82)/'DAX 30 Werte'!AD82 -> -0.02256331543 | AE82: =('DAX 30 Werte'!AD83-'DAX 30 Werte'!AD82)/'DAX 30 Werte'!AD82 -> -0.02256331543
